Workbook

Sheet Cover (hidden)
A1: Government Actuary's Department
A2: Preston Model for RDS settlement
A3: Cover
A4: =CELL("filename",A1) -> C:\Users\lroberts\AppData\Local\Microsoft\Windows\Temporary Internet Files\Content.Outlook\TFL3ASN3\[Retained Firefighters Pension Settlement Calculator Sep 2015 v1_0.xlsm]Cover
A6: Security classification
A7: Descriptor
A9: Specification | B9: Preston Model for calculations related to the specail scheme created for retained firefighters
A13: Explanation
A15: Sheet | B15: Description
A16: Interface | B16: The main user interface that will be visible to administrators of fire authorities.
A17: Mod(1) - earnings & conts | B17: This tab works out the monthly earnings and contribution breakdown in the special scheme. These details feed into the 'Mod(1A) - MSP LS conts calc' tab.
A18: Mod(1A) - MSP LS conts calc | B18: This sheet calculates the mandatory sprecial period pension contributions that need to be paid by the special member to reinstate service in the special (RDS) scheme
A19: Mod(1A) - MSP per conts calc | B19: This sheet calculates monthly payment that needs to be paid by a special member if he/she is to pay their madatory special period pension contributions worked out in the 'Mod(1A) - MSP LS conts calc' tab over a 10 year period
A20: Mod(1A) - LP remaining LS calc | B20: This tab is to be used to calculate the LS payable by the special firefighter/deferred member if they were to cease paying their periodic payments. (E.g. a special deferred member's pension coming into payment, or on retirement of special firefighter member)
A21: Mod(2) - earnings & conts | B21: This tab works out the breakdown of the monthly earnings and contributions paid in the standard scheme (NFPS). These details feed into the 'Mod(2) - LS conts calc' tab
A22: Mod(2) - LS conts calc | B22: This tab calculates the lump sum value as a t the calculation date of any NFPS (standard scheme) contributions already paid by the member
A23: Mod(2) - per conts calc | B23: This tab calculates the value of the NFPS contributions that need to be set off against the monthly special scheme contributions that were calculated in the 'Mod(1) - periodic conts calc tab' if the member wishes to convert standard scheme service to special service at the same time that he/she will be purchasing service in the special scheme.
A24: Mod(3) - pen payments | B24: This tab works out the monthly pension payments to be paid from the special scheme. These details feed into the 'Mod(3) - pension LS calc' tab
A25: Mod(3) - pension LS calc | B25: This tab calculates the lump sum value (as at the calculation date) of the RDS pension that is payable to the member
A26: Mod(4) - pen payments | B26: This tab works out the monthly pension payments already paid out from the standard scheme. These details feed into the 'Mod(4) - pension LS calc' tab
A27: Mod(4) - pension LS calc | B27: This tab calculates the lump sum value (as at the calculation date) of the NFPS pension already paid to the member
A28: Mod(5) - earnings & conts | B28: This tab works out the breakdown of the monthly earnings and contributions to be paid in the standard scheme (NFPS). These details feed into the 'Mod(5) - LS conts calc' tab
A29: Mod(5) - LS conts calc | B29: This tab calculates the lump sum value as at the calculation date of any NFPS (standard scheme) contributions payable by the member
A30: Mod(5) - per conts calc | B30: This tab breaks down the lump sum value payable in 'Mod(5) - LS conts calc' into monthly contributions spread over 10 years.
A31: Interest and Tax | B31: Interest rate and tax indicies used in the model. Please note that these tables will need to be updated regularly!
A32: NFPS ee cont rates | B32: Employee contribution rates payable by members of the NFPS
A33: NFPS ER reduction factors | B33: Early retirement reduction factors that apply to NFPS members.
A34: RDS reference pay values | B34: Reference poay value for RDS FF showin min and max values
A35: RDS ee cont rates | B35: Employee contribution rates payable by members of the modified scheme
A36: PI information | B36: Pension increase rates used in the pension calculations in this model
A37: PI Alloc Table | B37: Works out the pro-rated PI that should apply during the 2nd year (i.e. tax year) that pensions are being paid out. This is dependent on when the pension payments commenced. Full PI will apply from 3rd year.
A38: Variables | B38: Variables used in the drop down lists in the interface tab
A39: Notes | B39: Notes
A40: Comm Factors | B40: Commutation factors for special members
A41: Module Matrix | B41: Tabulates the modules that should be available for each of the different member types. Please refer to model user guide (word doc) for latest version of scenarios being considered.
A43: Material assumptions
B44: > Enter a brief description of any material implicit assumptions used within the workbook (explicit assumptions can be identified by their pink colouring as below)
A53: User instructions
B55: > If necessary, enter instructions on how other users should use or update this workbook here. Include warnings in particular if the spreadsheet requires Goal Seek or Macros to be rerun if the any of the inputs are changed.
A57: External links: Links from other workbooks to this workbook
A59: List of workbooks which link into this workbook (nb workbooks which this workbook links to can be viewed by selecting Data>Edit Links):
B60: > Enter hyperlinks to workbooks here
A62: Legend
A63: Blue text | B63: Input data
A64: Red text | B64: Links from another (external) workbook
A65: Pink text | B65: Assumptions
A66: Green text | B66: Links from another cell within this workbook
A67: Black text | B67: Calculations
A68: Orange background | B68: Linked upwards to other workbooks
A69: Turquoise background | B69: Quoted in external advice
A70: Grey text | B70: Checks
A71: UNCLASSIFIED
A72: PROTECT
A73: RESTRICTED
A74: CONFIDENTIAL
A75: <No Descriptor>
A76: COMMERCIAL in CONFIDENCE
A77: CONTRACTS
A78: MANAGEMENT
A79: PERSONAL
A80: POLICY
A81: SCHEME MANAGEMENT
A82: STAFF
A83: 2
A84: 7

Sheet Version control (hidden)
A1: Government Actuary's Department
A2: =IF(title="> Enter workbook title here","Enter workbook title in Cover sheet",title) -> Preston Model for RDS settlement
A3: Version Control
A4: =CELL("filename",A1) -> C:\Users\lroberts\AppData\Local\Microsoft\Windows\Temporary Internet Files\Content.Outlook\TFL3ASN3\[Retained Firefighters Pension Settlement Calculator Sep 2015 v1_0.xlsm]Version control
A6: Version number | B6: File pathname | C6: Paper file | D6: eBis code | E6: Internal or external documents based on this version | F6: Author or Editor | G6: Date | H6: Comments | I6: Checked by | J6: Date | K6: Comments | L6: External links checked?
A7: 1_1 | B7: \\Gad-a3\a3data\A3 clients\Fire Pension Scheme\Retained Firefighters\Factors\Preston model\Preston model initial work RS v1.xlsm | F7: RS | G7: 2013-10-04
A8: 2_1 | B8: \\Gad-a3\a3data\A3 clients\Fire Pension Scheme\Retained Firefighters\Factors\Preston model\Preston model initial work RS v2.xlsm | F8: RS | G8: 2013-10-21 | H8: Changes from SL's review
A9: 3_1 | B9: \\Gad-a3\a3data\A3 clients\Fire Pension Scheme\Retained Firefighters\Factors\Preston model\Preston model initial work RS v3.xlsm | F9: SL | G9: 2013-11-09
A10: 4_1 | B10: \\Gad-a3\a3data\A3 clients\Fire Pension Scheme\Retained Firefighters\Factors\Preston model\Preston model initial work RS v4.xlsm | F10: RS | G10: 2013-11-20 | H10: Included reference to Regs in Interface tab
A11: 5_1 | B11: \\Gad-a3\a3data\A3 clients\Fire Pension Scheme\Retained Firefighters\Factors\Preston model\Preston model initial work RS v5.xlsm | F11: SL | G11: 2013-12-20
A12: 6_1 | B12: \\Gad-a3\a3data\A3 clients\Fire Pension Scheme\Retained Firefighters\Factors\Preston model\Preston model initial work RS v6.xlsm | C12: 9489/6 | D12: 0452-30006-03 | F12: RS | G12: 2013-12-31 | H12: Neatened up the spreadsheet and updated cover sheet 'NFPS ee cont rates' and 'RDS ee cont rates' Included links to the 2013/14 cont rates. 2014/15 contribution rates set equal to 2013/14. 'NFPS - earnings & conts' and 'RDS - earnings & conts' Simplified formula used to work out monthly cont rates and extended to capture new rates upto 2014/15. NFPS tab needed to be re-linked to new table in Interface following changes made to it. RDS - LS conts calc Tax relief will not be taken into account in calcs. RDS - remaining LS calc Tab has been removed as as calcs not needed. A simple straight line method to work out total remaining payments.
A13: 1_1 | B13: \\Gad-a3\a3data\A3 clients\Fire Pension Scheme\Retained Firefighters\Factors\Preston model\Fire Retaineds - Preston model v1.xlsm | C13: 9489/6 | D13: 0452-30006-03 | F13: RS | G13: 2014-04-07 | H13: Complete revamp of existing model. The s/s file name has been changed. Names of tabs have been changed to reflect modules they belong to. All other changes made to the model are listed below.
H14: Interface tab Included a row in Module 4 to obtain the date of the last pension payment. Included a new section to obtain user input required for Module 5.
H15: Variables tab This tab was deleted and the variable names used throughout the s/s were rationalised so that they indicate whether they relate to any specific module.
H16: Mod(1) tabs Some variable names were amended as described above. The contribution type column was removed as it's no longer used. Lookup formulae references updated accordingly.
H17: Mod(2) tabs Some variable names were amended as described above. The contribution type column was removed as it's no longer used. Lookup formulae references updated accordingly. The contribution value to use in calcs. (i.e. actual or estimate) is no longer done in the LS calcs tab, but now done in the Earnings & conts tab.
H18: Mod(3) tabs Neatend up from v6 of theinitial s/s.
H19: Mod(4) and Mod(5) tabs New inclusions.
H20: NFPS and RDS ee cont rates tabs Updated links to source files. New contribution rates for 2014/15 have been added iin.
A21: 2_1 | B21: \\Gad-a3\a3data\A3 clients\Fire Pension Scheme\Retained Firefighters\Factors\Preston model\Fire Retaineds - Preston model v2.xlsm | C21: 9489/6 | D21: 0452-30006-03 | F21: RS | G21: 2014-04-14 | H21: Mod(3) - pen payments tabs Updated the way PI is calculated to reflect PI review order regs. Also updated calc method so that the first pension payment will be pro-rated to reflect the number of days in the first month from the DoPC to the end of the first month and the last payment will not be pro-rated as we assume pension payments are paid in advance.
H22: Mod(4) - pen payments tab Updated the way PI is calculated to reflect PI review order regs. Also updated calc method when only initial pension paid is given so that the first pension payment will be pro-rated to reflect the number of days in the first month from the DoPC to the end of the first month and the last payment will not be pro-rated as we assume pension payments are paid in advance. When annual pensin payments are given, payments in year 1 are pro-rated to be consistent with above calc. Payments in remaining months are assumed to be made monthly in advance.
H23: PI Alloc Table tab New table to work out how PI should apply for 2nd year of pension payments as these are depedend on the month the pension payments began in the first year.
A25: 3_1 | B25: \\Gad-a3\a3data\A3 clients\Fire Pension Scheme\Retained Firefighters\Factors\Preston model\Fire Retaineds - Preston model v3.xlsm | C25: 9489/6 | D25: 0452-30006-03 | F25: RS | G25: 2014-04-23 | H25: Updated calculation method so that pension and contribution payments are paid in arrears. See e-mail from Anthony to Fire on 23/04/2014 at 12:58
I26: KG | J26: 2013-04-25 | K26: Mod 3 - Agree with change but formula in Col G wasn't dragged all the way down - corrected. Mod 4 - Agreed.
H27: Mod(3) - pension LS calc and Mod(4) - pension LS calc tabs Changed the formulae in the Pension to be paid column. So that the pension payment from the month before the month given on the left (column B) is looked up. E.g. if month = 385 (in column B), lookup the pension payment on month 384 as we're assuming payments are paid in arrears and also that this payment which is due on the last day of month x, will be paid on the first day of month x+1. (The Interest and Tax tab is set up so that the interest rates change on first day of the month). | K27: This doesn't work if the date of calc for mod 3 or if date of last pen in mod 4 is the end of the month. When this is the case the lump sum caluculator misses off a pension payment. - Needs amending.
A29: 4_1 | B29: \\Gad-a3\a3data\A3 clients\Fire Pension Scheme\Retained Firefighters\Factors\Preston model\Fire Retaineds - Preston model v4.xlsm | C29: 9489/6 | D29: 0452-30006-03 | F29: RS | G29: 2014-04-29 | I29: KG | J29: 2014-05-01 | K29: Agreed
I30: KG | J30: 2014-05-01 | K30: Agreed
I31: KG | J31: 2014-05-08
F32: RS | G32: 2014-05-06 | H32: Interface tab Included a new data fields under the Limited Period Pension Contributions section to capture the Start date of the Mandatory special period (MSP) and to provide the MSP calculation outputs. | I32: KG | J32: 2014-05-08
I33: KG | J33: 2014-05-08
H34: Mod(1A) - LP LS conts calc tab Changed wording used in cells A10:A11 so that the months that are included in the calculation are clearer. Changed the formula used under the Month column of the table (column B) so that the last month is included in the calcs. Name of tab has been changed slightly. | I34: KG | J34: 2014-05-08
I35: KG | J35: 2014-05-08
H36: Mod(1B) - MSP LS conts calc and Mod(1B) - MSP per conts calc tabs Copies of the Limited Period calculation tabs. These were adapted for the MSP calcs. | I36: KG | J36: 2014-05-08
H37: Mod(2) - earnings & conts tab Updated the logic in the Flag (column F) so that last month of membership in NFPS is now included in the calculation. Have assumed that this payment will be made at the end of the month. | I37: KG | J37: 2014-05-08
H38: Mod(2) - conts paid tab Changed wording used in cells A10:A11 so that the months that are included in the calculation are clearer. Changed the formula used under the Month column of the table (column B) so that the last month is included in the calcs. | I38: KG | J38: 2014-05-08
A39: V5 | B39: \\Gad-a3\a3data\A3 clients\Fire Pension Scheme\Retained Firefighters\Factors\Preston model\Fire Retaineds - Preston model v5.xlsm | F39: KG | G39: 2014-05-09 | I39: RS | J39: 2014-05-13 | K39: Macro and Interface tab not checked. Haven't checked this section yet. Suggested some changes to scenarios based on regs. Please see 'Module Matrix' tab. | L39: KG comment - Module matrix tab excludes scenarios where pensioners get module 2 however this module is needed resulting in more scenarios.
H40: Mod(1) - earnings & conts tab Updated Ref pay column to be multipied by flag as happens for actual sal. Added columns to calc actual annual sal and pt prop Added in service calcs above table | K40: Assumed Reference Pay is as defined in NFPS consolidated order 2008 (page 10). I.e. it's not an annualise figure, but the FT equivalent pay payble over the period member was in scheme. PT proportion and Actual annual salary columns merged into one. PT propon. set equal to Actual pay for period/Refernce pay for period We will need to include validation for end of LP/MSP so that it can't be after DJS NFPS
K41: Changed how RDS cont rate is worked out, so that it uses pay data from Module (2), similar to how the NFPS cont rate in this tab is worked out. Updated table reference to include new columns that were added.
H42: Mod(2) - LS conts paid Linked changed to be difference in conts rather than conts paid to 06 scheme. | K42: Changed tab name to Mod (2) - LS conts calc, as module is now set up to work out additional conts. required purchase service in RDS scheme.
K43: All ok.
H44: Mod(4) - Pen payments Initial pension option removed so columns 5 to 9 contents deleted and formula changed in column 12 | K44: All ok.
K45: Spot checked factors against regs. All ok.
F46: KG | G46: 15/05/2014 & 16/5/14 | H46: Interface tab I have added if statements to the calc outputs so that if errors are flagged the result is not displayed. For the macro I've changed the criteria set out below N32 so that deferreds are only included in scenario 1, I've removed the scenario for pensioners that gave them modules 1, 3 and 4 without mod 2 as this is not a possible combination. I've added summary boxes for each scenario that has more than one module and updated the macro to include these in what is revealed.
F48: KG | G48: 2014-05-21 | H48: Interface tab For all modules moved inputs in each module to be together. Changed the order of some inputs. Moved warnings to warning boxes and conditionally formatted so that warnings come up red and "ok" type comments are green. In M1 added warnings for pay. M1 date formate changed to 200x - 0x+1 in stead of /. Removed service calcs. In M2 changed date format as per M1. I've also changed the date joined 06 scheme to be fixed and tie up with the end of the limited period from M1.
H49: Mod(1) - earnings and conts Date format changed to be " - " instead of "/" in tax/pension yr column and months in year table. Approx pension calculated to right of table.
H50: Mod(2) - earnings and conts Date format changed to be " - " instead of "/" in tax/pension yr column and months in year table. Approx pension calculated to right of table.
H51: Mod(4) - pen payments I've calculated the pre-commutation pension to the right of the table.
H52: Macros I had added lines ot the code to unprotect the sheet at the start of the macro and then re-protect it at the end. I have done this because when the sheet was protected the macros stopped working.
A53: 6_1 | B53: \\Gad-a3\a3data\A3 clients\Fire Pension Scheme\Retained Firefighters\Factors\Preston model\Fire Retaineds - Preston model v6.xlsm | C53: 9489/6 | D53: 0452-50006-03 | F53: RS | G53: 2014-06-03 | H53: Interest and Tax tab Updated the indicies in this tab with the indicies available in the Factor Table tab of the TPS Preston Model June 2014. the values that were copied across are shown in blue text. See tab for further details. | I53: KG | J53: 2014-06-03
F54: KG | G54: 2014-06-17 | H54: I've removed scenario 5 following Anthoney Mooney's email sent 10.05 on 4/6/14 saying this scenario was not required.
G55: 26/06/2014 & 27/6/14 | H55: For each tab calculating a lump sum I have added in the LS without interest and the interest amount. On the interface tab- I have brought back the interest part of the lump sum - added the section at the botton on the settlement lump sum - altered the buttons at the top to be grouped together Mod (4) pen payments - I've changed the formulae for some of the cells in column H. I've coloure them pink and pasted the previous formula at the bottom of the column. Macros - updated the cell references in the hide, unhide and continue macros and added macros "SettlementLS" and "InitialCalc".
A56: 7
A57: 8
A58: 9
A59: 10 | B59: \\Gad-a3\a3data\A3 clients\Fire Pension Scheme\Retained Firefighters\Factors\Preston model\Fire Retaineds - Preston model v10.xlsm | C59: 9489/6 | D59: 0452-50006-03 | F59: SL | G59: 2014-07-04
A60: 11 | B60: \\Gad-a3\a3data\A3 clients\Fire Pension Scheme\Retained Firefighters\Factors\Preston model\Fire Retaineds - Preston model v11.xlsm | C60: 9489/6 | D60: 0452-50006-03 | F60: RS | G60: 2014-07-07 | H60: Checked SL's changes to the model, using worked examples given in v2 of the User Guide and the examples used when testing v5 of this model.
H61: Interface tab Updated parameter value names following removal of LP reinstatement section. Mod(1A) is now used for MSP calculations. Also created parameter values for the Settlement Lump Sum calcs.
H62: Cover tab Updated cover sheet to reflect tabs being used.
H63: Mod(1A) - MSP LS conts calc Updated lookup references, because the Mod1_RDSEarnContTable has less columns following the removal of the LP related calcs.
H64: Mod(1A) - MSP remaining LS calc Created parameter valuesfor use in calculations.
H65: Interest and Tax tab Updated the indicies in this tab with the new indicies added to the Factor Table tab of the TPS Preston Model July 2014 s/s since June 2014. The values that were copied across are shown in blue text.
A66: 12 | B66: \\Gad-a3\a3data\A3 clients\Fire Pension Scheme\Retained Firefighters\Factors\Preston model\Fire Retaineds - Preston model v12.xlsm | C66: 9489/6 | F66: SL | G66: 2014-07-08 | H66: Updated flag in 'Mod(1) - earnings and conts' / 'Mod(2) - earnings and conts' / 'Mod(5) - earnings and conts' to check whether each month is withen the MSP / NFPS membership period / NFPS backdating period.
F67: RS | G67: 2014-07-08 | H67: Discussed with SL and agreed that interest index is as at the end of the month. Please see calcs saved here: \\Gad-server1\ashared\A clients\Preston\TPS LGPS model\2014\Factor update\Preston factor update-July-14.xls. Interest over the month is used to work out the index value. Mod(1A) - MSP LS conts calc and Mod(2) - LS conts calc tabs Updated formulae used within 'Interest Index' column to use correct Interest Index value Mod(5) - LS conts calc tab Updated formulae in 'Interest Index' column as above to use the correct Interest Index value. Changed the way the months within the reinstatement period are calculated. The date the member joied the Std scheme is subtracted by 1 to work out last day of reinstatement period. Mod(3) - pension LS calc and Mod(4) - pension LS calc tabs Removed Mod3_RDSCalcDayFlag and it's NFPS equivalent in Mod(4)) as these are no longer used. Changed the way Interest Index value is assigned as detailed above.
F68: SL | G68: 2014-07-08 | H68: Updated various data validations Updated code to input default values in certain cells
A69: v1.2 | B69: \\Gad-a3\a3data\A3 clients\Fire Pension Scheme\Retained Firefighters\Factors\Preston model\Retained Firefighters Pension Settlement Calculator - v1.2.xlsm | F69: SL | G69: 2014-08-05 | H69: Inputted PI Order increases where pension begins part way through the year, and updated PI calculation in Mod(3) - pension payments Updated interface to enable user to input reference pay when converting std to spc service | I69: RS | J69: 2014-08-05
F70: RS | G70: 2014-08-07 | H70: Updated Interest and Tax tab to include latest rates as at August 2014 (based on TPS August model) | I70: SL | J70: 2014-08-07
A71: v1.3 | F71: SL | G71: 2014-08-07 | H71: Updated model to include question on whether special pensioner member was deferred of active prior to retirement since this will impact on the pension increase the would have got in the first April after the pension commenced | I71: RS | J71: 2014-08-07
A72: v1.4 | B72: \\Gad-a3\a3data\A3 clients\Fire Pension Scheme\Retained Firefighters\Factors\Preston model\Retained Firefighters Pension Settlement Calculator - v1.4.xlsm | C72: 9489/6 | F72: RS | G72: 2014-08-08 | H72: Updated PI Alloc Table tab to correct for some typos in the dates and PI rates included here. Please see v1.3 RS tests version for details. Also updated some references in 'NFPS ee cont rate' tab | I72: SL | J72: 2014-08-08
F73: RS | G73: 2014-08-11 | H73: Added text to Interface tab to make instructions on pay data used in Mod(2) a bit more clearer. Chanegd the names of two tabs slightly. Mod(2) - per conts paid is now Mod(2) - per conts calc, and Mod(5) - per conts paid is now Mod(5) - per conts calc. | I73: SL | J73: 2014-08-11
A74: v1.5 | F74: SL | G74: 2014-08-15 | H74: Removed 'interest included in lump sum' from summary section for special pensioners. | I74: RS | J74: 2014-08-15
A75: August 2014 | F75: SL | G75: 2014-08-15 | H75: Live version for August 2014 - changed password, locked structure. Updated periodic conts calculation to removed restriction of 1 month
A76: September 2014 | B76: \\Gad-a3\a3data\A3 clients\Fire Pension Scheme\Retained Firefighters\Factors\Preston model\Live model\Retained Firefighters Pension Settlement Calculator September 2014.xlsm | C76: 9489/6 | F76: RS | G76: 2014-09-03 | H76: Live version for Sept 2014 Interest and Tax tab: updated for September 2014 Mod(3) - pen payments tab: changed formula in commutation check, so that if age <50, then the factor of 23.4 is used. (Cell T26). | I76: SL | J76: 2014-09-04
H77: Interface tab: Removed the checks in cells P131 and P136. The check in cell P131 was no longer needed as commutation check can handle ages below 50 (see change made to Mod(3) - pen payments). The check in cell P136 was moved into E147:J147. If post-commutation pension A/E is out by more than ±5% an error message will be shown. Updated error messages in backdated special pension calc section and standard pension already in payment section so that the error messages are not shown if IH pensioner only. Pension/contribution consistency cells E148:J148 and E183:J183. Removed the status message from checks in cells E148:J148, E182:J182 and E183:J183 so that no meesage will be displayed if the inputs are correct. Standard scheme pension A/E acceptable range check in cell P184 reduced to ±5% from ±10%
A78: Sept 2014 v2 | B78: \\Gad-a3\a3data\A3 clients\Fire Pension Scheme\Retained Firefighters\Factors\Preston model\Live model\Retained Firefighters Pension Settlement Calculator September 2014 v2.xlsm | F78: SL | G78: 2014-09-16 | H78: Added in Unique identifier and Address to interface Removed parameters tab as not being used in order to make 2007 compatable
A79: Oct 2014 | B79: \\Gad-a3\a3data\A3 clients\Fire Pension Scheme\Retained Firefighters\Factors\Preston model\Live model\Retained Firefighters Pension Settlement Calculator October 2014.xlsm | C79: 9489/7 | D79: 0452-50006-03 | F79: RS | G79: 2014-10-02
H80: Interface tab Updated error message shown in cells E148:J148. No checks are run if special scheme member has retired on IH grounds or is a special deferred member. Updated RDS ref pay checks in cells P59:P73 (MSP conts section) and P101:P109 (Converting std to spc membership section) to use new data provided. Updated error messages displayed to refer to fact that a range of ref pay values are used for comparison. Updated error message shown in cells E183:J183. No checks are run if standard scheme member has retired on IH grounds or is a special deferred member.
H81: Mod(2) - earnings & conts tab Added in additional checking calcs to check for defered status and apply ER reduction factors to check standard scheme pension figures entered by users (when comparing std sch conts. against std sch pension values entered by users). This will feed in automatically to the pension value checks in the Interface tab. <no longer applicable as checks will NOT be use in Interface tab is member moved to deferred status before staring to recieve pension. This is because we won't be able to easily work out deferred reval to apply to preserved pension>
H82: Interest and Tax tab Updated indices for October 2014.
H83: NFPS ER reduction factors tab Added in new tab containing NFPS ER factors
H84: RDS reference pay values tab Copied in min and max ref pay values for RDS FF provided by DCLG
F85: RS | G85: 2014-10-06 | H85: Interface tab Settlement lump sum section - number of instalments now obtained as a user input. This value will be used in the calculations (rather than working out the no. of instalments based on date of first payment and last payment). Also updated macro to clear the contents of cell H267 (i.e. no. of instalments) when Reset button is clicked. | I85: S L | J85: 2014-10-07
F86: RS | G86: 2014-10-08 | H86: Carried out a spot check on SL's changes (see e-mail sent on 07/10/2014 at 1806) to how the ref pay scales are used in calculator. All ok.
H87: RDS reference pay values tab Updated min and max reference pay pay values for 2014/15 so that the estimates worked out they're 1% more than the 2013/14 values.
A88: Nov 2014 | B88: \\Gad-a3\a3data\A3 clients\Fire Pension Scheme\Retained Firefighters\Factors\Preston model\Live model\Retained Firefighters Pension Settlement Calculator November 2014.xlsm | C88: 9489/7 | D88: 0452-50006-03 | F88: RS | G88: 2014-10-27 | H88: Updated checks relating to Pensioners already in receipt of a Standard 2006 scheme pension (normal or ill health) section as per email below. This related to the error messages shown in cells E183:J183. Updated cell AA21 in the Mod(2) - earnings & conts tab to correct this. Now an actuarial reduction does not apply to IH retirements. | I88: SL | J88: 2014-11-04
H89: \\Gad-a3\a3data\A3 clients\Fire Pension Scheme\Retained Firefighters\Factors\Preston model\Live model\Queries from FRAs\vAug2014 - Suffolk - Recd 23102014.msg
F91: RF | G91: 2014-11-04 | H91: Updated factors using: | I91: SL | J91: 2014-11-04
H92: \\Gad-a3\a3data\A3 clients\Fire Pension Scheme\Retained Firefighters\Factors\Preston model\Live model\Interest Index updates\2014\November\RDS factor update-November-14.xls
F93: SL | G93: 2014-11-04 | H93: Corrected the calculation of total expected special pension for a member converting standard to special service. Updated the trigger for ERFs to be applied to standard 2006 scheme pension (<60 rather than <=60)
F94: SL | G94: 2014-11-13 | H94: Increased upper tolerance for Reference Pay validation to upper limit + 20%
A95: Dec 2014 | B95: \\Gad-a3\a3data\A3 clients\Fire Pension Scheme\Retained Firefighters\Factors\Preston model\Live model\Retained Firefighters Pension Settlement Calculator December 2014 DRAFT.xlsm | C95: 9489/7 | D95: 0452-50006-03 | F95: RS | G95: 2014-12-02 | H95: Checked SL's changes of 04/11/2014 and 13/11/2014. Updated the formula in our Total expected pension check (cell Q140 Interface tab) so that the final salary from Mod (1) will be used if the member is not converting standard service to special. | I95: RF | J95: 2014-12-03
F96: RF | G96: 2014-12-03 | H96: Input new factors into interest and tax sheet | I96: RS | J96: 2014-12-04 | K96: Checked RF's changes. Also ran examples 1, 2, 4 and 6 in user manual through calculator. All ok.
H97: \\Gad-a3\a3data\A3 clients\Fire Pension Scheme\Retained Firefighters\Factors\Preston model\Live model\Interest Index updates\2014\December\RDS factor update-December-14.xls
A98: Jan 2015 | B98: \\Gad-a3\a3data\A3 clients\Fire Pension Scheme\Retained Firefighters\Factors\Preston model\Live model\Retained Firefighters Pension Settlement Calculator January 2015.xlsm | C98: 9489/7 | D98: 0452-50006-03 | F98: RS | G98: 2015-01-05 | I98: RF | J98: 2015-01-05
H99: Interface tab Updated helptext in pop up bubbles in Basic Information. See email to AM on 22/12 \\Gad-a3\a3data\A3 clients\Fire Pension Scheme\Retained Firefighters\Factors\Preston model\Live model\Queries from FRAs\December\vDec2014 - BucksFire - Recd 19122014.msg | I99: RF | J99: 2015-01-05
A100: Feb 2015 | B100: \\Gad-a3\a3data\A3 clients\Fire Pension Scheme\Retained Firefighters\Factors\Preston model\Live model\Retained Firefighters Pension Settlement Calculator February 2015.xlsm | C100: 9489/7 | D100: 0452-50006-03 | F100: RS | G100: 2015-01-27
H101: Interface tab - Special pensioner member section Updated formulae in Age at ret output cell (H137:J137), checks on age at ret (P128). Also updated logic in cell P130 to Age at ret >= 55.
H102: Interface tab - Pensioners already in receipt of a Standard 2006 scheme pension section Updated formulae in Age at pension commencement output cell (H161:J161), checks on age at ret (N159). Also updated logic in cell N161 to Age at ret >= 55. Standard scheme members are able to retire at 55 with a reduction.
H103: Mod(3) - pen payments tab Updated the Age years and Age months checking calcs in cells T23 and T24 to use the Datedif() formula. | I103: RF | J103: 2015-01-29
F104: RS | G104: 2015-02-03 | H104: Interest and Tax tab Updated tab with rates and indices for Feb 2015.
H105: Interface tab Set the base upper limit of the reference pay value for 2002-03 (currently £24,926) equal to the base value for 2003-04 (£27,235) to accommodate request from Fire Scotland. See email from SRo on 2 Feb 2015 at 13:43.
A106: March 2015 | B106: \\Gad-a3\a3data\A3 clients\Fire Pension Scheme\Retained Firefighters\Factors\Preston model\Live model\Retained Firefighters Pension Settlement Calculator March 2015.xlsm | C106: 9489/7 | G106: 2015-03-05 | H106: Interest and Tax tab Updated tab with rates and indices for March 2015. | I106: RF | J106: 2015-03-06
A108: 2015-04-01 | B108: O:\A3 clients\Fire Pension Scheme\Retained Firefighters\Factors\Preston model\Live model\Retained Firefighters Pension Settlement Calculator April 2015.xlsm | G108: 2015-03-27 | H108: Added in two custom views for all sheets open and all sheets hidden
H109: Updated to allow for calculations after 1 April 2015
H110: Changes made
H111: Interface | I111: RS | J111: 2015-04-13 | K111: Checked RF's changes
H112: Added 2015-16 lines to all salary tables - these are lines 74, 111, 179, 209 | K112: Row 74 - ok (also includes new ref pay range for 2015/16 in cols W-X). Row 111 - should be row 110. cell D110 can't be accessed as it is locked. Will need to correct this. Cell D110 now has the correct formatting Row 179 - ok. Row 209 - ok.
H113: Updated formating etc to deal with these extra rows | I113: RS | J113: 2015-04-14 | K113: Carried out some additional test to see if correct rows are hidden/made visible when selecting each of the different functions within the calculator.
H114: Named arrays updated for extra rows | K114: Would need to update the formating in the Standard scheme pay table for the years 2013/14 - 2015/16 as some borders are not visible.
H115: Mod(1) - earnings & conts | I115: RS | J115: 2015-04-13 | K115: Checked changes. - updated formulae in the greyed out checks sections following 2015 ext.
K116: Ok
H117: Extended Mod1_RDSEarnContTable | K117: Ok
H118: Extended Qualifying month table | K118: Ok
H119: Extended Mod1_RDSQualfMonths | K119: Ok
H120: Updated contribution lookup for all years (Column I) | K120: Made a small change to eqn used to look up cont rate in 2015/16 as 17% cont rate was being applied to FF with ref pay = £121,200, when it should only apply if ref pay > £121,200. Agree change - shouldn’t affect any calculations as well above reference pay limit.
H121: Mod(2) - earnings & conts | I121: RS | J121: 2015-04-13 | K121: Checked changes. - updated formulae in the greyed out checks sections following 2015 ext.
H122: Extended contribution table for the whole of 2015 | K122: Ok
H123: Extended Mod2_NFPSEarnContTable | K123: Ok
H124: Extended Qualifying month table | K124: Ok
H125: Extended Mod2_NFPSQualfMonths | K125: Ok
H126: Updated contribution lookups for all years (Column I & M) | K126: Made a small change to eqn used to look up cont rate in 2015/16 as 17% cont rate was being applied to FF with ref pay = £121,200, when it should only apply if ref pay > £121,200. Agree change - shouldn’t affect any calculations as well above reference pay limit.
H127: Mod(3) - pen payments | I127: RS | J127: 2015-04-13 | K127: Checked if formulae extended correctly.
H128: Extended table for 2015 | K128: All ok
H129: Mod(4) - pen payments | I129: RS | J129: 2015-04-13 | K129: Checked if formulae extended correctly.
H130: extended table | K130: Ok
H131: extended quualifying tables | K131: Ok
H132: Mod(5) - earnings and conts | I132: RS | J132: 2015-04-13 | K132: Checked if formulae extended correctly.
H133: Extended table | K133: Ok
H134: Extended qualifying table | K134: Ok
K135: Ok
H136: NFPS ee cont rates | I136: RS | J136: 2015-04-10 | K136: Checked. All ok.
H138: NFPS ER reduction factor | I138: RS | J138: 2015-04-10 | K138: Checked. All ok.
H140: RDS ee cont rates | I140: RS | J140: 2015-04-10 | K140: Checked. All ok.
H141: Updated for 2015/16 rates - banding has changed so table extended
H142: PI information | I142: RS | J142: 2015-04-10 | K142: Checked. All ok.
G144: 2015-04-08 | H144: Interest and tax | I144: RS | J144: 2015-04-13 | K144: Checked. All ok.
H146: Interface | I146: RS | J146: 2015-04-13 | K146: Checked changes.
K147: Row E78 - ok, extended formula in Sum() to capture 2015-16 pay. OK Row E115 - ok, formula in cell Q111 had been deleted. Included this back in from March 2015 version. OK Row 214 - ok.
H148: Message changed from “Reference pay should be greater than Pensionable pay - please check inputs.” to “Actual pay entered is higher than the Reference pay” as per email to AM 08/04/2015 | K148: Ok
G149: 2015-04-10 | H149: Updated reset macro to clear rows corresponding to 2015-16 details. | I149: RS | J149: 2015-04-13
B150: \\Gad-a3\a3data\A3 clients\Fire Pension Scheme\Retained Firefighters\Factors\Preston model\Live model\Retained Firefighters Pension Settlement Calculator April 2015 v2.xlsm | G150: 2015-04-13 | H150: PI Alloc Table | I150: RS | J150: 2015-04-13 | K150: One small change to dates. No impact on results.
H151: Updated rates through to March 2015 using same approach as previous years
H152: Extened the PI_Orders table named table
B153: \\Gad-a3\a3data\A3 clients\Fire Pension Scheme\Retained Firefighters\Factors\Preston model\Live model\Retained Firefighters Pension Settlement Calculator April 2015 v3.xlsm | F153: RS | G153: 2015-04-13 | H153: Checked RF's changes in v1 and v2 above. Comments re checks listed above, next to each of the changes. New updates listed below.
H154: RDS reference pay values tab Included 2015-16 reference pay value. Same as that used in Interface. | I154: RF | J154: 2015-04-15
H155: Comm factors tab Corrected some numbers in the Factor table following release of recent amendement to regs. | I155: RF | J155: 2015-04-15 | K155: 54 - 3 entry change to 21 from 21.1 to match latest regs - all other updates are fine
H156: Mod(3) - pension LS calc tab Extended range of lookup to include pensions paid in 2015-16. Curremtly lookup only extends to 2014-15. Corrected the number of days in each month in 2015. Set to 31 for all months by mistake. | I156: RF | J156: 2015-04-15
H157: Mod(4) - pension LS calc tab Extended range of lookup to include pensions paid in 2015-16. Curremtly lookup only extends to 2014-15. | I157: RF | J157: 2015-04-15
A158: V4 | B158: Retained Firefighters Pension Settlement Calculator April 2015 v4.xlsm | F158: RF | G158: 2015-04-15 | H158: Check RS updates in orange above - comments in red
H159: Interface
H160: Updated formating of salary table D200 - E209 - carried out a model point and printing check and all is fine
A161: v5 | B161: \\Gad-a3\a3data\A3 clients\Fire Pension Scheme\Retained Firefighters\Factors\Preston model\Live model\Retained Firefighters Pension Settlement Calculator April 2015 v5.xlsm | C161: 9489/7 | D161: 0452-50006-03 | F161: RS | G161: 2015-04-20
H162: MSP conts section - MSP end date entry field updated validation so that MSP end date must be the earlier of the calc date or 31/03/2015. Also updated input error message and helptext.
H164: Converting membership std to spc section - 06 sch end date entry field updated validation so that date must be the earlier of the calc date or 31/03/2015. Also updated input error message and helptext. Had to update macro as date automatically set to calculation date.
H165: Converting membership from spc to std - start date in 06 sch updated validation so that start date can't be beyond the earlier of the calc date and 31/03/2015. Also updated input error message.
A166: 2015-05-01 | B166: \\Gad-a3\a3new\A3 clients\Fire\E\Retained\Calculator\May 2015\Financial Update\Model\Retained Firefighters Pension Settlement Calculator May 2015 v1.xlsm | F166: RF | G166: 2015-05-05 | H166: This is the interest rate update - a full update will follow for more expansive May changes. | I166: RS | J166: 2015-05-05 | K166: Checked RF's update of the Interest and Tax tab. All ok.
H168: Interest and tax
H170: Note that the block on calculation dates updates automatically to 1/6/15
A172: May 15 v2 | B172: \\Gad-a3\a3new\A3 clients\Fire\E\Retained\Calculator\May 2015\Full model Update\Model\Retained Firefighters Pension Settlement Calculator May 2015 v1.2.xlsm | F172: RF | G172: 2015-05-05 | H172: Updated for new May features, see SR email 28/4/15 14:53 and RS email 1/5/15 12:31 | I172: RS | J172: 2015-05-06 | K172: Checks and changes listed below.
H173: Changes made
H174: Interface | I174: RS | J174: 2015-05-06 | K174: Interface
H175: Removed MSP end date block - now only uses calculation date for validation | K175: Done some basic checks, but need to carry out some test using example members.
H176: This reverses the changes in cells H162 to H165 | K176: Assigned parameters for the two 2015 scheme related input fields that were added on to the Interface.
H177: Added two boxes to Basic details section (cells H45 and H47) | I177: RS | J177: 2015-05-07 | K177: Additional checks carried out on Interface and each of the new modules that apply post 1 April 2015 here
H178: "Currently paying 2015 conts?" | K178: \\Gad-a3\a3new\A3 clients\Fire\E\Retained\Calculator\May 2015\Full model Update\Model\Hand calcs\Hand calcs for RDS calculator v1.xlsm
H179: Only shows if conv std to spe is YES
H180: Is a drop down selection Yes or NO
H181: "Date of transfer"
H182: Only show if both conv std to spe and Currently paying 2015 are YES
H183: Allows dates from 1/4/15 to calculation date
H184: 2015 Conts | I184: RS | J184: 2015-05-06 | K184: 2015 Scheme ee cont rates
H185: Added tab with 2015 rates in | K185: All ok. Small typo in final lower band value which was corrected.
H186: Mod(2) - e&c | I186: RS | J186: 2015-05-06 | K186: Mod(2) - earnings & conts
H187: Added the split month calculation table (cells P3:R10) - for this I have also added a days in month table in cells V29:W41 | K187: Made a minor change to how the NFPS proportion is calculated. Have assumed member is in 2015 scheme on transfer date.
H188: Added the following columns: | K188: Also updated formulae in RDS cons required column (Q) to look up effective cont rate rather than NFPS one.
H189: 2015 Contribution rates - this looks up the 2015 rate from the 2015 tab
H190: Rate to use - For all months up to March 2015 this is set to NFPS. If the member has not moved to the 2015 scheme this is NFPS from April 2015 also. If they have moved it is NFPS for all months before moving, Combined in the moving month and 2015 after.
H191: Rate - This picks up the correct rate based on the above classification
F192: RF/RS | G192: 2015-05-07 | H192: Macro | I192: RF/RS | J192: 2015-05-07 | K192: Done and checked together by RF/RS.
H193: Updated macro to display default MSP start date as 01/07/2000. It was showing 05/04/2006.
H194: Interface - converting mem from spc to std
H195: Updated data validation so that start date in std scheme can't be beyond 31 March 2015.
F197: RF | G197: 2015-05-11 | H197: Interface | I197: RS | J197: 2015-05-11 | K197: Checked RF's changes by entering dates in Interface tab. All ok.
H198: Added age check on 2015 contribution payers
H200: Updated the continue button to flag up if member may be incorrectly paying 2015 contributions
F202: RF | G202: 2015-05-13 | H202: Checked SR updated to Mod2 - all fine | I202: RS | J202: 2015-05-19 | K202: Brief check on changes to interface
H203: Further changes made | K203: For the IH pensioner check,
H204: Interface
H205: Updated the wording in the 2015 but possibly protected warning - linked to the continue button | K205: ok
H206: Updated the conditional lists on cells 41 to 45 to not allow inputs when not needed | K206: ok. Made a slight change to the ref date in cell N$3 to be 01/04/2012. Should we also block/disable the the date transferred to 2015 scheme date?
H207: Added in check in O136 - This checks if members are ill health, would have been 41-50 in 2012 and has service after 1/4/2015 - If this is a 1 a message box pops up warning not to do the calculation. To see the macro right click on the interface tab and select view code | K207: ok
H208: Updated the wording in cell D104 to read member contributions not NFPS contributions | K208: ok
B209: \\Gad-a3\a3new\A3 clients\Fire\E\Retained\Calculator\May 2015\Full model Update\Model\Retained Firefighters Pension Settlement Calculator May 2015 v1.4.xlsm | F209: RS | G209: 2015-05-19 | H209: Updated version numbers used for these spreadseheets so that they read v1.4 instead of v4. | I209: RF | J209: 2015-05-20 | K209: all ok
H210: Mod(2) - earnings & conts tab
H211: Changes are highlighted in light purple.
H212: Included two new columns to to show total no of days in each month and total no of days covered/worked in each month
H213: Actual monthly salary in 2015/16 now calculated based on no of days worked in given month
H214: Updated formulae used in Actual monthly cont paid column. It is now of the form: Total NFPS conts paid over yesr*(No of days served/Tot no of days in yr)*(Cont rate for that month/Avg cont rate over yr 2015/16)
H215: Added in table to work out total no of qualifying days in given year.
H217: Also checked RF's changes above.
B218: \\Gad-a3\a3new\A3 clients\Fire\E\Retained\Calculator\May 2015\Full model Update\Model\Retained Firefighters Pension Settlement Calculator May 2015 v1.5.xlsm | C218: 9489/7 | D218: 0452-50006-03 | F218: SR | H218: Amended the formula very slightly in Mod(2) - e&c to pick up % of month, instead of number of days in order to remove the slight differences in contribution amounts for different months if they have 30 or 31 days. (Column H - No. of days covered) | I218: RF | J218: 2015-05-20 | K218: ok
... 23 more rows

Sheet Interface
N2: Error message | O2: Please review inputs
C3: The Retained Firefighters’ Pension Settlement Calculator | F3: Model Key
F4: Inputs | H4: Fixed value | N4: Range for clearing contents
N5: =CELL("address",H24)&":"&CELL("address",J24)&","&CELL("address",H26)&":"&CELL("address",J26)&","&CELL("address",H28)&":"&CELL("address",J28)&","&CELL("address",H29)&":"&CELL("address",J29)&","&CELL("address",H30)&":"&CELL("address",J30)&","&CELL("address",H31)&":"&CELL("address",J31)&","&CELL("address",Gen_DoB)&","&CELL("address",Gen_CalcDate)&","&CELL("address",H39)&":"&CELL("address",J39)&","&CELL("address",H41)&","&CELL("address",H43)&","&CELL("address",Mod1_RDSMSPStartDate)&","&CELL("address",Mod1_RDSMSPEndDate)&","&CELL("address",D63)&":"&CELL("address",E77)&","&CELL("address",H79)&","&CELL("address",Mod2_NFPSEndDate)&","&CELL("address",Mod2_NFPSContDataType)&","&CELL("address",D105)&":"&CELL("address",F113)&","&CELL("address",H116)&","&CELL("address",H135)&","&CELL("address",H137)&","&CELL("address",Mod3_RDSDoPC)&","&CELL("address",Mod3_RDSPreComPen)&","&CELL("address",Mod3_RDSCommLS)&","&CELL("address",Mod3_RDSPostComPen)&","&CELL("address",H161)&","&CELL("address",Mod4_NFPSDoPC)&","&CELL("address",Mod4_NFPSDoLP)&","&CELL("address",Mod4_NFPSCommLS)&","&CELL("address",D174)&":"&CELL("address",D182)&","&CELL("address",Mod5_NFPSRPEndDate)&","&CELL("address",D204)&":"&CELL("address",E212)&","&CELL("address",H215)&","&CELL("address",H261)&","&CELL("address",H263)&","&CELL("address",H265)&","&CELL("address",H267)&","&CELL("address",H271) -> $H$24:$J$24,$H$26:$J$26,$H$28:$J$28,$H$29:$J$29,$H$30:$J$30,$H$31:$J$31,$H$33,$H$35,$H$39:$J$39,$H$41,$H$43,$H$56,$H$58,$D$63:$E$77,$H$79,$H$98,$H$100,$D$105:$F$113,$H$116,$H$135,$H$137,$H$139,$H$143,$H$145,$H$147,$H$161,$H$163,$H$167,$H$169,$D$174:$D$182,$H$199,$D$204:$E$212,$H$215,$H$261,$H$263,$H$265,$H$267,$H$271
F6: Outputs | H6: Warnings
C8: ="This version may be used for calculations dates up to "&TEXT('Interest and Tax'!AJ12-1,"dd/mm/yyyy") -> This version may be used for calculations dates up to 30/09/2015
C11: Model Buttons
C13: For all calculations, please reset the form to start:
C15: Please select the type of calculation required:
C17: For initial calculations: Once you have filled in the firefighters' Basic details below please click this button to proceed with the calculation:
C19: Click to print:
N20: Pensioner? | P20: Active?
N21: =IF(H39="Special Pensioner Member",1,0) -> 0 | P21: =IF(H39="Special Firefighter Member",1,0) -> 0
C22: Basic details
AC23: Rows to unhide: | AG23: Summary
C24: Name | N24: Scenarios: | R24: Converting 06? | T24: If non-pen, purchasing 06? | V24: If pen, in recpt of 06 pen? | X24: Modules needed: | AB24: Scenario | AC24: from | AD24: to | AE24: form | AF24: to | AG24: from | AH24: to
N25: 0 | P25: Act | Q25: =$H$39="Special Firefighter Member" -> FALSE | R25: Yes | S25: =$H$41=R25 -> FALSE | T25: Yes | U25: =$H$43=T25 -> FALSE | AB25: =AND(Q25,S25,U25) -> FALSE | AC25: Input error
C26: Unique identifier (eg NI number)
C28: Address
C33: Date of birth (dd/mm/yyyy) | N33: 1 | P33: Act or Def | Q33: =NOT(Q38) -> TRUE | R33: No | S33: FALSE | T33: No | U33: =$H$43=T33 -> FALSE | X33: 1 | AB33: =IF(N21+P21=0,Q33,AND(Q33,S33,U33)) -> TRUE | AC33: =P52 -> 52 | AD33: =P94-1 -> 93
N34: 2 | P34: Act | Q34: =$H$39="Special Firefighter Member" -> FALSE | R34: Yes | S34: FALSE | T34: No | U34: =$H$43=T34 -> FALSE | X34: 1 | Y34: 2 | AB34: =AND(Q34,S34,U34) -> FALSE | AC34: =$AC$33 -> 52 | AD34: =P131-1 -> 130 | AG34: =N229-1 -> 228 | AH34: =N239-1 -> 238
C35: Calculation date (dd/mm/yyyy) | M35: ='Interest and Tax'!AJ12 -> 2015-10-01 | N35: 3 | P35: Act | Q35: =$H$39="Special Firefighter Member" -> FALSE | R35: No | S35: FALSE | T35: Yes | U35: =$H$43=T35 -> FALSE | X35: 1 | Y35: 5 | AB35: =AND(Q35,S35,U35) -> FALSE | AC35: =$AC$33 -> 52 | AD35: =AD33 -> 93 | AE35: =N194-1 -> 193 | AF35: =N229-1 -> 228 | AG35: =N239-1 -> 238 | AH35: =N248-1 -> 247
N36: 4 | P36: Pen | Q36: =$H$39="Special Pensioner Member" -> FALSE | R36: No | S36: FALSE | V36: N/A | X36: 1 | Y36: 3 | AB36: =AND(Q36,S36) -> FALSE | AC36: =$AC$33 -> 52 | AD36: =AD33 -> 93 | AE36: =P131-1 -> 130 | AF36: =N159-1 -> 158 | AG36: =N248-1 -> 247 | AH36: =#REF!-1 -> 
C37: Age on calculation date (years and complete months) | H37: =IF(Gen_DoB="","",INT((Gen_CalcDate-Gen_DoB)/365.25)&" years & "&ROUNDDOWN(((Gen_CalcDate-Gen_DoB)/365.25-INT((Gen_CalcDate-Gen_DoB)/365.25))*12,0)&" months") ->  | N37: 5 | P37: Pen | Q37: =$H$39="Special Pensioner Member" -> FALSE | R37: Yes | S37: FALSE | V37: No | W37: =$F$49=V37 -> FALSE | X37: 1 | Y37: 2 | Z37: 3 | AC37: =$AC$33 -> 52 | AD37: =AF36 -> 158 | AG37: =#REF!-1 ->  | AH37: =N253-1 -> 252 | AI37: Anthony Mooney said this scenario wasn't required. See email from him sent 10.05 on 4/6/2014.
N38: 6 | P38: Pen | Q38: =$H$39="Special Pensioner Member" -> FALSE | R38: Yes | S38: FALSE | X38: 1 | Y38: 2 | Z38: 3 | AA38: 4 | AB38: =AND(Q38,S38) -> FALSE | AC38: =$AC$33 -> 52 | AD38: =N194-1 -> 193 | AG38: =N253-1 -> 252 | AH38: =N257 -> 257 | AI38: Whilst this scenario is number 6 here, with the deletion of the above, in the documentation this is now called scenario 5.
C39: Special membership category | M39: Special Firefighter Member | N39: Scenario chosen: | P39: =IF(ISERROR(IF(AB25,0,MATCH(TRUE,$AB$33:$AB$38,0))),"Error",IF(AB25,0,MATCH(TRUE,$AB$33:$AB$38,0))) -> 1
M40: Special Deferred Member
C41: Converting membership from standard to special membership? | M41: Special Pensioner Member
N42: Age at 01/04/2012 | O42: Over 50 in 2012 | P42: 2015 scheme
C43: Converting membership from special to standard membership? | M43: Yes | N43: =(DATE(2012, 4, 1)-Gen_DoB)/365.25 -> 112.2518823 | O43: =IF(N43>50, "YES", "NO") -> YES | P43: =Gen_2015SchContsFlag -> 0
M44: No
C45: =IF(H41="YES", "Currently paying 2015 scheme contributions?", "") -> 
M46: Mod(5) - NFPS start date cap | N46: =MIN(Gen_CalcDate,M47-1) -> 2015-03-31
C47: =IF(H41="NO", "", IF(H45="YES", "Date of transfer to the 2015 Scheme?", "")) ->  | M47: 2015-04-01
M48: FF std to spc | N48: Deferred | O48: Pensioner
C49: Please click on the button above labelled 'Continue' to proceed with the calculation | M49: =IF(AND(H39="Special Firefighter Member", H41="Yes"),"1", "") ->  | N49: =IF(H39="Special Deferred Member", "1", "") ->  | O49: =IF(H39="Special Pensioner Member", "1", "") -> 
C52: Mandatory Special Period Pension Contributions (Rule 6A of Part 11) | M52: 1 | N52: Row: | P52: =ROW(M52) -> 52
C54: Mandatory special period | M54: 2006-04-06
C56: Start of the Mandatory Special Period (dd/mm/yyyy) | M56: =IF(OR(H41="Yes",H43="Yes"),DATE(2006,4,5),Mod1_RDSMSPStartDate) -> 00:00:00
C58: End of the Mandatory Special Period (dd/mm/yyyy) | M58: =IF(H43="Yes",Para_DateStdSchemeBegan-1,Gen_CalcDate) -> 00:00:00
C60: Pay details for the Mandatory Special Period
T61: Reference pay maximum and minimum | W61: + /- 2%
C62: Year | D62: Actual Pensionable Pay | E62: Reference Pay | M62: Pay warnings: | N62: Ref pay >= pen pen | P62: Ref pay within sensible range | R62: In MSP? | S62: Pay details given only for MSP? | T62: Year | U62: Min | V62: Max | W62: 0.01 | X62: 0.2
C63: 2000 - 01 | F63: In this table 'Year' is: - For 2000 - 01: 1 July 2000 to 31 March 2001 - For all other years: 1 April 20XX to 31 March 20XX+1 (or the end of the Mandatory Special Period if earlier). Where the Retained Firefighter's Mandatory Special Period starts or ends part way through the year their 'Actual Pensionable Pay' should be the pensionable pay that they received for the part-year. | N63: =E63>=D63 -> TRUE | P63: =IF(R63=1,AND(E63>='RDS reference pay values'!C10,E63<='RDS reference pay values'!D10),"n/a") -> n/a | R63: =MIN(HLOOKUP(C63,Mod1_RDSQualfMonths,2,FALSE),1) -> 0 | S63: =IF(R63=0,AND(E63=0,D63=0),AND(E63<>0,D63<>0)) -> TRUE | T63: 2000 - 01 | U63: 16019.3 | V63: 24115.64 | W63: =ROUNDDOWN(U63*(1-$W$62),-2) -> 15800 | X63: =ROUNDUP(V63*(1+$X$62),-2) -> 29000 | Y63: =W63/U63-1 -> -0.01368973676 | Z63: =X63/V63-1 -> 0.2025390991
C64: 2001 - 02 | N64: TRUE | P64: =IF(R64=1,AND(E64>='RDS reference pay values'!C11,E64<='RDS reference pay values'!D11),"n/a") -> n/a | R64: =MIN(HLOOKUP(C64,Mod1_RDSQualfMonths,2,FALSE),1) -> 0 | S64: TRUE | T64: 2001 - 02 | U64: 16557.66 | V64: 24926.18 | W64: =ROUNDDOWN(U64*(1-$W$62),-2) -> 16300 | X64: =ROUNDUP(V64*(1+$X$62),-2) -> 30000 | Y64: =W64/U64-1 -> -0.01556137763 | Z64: 0.2035538538 | AA64: =V64/V63-1 -> 0.03361055315
C65: 2002 - 03 | N65: TRUE | P65: =IF(R65=1,AND(E65>='RDS reference pay values'!C12,E65<='RDS reference pay values'!D12),"n/a") -> n/a | R65: 0 | S65: TRUE | T65: 2002 - 03 | U65: 16557.66 | V65: =V66 -> 27234.5 | W65: 16300 | X65: =ROUNDUP(V65*(1+$X$62),-2) -> 32700 | Y65: -0.01556137763 | Z65: 0.2006829573 | AA65: =V65/V64-1 -> 0.09260624773
C66: 2003 - 04 | N66: TRUE | P66: =IF(R66=1,AND(E66>='RDS reference pay values'!C13,E66<='RDS reference pay values'!D13),"n/a") -> n/a | R66: 0 | S66: TRUE | T66: 2003 - 04 | U66: 17412.22 | V66: 27234.5 | W66: 17200 | X66: 32700 | Y66: -0.01218799211 | Z66: 0.2006829573 | AA66: 0
C67: 2004 - 05 | N67: TRUE | P67: =IF(R67=1,AND(E67>='RDS reference pay values'!C14,E67<='RDS reference pay values'!D14),"n/a") -> n/a | R67: 0 | S67: TRUE | T67: 2004 - 05 | U67: 18567 | V67: 30681.75 | W67: 18300 | X67: 36900 | Y67: -0.01438035224 | Z67: 0.2026693393 | AA67: 0.1265765848
C68: 2005 - 06 | N68: TRUE | P68: =IF(R68=1,AND(E68>='RDS reference pay values'!C15,E68<='RDS reference pay values'!D15),"n/a") -> n/a | R68: 0 | S68: TRUE | T68: 2005 - 06 | U68: 19234.5 | V68: 31784.5 | W68: 19000 | X68: 38200 | Y68: -0.01219163482 | Z68: 0.2018436659 | AA68: 0.03594156135
C69: 2006 - 07 | N69: TRUE | P69: =IF(R69=1,AND(E69>='RDS reference pay values'!C16,E69<='RDS reference pay values'!D16),"n/a") -> n/a | R69: 0 | S69: TRUE | T69: 2006 - 07 | U69: 19878 | V69: 32696.75 | W69: 19600 | X69: 39300 | Y69: -0.01398531039 | Z69: 0.2019543227 | AA69: 0.02870109645
C70: 2007 - 08 | N70: =E70>=D70 -> TRUE | P70: =IF(R70=1,AND(E70>='RDS reference pay values'!C17,E70<='RDS reference pay values'!D17),"n/a") -> n/a | R70: 0 | S70: =IF(R70=0,AND(E70=0,D70=0),AND(E70<>0,D70<>0)) -> TRUE | T70: 2007 - 08 | U70: 20276.5 | V70: 33505.5 | W70: 20000 | X70: 40300 | Y70: -0.01363647572 | Z70: 0.202787602 | AA70: 0.02473487426
C71: 2008 - 09 | N71: TRUE | P71: =IF(R71=1,AND(E71>='RDS reference pay values'!C18,E71<='RDS reference pay values'!D18),"n/a") -> n/a | R71: 0 | S71: TRUE | T71: 2008 - 09 | U71: 20771 | V71: 34322.5 | W71: 20500 | X71: 41200 | Y71: -0.01304703673 | Z71: 0.2003787603 | AA71: 0.02438405635
C72: 2009 - 10 | N72: TRUE | P72: =IF(R72=1,AND(E72>='RDS reference pay values'!C19,E72<='RDS reference pay values'!D19),"n/a") -> n/a | R72: 0 | S72: TRUE | T72: 2009 - 10 | U72: 21091.75 | V72: 34853 | W72: 20800 | X72: 41900 | Y72: -0.01383242263 | Z72: 0.2021920638 | AA72: 0.01545633331
C73: 2010 - 11 | N73: TRUE | P73: =IF(R73=1,AND(E73>='RDS reference pay values'!C20,E73<='RDS reference pay values'!D20),"n/a") -> n/a | R73: 0 | S73: TRUE | T73: 2010 - 11 | U73: 21157 | V73: 34961 | W73: 20900 | X73: 42000 | Y73: -0.01214727986 | Z73: 0.2013386345 | AA73: 0.003098728947
C74: 2011 - 12 | N74: TRUE | P74: =IF(R74=1,AND(E74>='RDS reference pay values'!C21,E74<='RDS reference pay values'!D21),"n/a") -> n/a | R74: 0 | S74: TRUE | T74: 2011 - 12 | U74: 21157 | V74: 34961 | W74: 20900 | X74: 42000 | Y74: -0.01214727986 | Z74: 0.2013386345 | AA74: 0
C75: 2012 - 13 | N75: TRUE | P75: =IF(R75=1,AND(E75>='RDS reference pay values'!C22,E75<='RDS reference pay values'!D22),"n/a") -> n/a | R75: 0 | S75: TRUE | T75: 2012 - 13 | U75: 21316 | V75: 35223.5 | W75: 21100 | X75: 42300 | Y75: -0.01013323325 | Z75: 0.2009028064 | AA75: 0.007508366465
C76: 2013 - 14 | N76: TRUE | P76: =IF(R76=1,AND(E76>='RDS reference pay values'!C23,E76<='RDS reference pay values'!D23),"n/a") -> n/a | R76: 0 | S76: TRUE | T76: 2013 - 14 | U76: 21529.5 | V76: 35575.75 | W76: 21300 | X76: 42700 | Y76: -0.01065979238 | Z76: 0.2002557922 | AA76: 0.01000042585
C77: 2014 - 15 | N77: TRUE | P77: =IF(R77=1,AND(E77>='RDS reference pay values'!C24,E77<='RDS reference pay values'!D24),"n/a") -> n/a | R77: 0 | S77: TRUE | T77: 2014 - 15 | U77: =U76*1.01 -> 21744.795 | V77: =V76*1.01 -> 35931.5075 | W77: 21500 | X77: 43200 | Y77: -0.0112576366 | Z77: 0.2022874353 | AA77: 0.01
C78: 2015 - 16 | N78: TRUE | P78: =IF(R78=1,AND(E78>='RDS reference pay values'!C25,E78<='RDS reference pay values'!D25),"n/a") -> n/a | R78: =MIN(HLOOKUP(C78,Mod1_RDSQualfMonths,2,FALSE),1) -> 0 | S78: =IF(R78=0,AND(E78=0,D78=0),AND(E78<>0,D78<>0)) -> TRUE | T78: 2015 - 16 | U78: =U77*1.01 -> 21962.24295 | V78: =V77*1.01 -> 36290.82257 | W78: =ROUNDDOWN(U78*(1-$W$62),-2) -> 21700 | X78: =ROUNDUP(V78*(1+$X$62),-2) -> 43600 | Y78: =W78/U78-1 -> -0.01194062695 | Z78: =X78/V78-1 -> 0.2014056697 | AA78: =V78/V77-1 -> 0.01
C79: Special Pensionable Service | M79: All | N79: =AND(N63:N78) -> TRUE | P79: =AND(P63:P78) ->  | Q79: =AND(P79,N79) ->  | S79: =AND(S63:S78) -> TRUE
C81: Warnings/Checks
C82: Pay amounts | E82: =IF(ISERROR(IF(SUM(D63:E78)=0,"No pay data entered",IF(Q79,"",IF(N79,"","Actual pay entered is higher than the Reference pay.")))),"",IF(SUM(D63:E78)=0,"No pay data entered",IF(Q79,"",IF(N79,"","Actual pay entered is higher than the Reference pay.")))) -> No pay data entered
C83: Pensionable Service | E83: =IF(ISERROR(IF(P86,IF(S79,"","Pay data is inconsistent with the dates selected."),IF(P87=1,"Please check inputs as Service looks unexpectedly high.","Please check inputs as service looks unexpectedly low. "))),"",IF(P86,IF(S79,"","Pay data is inconsistent with the dates selected."),IF(P87=1,"Please check inputs as Service looks unexpectedly high.","Please check inputs as service looks unexpectedly low. "))) ->  | N83: Expected service | P83: ='Mod(1) - earnings & conts'!F7 -> 0
N84: Input by user | P84: =H79 -> 0
C85: Mandatory Special Period Pension Contributions (Rule 6A of Part 11) | N85: Out by | P85: =P84/P83-1 -> 
N86: Within 5%? | P86: =ABS(P85)<0.05 -> 
C87: Lump sum contribution (including interest) | H87: =IF(ISERROR(Mod1A_RDSMSPContsDueLS),"",Mod1A_RDSMSPContsDueLS) ->  | N87: Sign | P87: =SIGN(P85) -> 
C89: Interest included in lump sum | H89: =IF(ISERROR(Mod1A_RDSMSPIntPaidOnContsDue),"",Mod1A_RDSMSPIntPaidOnContsDue) ->  | N89: Tolerance on service | P89: 0.05
N90: Minumum expected service | P90: =P83*(1-P89) -> 0
C91: Periodic contributions (monthly payments spread over 10 yrs) | H91: =IF(ISERROR(Mod1A_RDSLPContsDuePerVal),"",IF(Mod1A_RDSLPContsDuePerVal=0,"",Mod1A_RDSLPContsDuePerVal)) ->  | N91: Maximum expected service | P91: =P83*(1+P89) -> 0
C94: Converting membership from standard membership to special membership (Rule 17 of Part 12 and paragraph (5) of Rule 18 of Part 12) | M94: 2 | N94: row | P94: =ROW(M94) -> 94 | Q94: Conts? | R94: =IF(Mod2_NFPSContDataType="Contributions",1,0) -> 0
Q95: Pay data? | R95: =IF(Mod2_NFPSContDataType="Contributions",0,1) -> 1
C96: Start of membership in standard 2006 scheme (dd/mm/yyyy) | H96: =MAX(M96, Mod1_RDSMSPEndDate+1) -> 2006-04-06 | M96: 2006-04-06
C98: End of membership in standard 2006 scheme (dd/mm/yyyy)
C100: Using past contributions or pay data? | M100: =IF(Mod2_NFPSContDataType="Contributions",TRUE,FALSE) -> FALSE | N100: Contributions
N101: Pay data
C102: Pay OR Contribution details
C104: Year | D104: Member contributions paid | E104: Actual Pensionable Pay | F104: Reference Pay | M104: Pay warnings: | N104: Ref pay >= pen pen | P104: Ref pay within sensible range | Q104: 50000 | R104: In relevant period? | S104: Pay/cont details given only for relevant period?
C105: 2006 - 07 | N105: =F105>=E105 -> TRUE | P105: =IF(R105=1,AND(F105>='RDS reference pay values'!C16,F105<='RDS reference pay values'!D16),"n/a") -> n/a | R105: =MIN(HLOOKUP(C105,Mod2_NFPSQualfMonths,2,FALSE),1) -> 0 | S105: =IF($R$94=1,IF(R105=0,D105=0,D105<>0),IF(R105=0,AND(F105=0,E105=0),AND(F105<>0,E105<>0))) -> TRUE
C106: 2007 - 08 | N106: =F106>=E106 -> TRUE | P106: =IF(R106=1,AND(F106>='RDS reference pay values'!C17,F106<='RDS reference pay values'!D17),"n/a") -> n/a | R106: 0 | S106: =IF($R$94=1,IF(R106=0,D106=0,D106<>0),IF(R106=0,AND(F106=0,E106=0),AND(F106<>0,E106<>0))) -> TRUE
C107: 2008 - 09 | N107: TRUE | P107: =IF(R107=1,AND(F107>='RDS reference pay values'!C18,F107<='RDS reference pay values'!D18),"n/a") -> n/a | R107: 0 | S107: TRUE
C108: 2009 - 10 | N108: TRUE | P108: =IF(R108=1,AND(F108>='RDS reference pay values'!C19,F108<='RDS reference pay values'!D19),"n/a") -> n/a | R108: 0 | S108: TRUE
C109: 2010 - 11 | N109: TRUE | P109: =IF(R109=1,AND(F109>='RDS reference pay values'!C20,F109<='RDS reference pay values'!D20),"n/a") -> n/a | R109: 0 | S109: TRUE
C110: 2011 - 12 | N110: TRUE | P110: =IF(R110=1,AND(F110>='RDS reference pay values'!C21,F110<='RDS reference pay values'!D21),"n/a") -> n/a | R110: 0 | S110: TRUE
C111: 2012 - 13 | N111: TRUE | P111: =IF(R111=1,AND(F111>='RDS reference pay values'!C22,F111<='RDS reference pay values'!D22),"n/a") -> n/a | R111: 0 | S111: TRUE
C112: 2013 - 14 | N112: TRUE | P112: =IF(R112=1,AND(F112>='RDS reference pay values'!C23,F112<='RDS reference pay values'!D23),"n/a") -> n/a | R112: 0 | S112: TRUE
C113: 2014 - 15 | N113: TRUE | P113: =IF(R113=1,AND(F113>='RDS reference pay values'!C24,F113<='RDS reference pay values'!D24),"n/a") -> n/a | R113: 0 | S113: TRUE
C114: 2015 - 16 | N114: =F114>=E114 -> TRUE | P114: =IF(R114=1,AND(F114>='RDS reference pay values'!C25,F114<='RDS reference pay values'!D25),"n/a") -> n/a | R114: =MIN(HLOOKUP(C114,Mod2_NFPSQualfMonths,2,FALSE),1) -> 0 | S114: TRUE
N115: =AND(N105:N114) -> TRUE | P115: =AND(P105:P114) ->  | Q115: =IF(R94=1,TRUE,AND(P115,N115)) ->  | S115: =AND(S105:S114) -> TRUE
C116: Standard Pensionable Service
C118: Warnings/Checks
C119: Pay amounts (if pay selected) | E119: =IF(ISERROR(IF(Mod2_NFPSContDataType="Contributions","Contributions selected so check on pay cannot be carried out",IF(Q115,"",IF(N115,"","Actual pay entered is higher than the Reference pay.")))),"",IF(Mod2_NFPSContDataType="Contributions","Contributions selected so check on pay cannot be carried out",IF(Q115,"",IF(N115,"","Actual pay entered is higher than the Reference pay.")))) -> 
C120: Reckonable Service | E120: =IF(ISERROR(IF(Mod2_NFPSContDataType="Contributions","No checks carried out on service",IF(P124,IF(S115,"Service looks consistent with pay data entered","Service looks consisitent with pay data entered but pay data is not consistent with the dates selected"),IF(P125=1,"Please check inputs as service looks unexpectedly high","Please check inputs as service looks unexpectedly low")))),"",IF(Mod2_NFPSContDataType="Contributions","No checks carried out on service",IF(P124,IF(S115,"Service looks consistent with pay data entered","Service looks consisitent with pay data entered but pay data is not consistent with the dates selected"),IF(P125=1,"Please check inputs as service looks unexpectedly high","Please check inputs as service looks unexpectedly low")))) -> 
N121: Expected service | P121: ='Mod(2) - earnings & conts'!G7 -> 0
C122: Contributions required to convert standard 2006 Scheme membership into special membership | N122: Input by user | P122: =H116 -> 0
N123: Out by | P123: =P122/P121-1 -> 
C124: Lump sum contribution (including interest) | H124: =IF(ISERROR(Mod2_NFPSContsPaidLS),"",Mod2_NFPSContsPaidLS) ->  | N124: Within 5%? | P124: =ABS(P123)<0.05 -> 
N125: Sign | P125: =SIGN(P123) -> 
C126: Interest included in lump sum | H126: =IF(ISERROR('Mod(2) - LS conts calc'!H19),"",'Mod(2) - LS conts calc'!H19) -> 
C128: Periodic contributions (monthly payments spread over 10 yrs) | H128: =IF(ISERROR(Mod2_NFPSContsPaidPerVal),"",IF(Mod2_NFPSContsPaidPerVal=0,"",Mod2_NFPSContsPaidPerVal)) -> 
C131: Special pensioner member: | M131: 3 | N131: row: | P131: =ROW(M131) -> 131
C132: - Lump sum to backdate pension payments and commuted lump sum (Part 3, Rule 1A(8)); OR | N132: age at ret | P132: =DATEDIF(Gen_DoB,Mod3_RDSDoPC,"y") -> 0
C133: - Retrospective award on ill-health retirement (Part 3, Rule 2A(12)) | N133: IH? | P133: =H135="Ill health" -> FALSE
N134: Age at ret >= 55 | P134: =P132>=55 -> FALSE
C135: Normal or Ill health special pensioner | M135: Normal health
M136: Ill health | N136: IH, 41-50, post April 2015 | O136: =IF(AND(H135="Ill Health",N43<50, 41<N43, Mod3_RDSDoPC>DATE(2015,3,31)), 1, 0) -> 0
C137: Special membership category immediately prior to the pension commencement date | M137: =DATE(YEAR(Gen_DoB)+60,MONTH(Gen_DoB),DAY(Gen_DoB)) -> 1959-12-31 | N137: Date attained age 60
C139: Special pension commencement date (dd/mm/yyyy) | M139: =IF(H137="Special Firefighter Member", Mod1_RDSMSPEndDate,M137) -> 1959-12-31 | N139: Earliest date could have retired | P139: =Mod3_RDSDoPC<Gen_CalcDate+1 -> TRUE
C141: Age at retirement | H141: =IF(ISBLANK(Mod3_RDSDoPC),0,DATEDIF(Gen_DoB,Mod3_RDSDoPC,"y")&" years & "&DATEDIF(Gen_DoB,Mod3_RDSDoPC,"ym")&" months") -> 0 | M141: =IF(H137="Special Firefighter Member", Gen_CalcDate,M137) -> 1959-12-31 | N141: Latest date could have retired | Q141: Pen amount | R141: required?
P142: Expected service from M1 conts | Q142: ='Mod(1) - earnings & conts'!F7 -> 0 | R142: 1
C143: Initial pre-commutation pension (per annum) | P143: Expected service form M2 conts | Q143: ='Mod(2) - earnings & conts'!G7 -> 0 | R143: =IF(P39=4,0,1) -> 1
P144: Tot expected pen | Q144: =SUMPRODUCT(Q142:Q143,R142:R143)*IF(R143=1,'Mod(2) - earnings & conts'!Y24/45,'Mod(1) - earnings & conts'!O23/45) -> 0
C145: Commuted lump sum | P145: vs pre com pen | Q145: =Q144/Mod3_RDSPreComPen-1 -> 
P146: Looks consistent? | Q146: =ABS(Q145)<0.1 -> 
C147: Initial post-commutation pension (per annum) | P147: sign | Q147: =SIGN(Q145) -> 
C149: Warnings/Checks
C150: Age | E150: =IF(ISERROR(IF(OR(P133,P134),"","Please check date of retirement and date of birth as age at retirement looks incorrect")),"",IF(OR(P133,P134),"","Please check date of retirement and date of birth as age at retirement looks incorrect")) -> Please check date of retirement and date of birth as age at retirement looks incorrect
C151: Pension & commutation | E151: =IF(ABS('Mod(3) - pen payments'!T32)>0.05,"Post commutation pension looks inconsistent with commuted LS and Special scheme commutation factors. Please check inputs.","") -> 
C152: Pension/contribution consistency | E152: =IF(ISERROR(IF(Q146,"",IF(Q147=1,"Pension looks lower than expected relative to data in the 'Mandatory Special Period Pension Contributions' section. Please check.","Pension looks higher than expected relative to data in the 'Mandatory Special Period Pension Contributions' section. Please check."))),"",IF(Q146,"",IF(OR(H135="Ill health",Cat_prior_Retirement="Special Deferred Member"),"",IF(Q147=1,"Pension looks lower than expected relative to data in the 'Mandatory Special Period Pension Contributions' section. Please check.","Pension looks higher than expected relative to data in the 'Mandatory Special Period Pension Contributions' section. Please check.")))) -> 
C154: Lump sum to backdate pension payments and commuted lump sum (prior to any deductions) (including interest) | H154: =IF(ISERROR(IF($P$139,'Mod(3) - pension LS calc'!G17,$O$2)),"",IF($P$139,'Mod(3) - pension LS calc'!G17,$O$2)) -> 
C156: Interest included in lump sum | H156: =IF(ISERROR(IF($P$139,'Mod(3) - pension LS calc'!G19,$O$2)),"",IF($P$139,'Mod(3) - pension LS calc'!G19,$O$2)) -> 
C159: Pensioners already in receipt of a Standard 2006 scheme pension (normal or ill health) | M159: 4 | N159: =ROW(M159) -> 159
C161: Normal or Ill health pensioner? | P161: Valid range (NOT inclusive of end points):
P162: From | Q162: To | R162: Valid date?
C163: Standard scheme pension commencement date (dd/mm/yyyy) | M163: Age at ret | N163: =DATEDIF(Gen_DoB,Mod4_NFPSDoPC,"y") -> 0 | P163: 2006-04-05 | Q163: =Gen_CalcDate+1 -> 1900-01-01 | R163: =AND(Mod4_NFPSDoPC>P163,Mod4_NFPSDoPC<Q163) -> FALSE
M164: IH? | N164: =H161="Ill Health" -> FALSE
C165: Age at pension commencement | H165: =IF(ISBLANK(Mod4_NFPSDoPC),0,DATEDIF(Gen_DoB,Mod4_NFPSDoPC,"y")&" years & "&DATEDIF(Gen_DoB,Mod4_NFPSDoPC,"ym")&" months") -> 0 | M165: Age at ret >=55 | N165: =N163>=55 -> FALSE | P165: =Mod4_NFPSDoPC-1 -> -1 | Q165: =Q163 -> 1900-01-01 | R165: =AND(Mod4_NFPSDoLP>P165,Mod4_NFPSDoLP<Q165) -> TRUE
C167: Date of last pension payment (dd/mm/yyyy) | Q167: Dates ok? | R167: =AND(R165,R163) -> FALSE
C169: Lump sum commuted at retirement
C173: Year | D173: Pension payments | N173: Pension in relevant period? | P173: Pension given only for relevant period?
C174: 2006 - 07 | E174: In this table 'Year' is: - 1st April 20XX to 31st March 20XX+1 (or the date of the last pension payment if earlier). Pension payments should exclude pension payments in respect of transfers into the standard 2006 scheme and added pension purchased in the 2006 scheme. | N174: =MIN(HLOOKUP(C174,Mod4_NFPSQualfDays,2,FALSE),1) -> 0 | P174: =IF(N174=0,D174=0,D174<>0) -> TRUE
C175: 2007 - 08 | N175: 0 | P175: TRUE
C176: 2008 - 09 | N176: 0 | P176: TRUE
C177: 2009 - 10 | N177: 0 | P177: TRUE
C178: 2010 - 11 | N178: 0 | P178: TRUE
C179: 2011 - 12 | N179: 0 | P179: TRUE
C180: 2012 - 13 | N180: 0 | P180: TRUE
C181: 2013 - 14 | N181: 0 | P181: TRUE
C182: 2014 - 15 | N182: 0 | P182: TRUE
C183: 2015 - 16 | N183: =MIN(HLOOKUP(C183,Mod4_NFPSQualfDays,2,FALSE),1) -> 0 | P183: =IF(N183=0,D183=0,D183<>0) -> TRUE
C184: Warnings/Checks | P184: =AND(P174:P183) -> TRUE
C185: Age | E185: =IF(ISERROR(IF(OR(N164,N165),"","Please check date of retirement and date of birth as age at retirement looks incorrect")),"",IF(OR(N164,N165),"","Please check date of retirement and date of birth as age at retirement looks incorrect")) -> Please check date of retirement and date of birth as age at retirement looks incorrect | N185: Implied pre-com pen | P185: ='Mod(4) - pen payments'!U24 -> 
C186: Pension consistent with dates | E186: =IF(ISERROR(IF(P184,"","Pension payments are inconsistent with dates given. Please amend.")),"",IF(P184,"","Pension payments are inconsistent with dates given. Please amend.")) ->  | N186: Mod 2 expected pension | P186: ='Mod(2) - earnings & conts'!Y27 -> 0
C187: Pension/contributions consistency | E187: =IF(ISERROR(IF(P188,"","Pension amounts look inconsistent with contributions. Please check inputs.")),"Please check inputs in section 'Converting Standard 2006 Scheme membership'.",IF(P188,"",IF(OR(H161="Ill health",'Mod(2) - earnings & conts'!AF22="Y"),"","Pension amounts look inconsistent with contributions. Please check inputs."))) -> Please check inputs in section 'Converting Standard 2006 Scheme membership'. | P187: =P185/P186-1 -> 
N188: Pen consistent with contributions given in M2 (i.e. not out by > ±5%) | P188: =ABS(P187)<0.05 -> 
C189: Lump sum value of standard pension payments already received | H189: =IF(ISERROR(IF($R$167,Mod4_NFPSPaidPenLS,$O$2)),"",IF($R$167,Mod4_NFPSPaidPenLS,$O$2)) -> Please review inputs
C191: Interest included in lump sum | H191: =IF(ISERROR(IF($R$167,'Mod(4) - pension LS calc'!G19,$O$2)),"",IF($R$167,'Mod(4) - pension LS calc'!G19,$O$2)) -> Please review inputs
C194: Converting membership from special membership to standard membership (Rule 17 of Part 12) | M194: 5 | N194: =ROW(M194) -> 194
C195: Requirement to pay pension contributions from 6th April 2006 to the date the member joined the 2006 Scheme as a standard member (Rule 6A(12) of Part 11) | Q195: Valid range (NOT inclusive of end points):
Q196: From | R196: To | S196: Valid date?
C197: Date 2006 scheme came into effect (dd/mm/yyyy) | H197: 2006-04-06
C199: Start date of membership in standard 2006 scheme (dd/mm/yyyy) | Q199: =H197 -> 2006-04-06 | R199: =Gen_CalcDate -> 00:00:00 | S199: =AND(H199>=Q199,H199<=R199) -> FALSE
C201: Pay details
C203: Year | M203: Pay warnings: | N203: Ref pay >= pen pen | P203: Ref pay within sensible range < | Q203: 50000 | R203: In relevant period? | S203: Pay details given only for relevant period? | U203: Used for service cal:
C204: 2006 - 07 | F204: In this table 'Year' is 1 April 20XX to 31 March 20XX+1 Where the Retained Firefighter's membership in the 2006 scheme started part way through the year their 'Actual Pensionable Pay' should be the pensionable pay that they received for the part-year up to that date. | N204: =E204>=D204 -> TRUE | P204: =E204<$Q$203 -> TRUE | R204: =MIN(HLOOKUP(C204,Mod5_NFPSQualfMonths,2,FALSE),1) -> 0 | S204: =IF(R204=0,AND(E204=0,D204=0),AND(E204<>0,D204<>0)) -> TRUE | U204: =1/E204 ->  | V204: =IF(ISERROR(D204*U204),0,D204*U204) -> 0
C205: 2007 - 08 | N205: TRUE | P205: =E205<$Q$203 -> TRUE | R205: 0 | S205: TRUE | V205: =IF(ISERROR(D205*U205),0,D205*U205) -> 0
C206: 2008 - 09 | N206: TRUE | P206: TRUE | R206: 0 | S206: TRUE | V206: 0
C207: 2009 - 10 | N207: TRUE | P207: TRUE | R207: 0 | S207: TRUE | V207: 0
C208: 2010 - 11 | N208: TRUE | P208: TRUE | R208: 0 | S208: TRUE | V208: 0
C209: 2011 - 12 | N209: TRUE | P209: TRUE | R209: 0 | S209: TRUE | V209: 0
C210: 2012 - 13 | N210: TRUE | P210: TRUE | R210: 0 | S210: TRUE | V210: 0
C211: 2013 - 14 | N211: TRUE | P211: TRUE | R211: 0 | S211: TRUE | V211: 0
C212: 2014 - 15 | N212: =E212>=D212 -> TRUE | P212: =E212<$Q$203 -> TRUE | R212: 0 | S212: TRUE | V212: 0
C213: 2015 - 16 | N213: =E213>=D213 -> TRUE | P213: =E213<$Q$203 -> TRUE | Q213: Pay amounts | R213: 0 | S213: =IF(R213=0,AND(E213=0,D213=0),AND(E213<>0,D213<>0)) -> TRUE | U213: =1/E213 ->  | V213: =IF(ISERROR(D213*U213),0,D213*U213) -> 0
C215: Pensionable service to be backdated in the standard scheme | N215: =AND(N204:N213) -> TRUE | P215: =AND(P204:P213) -> TRUE | Q215: =AND(P215,N215) -> TRUE | S215: =AND(S204:S213) -> TRUE
C217: Warnings/Checks
C218: Pay amounts | E218: =IF(ISERROR(IF(Q215,"",IF(N215,IF(P215,"","Reference pay looks unexpectedly high - please check inputs."),"Actual pay entered is higher than the Reference pay."))),"",IF(Q215,"",IF(N215,IF(P215,"","Reference pay looks unexpectedly high - please check inputs."),"Actual pay entered is higher than the Reference pay."))) -> 
C219: Pay consistent with dates | E219: =IF(ISERROR(IF(S215,"Pay duration and period to be purchased appear consistent","Pay details given are not consistent with the period selected")),"",IF(S215,"Pay duration and period to be purchased appear consistent","Pay details given are not consistent with the period selected")) -> Pay duration and period to be purchased appear consistent | N219: Expected service | P219: =SUM(V204:V213) -> 0
C220: Reckonable Service | E220: =IF(ISERROR(IF(P222,IF(S215,"Service looks consistent with pay data entered","Service looks consistent with pay data entered but pay data is not consistent with dates selected."),IF(P223=1,"Please check inputs as service looks unexpectedly high","Please check inputs as service looks unexpectedly low"))),"",IF(P222,IF(S215,"Service looks consistent with pay data entered","Service looks consistent with pay data entered but pay data is not consistent with dates selected."),IF(P223=1,"Please check inputs as service looks unexpectedly high","Please check inputs as service looks unexpectedly low"))) ->  | N220: User input service | P220: =H215 -> 0
N221: Out by | P221: =P220/P219-1 -> 
C222: Lump sum contribution | H222: =IF(ISERROR(IF(AND($T$57,$S$199),Mod5_NFPSContsDueLS,$O$2)),"",IF(AND($T$57,$S$199),Mod5_NFPSContsDueLS,$O$2)) -> Please review inputs | N222: Within 5%? | P222: =ABS(P221)<0.05 -> 
N223: Sign | P223: =SIGN(P221) -> 
C224: Interest included in lump sum | H224: =IF(ISERROR(IF(AND($T$57,$S$199),'Mod(5) - LS conts calc'!H19,$O$2)),"",IF(AND($T$57,$S$199),'Mod(5) - LS conts calc'!H19,$O$2)) -> Please review inputs
C226: Periodic contributions (monthly payments spread over 10 yrs) | H226: =IF(ISERROR(IF(AND(T57,S199),Mod5_NFPSContsDuePerVal,$O$2)),"",IF(AND(T57,S199),Mod5_NFPSContsDuePerVal,$O$2)) -> Please review inputs
C229: Summary - Total contributions required (Mandatory Special Period Pension Contributions PLUS contributions required to convert standard 2006 Scheme membership into special membership) | M229: Scenario 2 summary | N229: =ROW(M229) -> 229
C231: Total contributions required as a lump sum | H231: =IF(ISERROR(H124+H87),"",H124+H87) -> 
C233: Interest included in lump sum | H233: =IF(ISERROR(H126+H89),"",H126+H89) -> 
C235: Total periodic contributions (monthly payments spread over 10 yrs) | H235: =IF(ISERROR(H128+H91),"",H128+H91) -> 
C239: Summary - Total contributions required (Mandatory Special Period Pension Contributions PLUS contributions required to backdate standard pension contributions from 6th April 2006 to the date the member joined the 2006 Scheme as a standard member) | M239: Scenario 3 summary | N239: =ROW(M239) -> 239
C241: Total contributions required as a lump sum | H241: =IF(ISERROR(IF(AND($S$199,$T$59),H222+H87,$O$2)),"",IF(AND($S$199,$T$59),H222+H87,$O$2)) -> Please review inputs
C243: Interest included in lump sum | H243: =IF(ISERROR(IF(AND($S$199,$T$59),H224+H89,$O$2)),"",IF(AND($S$199,$T$59),H224+H89,$O$2)) -> Please review inputs
C245: Total periodic contributions (monthly payments spread over 10 yrs) | H245: =IF(ISERROR(IF(AND(S199,T59),H226+H91,$O$2)),"",IF(AND(S199,T59),H226+H91,$O$2)) -> Please review inputs
C248: Summary - Total lump sum payment required (Lump sum to be paid to member for missed pension payments in the Modified Scheme LESS the contributions due from the member to reinstate service in the Modified Scheme) | M248: Scenario 4 summary | N248: =ROW(M248) -> 248
C250: Total lump sum payment due to member from scheme | H250: =IF(ISERROR(H154-H87),"",H154-H87) -> 
C253: Summary - Total lump sum payment required (Lump sum payment to the member = Lump sum payment to backdate past pension payments with interest LESS Value of standard pension payments already received from the 2006 scheme (with interest) LESS Mandatory Special Period Pension Contributions LESS Contributions required to convert membership from standard membership to special membership) | M253: Scenario 6 summary | N253: =ROW(M253) -> 253
C255: Total lump sum payment due to member from scheme | H255: =IF(ISERROR(H154-H189-H124-H87),"",H154-H189-H124-H87) -> 
N257: =ROW(M257) -> 257
C258: Settlement lump sum
C259: Lump sum contribution required if periodic contributions cease to be paid by a special member (Paragraphs (5) and (9) of Rule 6A of Part 11)
C261: Name
C263: Date of original calculation (dd/mm/yyyy)
C265: Date periodic contributions commenced (dd/mm/yyyy)
C267: Date of last periodic contribution (dd/mm/yyyy)
C269: Number of instalments made
C271: Periodic contribution amount being paid by the special member
C273: Settlement lump sum | H273: =IF(ISERROR(Mod1A_RDSSetLSRemainingAmt),"",Mod1A_RDSSetLSRemainingAmt) -> 

Sheet Mod(1) - earnings & conts (hidden)
A1: Government Actuary's Department | I1: Take care if working on 'Contribution rate' column. The formulae used in Column J changes annually from 4/2012
A2: =IF(title="> Enter workbook title here","Enter workbook title in Cover sheet",title) -> Preston Model for RDS settlement
A3: Module 1 - breakdown of monthly earnings and contribution in special scheme (RDS)
A4: =CELL("filename",A1) -> C:\Users\lroberts\AppData\Local\Microsoft\Windows\Temporary Internet Files\Content.Outlook\TFL3ASN3\[Retained Firefighters Pension Settlement Calculator Sep 2015 v1_0.xlsm]Mod(1) - earnings & conts
F6: MSP
E7: Service in period: | F7: =SUMPRODUCT(F14:F202,$K$14:$K$202)/12 -> 0
E8: Years | F8: =ROUNDDOWN(F7,0) -> 0
E9: Months | F9: =(F7-F8)*12 -> 0
F10: =F8&IF(F8=1," year & "," years & ")&ROUND(F9,1)&IF(F9=1," month"," months") -> 0 years & 0 months
D12: 1 | E12: 2 | F12: 3 | G12: 4 | H12: 5 | I12: 6 | J12: 7
B13: Year | C13: Month | D13: Month No | E13: Tax/Pension year | F13: FLAG - date within MSP | G13: Actual monthly salary | H13: Reference pay | I13: Contribution rate | J13: MSP - monthly contributions due | K13: Part time proportion | L13: Final salary? | N13: Qualifying months in pension year for MSP
B14: 2000 | C14: 4 | D14: ='Interest and Tax'!D19 -> 289 | E14: 2000 - 01 | F14: =IF(AND(Mod1_RDSMSPStartDate<=DATE(B14,C14+1,1)-1,Mod1_RDSMSPEndDate>=DATE(B14,C14,1)),1,0) -> 0 | G14: =F14*IF(ISERROR(VLOOKUP(E14,Mod1_RDSPayDetails,2,FALSE)/HLOOKUP(E14,Mod1_RDSQualfMonths,2,FALSE)),0,VLOOKUP(E14,Mod1_RDSPayDetails,2,FALSE)/HLOOKUP(E14,Mod1_RDSQualfMonths,2,FALSE)) -> 0 | H14: =VLOOKUP(E14,Mod1_RDSPayDetails,3,FALSE)*F14 -> 0 | I14: =Gen_RDSFixedContRate -> 0.11 | J14: =G14*I14 -> 0 | K14: =IF(ISERROR(F14*G14*12/H14),0,F14*G14*12/H14) -> 0 | L14: =IF(AND(F15=0,F14>0),1,0) -> 0 | N14: 2000 - 01 | O14: 2001 - 02 | P14: 2002 - 03 | Q14: 2003 - 04 | R14: 2004 - 05 | S14: 2005 - 06 | T14: 2006 - 07 | U14: 2007 - 08 | V14: 2008 - 09 | W14: 2009 - 10 | X14: 2010 - 11 | Y14: 2011 - 12 | Z14: 2012 - 13 | AA14: 2013 - 14 | AB14: 2014 - 15 | AC14: 2015 - 16
B15: 2000 | C15: 5 | D15: ='Interest and Tax'!D20 -> 290 | E15: 2000 - 01 | F15: 0 | G15: 0 | H15: 0 | I15: 0.11 | J15: =G15*I15 -> 0 | K15: =IF(ISERROR(F15*G15*12/H15),0,F15*G15*12/H15) -> 0 | L15: 0 | N15: =SUMIF($E$14:$E$202,N14,$F$14:$F$202) -> 0 | O15: =SUMIF($E$14:$E$202,O14,$F$14:$F$202) -> 0 | P15: 0 | Q15: 0 | R15: 0 | S15: 0 | T15: 0 | U15: 0 | V15: 0 | W15: 0 | X15: 0 | Y15: 0 | Z15: 0 | AA15: 0 | AB15: 0 | AC15: 0
B16: 2000 | C16: 6 | D16: ='Interest and Tax'!D21 -> 291 | E16: 2000 - 01 | F16: 0 | G16: 0 | H16: 0 | I16: 0.11 | J16: 0 | K16: 0 | L16: 0
B17: 2000 | C17: 7 | D17: ='Interest and Tax'!D22 -> 292 | E17: 2000 - 01 | F17: 0 | G17: 0 | H17: 0 | I17: 0.11 | J17: 0 | K17: 0 | L17: 0 | N17: For pensioner calcs (Scenarios 4 to 6)
B18: 2000 | C18: 8 | D18: ='Interest and Tax'!D23 -> 293 | E18: 2000 - 01 | F18: 0 | G18: 0 | H18: 0 | I18: 0.11 | J18: 0 | K18: 0 | L18: 0 | N18: Approx pension calc:
B19: 2000 | C19: 9 | D19: ='Interest and Tax'!D24 -> 294 | E19: 2000 - 01 | F19: 0 | G19: 0 | H19: 0 | I19: 0.11 | J19: 0 | K19: 0 | L19: 0
B20: 2000 | C20: 10 | D20: ='Interest and Tax'!D25 -> 295 | E20: 2000 - 01 | F20: 0 | G20: 0 | H20: 0 | I20: 0.11 | J20: 0 | K20: 0 | L20: 0 | N20: Members age | O20: =(Gen_CalcDate-Gen_DoB)/365.25 -> 0
B21: 2000 | C21: 11 | D21: ='Interest and Tax'!D26 -> 296 | E21: 2000 - 01 | F21: 0 | G21: 0 | H21: 0 | I21: 0.11 | J21: 0 | K21: 0 | L21: 0 | N21: NRA from Mod Schm | O21: 55
B22: 2000 | C22: 12 | D22: ='Interest and Tax'!D27 -> 297 | E22: 2000 - 01 | F22: 0 | G22: 0 | H22: 0 | I22: 0.11 | J22: 0 | K22: 0 | L22: 0 | N22: MSP service | O22: =F7 -> 0
B23: 2001 | C23: 1 | D23: ='Interest and Tax'!D28 -> 298 | E23: 2000 - 01 | F23: 0 | G23: 0 | H23: 0 | I23: 0.11 | J23: 0 | K23: 0 | L23: 0 | N23: Final salary | O23: =SUMPRODUCT(H14:H202,L14:L202)/SUM(L14:L202) -> 
B24: 2001 | C24: 2 | D24: ='Interest and Tax'!D29 -> 299 | E24: 2000 - 01 | F24: 0 | G24: 0 | H24: 0 | I24: 0.11 | J24: 0 | K24: 0 | L24: 0 | N24: Accrual rate | O24: 45
B25: 2001 | C25: 3 | D25: ='Interest and Tax'!D30 -> 300 | E25: 2000 - 01 | F25: 0 | G25: 0 | H25: 0 | I25: 0.11 | J25: 0 | K25: 0 | L25: 0
B26: 2001 | C26: 4 | D26: ='Interest and Tax'!D31 -> 301 | E26: 2001 - 02 | F26: 0 | G26: 0 | H26: 0 | I26: 0.11 | J26: 0 | K26: 0 | L26: 0 | N26: Approx expected pension | O26: =O23*O22/O24 -> 
B27: 2001 | C27: 5 | D27: ='Interest and Tax'!D32 -> 302 | E27: 2001 - 02 | F27: 0 | G27: 0 | H27: 0 | I27: 0.11 | J27: 0 | K27: 0 | L27: 0
B28: 2001 | C28: 6 | D28: ='Interest and Tax'!D33 -> 303 | E28: 2001 - 02 | F28: 0 | G28: 0 | H28: 0 | I28: 0.11 | J28: 0 | K28: 0 | L28: 0
B29: 2001 | C29: 7 | D29: ='Interest and Tax'!D34 -> 304 | E29: 2001 - 02 | F29: 0 | G29: 0 | H29: 0 | I29: 0.11 | J29: 0 | K29: 0 | L29: 0
B30: 2001 | C30: 8 | D30: ='Interest and Tax'!D35 -> 305 | E30: 2001 - 02 | F30: 0 | G30: 0 | H30: 0 | I30: 0.11 | J30: 0 | K30: 0 | L30: 0
B31: 2001 | C31: 9 | D31: ='Interest and Tax'!D36 -> 306 | E31: 2001 - 02 | F31: 0 | G31: 0 | H31: 0 | I31: 0.11 | J31: 0 | K31: 0 | L31: 0
B32: 2001 | C32: 10 | D32: ='Interest and Tax'!D37 -> 307 | E32: 2001 - 02 | F32: 0 | G32: 0 | H32: 0 | I32: 0.11 | J32: 0 | K32: 0 | L32: 0
B33: 2001 | C33: 11 | D33: ='Interest and Tax'!D38 -> 308 | E33: 2001 - 02 | F33: 0 | G33: 0 | H33: 0 | I33: 0.11 | J33: 0 | K33: 0 | L33: 0
B34: 2001 | C34: 12 | D34: ='Interest and Tax'!D39 -> 309 | E34: 2001 - 02 | F34: 0 | G34: 0 | H34: 0 | I34: 0.11 | J34: 0 | K34: 0 | L34: 0
B35: 2002 | C35: 1 | D35: ='Interest and Tax'!D40 -> 310 | E35: 2001 - 02 | F35: 0 | G35: 0 | H35: 0 | I35: 0.11 | J35: 0 | K35: 0 | L35: 0
B36: 2002 | C36: 2 | D36: ='Interest and Tax'!D41 -> 311 | E36: 2001 - 02 | F36: 0 | G36: 0 | H36: 0 | I36: 0.11 | J36: 0 | K36: 0 | L36: 0
B37: 2002 | C37: 3 | D37: ='Interest and Tax'!D42 -> 312 | E37: 2001 - 02 | F37: 0 | G37: 0 | H37: 0 | I37: 0.11 | J37: 0 | K37: 0 | L37: 0
B38: 2002 | C38: 4 | D38: ='Interest and Tax'!D43 -> 313 | E38: 2002 - 03 | F38: 0 | G38: 0 | H38: 0 | I38: 0.11 | J38: 0 | K38: 0 | L38: 0
B39: 2002 | C39: 5 | D39: ='Interest and Tax'!D44 -> 314 | E39: 2002 - 03 | F39: 0 | G39: 0 | H39: 0 | I39: 0.11 | J39: 0 | K39: 0 | L39: 0
B40: 2002 | C40: 6 | D40: ='Interest and Tax'!D45 -> 315 | E40: 2002 - 03 | F40: 0 | G40: 0 | H40: 0 | I40: 0.11 | J40: 0 | K40: 0 | L40: 0
B41: 2002 | C41: 7 | D41: ='Interest and Tax'!D46 -> 316 | E41: 2002 - 03 | F41: 0 | G41: 0 | H41: 0 | I41: 0.11 | J41: 0 | K41: 0 | L41: 0
B42: 2002 | C42: 8 | D42: ='Interest and Tax'!D47 -> 317 | E42: 2002 - 03 | F42: 0 | G42: 0 | H42: 0 | I42: 0.11 | J42: 0 | K42: 0 | L42: 0
B43: 2002 | C43: 9 | D43: ='Interest and Tax'!D48 -> 318 | E43: 2002 - 03 | F43: 0 | G43: 0 | H43: 0 | I43: 0.11 | J43: 0 | K43: 0 | L43: 0
B44: 2002 | C44: 10 | D44: ='Interest and Tax'!D49 -> 319 | E44: 2002 - 03 | F44: 0 | G44: 0 | H44: 0 | I44: 0.11 | J44: 0 | K44: 0 | L44: 0
B45: 2002 | C45: 11 | D45: ='Interest and Tax'!D50 -> 320 | E45: 2002 - 03 | F45: 0 | G45: 0 | H45: 0 | I45: 0.11 | J45: 0 | K45: 0 | L45: 0
B46: 2002 | C46: 12 | D46: ='Interest and Tax'!D51 -> 321 | E46: 2002 - 03 | F46: =IF(AND(Mod1_RDSMSPStartDate<=DATE(B46,C46+1,1)-1,Mod1_RDSMSPEndDate>=DATE(B46,C46,1)),1,0) -> 0 | G46: =F46*IF(ISERROR(VLOOKUP(E46,Mod1_RDSPayDetails,2,FALSE)/HLOOKUP(E46,Mod1_RDSQualfMonths,2,FALSE)),0,VLOOKUP(E46,Mod1_RDSPayDetails,2,FALSE)/HLOOKUP(E46,Mod1_RDSQualfMonths,2,FALSE)) -> 0 | H46: 0 | I46: =Gen_RDSFixedContRate -> 0.11 | J46: =G46*I46 -> 0 | K46: 0 | L46: =IF(AND(F47=0,F46>0),1,0) -> 0
B47: 2003 | C47: 1 | D47: ='Interest and Tax'!D52 -> 322 | E47: 2002 - 03 | F47: 0 | G47: 0 | H47: 0 | I47: 0.11 | J47: 0 | K47: 0 | L47: 0
B48: 2003 | C48: 2 | D48: ='Interest and Tax'!D53 -> 323 | E48: 2002 - 03 | F48: 0 | G48: 0 | H48: 0 | I48: 0.11 | J48: 0 | K48: 0 | L48: 0
B49: 2003 | C49: 3 | D49: ='Interest and Tax'!D54 -> 324 | E49: 2002 - 03 | F49: 0 | G49: 0 | H49: 0 | I49: 0.11 | J49: 0 | K49: 0 | L49: 0
B50: 2003 | C50: 4 | D50: ='Interest and Tax'!D55 -> 325 | E50: 2003 - 04 | F50: 0 | G50: 0 | H50: 0 | I50: 0.11 | J50: 0 | K50: 0 | L50: 0
B51: 2003 | C51: 5 | D51: ='Interest and Tax'!D56 -> 326 | E51: 2003 - 04 | F51: 0 | G51: 0 | H51: 0 | I51: 0.11 | J51: 0 | K51: 0 | L51: 0
B52: 2003 | C52: 6 | D52: ='Interest and Tax'!D57 -> 327 | E52: 2003 - 04 | F52: 0 | G52: 0 | H52: 0 | I52: 0.11 | J52: 0 | K52: 0 | L52: 0
B53: 2003 | C53: 7 | D53: ='Interest and Tax'!D58 -> 328 | E53: 2003 - 04 | F53: 0 | G53: 0 | H53: 0 | I53: 0.11 | J53: 0 | K53: 0 | L53: 0
B54: 2003 | C54: 8 | D54: ='Interest and Tax'!D59 -> 329 | E54: 2003 - 04 | F54: 0 | G54: 0 | H54: 0 | I54: 0.11 | J54: 0 | K54: 0 | L54: 0
B55: 2003 | C55: 9 | D55: ='Interest and Tax'!D60 -> 330 | E55: 2003 - 04 | F55: 0 | G55: 0 | H55: 0 | I55: 0.11 | J55: 0 | K55: 0 | L55: 0
B56: 2003 | C56: 10 | D56: ='Interest and Tax'!D61 -> 331 | E56: 2003 - 04 | F56: 0 | G56: 0 | H56: 0 | I56: 0.11 | J56: 0 | K56: 0 | L56: 0
B57: 2003 | C57: 11 | D57: ='Interest and Tax'!D62 -> 332 | E57: 2003 - 04 | F57: 0 | G57: 0 | H57: 0 | I57: 0.11 | J57: 0 | K57: 0 | L57: 0
B58: 2003 | C58: 12 | D58: ='Interest and Tax'!D63 -> 333 | E58: 2003 - 04 | F58: 0 | G58: 0 | H58: 0 | I58: 0.11 | J58: 0 | K58: 0 | L58: 0
B59: 2004 | C59: 1 | D59: ='Interest and Tax'!D64 -> 334 | E59: 2003 - 04 | F59: 0 | G59: 0 | H59: 0 | I59: 0.11 | J59: 0 | K59: 0 | L59: 0
B60: 2004 | C60: 2 | D60: ='Interest and Tax'!D65 -> 335 | E60: 2003 - 04 | F60: 0 | G60: 0 | H60: 0 | I60: 0.11 | J60: 0 | K60: 0 | L60: 0
B61: 2004 | C61: 3 | D61: ='Interest and Tax'!D66 -> 336 | E61: 2003 - 04 | F61: 0 | G61: 0 | H61: 0 | I61: 0.11 | J61: 0 | K61: 0 | L61: 0
B62: 2004 | C62: 4 | D62: ='Interest and Tax'!D67 -> 337 | E62: 2004 - 05 | F62: 0 | G62: 0 | H62: 0 | I62: 0.11 | J62: 0 | K62: 0 | L62: 0
B63: 2004 | C63: 5 | D63: ='Interest and Tax'!D68 -> 338 | E63: 2004 - 05 | F63: 0 | G63: 0 | H63: 0 | I63: 0.11 | J63: 0 | K63: 0 | L63: 0
B64: 2004 | C64: 6 | D64: ='Interest and Tax'!D69 -> 339 | E64: 2004 - 05 | F64: 0 | G64: 0 | H64: 0 | I64: 0.11 | J64: 0 | K64: 0 | L64: 0
B65: 2004 | C65: 7 | D65: ='Interest and Tax'!D70 -> 340 | E65: 2004 - 05 | F65: 0 | G65: 0 | H65: 0 | I65: 0.11 | J65: 0 | K65: 0 | L65: 0
B66: 2004 | C66: 8 | D66: ='Interest and Tax'!D71 -> 341 | E66: 2004 - 05 | F66: 0 | G66: 0 | H66: 0 | I66: 0.11 | J66: 0 | K66: 0 | L66: 0
B67: 2004 | C67: 9 | D67: ='Interest and Tax'!D72 -> 342 | E67: 2004 - 05 | F67: 0 | G67: 0 | H67: 0 | I67: 0.11 | J67: 0 | K67: 0 | L67: 0
B68: 2004 | C68: 10 | D68: ='Interest and Tax'!D73 -> 343 | E68: 2004 - 05 | F68: 0 | G68: 0 | H68: 0 | I68: 0.11 | J68: 0 | K68: 0 | L68: 0
B69: 2004 | C69: 11 | D69: ='Interest and Tax'!D74 -> 344 | E69: 2004 - 05 | F69: 0 | G69: 0 | H69: 0 | I69: 0.11 | J69: 0 | K69: 0 | L69: 0
B70: 2004 | C70: 12 | D70: ='Interest and Tax'!D75 -> 345 | E70: 2004 - 05 | F70: 0 | G70: 0 | H70: 0 | I70: 0.11 | J70: 0 | K70: 0 | L70: 0
B71: 2005 | C71: 1 | D71: ='Interest and Tax'!D76 -> 346 | E71: 2004 - 05 | F71: 0 | G71: 0 | H71: 0 | I71: 0.11 | J71: 0 | K71: 0 | L71: 0
B72: 2005 | C72: 2 | D72: ='Interest and Tax'!D77 -> 347 | E72: 2004 - 05 | F72: 0 | G72: 0 | H72: 0 | I72: 0.11 | J72: 0 | K72: 0 | L72: 0
B73: 2005 | C73: 3 | D73: ='Interest and Tax'!D78 -> 348 | E73: 2004 - 05 | F73: 0 | G73: 0 | H73: 0 | I73: 0.11 | J73: 0 | K73: 0 | L73: 0
B74: 2005 | C74: 4 | D74: ='Interest and Tax'!D79 -> 349 | E74: 2005 - 06 | F74: 0 | G74: 0 | H74: 0 | I74: 0.11 | J74: 0 | K74: 0 | L74: 0
B75: 2005 | C75: 5 | D75: ='Interest and Tax'!D80 -> 350 | E75: 2005 - 06 | F75: 0 | G75: 0 | H75: 0 | I75: 0.11 | J75: 0 | K75: 0 | L75: 0
B76: 2005 | C76: 6 | D76: ='Interest and Tax'!D81 -> 351 | E76: 2005 - 06 | F76: 0 | G76: 0 | H76: 0 | I76: 0.11 | J76: 0 | K76: 0 | L76: 0
B77: 2005 | C77: 7 | D77: ='Interest and Tax'!D82 -> 352 | E77: 2005 - 06 | F77: 0 | G77: 0 | H77: 0 | I77: 0.11 | J77: 0 | K77: 0 | L77: 0
B78: 2005 | C78: 8 | D78: ='Interest and Tax'!D83 -> 353 | E78: 2005 - 06 | F78: =IF(AND(Mod1_RDSMSPStartDate<=DATE(B78,C78+1,1)-1,Mod1_RDSMSPEndDate>=DATE(B78,C78,1)),1,0) -> 0 | G78: =F78*IF(ISERROR(VLOOKUP(E78,Mod1_RDSPayDetails,2,FALSE)/HLOOKUP(E78,Mod1_RDSQualfMonths,2,FALSE)),0,VLOOKUP(E78,Mod1_RDSPayDetails,2,FALSE)/HLOOKUP(E78,Mod1_RDSQualfMonths,2,FALSE)) -> 0 | H78: =VLOOKUP(E78,Mod1_RDSPayDetails,3,FALSE)*F78 -> 0 | I78: =Gen_RDSFixedContRate -> 0.11 | J78: =G78*I78 -> 0 | K78: 0 | L78: =IF(AND(F79=0,F78>0),1,0) -> 0
B79: 2005 | C79: 9 | D79: ='Interest and Tax'!D84 -> 354 | E79: 2005 - 06 | F79: 0 | G79: 0 | H79: 0 | I79: 0.11 | J79: 0 | K79: =IF(ISERROR(F79*G79*12/H79),0,F79*G79*12/H79) -> 0 | L79: 0
B80: 2005 | C80: 10 | D80: ='Interest and Tax'!D85 -> 355 | E80: 2005 - 06 | F80: 0 | G80: 0 | H80: 0 | I80: 0.11 | J80: 0 | K80: 0 | L80: 0
B81: 2005 | C81: 11 | D81: ='Interest and Tax'!D86 -> 356 | E81: 2005 - 06 | F81: 0 | G81: 0 | H81: 0 | I81: 0.11 | J81: 0 | K81: 0 | L81: 0
B82: 2005 | C82: 12 | D82: ='Interest and Tax'!D87 -> 357 | E82: 2005 - 06 | F82: 0 | G82: 0 | H82: 0 | I82: 0.11 | J82: 0 | K82: 0 | L82: 0
B83: 2006 | C83: 1 | D83: ='Interest and Tax'!D88 -> 358 | E83: 2005 - 06 | F83: 0 | G83: 0 | H83: 0 | I83: 0.11 | J83: 0 | K83: 0 | L83: 0
B84: 2006 | C84: 2 | D84: ='Interest and Tax'!D89 -> 359 | E84: 2005 - 06 | F84: 0 | G84: 0 | H84: 0 | I84: 0.11 | J84: 0 | K84: 0 | L84: 0
B85: 2006 | C85: 3 | D85: ='Interest and Tax'!D90 -> 360 | E85: 2005 - 06 | F85: 0 | G85: 0 | H85: 0 | I85: 0.11 | J85: 0 | K85: 0 | L85: 0
B86: 2006 | C86: 4 | D86: ='Interest and Tax'!D91 -> 361 | E86: 2006 - 07 | F86: 0 | G86: 0 | H86: 0 | I86: 0.11 | J86: 0 | K86: 0 | L86: 0
B87: 2006 | C87: 5 | D87: ='Interest and Tax'!D92 -> 362 | E87: 2006 - 07 | F87: 0 | G87: 0 | H87: 0 | I87: 0.11 | J87: 0 | K87: 0 | L87: 0
B88: 2006 | C88: 6 | D88: ='Interest and Tax'!D93 -> 363 | E88: 2006 - 07 | F88: 0 | G88: 0 | H88: 0 | I88: 0.11 | J88: 0 | K88: 0 | L88: 0
B89: 2006 | C89: 7 | D89: ='Interest and Tax'!D94 -> 364 | E89: 2006 - 07 | F89: 0 | G89: 0 | H89: 0 | I89: 0.11 | J89: 0 | K89: 0 | L89: 0
B90: 2006 | C90: 8 | D90: ='Interest and Tax'!D95 -> 365 | E90: 2006 - 07 | F90: 0 | G90: 0 | H90: 0 | I90: 0.11 | J90: 0 | K90: 0 | L90: 0
B91: 2006 | C91: 9 | D91: ='Interest and Tax'!D96 -> 366 | E91: 2006 - 07 | F91: 0 | G91: 0 | H91: 0 | I91: 0.11 | J91: 0 | K91: 0 | L91: 0
B92: 2006 | C92: 10 | D92: ='Interest and Tax'!D97 -> 367 | E92: 2006 - 07 | F92: 0 | G92: 0 | H92: 0 | I92: 0.11 | J92: 0 | K92: 0 | L92: 0
B93: 2006 | C93: 11 | D93: ='Interest and Tax'!D98 -> 368 | E93: 2006 - 07 | F93: 0 | G93: 0 | H93: 0 | I93: 0.11 | J93: 0 | K93: 0 | L93: 0
B94: 2006 | C94: 12 | D94: ='Interest and Tax'!D99 -> 369 | E94: 2006 - 07 | F94: 0 | G94: 0 | H94: 0 | I94: 0.11 | J94: 0 | K94: 0 | L94: 0
B95: 2007 | C95: 1 | D95: ='Interest and Tax'!D100 -> 370 | E95: 2006 - 07 | F95: 0 | G95: 0 | H95: 0 | I95: 0.11 | J95: 0 | K95: 0 | L95: 0
B96: 2007 | C96: 2 | D96: ='Interest and Tax'!D101 -> 371 | E96: 2006 - 07 | F96: 0 | G96: 0 | H96: 0 | I96: 0.11 | J96: 0 | K96: 0 | L96: 0
B97: 2007 | C97: 3 | D97: ='Interest and Tax'!D102 -> 372 | E97: 2006 - 07 | F97: 0 | G97: 0 | H97: 0 | I97: 0.11 | J97: 0 | K97: 0 | L97: 0
B98: 2007 | C98: 4 | D98: ='Interest and Tax'!D103 -> 373 | E98: 2007 - 08 | F98: 0 | G98: 0 | H98: 0 | I98: 0.11 | J98: 0 | K98: 0 | L98: 0
B99: 2007 | C99: 5 | D99: ='Interest and Tax'!D104 -> 374 | E99: 2007 - 08 | F99: 0 | G99: 0 | H99: 0 | I99: 0.11 | J99: 0 | K99: 0 | L99: 0
B100: 2007 | C100: 6 | D100: ='Interest and Tax'!D105 -> 375 | E100: 2007 - 08 | F100: 0 | G100: 0 | H100: 0 | I100: 0.11 | J100: 0 | K100: 0 | L100: 0
B101: 2007 | C101: 7 | D101: ='Interest and Tax'!D106 -> 376 | E101: 2007 - 08 | F101: 0 | G101: 0 | H101: 0 | I101: 0.11 | J101: 0 | K101: 0 | L101: 0
B102: 2007 | C102: 8 | D102: ='Interest and Tax'!D107 -> 377 | E102: 2007 - 08 | F102: 0 | G102: 0 | H102: 0 | I102: 0.11 | J102: 0 | K102: 0 | L102: 0
B103: 2007 | C103: 9 | D103: ='Interest and Tax'!D108 -> 378 | E103: 2007 - 08 | F103: 0 | G103: 0 | H103: 0 | I103: 0.11 | J103: 0 | K103: 0 | L103: 0
B104: 2007 | C104: 10 | D104: ='Interest and Tax'!D109 -> 379 | E104: 2007 - 08 | F104: 0 | G104: 0 | H104: 0 | I104: 0.11 | J104: 0 | K104: 0 | L104: 0
B105: 2007 | C105: 11 | D105: ='Interest and Tax'!D110 -> 380 | E105: 2007 - 08 | F105: 0 | G105: 0 | H105: 0 | I105: 0.11 | J105: 0 | K105: 0 | L105: 0
B106: 2007 | C106: 12 | D106: ='Interest and Tax'!D111 -> 381 | E106: 2007 - 08 | F106: 0 | G106: 0 | H106: 0 | I106: 0.11 | J106: 0 | K106: 0 | L106: 0
B107: 2008 | C107: 1 | D107: ='Interest and Tax'!D112 -> 382 | E107: 2007 - 08 | F107: 0 | G107: 0 | H107: 0 | I107: 0.11 | J107: 0 | K107: 0 | L107: 0
B108: 2008 | C108: 2 | D108: ='Interest and Tax'!D113 -> 383 | E108: 2007 - 08 | F108: 0 | G108: 0 | H108: 0 | I108: 0.11 | J108: 0 | K108: 0 | L108: 0
B109: 2008 | C109: 3 | D109: ='Interest and Tax'!D114 -> 384 | E109: 2007 - 08 | F109: 0 | G109: 0 | H109: 0 | I109: 0.11 | J109: 0 | K109: 0 | L109: 0
B110: 2008 | C110: 4 | D110: ='Interest and Tax'!D115 -> 385 | E110: 2008 - 09 | F110: 0 | G110: =F110*IF(ISERROR(VLOOKUP(E110,Mod1_RDSPayDetails,2,FALSE)/HLOOKUP(E110,Mod1_RDSQualfMonths,2,FALSE)),0,VLOOKUP(E110,Mod1_RDSPayDetails,2,FALSE)/HLOOKUP(E110,Mod1_RDSQualfMonths,2,FALSE)) -> 0 | H110: 0 | I110: =Gen_RDSFixedContRate -> 0.11 | J110: =G110*I110 -> 0 | K110: 0 | L110: =IF(AND(F111=0,F110>0),1,0) -> 0
B111: 2008 | C111: 5 | D111: ='Interest and Tax'!D116 -> 386 | E111: 2008 - 09 | F111: 0 | G111: 0 | H111: 0 | I111: 0.11 | J111: 0 | K111: 0 | L111: 0
B112: 2008 | C112: 6 | D112: ='Interest and Tax'!D117 -> 387 | E112: 2008 - 09 | F112: 0 | G112: 0 | H112: 0 | I112: 0.11 | J112: 0 | K112: 0 | L112: 0
B113: 2008 | C113: 7 | D113: ='Interest and Tax'!D118 -> 388 | E113: 2008 - 09 | F113: 0 | G113: 0 | H113: 0 | I113: 0.11 | J113: 0 | K113: 0 | L113: 0
B114: 2008 | C114: 8 | D114: ='Interest and Tax'!D119 -> 389 | E114: 2008 - 09 | F114: 0 | G114: 0 | H114: 0 | I114: 0.11 | J114: 0 | K114: 0 | L114: 0
B115: 2008 | C115: 9 | D115: ='Interest and Tax'!D120 -> 390 | E115: 2008 - 09 | F115: 0 | G115: 0 | H115: 0 | I115: 0.11 | J115: 0 | K115: 0 | L115: 0
B116: 2008 | C116: 10 | D116: ='Interest and Tax'!D121 -> 391 | E116: 2008 - 09 | F116: =IF(AND(Mod1_RDSMSPStartDate<=DATE(B116,C116+1,1)-1,Mod1_RDSMSPEndDate>=DATE(B116,C116,1)),1,0) -> 0 | G116: 0 | H116: 0 | I116: 0.11 | J116: 0 | K116: 0 | L116: 0
B117: 2008 | C117: 11 | D117: ='Interest and Tax'!D122 -> 392 | E117: 2008 - 09 | F117: 0 | G117: 0 | H117: 0 | I117: 0.11 | J117: 0 | K117: 0 | L117: 0
B118: 2008 | C118: 12 | D118: ='Interest and Tax'!D123 -> 393 | E118: 2008 - 09 | F118: 0 | G118: 0 | H118: 0 | I118: 0.11 | J118: 0 | K118: 0 | L118: 0
B119: 2009 | C119: 1 | D119: ='Interest and Tax'!D124 -> 394 | E119: 2008 - 09 | F119: 0 | G119: 0 | H119: 0 | I119: 0.11 | J119: 0 | K119: 0 | L119: 0
B120: 2009 | C120: 2 | D120: ='Interest and Tax'!D125 -> 395 | E120: 2008 - 09 | F120: 0 | G120: 0 | H120: 0 | I120: 0.11 | J120: 0 | K120: 0 | L120: 0
B121: 2009 | C121: 3 | D121: ='Interest and Tax'!D126 -> 396 | E121: 2008 - 09 | F121: 0 | G121: 0 | H121: 0 | I121: 0.11 | J121: 0 | K121: 0 | L121: 0
B122: 2009 | C122: 4 | D122: ='Interest and Tax'!D127 -> 397 | E122: 2009 - 10 | F122: 0 | G122: 0 | H122: 0 | I122: 0.11 | J122: 0 | K122: 0 | L122: 0
B123: 2009 | C123: 5 | D123: ='Interest and Tax'!D128 -> 398 | E123: 2009 - 10 | F123: 0 | G123: 0 | H123: 0 | I123: 0.11 | J123: 0 | K123: 0 | L123: 0
B124: 2009 | C124: 6 | D124: ='Interest and Tax'!D129 -> 399 | E124: 2009 - 10 | F124: 0 | G124: 0 | H124: 0 | I124: 0.11 | J124: 0 | K124: 0 | L124: 0
B125: 2009 | C125: 7 | D125: ='Interest and Tax'!D130 -> 400 | E125: 2009 - 10 | F125: 0 | G125: 0 | H125: 0 | I125: 0.11 | J125: 0 | K125: 0 | L125: 0
B126: 2009 | C126: 8 | D126: ='Interest and Tax'!D131 -> 401 | E126: 2009 - 10 | F126: 0 | G126: 0 | H126: 0 | I126: 0.11 | J126: 0 | K126: 0 | L126: 0
B127: 2009 | C127: 9 | D127: ='Interest and Tax'!D132 -> 402 | E127: 2009 - 10 | F127: 0 | G127: 0 | H127: 0 | I127: 0.11 | J127: 0 | K127: 0 | L127: 0
B128: 2009 | C128: 10 | D128: ='Interest and Tax'!D133 -> 403 | E128: 2009 - 10 | F128: 0 | G128: 0 | H128: 0 | I128: 0.11 | J128: 0 | K128: 0 | L128: 0
B129: 2009 | C129: 11 | D129: ='Interest and Tax'!D134 -> 404 | E129: 2009 - 10 | F129: 0 | G129: 0 | H129: 0 | I129: 0.11 | J129: 0 | K129: 0 | L129: 0
B130: 2009 | C130: 12 | D130: ='Interest and Tax'!D135 -> 405 | E130: 2009 - 10 | F130: 0 | G130: 0 | H130: 0 | I130: 0.11 | J130: 0 | K130: 0 | L130: 0
B131: 2010 | C131: 1 | D131: ='Interest and Tax'!D136 -> 406 | E131: 2009 - 10 | F131: 0 | G131: 0 | H131: 0 | I131: 0.11 | J131: 0 | K131: 0 | L131: 0
B132: 2010 | C132: 2 | D132: ='Interest and Tax'!D137 -> 407 | E132: 2009 - 10 | F132: 0 | G132: 0 | H132: 0 | I132: 0.11 | J132: 0 | K132: 0 | L132: 0
B133: 2010 | C133: 3 | D133: ='Interest and Tax'!D138 -> 408 | E133: 2009 - 10 | F133: 0 | G133: 0 | H133: 0 | I133: 0.11 | J133: 0 | K133: 0 | L133: 0
B134: 2010 | C134: 4 | D134: ='Interest and Tax'!D139 -> 409 | E134: 2010 - 11 | F134: 0 | G134: 0 | H134: 0 | I134: 0.11 | J134: 0 | K134: 0 | L134: 0
B135: 2010 | C135: 5 | D135: ='Interest and Tax'!D140 -> 410 | E135: 2010 - 11 | F135: 0 | G135: 0 | H135: 0 | I135: 0.11 | J135: 0 | K135: 0 | L135: 0
B136: 2010 | C136: 6 | D136: ='Interest and Tax'!D141 -> 411 | E136: 2010 - 11 | F136: 0 | G136: 0 | H136: 0 | I136: 0.11 | J136: 0 | K136: 0 | L136: 0
B137: 2010 | C137: 7 | D137: ='Interest and Tax'!D142 -> 412 | E137: 2010 - 11 | F137: 0 | G137: 0 | H137: 0 | I137: 0.11 | J137: 0 | K137: 0 | L137: 0
B138: 2010 | C138: 8 | D138: ='Interest and Tax'!D143 -> 413 | E138: 2010 - 11 | F138: 0 | G138: 0 | H138: 0 | I138: 0.11 | J138: 0 | K138: 0 | L138: 0
B139: 2010 | C139: 9 | D139: ='Interest and Tax'!D144 -> 414 | E139: 2010 - 11 | F139: 0 | G139: 0 | H139: 0 | I139: 0.11 | J139: 0 | K139: 0 | L139: 0
B140: 2010 | C140: 10 | D140: ='Interest and Tax'!D145 -> 415 | E140: 2010 - 11 | F140: 0 | G140: 0 | H140: 0 | I140: 0.11 | J140: 0 | K140: 0 | L140: 0
B141: 2010 | C141: 11 | D141: ='Interest and Tax'!D146 -> 416 | E141: 2010 - 11 | F141: 0 | G141: 0 | H141: 0 | I141: 0.11 | J141: 0 | K141: 0 | L141: 0
B142: 2010 | C142: 12 | D142: ='Interest and Tax'!D147 -> 417 | E142: 2010 - 11 | F142: =IF(AND(Mod1_RDSMSPStartDate<=DATE(B142,C142+1,1)-1,Mod1_RDSMSPEndDate>=DATE(B142,C142,1)),1,0) -> 0 | G142: =F142*IF(ISERROR(VLOOKUP(E142,Mod1_RDSPayDetails,2,FALSE)/HLOOKUP(E142,Mod1_RDSQualfMonths,2,FALSE)),0,VLOOKUP(E142,Mod1_RDSPayDetails,2,FALSE)/HLOOKUP(E142,Mod1_RDSQualfMonths,2,FALSE)) -> 0 | H142: =VLOOKUP(E142,Mod1_RDSPayDetails,3,FALSE)*F142 -> 0 | I142: =Gen_RDSFixedContRate -> 0.11 | J142: =G142*I142 -> 0 | K142: 0 | L142: =IF(AND(F143=0,F142>0),1,0) -> 0
B143: 2011 | C143: 1 | D143: ='Interest and Tax'!D148 -> 418 | E143: 2010 - 11 | F143: 0 | G143: 0 | H143: 0 | I143: 0.11 | J143: 0 | K143: =IF(ISERROR(F143*G143*12/H143),0,F143*G143*12/H143) -> 0 | L143: 0
B144: 2011 | C144: 2 | D144: ='Interest and Tax'!D149 -> 419 | E144: 2010 - 11 | F144: 0 | G144: 0 | H144: 0 | I144: 0.11 | J144: 0 | K144: 0 | L144: 0
B145: 2011 | C145: 3 | D145: ='Interest and Tax'!D150 -> 420 | E145: 2010 - 11 | F145: 0 | G145: 0 | H145: 0 | I145: 0.11 | J145: 0 | K145: 0 | L145: 0
B146: 2011 | C146: 4 | D146: ='Interest and Tax'!D151 -> 421 | E146: 2011 - 12 | F146: 0 | G146: 0 | H146: 0 | I146: 0.11 | J146: 0 | K146: 0 | L146: 0
B147: 2011 | C147: 5 | D147: ='Interest and Tax'!D152 -> 422 | E147: 2011 - 12 | F147: 0 | G147: 0 | H147: 0 | I147: 0.11 | J147: 0 | K147: 0 | L147: 0
B148: 2011 | C148: 6 | D148: ='Interest and Tax'!D153 -> 423 | E148: 2011 - 12 | F148: 0 | G148: 0 | H148: 0 | I148: 0.11 | J148: 0 | K148: 0 | L148: 0
B149: 2011 | C149: 7 | D149: ='Interest and Tax'!D154 -> 424 | E149: 2011 - 12 | F149: 0 | G149: 0 | H149: 0 | I149: 0.11 | J149: 0 | K149: 0 | L149: 0
B150: 2011 | C150: 8 | D150: ='Interest and Tax'!D155 -> 425 | E150: 2011 - 12 | F150: 0 | G150: 0 | H150: 0 | I150: 0.11 | J150: 0 | K150: 0 | L150: 0
B151: 2011 | C151: 9 | D151: ='Interest and Tax'!D156 -> 426 | E151: 2011 - 12 | F151: 0 | G151: 0 | H151: 0 | I151: 0.11 | J151: 0 | K151: 0 | L151: 0
B152: 2011 | C152: 10 | D152: ='Interest and Tax'!D157 -> 427 | E152: 2011 - 12 | F152: 0 | G152: 0 | H152: 0 | I152: 0.11 | J152: 0 | K152: 0 | L152: 0
B153: 2011 | C153: 11 | D153: ='Interest and Tax'!D158 -> 428 | E153: 2011 - 12 | F153: 0 | G153: 0 | H153: 0 | I153: 0.11 | J153: 0 | K153: 0 | L153: 0
B154: 2011 | C154: 12 | D154: ='Interest and Tax'!D159 -> 429 | E154: 2011 - 12 | F154: 0 | G154: 0 | H154: 0 | I154: 0.11 | J154: 0 | K154: 0 | L154: 0
B155: 2012 | C155: 1 | D155: ='Interest and Tax'!D160 -> 430 | E155: 2011 - 12 | F155: 0 | G155: 0 | H155: 0 | I155: 0.11 | J155: 0 | K155: 0 | L155: 0
B156: 2012 | C156: 2 | D156: ='Interest and Tax'!D161 -> 431 | E156: 2011 - 12 | F156: 0 | G156: 0 | H156: 0 | I156: 0.11 | J156: 0 | K156: 0 | L156: 0
B157: 2012 | C157: 3 | D157: ='Interest and Tax'!D162 -> 432 | E157: 2011 - 12 | F157: 0 | G157: 0 | H157: 0 | I157: 0.11 | J157: 0 | K157: 0 | L157: 0
B158: 2012 | C158: 4 | D158: ='Interest and Tax'!D163 -> 433 | E158: 2012 - 13 | F158: 0 | G158: 0 | H158: 0 | I158: =IF(H158<='RDS ee cont rates'!$B$17,'RDS ee cont rates'!$C$17,IF(H158<='RDS ee cont rates'!$B$21,'RDS ee cont rates'!$C$21,IF(H158<='RDS ee cont rates'!$B$23,'RDS ee cont rates'!$C$23,IF(H158<='RDS ee cont rates'!$B$25,'RDS ee cont rates'!$C$25,IF(H158<='RDS ee cont rates'!$B$27,'RDS ee cont rates'!$C$27,IF(H158<='RDS ee cont rates'!$B$29,'RDS ee cont rates'!$C$29,IF(H158<='RDS ee cont rates'!$B$31,'RDS ee cont rates'!$C$31,'RDS ee cont rates'!$C$32))))))) -> 0.11 | J158: 0 | K158: 0 | L158: 0 | M158: Note change in formulae used from this point on for cont rate column (7 )
B159: 2012 | C159: 5 | D159: ='Interest and Tax'!D164 -> 434 | E159: 2012 - 13 | F159: 0 | G159: 0 | H159: 0 | I159: =IF(H159<='RDS ee cont rates'!$B$17,'RDS ee cont rates'!$C$17,IF(H159<='RDS ee cont rates'!$B$21,'RDS ee cont rates'!$C$21,IF(H159<='RDS ee cont rates'!$B$23,'RDS ee cont rates'!$C$23,IF(H159<='RDS ee cont rates'!$B$25,'RDS ee cont rates'!$C$25,IF(H159<='RDS ee cont rates'!$B$27,'RDS ee cont rates'!$C$27,IF(H159<='RDS ee cont rates'!$B$29,'RDS ee cont rates'!$C$29,IF(H159<='RDS ee cont rates'!$B$31,'RDS ee cont rates'!$C$31,'RDS ee cont rates'!$C$32))))))) -> 0.11 | J159: 0 | K159: 0 | L159: 0
B160: 2012 | C160: 6 | D160: ='Interest and Tax'!D165 -> 435 | E160: 2012 - 13 | F160: 0 | G160: 0 | H160: 0 | I160: =IF(H160<='RDS ee cont rates'!$B$17,'RDS ee cont rates'!$C$17,IF(H160<='RDS ee cont rates'!$B$21,'RDS ee cont rates'!$C$21,IF(H160<='RDS ee cont rates'!$B$23,'RDS ee cont rates'!$C$23,IF(H160<='RDS ee cont rates'!$B$25,'RDS ee cont rates'!$C$25,IF(H160<='RDS ee cont rates'!$B$27,'RDS ee cont rates'!$C$27,IF(H160<='RDS ee cont rates'!$B$29,'RDS ee cont rates'!$C$29,IF(H160<='RDS ee cont rates'!$B$31,'RDS ee cont rates'!$C$31,'RDS ee cont rates'!$C$32))))))) -> 0.11 | J160: 0 | K160: 0 | L160: 0
B161: 2012 | C161: 7 | D161: ='Interest and Tax'!D166 -> 436 | E161: 2012 - 13 | F161: 0 | G161: 0 | H161: 0 | I161: =IF(H161<='RDS ee cont rates'!$B$17,'RDS ee cont rates'!$C$17,IF(H161<='RDS ee cont rates'!$B$21,'RDS ee cont rates'!$C$21,IF(H161<='RDS ee cont rates'!$B$23,'RDS ee cont rates'!$C$23,IF(H161<='RDS ee cont rates'!$B$25,'RDS ee cont rates'!$C$25,IF(H161<='RDS ee cont rates'!$B$27,'RDS ee cont rates'!$C$27,IF(H161<='RDS ee cont rates'!$B$29,'RDS ee cont rates'!$C$29,IF(H161<='RDS ee cont rates'!$B$31,'RDS ee cont rates'!$C$31,'RDS ee cont rates'!$C$32))))))) -> 0.11 | J161: 0 | K161: 0 | L161: 0
B162: 2012 | C162: 8 | D162: ='Interest and Tax'!D167 -> 437 | E162: 2012 - 13 | F162: 0 | G162: 0 | H162: 0 | I162: =IF(H162<='RDS ee cont rates'!$B$17,'RDS ee cont rates'!$C$17,IF(H162<='RDS ee cont rates'!$B$21,'RDS ee cont rates'!$C$21,IF(H162<='RDS ee cont rates'!$B$23,'RDS ee cont rates'!$C$23,IF(H162<='RDS ee cont rates'!$B$25,'RDS ee cont rates'!$C$25,IF(H162<='RDS ee cont rates'!$B$27,'RDS ee cont rates'!$C$27,IF(H162<='RDS ee cont rates'!$B$29,'RDS ee cont rates'!$C$29,IF(H162<='RDS ee cont rates'!$B$31,'RDS ee cont rates'!$C$31,'RDS ee cont rates'!$C$32))))))) -> 0.11 | J162: 0 | K162: 0 | L162: 0
B163: 2012 | C163: 9 | D163: ='Interest and Tax'!D168 -> 438 | E163: 2012 - 13 | F163: 0 | G163: 0 | H163: 0 | I163: =IF(H163<='RDS ee cont rates'!$B$17,'RDS ee cont rates'!$C$17,IF(H163<='RDS ee cont rates'!$B$21,'RDS ee cont rates'!$C$21,IF(H163<='RDS ee cont rates'!$B$23,'RDS ee cont rates'!$C$23,IF(H163<='RDS ee cont rates'!$B$25,'RDS ee cont rates'!$C$25,IF(H163<='RDS ee cont rates'!$B$27,'RDS ee cont rates'!$C$27,IF(H163<='RDS ee cont rates'!$B$29,'RDS ee cont rates'!$C$29,IF(H163<='RDS ee cont rates'!$B$31,'RDS ee cont rates'!$C$31,'RDS ee cont rates'!$C$32))))))) -> 0.11 | J163: 0 | K163: 0 | L163: 0
B164: 2012 | C164: 10 | D164: ='Interest and Tax'!D169 -> 439 | E164: 2012 - 13 | F164: 0 | G164: 0 | H164: 0 | I164: =IF(H164<='RDS ee cont rates'!$B$17,'RDS ee cont rates'!$C$17,IF(H164<='RDS ee cont rates'!$B$21,'RDS ee cont rates'!$C$21,IF(H164<='RDS ee cont rates'!$B$23,'RDS ee cont rates'!$C$23,IF(H164<='RDS ee cont rates'!$B$25,'RDS ee cont rates'!$C$25,IF(H164<='RDS ee cont rates'!$B$27,'RDS ee cont rates'!$C$27,IF(H164<='RDS ee cont rates'!$B$29,'RDS ee cont rates'!$C$29,IF(H164<='RDS ee cont rates'!$B$31,'RDS ee cont rates'!$C$31,'RDS ee cont rates'!$C$32))))))) -> 0.11 | J164: 0 | K164: 0 | L164: 0
B165: 2012 | C165: 11 | D165: ='Interest and Tax'!D170 -> 440 | E165: 2012 - 13 | F165: 0 | G165: 0 | H165: 0 | I165: =IF(H165<='RDS ee cont rates'!$B$17,'RDS ee cont rates'!$C$17,IF(H165<='RDS ee cont rates'!$B$21,'RDS ee cont rates'!$C$21,IF(H165<='RDS ee cont rates'!$B$23,'RDS ee cont rates'!$C$23,IF(H165<='RDS ee cont rates'!$B$25,'RDS ee cont rates'!$C$25,IF(H165<='RDS ee cont rates'!$B$27,'RDS ee cont rates'!$C$27,IF(H165<='RDS ee cont rates'!$B$29,'RDS ee cont rates'!$C$29,IF(H165<='RDS ee cont rates'!$B$31,'RDS ee cont rates'!$C$31,'RDS ee cont rates'!$C$32))))))) -> 0.11 | J165: 0 | K165: 0 | L165: 0
B166: 2012 | C166: 12 | D166: ='Interest and Tax'!D171 -> 441 | E166: 2012 - 13 | F166: 0 | G166: 0 | H166: 0 | I166: =IF(H166<='RDS ee cont rates'!$B$17,'RDS ee cont rates'!$C$17,IF(H166<='RDS ee cont rates'!$B$21,'RDS ee cont rates'!$C$21,IF(H166<='RDS ee cont rates'!$B$23,'RDS ee cont rates'!$C$23,IF(H166<='RDS ee cont rates'!$B$25,'RDS ee cont rates'!$C$25,IF(H166<='RDS ee cont rates'!$B$27,'RDS ee cont rates'!$C$27,IF(H166<='RDS ee cont rates'!$B$29,'RDS ee cont rates'!$C$29,IF(H166<='RDS ee cont rates'!$B$31,'RDS ee cont rates'!$C$31,'RDS ee cont rates'!$C$32))))))) -> 0.11 | J166: 0 | K166: 0 | L166: 0
B167: 2013 | C167: 1 | D167: ='Interest and Tax'!D172 -> 442 | E167: 2012 - 13 | F167: 0 | G167: 0 | H167: 0 | I167: =IF(H167<='RDS ee cont rates'!$B$17,'RDS ee cont rates'!$C$17,IF(H167<='RDS ee cont rates'!$B$21,'RDS ee cont rates'!$C$21,IF(H167<='RDS ee cont rates'!$B$23,'RDS ee cont rates'!$C$23,IF(H167<='RDS ee cont rates'!$B$25,'RDS ee cont rates'!$C$25,IF(H167<='RDS ee cont rates'!$B$27,'RDS ee cont rates'!$C$27,IF(H167<='RDS ee cont rates'!$B$29,'RDS ee cont rates'!$C$29,IF(H167<='RDS ee cont rates'!$B$31,'RDS ee cont rates'!$C$31,'RDS ee cont rates'!$C$32))))))) -> 0.11 | J167: 0 | K167: 0 | L167: 0
B168: 2013 | C168: 2 | D168: ='Interest and Tax'!D173 -> 443 | E168: 2012 - 13 | F168: 0 | G168: 0 | H168: 0 | I168: =IF(H168<='RDS ee cont rates'!$B$17,'RDS ee cont rates'!$C$17,IF(H168<='RDS ee cont rates'!$B$21,'RDS ee cont rates'!$C$21,IF(H168<='RDS ee cont rates'!$B$23,'RDS ee cont rates'!$C$23,IF(H168<='RDS ee cont rates'!$B$25,'RDS ee cont rates'!$C$25,IF(H168<='RDS ee cont rates'!$B$27,'RDS ee cont rates'!$C$27,IF(H168<='RDS ee cont rates'!$B$29,'RDS ee cont rates'!$C$29,IF(H168<='RDS ee cont rates'!$B$31,'RDS ee cont rates'!$C$31,'RDS ee cont rates'!$C$32))))))) -> 0.11 | J168: 0 | K168: 0 | L168: 0
B169: 2013 | C169: 3 | D169: ='Interest and Tax'!D174 -> 444 | E169: 2012 - 13 | F169: 0 | G169: 0 | H169: 0 | I169: =IF(H169<='RDS ee cont rates'!$B$17,'RDS ee cont rates'!$C$17,IF(H169<='RDS ee cont rates'!$B$21,'RDS ee cont rates'!$C$21,IF(H169<='RDS ee cont rates'!$B$23,'RDS ee cont rates'!$C$23,IF(H169<='RDS ee cont rates'!$B$25,'RDS ee cont rates'!$C$25,IF(H169<='RDS ee cont rates'!$B$27,'RDS ee cont rates'!$C$27,IF(H169<='RDS ee cont rates'!$B$29,'RDS ee cont rates'!$C$29,IF(H169<='RDS ee cont rates'!$B$31,'RDS ee cont rates'!$C$31,'RDS ee cont rates'!$C$32))))))) -> 0.11 | J169: 0 | K169: 0 | L169: 0
B170: 2013 | C170: 4 | D170: ='Interest and Tax'!D175 -> 445 | E170: 2013 - 14 | F170: 0 | G170: 0 | H170: 0 | I170: =IF(H170<='RDS ee cont rates'!$B$17,'RDS ee cont rates'!$D$17,IF(H170<='RDS ee cont rates'!$B$19,'RDS ee cont rates'!$D$19,IF(H170<='RDS ee cont rates'!$B$21,'RDS ee cont rates'!$D$21,IF(H170<='RDS ee cont rates'!$B$23,'RDS ee cont rates'!$D$23,IF(H170<='RDS ee cont rates'!$B$25,'RDS ee cont rates'!$D$25,IF(H170<='RDS ee cont rates'!$B$27,'RDS ee cont rates'!$D$27,IF(H170<='RDS ee cont rates'!$B$29,'RDS ee cont rates'!$D$29,IF(H170<='RDS ee cont rates'!$B$31,'RDS ee cont rates'!$D$31,'RDS ee cont rates'!$D$32)))))))) -> 0.11 | J170: 0 | K170: 0 | L170: 0 | M170: Note change in formulae used from this point on for cont rate column (7 )
B171: 2013 | C171: 5 | D171: ='Interest and Tax'!D176 -> 446 | E171: 2013 - 14 | F171: 0 | G171: 0 | H171: 0 | I171: =IF(H171<='RDS ee cont rates'!$B$17,'RDS ee cont rates'!$D$17,IF(H171<='RDS ee cont rates'!$B$19,'RDS ee cont rates'!$D$19,IF(H171<='RDS ee cont rates'!$B$21,'RDS ee cont rates'!$D$21,IF(H171<='RDS ee cont rates'!$B$23,'RDS ee cont rates'!$D$23,IF(H171<='RDS ee cont rates'!$B$25,'RDS ee cont rates'!$D$25,IF(H171<='RDS ee cont rates'!$B$27,'RDS ee cont rates'!$D$27,IF(H171<='RDS ee cont rates'!$B$29,'RDS ee cont rates'!$D$29,IF(H171<='RDS ee cont rates'!$B$31,'RDS ee cont rates'!$D$31,'RDS ee cont rates'!$D$32)))))))) -> 0.11 | J171: 0 | K171: 0 | L171: 0
B172: 2013 | C172: 6 | D172: ='Interest and Tax'!D177 -> 447 | E172: 2013 - 14 | F172: 0 | G172: 0 | H172: 0 | I172: =IF(H172<='RDS ee cont rates'!$B$17,'RDS ee cont rates'!$D$17,IF(H172<='RDS ee cont rates'!$B$19,'RDS ee cont rates'!$D$19,IF(H172<='RDS ee cont rates'!$B$21,'RDS ee cont rates'!$D$21,IF(H172<='RDS ee cont rates'!$B$23,'RDS ee cont rates'!$D$23,IF(H172<='RDS ee cont rates'!$B$25,'RDS ee cont rates'!$D$25,IF(H172<='RDS ee cont rates'!$B$27,'RDS ee cont rates'!$D$27,IF(H172<='RDS ee cont rates'!$B$29,'RDS ee cont rates'!$D$29,IF(H172<='RDS ee cont rates'!$B$31,'RDS ee cont rates'!$D$31,'RDS ee cont rates'!$D$32)))))))) -> 0.11 | J172: 0 | K172: 0 | L172: 0
B173: 2013 | C173: 7 | D173: ='Interest and Tax'!D178 -> 448 | E173: 2013 - 14 | F173: 0 | G173: 0 | H173: 0 | I173: =IF(H173<='RDS ee cont rates'!$B$17,'RDS ee cont rates'!$D$17,IF(H173<='RDS ee cont rates'!$B$19,'RDS ee cont rates'!$D$19,IF(H173<='RDS ee cont rates'!$B$21,'RDS ee cont rates'!$D$21,IF(H173<='RDS ee cont rates'!$B$23,'RDS ee cont rates'!$D$23,IF(H173<='RDS ee cont rates'!$B$25,'RDS ee cont rates'!$D$25,IF(H173<='RDS ee cont rates'!$B$27,'RDS ee cont rates'!$D$27,IF(H173<='RDS ee cont rates'!$B$29,'RDS ee cont rates'!$D$29,IF(H173<='RDS ee cont rates'!$B$31,'RDS ee cont rates'!$D$31,'RDS ee cont rates'!$D$32)))))))) -> 0.11 | J173: 0 | K173: 0 | L173: 0
B174: 2013 | C174: 8 | D174: ='Interest and Tax'!D179 -> 449 | E174: 2013 - 14 | F174: =IF(AND(Mod1_RDSMSPStartDate<=DATE(B174,C174+1,1)-1,Mod1_RDSMSPEndDate>=DATE(B174,C174,1)),1,0) -> 0 | G174: =F174*IF(ISERROR(VLOOKUP(E174,Mod1_RDSPayDetails,2,FALSE)/HLOOKUP(E174,Mod1_RDSQualfMonths,2,FALSE)),0,VLOOKUP(E174,Mod1_RDSPayDetails,2,FALSE)/HLOOKUP(E174,Mod1_RDSQualfMonths,2,FALSE)) -> 0 | H174: 0 | I174: =IF(H174<='RDS ee cont rates'!$B$17,'RDS ee cont rates'!$D$17,IF(H174<='RDS ee cont rates'!$B$19,'RDS ee cont rates'!$D$19,IF(H174<='RDS ee cont rates'!$B$21,'RDS ee cont rates'!$D$21,IF(H174<='RDS ee cont rates'!$B$23,'RDS ee cont rates'!$D$23,IF(H174<='RDS ee cont rates'!$B$25,'RDS ee cont rates'!$D$25,IF(H174<='RDS ee cont rates'!$B$27,'RDS ee cont rates'!$D$27,IF(H174<='RDS ee cont rates'!$B$29,'RDS ee cont rates'!$D$29,IF(H174<='RDS ee cont rates'!$B$31,'RDS ee cont rates'!$D$31,'RDS ee cont rates'!$D$32)))))))) -> 0.11 | J174: =G174*I174 -> 0 | K174: 0 | L174: =IF(AND(F175=0,F174>0),1,0) -> 0
B175: 2013 | C175: 9 | D175: ='Interest and Tax'!D180 -> 450 | E175: 2013 - 14 | F175: 0 | G175: 0 | H175: 0 | I175: =IF(H175<='RDS ee cont rates'!$B$17,'RDS ee cont rates'!$D$17,IF(H175<='RDS ee cont rates'!$B$19,'RDS ee cont rates'!$D$19,IF(H175<='RDS ee cont rates'!$B$21,'RDS ee cont rates'!$D$21,IF(H175<='RDS ee cont rates'!$B$23,'RDS ee cont rates'!$D$23,IF(H175<='RDS ee cont rates'!$B$25,'RDS ee cont rates'!$D$25,IF(H175<='RDS ee cont rates'!$B$27,'RDS ee cont rates'!$D$27,IF(H175<='RDS ee cont rates'!$B$29,'RDS ee cont rates'!$D$29,IF(H175<='RDS ee cont rates'!$B$31,'RDS ee cont rates'!$D$31,'RDS ee cont rates'!$D$32)))))))) -> 0.11 | J175: 0 | K175: 0 | L175: 0
B176: 2013 | C176: 10 | D176: ='Interest and Tax'!D181 -> 451 | E176: 2013 - 14 | F176: 0 | G176: 0 | H176: 0 | I176: =IF(H176<='RDS ee cont rates'!$B$17,'RDS ee cont rates'!$D$17,IF(H176<='RDS ee cont rates'!$B$19,'RDS ee cont rates'!$D$19,IF(H176<='RDS ee cont rates'!$B$21,'RDS ee cont rates'!$D$21,IF(H176<='RDS ee cont rates'!$B$23,'RDS ee cont rates'!$D$23,IF(H176<='RDS ee cont rates'!$B$25,'RDS ee cont rates'!$D$25,IF(H176<='RDS ee cont rates'!$B$27,'RDS ee cont rates'!$D$27,IF(H176<='RDS ee cont rates'!$B$29,'RDS ee cont rates'!$D$29,IF(H176<='RDS ee cont rates'!$B$31,'RDS ee cont rates'!$D$31,'RDS ee cont rates'!$D$32)))))))) -> 0.11 | J176: 0 | K176: 0 | L176: 0
B177: 2013 | C177: 11 | D177: ='Interest and Tax'!D182 -> 452 | E177: 2013 - 14 | F177: 0 | G177: 0 | H177: 0 | I177: =IF(H177<='RDS ee cont rates'!$B$17,'RDS ee cont rates'!$D$17,IF(H177<='RDS ee cont rates'!$B$19,'RDS ee cont rates'!$D$19,IF(H177<='RDS ee cont rates'!$B$21,'RDS ee cont rates'!$D$21,IF(H177<='RDS ee cont rates'!$B$23,'RDS ee cont rates'!$D$23,IF(H177<='RDS ee cont rates'!$B$25,'RDS ee cont rates'!$D$25,IF(H177<='RDS ee cont rates'!$B$27,'RDS ee cont rates'!$D$27,IF(H177<='RDS ee cont rates'!$B$29,'RDS ee cont rates'!$D$29,IF(H177<='RDS ee cont rates'!$B$31,'RDS ee cont rates'!$D$31,'RDS ee cont rates'!$D$32)))))))) -> 0.11 | J177: 0 | K177: 0 | L177: 0
B178: 2013 | C178: 12 | D178: ='Interest and Tax'!D183 -> 453 | E178: 2013 - 14 | F178: 0 | G178: 0 | H178: 0 | I178: =IF(H178<='RDS ee cont rates'!$B$17,'RDS ee cont rates'!$D$17,IF(H178<='RDS ee cont rates'!$B$19,'RDS ee cont rates'!$D$19,IF(H178<='RDS ee cont rates'!$B$21,'RDS ee cont rates'!$D$21,IF(H178<='RDS ee cont rates'!$B$23,'RDS ee cont rates'!$D$23,IF(H178<='RDS ee cont rates'!$B$25,'RDS ee cont rates'!$D$25,IF(H178<='RDS ee cont rates'!$B$27,'RDS ee cont rates'!$D$27,IF(H178<='RDS ee cont rates'!$B$29,'RDS ee cont rates'!$D$29,IF(H178<='RDS ee cont rates'!$B$31,'RDS ee cont rates'!$D$31,'RDS ee cont rates'!$D$32)))))))) -> 0.11 | J178: 0 | K178: 0 | L178: 0
B179: 2014 | C179: 1 | D179: ='Interest and Tax'!D184 -> 454 | E179: 2013 - 14 | F179: 0 | G179: 0 | H179: 0 | I179: =IF(H179<='RDS ee cont rates'!$B$17,'RDS ee cont rates'!$D$17,IF(H179<='RDS ee cont rates'!$B$19,'RDS ee cont rates'!$D$19,IF(H179<='RDS ee cont rates'!$B$21,'RDS ee cont rates'!$D$21,IF(H179<='RDS ee cont rates'!$B$23,'RDS ee cont rates'!$D$23,IF(H179<='RDS ee cont rates'!$B$25,'RDS ee cont rates'!$D$25,IF(H179<='RDS ee cont rates'!$B$27,'RDS ee cont rates'!$D$27,IF(H179<='RDS ee cont rates'!$B$29,'RDS ee cont rates'!$D$29,IF(H179<='RDS ee cont rates'!$B$31,'RDS ee cont rates'!$D$31,'RDS ee cont rates'!$D$32)))))))) -> 0.11 | J179: 0 | K179: 0 | L179: 0
B180: 2014 | C180: 2 | D180: ='Interest and Tax'!D185 -> 455 | E180: 2013 - 14 | F180: 0 | G180: 0 | H180: 0 | I180: =IF(H180<='RDS ee cont rates'!$B$17,'RDS ee cont rates'!$D$17,IF(H180<='RDS ee cont rates'!$B$19,'RDS ee cont rates'!$D$19,IF(H180<='RDS ee cont rates'!$B$21,'RDS ee cont rates'!$D$21,IF(H180<='RDS ee cont rates'!$B$23,'RDS ee cont rates'!$D$23,IF(H180<='RDS ee cont rates'!$B$25,'RDS ee cont rates'!$D$25,IF(H180<='RDS ee cont rates'!$B$27,'RDS ee cont rates'!$D$27,IF(H180<='RDS ee cont rates'!$B$29,'RDS ee cont rates'!$D$29,IF(H180<='RDS ee cont rates'!$B$31,'RDS ee cont rates'!$D$31,'RDS ee cont rates'!$D$32)))))))) -> 0.11 | J180: 0 | K180: 0 | L180: 0
B181: 2014 | C181: 3 | D181: ='Interest and Tax'!D186 -> 456 | E181: 2013 - 14 | F181: 0 | G181: 0 | H181: 0 | I181: =IF(H181<='RDS ee cont rates'!$B$17,'RDS ee cont rates'!$D$17,IF(H181<='RDS ee cont rates'!$B$19,'RDS ee cont rates'!$D$19,IF(H181<='RDS ee cont rates'!$B$21,'RDS ee cont rates'!$D$21,IF(H181<='RDS ee cont rates'!$B$23,'RDS ee cont rates'!$D$23,IF(H181<='RDS ee cont rates'!$B$25,'RDS ee cont rates'!$D$25,IF(H181<='RDS ee cont rates'!$B$27,'RDS ee cont rates'!$D$27,IF(H181<='RDS ee cont rates'!$B$29,'RDS ee cont rates'!$D$29,IF(H181<='RDS ee cont rates'!$B$31,'RDS ee cont rates'!$D$31,'RDS ee cont rates'!$D$32)))))))) -> 0.11 | J181: 0 | K181: 0 | L181: 0
B182: 2014 | C182: 4 | D182: ='Interest and Tax'!D187 -> 457 | E182: 2014 - 15 | F182: 0 | G182: 0 | H182: 0 | I182: =IF(H182<='RDS ee cont rates'!$B$17,'RDS ee cont rates'!$E$17,IF(H182<='RDS ee cont rates'!$B$19,'RDS ee cont rates'!$E$19,IF(H182<='RDS ee cont rates'!$B$21,'RDS ee cont rates'!$E$21,IF(H182<='RDS ee cont rates'!$B$23,'RDS ee cont rates'!$E$23,IF(H182<='RDS ee cont rates'!$B$25,'RDS ee cont rates'!$E$25,IF(H182<='RDS ee cont rates'!$B$27,'RDS ee cont rates'!$E$27,IF(H182<='RDS ee cont rates'!$B$29,'RDS ee cont rates'!$E$29,IF(H182<='RDS ee cont rates'!$B$31,'RDS ee cont rates'!$E$31,'RDS ee cont rates'!$E$32)))))))) -> 0.11 | J182: 0 | K182: 0 | L182: 0 | M182: Note change in formulae used from this point on for cont rate column (7 )
B183: 2014 | C183: 5 | D183: ='Interest and Tax'!D188 -> 458 | E183: 2014 - 15 | F183: 0 | G183: 0 | H183: 0 | I183: =IF(H183<='RDS ee cont rates'!$B$17,'RDS ee cont rates'!$E$17,IF(H183<='RDS ee cont rates'!$B$19,'RDS ee cont rates'!$E$19,IF(H183<='RDS ee cont rates'!$B$21,'RDS ee cont rates'!$E$21,IF(H183<='RDS ee cont rates'!$B$23,'RDS ee cont rates'!$E$23,IF(H183<='RDS ee cont rates'!$B$25,'RDS ee cont rates'!$E$25,IF(H183<='RDS ee cont rates'!$B$27,'RDS ee cont rates'!$E$27,IF(H183<='RDS ee cont rates'!$B$29,'RDS ee cont rates'!$E$29,IF(H183<='RDS ee cont rates'!$B$31,'RDS ee cont rates'!$E$31,'RDS ee cont rates'!$E$32)))))))) -> 0.11 | J183: 0 | K183: 0 | L183: 0
B184: 2014 | C184: 6 | D184: ='Interest and Tax'!D189 -> 459 | E184: 2014 - 15 | F184: 0 | G184: 0 | H184: 0 | I184: =IF(H184<='RDS ee cont rates'!$B$17,'RDS ee cont rates'!$E$17,IF(H184<='RDS ee cont rates'!$B$19,'RDS ee cont rates'!$E$19,IF(H184<='RDS ee cont rates'!$B$21,'RDS ee cont rates'!$E$21,IF(H184<='RDS ee cont rates'!$B$23,'RDS ee cont rates'!$E$23,IF(H184<='RDS ee cont rates'!$B$25,'RDS ee cont rates'!$E$25,IF(H184<='RDS ee cont rates'!$B$27,'RDS ee cont rates'!$E$27,IF(H184<='RDS ee cont rates'!$B$29,'RDS ee cont rates'!$E$29,IF(H184<='RDS ee cont rates'!$B$31,'RDS ee cont rates'!$E$31,'RDS ee cont rates'!$E$32)))))))) -> 0.11 | J184: 0 | K184: 0 | L184: 0
B185: 2014 | C185: 7 | D185: ='Interest and Tax'!D190 -> 460 | E185: 2014 - 15 | F185: 0 | G185: 0 | H185: 0 | I185: =IF(H185<='RDS ee cont rates'!$B$17,'RDS ee cont rates'!$E$17,IF(H185<='RDS ee cont rates'!$B$19,'RDS ee cont rates'!$E$19,IF(H185<='RDS ee cont rates'!$B$21,'RDS ee cont rates'!$E$21,IF(H185<='RDS ee cont rates'!$B$23,'RDS ee cont rates'!$E$23,IF(H185<='RDS ee cont rates'!$B$25,'RDS ee cont rates'!$E$25,IF(H185<='RDS ee cont rates'!$B$27,'RDS ee cont rates'!$E$27,IF(H185<='RDS ee cont rates'!$B$29,'RDS ee cont rates'!$E$29,IF(H185<='RDS ee cont rates'!$B$31,'RDS ee cont rates'!$E$31,'RDS ee cont rates'!$E$32)))))))) -> 0.11 | J185: 0 | K185: 0 | L185: 0
B186: 2014 | C186: 8 | D186: ='Interest and Tax'!D191 -> 461 | E186: 2014 - 15 | F186: 0 | G186: 0 | H186: 0 | I186: =IF(H186<='RDS ee cont rates'!$B$17,'RDS ee cont rates'!$E$17,IF(H186<='RDS ee cont rates'!$B$19,'RDS ee cont rates'!$E$19,IF(H186<='RDS ee cont rates'!$B$21,'RDS ee cont rates'!$E$21,IF(H186<='RDS ee cont rates'!$B$23,'RDS ee cont rates'!$E$23,IF(H186<='RDS ee cont rates'!$B$25,'RDS ee cont rates'!$E$25,IF(H186<='RDS ee cont rates'!$B$27,'RDS ee cont rates'!$E$27,IF(H186<='RDS ee cont rates'!$B$29,'RDS ee cont rates'!$E$29,IF(H186<='RDS ee cont rates'!$B$31,'RDS ee cont rates'!$E$31,'RDS ee cont rates'!$E$32)))))))) -> 0.11 | J186: 0 | K186: 0 | L186: 0
B187: 2014 | C187: 9 | D187: ='Interest and Tax'!D192 -> 462 | E187: 2014 - 15 | F187: 0 | G187: 0 | H187: 0 | I187: =IF(H187<='RDS ee cont rates'!$B$17,'RDS ee cont rates'!$E$17,IF(H187<='RDS ee cont rates'!$B$19,'RDS ee cont rates'!$E$19,IF(H187<='RDS ee cont rates'!$B$21,'RDS ee cont rates'!$E$21,IF(H187<='RDS ee cont rates'!$B$23,'RDS ee cont rates'!$E$23,IF(H187<='RDS ee cont rates'!$B$25,'RDS ee cont rates'!$E$25,IF(H187<='RDS ee cont rates'!$B$27,'RDS ee cont rates'!$E$27,IF(H187<='RDS ee cont rates'!$B$29,'RDS ee cont rates'!$E$29,IF(H187<='RDS ee cont rates'!$B$31,'RDS ee cont rates'!$E$31,'RDS ee cont rates'!$E$32)))))))) -> 0.11 | J187: 0 | K187: 0 | L187: 0
B188: 2014 | C188: 10 | D188: ='Interest and Tax'!D193 -> 463 | E188: 2014 - 15 | F188: 0 | G188: 0 | H188: 0 | I188: =IF(H188<='RDS ee cont rates'!$B$17,'RDS ee cont rates'!$E$17,IF(H188<='RDS ee cont rates'!$B$19,'RDS ee cont rates'!$E$19,IF(H188<='RDS ee cont rates'!$B$21,'RDS ee cont rates'!$E$21,IF(H188<='RDS ee cont rates'!$B$23,'RDS ee cont rates'!$E$23,IF(H188<='RDS ee cont rates'!$B$25,'RDS ee cont rates'!$E$25,IF(H188<='RDS ee cont rates'!$B$27,'RDS ee cont rates'!$E$27,IF(H188<='RDS ee cont rates'!$B$29,'RDS ee cont rates'!$E$29,IF(H188<='RDS ee cont rates'!$B$31,'RDS ee cont rates'!$E$31,'RDS ee cont rates'!$E$32)))))))) -> 0.11 | J188: 0 | K188: 0 | L188: 0
B189: 2014 | C189: 11 | D189: ='Interest and Tax'!D194 -> 464 | E189: 2014 - 15 | F189: 0 | G189: 0 | H189: 0 | I189: =IF(H189<='RDS ee cont rates'!$B$17,'RDS ee cont rates'!$E$17,IF(H189<='RDS ee cont rates'!$B$19,'RDS ee cont rates'!$E$19,IF(H189<='RDS ee cont rates'!$B$21,'RDS ee cont rates'!$E$21,IF(H189<='RDS ee cont rates'!$B$23,'RDS ee cont rates'!$E$23,IF(H189<='RDS ee cont rates'!$B$25,'RDS ee cont rates'!$E$25,IF(H189<='RDS ee cont rates'!$B$27,'RDS ee cont rates'!$E$27,IF(H189<='RDS ee cont rates'!$B$29,'RDS ee cont rates'!$E$29,IF(H189<='RDS ee cont rates'!$B$31,'RDS ee cont rates'!$E$31,'RDS ee cont rates'!$E$32)))))))) -> 0.11 | J189: 0 | K189: 0 | L189: 0
B190: 2014 | C190: 12 | D190: ='Interest and Tax'!D195 -> 465 | E190: 2014 - 15 | F190: 0 | G190: 0 | H190: 0 | I190: =IF(H190<='RDS ee cont rates'!$B$17,'RDS ee cont rates'!$E$17,IF(H190<='RDS ee cont rates'!$B$19,'RDS ee cont rates'!$E$19,IF(H190<='RDS ee cont rates'!$B$21,'RDS ee cont rates'!$E$21,IF(H190<='RDS ee cont rates'!$B$23,'RDS ee cont rates'!$E$23,IF(H190<='RDS ee cont rates'!$B$25,'RDS ee cont rates'!$E$25,IF(H190<='RDS ee cont rates'!$B$27,'RDS ee cont rates'!$E$27,IF(H190<='RDS ee cont rates'!$B$29,'RDS ee cont rates'!$E$29,IF(H190<='RDS ee cont rates'!$B$31,'RDS ee cont rates'!$E$31,'RDS ee cont rates'!$E$32)))))))) -> 0.11 | J190: 0 | K190: 0 | L190: 0
B191: 2015 | C191: 1 | D191: ='Interest and Tax'!D196 -> 466 | E191: 2014 - 15 | F191: 0 | G191: 0 | H191: 0 | I191: =IF(H191<='RDS ee cont rates'!$B$17,'RDS ee cont rates'!$E$17,IF(H191<='RDS ee cont rates'!$B$19,'RDS ee cont rates'!$E$19,IF(H191<='RDS ee cont rates'!$B$21,'RDS ee cont rates'!$E$21,IF(H191<='RDS ee cont rates'!$B$23,'RDS ee cont rates'!$E$23,IF(H191<='RDS ee cont rates'!$B$25,'RDS ee cont rates'!$E$25,IF(H191<='RDS ee cont rates'!$B$27,'RDS ee cont rates'!$E$27,IF(H191<='RDS ee cont rates'!$B$29,'RDS ee cont rates'!$E$29,IF(H191<='RDS ee cont rates'!$B$31,'RDS ee cont rates'!$E$31,'RDS ee cont rates'!$E$32)))))))) -> 0.11 | J191: 0 | K191: 0 | L191: 0
B192: 2015 | C192: 2 | D192: ='Interest and Tax'!D197 -> 467 | E192: 2014 - 15 | F192: 0 | G192: 0 | H192: 0 | I192: =IF(H192<='RDS ee cont rates'!$B$17,'RDS ee cont rates'!$E$17,IF(H192<='RDS ee cont rates'!$B$19,'RDS ee cont rates'!$E$19,IF(H192<='RDS ee cont rates'!$B$21,'RDS ee cont rates'!$E$21,IF(H192<='RDS ee cont rates'!$B$23,'RDS ee cont rates'!$E$23,IF(H192<='RDS ee cont rates'!$B$25,'RDS ee cont rates'!$E$25,IF(H192<='RDS ee cont rates'!$B$27,'RDS ee cont rates'!$E$27,IF(H192<='RDS ee cont rates'!$B$29,'RDS ee cont rates'!$E$29,IF(H192<='RDS ee cont rates'!$B$31,'RDS ee cont rates'!$E$31,'RDS ee cont rates'!$E$32)))))))) -> 0.11 | J192: 0 | K192: 0 | L192: 0
B193: 2015 | C193: 3 | D193: ='Interest and Tax'!D198 -> 468 | E193: 2014 - 15 | F193: 0 | G193: 0 | H193: 0 | I193: =IF(H193<='RDS ee cont rates'!$B$17,'RDS ee cont rates'!$E$17,IF(H193<='RDS ee cont rates'!$B$19,'RDS ee cont rates'!$E$19,IF(H193<='RDS ee cont rates'!$B$21,'RDS ee cont rates'!$E$21,IF(H193<='RDS ee cont rates'!$B$23,'RDS ee cont rates'!$E$23,IF(H193<='RDS ee cont rates'!$B$25,'RDS ee cont rates'!$E$25,IF(H193<='RDS ee cont rates'!$B$27,'RDS ee cont rates'!$E$27,IF(H193<='RDS ee cont rates'!$B$29,'RDS ee cont rates'!$E$29,IF(H193<='RDS ee cont rates'!$B$31,'RDS ee cont rates'!$E$31,'RDS ee cont rates'!$E$32)))))))) -> 0.11 | J193: 0 | K193: 0 | L193: 0
B194: 2015 | C194: 4 | D194: ='Interest and Tax'!D199 -> 469 | E194: 2015 - 16 | F194: =IF(AND(Mod1_RDSMSPStartDate<=DATE(B194,C194+1,1)-1,Mod1_RDSMSPEndDate>=DATE(B194,C194,1)),1,0) -> 0 | G194: =F194*IF(ISERROR(VLOOKUP(E194,Mod1_RDSPayDetails,2,FALSE)/HLOOKUP(E194,Mod1_RDSQualfMonths,2,FALSE)),0,VLOOKUP(E194,Mod1_RDSPayDetails,2,FALSE)/HLOOKUP(E194,Mod1_RDSQualfMonths,2,FALSE)) -> 0 | H194: 0 | I194: =IF(H194<='RDS ee cont rates'!$B$18,'RDS ee cont rates'!$F$18,IF(H194<='RDS ee cont rates'!$B$20,'RDS ee cont rates'!$F$20,IF(H194<='RDS ee cont rates'!$B$22,'RDS ee cont rates'!$F$22,IF(H194<='RDS ee cont rates'!$B$24,'RDS ee cont rates'!$F$24,IF(H194<='RDS ee cont rates'!$B$26,'RDS ee cont rates'!$F$26,IF(H194<='RDS ee cont rates'!$B$28,'RDS ee cont rates'!$F$28,IF(H194<='RDS ee cont rates'!$B$30,'RDS ee cont rates'!$F$30,IF(H194<='RDS ee cont rates'!$B$32,'RDS ee cont rates'!$F$32,'RDS ee cont rates'!$F$33)))))))) -> 0.11 | J194: =G194*I194 -> 0 | K194: =IF(ISERROR(F194*G194*12/H194),0,F194*G194*12/H194) -> 0 | L194: =IF(AND(F195=0,F194>0),1,0) -> 0 | M194: Note change in formulae used from this point on for cont rate column (7 )
B195: 2015 | C195: 5 | D195: ='Interest and Tax'!D200 -> 470 | E195: 2015 - 16 | F195: =IF(AND(Mod1_RDSMSPStartDate<=DATE(B195,C195+1,1)-1,Mod1_RDSMSPEndDate>=DATE(B195,C195,1)),1,0) -> 0 | G195: =F195*IF(ISERROR(VLOOKUP(E195,Mod1_RDSPayDetails,2,FALSE)/HLOOKUP(E195,Mod1_RDSQualfMonths,2,FALSE)),0,VLOOKUP(E195,Mod1_RDSPayDetails,2,FALSE)/HLOOKUP(E195,Mod1_RDSQualfMonths,2,FALSE)) -> 0 | H195: 0 | I195: =IF(H195<='RDS ee cont rates'!$B$18,'RDS ee cont rates'!$F$18,IF(H195<='RDS ee cont rates'!$B$20,'RDS ee cont rates'!$F$20,IF(H195<='RDS ee cont rates'!$B$22,'RDS ee cont rates'!$F$22,IF(H195<='RDS ee cont rates'!$B$24,'RDS ee cont rates'!$F$24,IF(H195<='RDS ee cont rates'!$B$26,'RDS ee cont rates'!$F$26,IF(H195<='RDS ee cont rates'!$B$28,'RDS ee cont rates'!$F$28,IF(H195<='RDS ee cont rates'!$B$30,'RDS ee cont rates'!$F$30,IF(H195<='RDS ee cont rates'!$B$32,'RDS ee cont rates'!$F$32,'RDS ee cont rates'!$F$33)))))))) -> 0.11 | J195: =G195*I195 -> 0 | K195: =IF(ISERROR(F195*G195*12/H195),0,F195*G195*12/H195) -> 0 | L195: =IF(AND(F196=0,F195>0),1,0) -> 0
B196: 2015 | C196: 6 | D196: ='Interest and Tax'!D201 -> 471 | E196: 2015 - 16 | F196: 0 | G196: 0 | H196: 0 | I196: =IF(H196<='RDS ee cont rates'!$B$18,'RDS ee cont rates'!$F$18,IF(H196<='RDS ee cont rates'!$B$20,'RDS ee cont rates'!$F$20,IF(H196<='RDS ee cont rates'!$B$22,'RDS ee cont rates'!$F$22,IF(H196<='RDS ee cont rates'!$B$24,'RDS ee cont rates'!$F$24,IF(H196<='RDS ee cont rates'!$B$26,'RDS ee cont rates'!$F$26,IF(H196<='RDS ee cont rates'!$B$28,'RDS ee cont rates'!$F$28,IF(H196<='RDS ee cont rates'!$B$30,'RDS ee cont rates'!$F$30,IF(H196<='RDS ee cont rates'!$B$32,'RDS ee cont rates'!$F$32,'RDS ee cont rates'!$F$33)))))))) -> 0.11 | J196: 0 | K196: 0 | L196: 0
B197: 2015 | C197: 7 | D197: ='Interest and Tax'!D202 -> 472 | E197: 2015 - 16 | F197: 0 | G197: 0 | H197: 0 | I197: =IF(H197<='RDS ee cont rates'!$B$18,'RDS ee cont rates'!$F$18,IF(H197<='RDS ee cont rates'!$B$20,'RDS ee cont rates'!$F$20,IF(H197<='RDS ee cont rates'!$B$22,'RDS ee cont rates'!$F$22,IF(H197<='RDS ee cont rates'!$B$24,'RDS ee cont rates'!$F$24,IF(H197<='RDS ee cont rates'!$B$26,'RDS ee cont rates'!$F$26,IF(H197<='RDS ee cont rates'!$B$28,'RDS ee cont rates'!$F$28,IF(H197<='RDS ee cont rates'!$B$30,'RDS ee cont rates'!$F$30,IF(H197<='RDS ee cont rates'!$B$32,'RDS ee cont rates'!$F$32,'RDS ee cont rates'!$F$33)))))))) -> 0.11 | J197: 0 | K197: 0 | L197: 0
B198: 2015 | C198: 8 | D198: ='Interest and Tax'!D203 -> 473 | E198: 2015 - 16 | F198: 0 | G198: 0 | H198: 0 | I198: =IF(H198<='RDS ee cont rates'!$B$18,'RDS ee cont rates'!$F$18,IF(H198<='RDS ee cont rates'!$B$20,'RDS ee cont rates'!$F$20,IF(H198<='RDS ee cont rates'!$B$22,'RDS ee cont rates'!$F$22,IF(H198<='RDS ee cont rates'!$B$24,'RDS ee cont rates'!$F$24,IF(H198<='RDS ee cont rates'!$B$26,'RDS ee cont rates'!$F$26,IF(H198<='RDS ee cont rates'!$B$28,'RDS ee cont rates'!$F$28,IF(H198<='RDS ee cont rates'!$B$30,'RDS ee cont rates'!$F$30,IF(H198<='RDS ee cont rates'!$B$32,'RDS ee cont rates'!$F$32,'RDS ee cont rates'!$F$33)))))))) -> 0.11 | J198: 0 | K198: 0 | L198: 0
B199: 2015 | C199: 9 | D199: ='Interest and Tax'!D204 -> 474 | E199: 2015 - 16 | F199: 0 | G199: 0 | H199: 0 | I199: =IF(H199<='RDS ee cont rates'!$B$18,'RDS ee cont rates'!$F$18,IF(H199<='RDS ee cont rates'!$B$20,'RDS ee cont rates'!$F$20,IF(H199<='RDS ee cont rates'!$B$22,'RDS ee cont rates'!$F$22,IF(H199<='RDS ee cont rates'!$B$24,'RDS ee cont rates'!$F$24,IF(H199<='RDS ee cont rates'!$B$26,'RDS ee cont rates'!$F$26,IF(H199<='RDS ee cont rates'!$B$28,'RDS ee cont rates'!$F$28,IF(H199<='RDS ee cont rates'!$B$30,'RDS ee cont rates'!$F$30,IF(H199<='RDS ee cont rates'!$B$32,'RDS ee cont rates'!$F$32,'RDS ee cont rates'!$F$33)))))))) -> 0.11 | J199: 0 | K199: 0 | L199: 0
B200: 2015 | C200: 10 | D200: ='Interest and Tax'!D205 -> 475 | E200: 2015 - 16 | F200: 0 | G200: 0 | H200: 0 | I200: =IF(H200<='RDS ee cont rates'!$B$18,'RDS ee cont rates'!$F$18,IF(H200<='RDS ee cont rates'!$B$20,'RDS ee cont rates'!$F$20,IF(H200<='RDS ee cont rates'!$B$22,'RDS ee cont rates'!$F$22,IF(H200<='RDS ee cont rates'!$B$24,'RDS ee cont rates'!$F$24,IF(H200<='RDS ee cont rates'!$B$26,'RDS ee cont rates'!$F$26,IF(H200<='RDS ee cont rates'!$B$28,'RDS ee cont rates'!$F$28,IF(H200<='RDS ee cont rates'!$B$30,'RDS ee cont rates'!$F$30,IF(H200<='RDS ee cont rates'!$B$32,'RDS ee cont rates'!$F$32,'RDS ee cont rates'!$F$33)))))))) -> 0.11 | J200: 0 | K200: 0 | L200: 0
B201: 2015 | C201: 11 | D201: ='Interest and Tax'!D206 -> 476 | E201: 2015 - 16 | F201: 0 | G201: 0 | H201: 0 | I201: =IF(H201<='RDS ee cont rates'!$B$18,'RDS ee cont rates'!$F$18,IF(H201<='RDS ee cont rates'!$B$20,'RDS ee cont rates'!$F$20,IF(H201<='RDS ee cont rates'!$B$22,'RDS ee cont rates'!$F$22,IF(H201<='RDS ee cont rates'!$B$24,'RDS ee cont rates'!$F$24,IF(H201<='RDS ee cont rates'!$B$26,'RDS ee cont rates'!$F$26,IF(H201<='RDS ee cont rates'!$B$28,'RDS ee cont rates'!$F$28,IF(H201<='RDS ee cont rates'!$B$30,'RDS ee cont rates'!$F$30,IF(H201<='RDS ee cont rates'!$B$32,'RDS ee cont rates'!$F$32,'RDS ee cont rates'!$F$33)))))))) -> 0.11 | J201: 0 | K201: 0 | L201: 0
B202: 2015 | C202: 12 | D202: ='Interest and Tax'!D207 -> 477 | E202: 2015 - 16 | F202: =IF(AND(Mod1_RDSMSPStartDate<=DATE(B202,C202+1,1)-1,Mod1_RDSMSPEndDate>=DATE(B202,C202,1)),1,0) -> 0 | G202: =F202*IF(ISERROR(VLOOKUP(E202,Mod1_RDSPayDetails,2,FALSE)/HLOOKUP(E202,Mod1_RDSQualfMonths,2,FALSE)),0,VLOOKUP(E202,Mod1_RDSPayDetails,2,FALSE)/HLOOKUP(E202,Mod1_RDSQualfMonths,2,FALSE)) -> 0 | H202: 0 | I202: =IF(H202<='RDS ee cont rates'!$B$18,'RDS ee cont rates'!$F$18,IF(H202<='RDS ee cont rates'!$B$20,'RDS ee cont rates'!$F$20,IF(H202<='RDS ee cont rates'!$B$22,'RDS ee cont rates'!$F$22,IF(H202<='RDS ee cont rates'!$B$24,'RDS ee cont rates'!$F$24,IF(H202<='RDS ee cont rates'!$B$26,'RDS ee cont rates'!$F$26,IF(H202<='RDS ee cont rates'!$B$28,'RDS ee cont rates'!$F$28,IF(H202<='RDS ee cont rates'!$B$30,'RDS ee cont rates'!$F$30,IF(H202<='RDS ee cont rates'!$B$32,'RDS ee cont rates'!$F$32,'RDS ee cont rates'!$F$33)))))))) -> 0.11 | J202: =G202*I202 -> 0 | K202: 0 | L202: 0

Sheet Mod(1A) - MSP LS conts calc (hidden)
A1: Government Actuary's Department
A2: =IF(title="> Enter workbook title here","Enter workbook title in Cover sheet",title) -> Preston Model for RDS settlement
A3: Module 1A - LS value of Mandatory special period pension contributions to be paid for reinstatement
A4: =CELL("filename",A1) -> C:\Users\lroberts\AppData\Local\Microsoft\Windows\Temporary Internet Files\Content.Outlook\TFL3ASN3\[Retained Firefighters Pension Settlement Calculator Sep 2015 v1_0.xlsm]Mod(1A) - MSP LS conts calc
A5: This sheet calculates the lump sum value of the backdated Limited period contributions that need to be paid to reinstate service in the modified (RDS) scheme
A6: Adapted from | B6: O:\A3 clients\Fire Pension Scheme\Retained Firefighters\Factors\Preston model\TPS model\Preston_TPS_June 2013 (unprotected).xls
A7: Calculations set up assuming contribution payments made in arrears.
B9: Month | C9: Year | D9: Month number | E9: Tax Rate
A10: First month of Limited period | B10: =MONTH(Mod1_RDSMSPStartDate) -> 1 | C10: =YEAR(Mod1_RDSMSPStartDate) -> 1900 | D10: =(C10-1976)*12+B10-3 -> -914 | E10: =VLOOKUP(D10,IntTax_LookupTable,3) -> 
A11: Last month of Limited period | B11: =MONTH(Mod1_RDSMSPEndDate) -> 1 | C11: =YEAR(Mod1_RDSMSPEndDate) -> 1900 | D11: =(C11-1976)*12+B11-3 -> -914 | E11: =VLOOKUP(D11,IntTax_LookupTable,3) -> 
A12: Month at contribution calc date | B12: =MONTH(Gen_CalcDate) -> 1 | C12: =YEAR(Gen_CalcDate) -> 1900 | D12: =(C12-1976)*12+B12-3 -> -914 | E12: =VLOOKUP(D12,IntTax_LookupTable,3) ->  | H12: =VLOOKUP(D12,IntTax_LookupTable,2,FALSE) ->  | I12: Interest Index at payment date
H15: The interest index in the 'Interest and Tax' tab shows the value of the index on the last day of that particular month.
B17: Total contributions due (where no tax relief available) | H17: =F21*H12 ->  | J17: Assume that no tax relief available to member at payment date
B18: Tot conts excl interest: | H18: =SUM(C22:C416) -> 0 | J18: See e-mail from AM (DCLG) to SL/Fire on 05/11/2013 at 09:06
B19: Interest | H19: =Mod1A_RDSMSPContsDueLS-H18 ->  | J19: \\Gad-a3\a3data\A3 clients\Fire Pension Scheme\Retained Firefighters\Factors\Preston model\Reference documents\RDS Preston Model - Tax Relief RecdFromDCLG 05112013.msg
B20: Month | C20: Contributions due | D20: Interest Index | E20: Tax Rate
F21: =SUM(F22:F416) -> 
B22: =D10 -> -914 | C22: =IF(ISERROR(VLOOKUP(B22,Mod1_RDSEarnContTable,7,FALSE)),0,VLOOKUP(B22,Mod1_RDSEarnContTable,7,FALSE)) -> 0 | D22: =VLOOKUP(B22,IntTax_LookupTable,2,FALSE) ->  | E22: =VLOOKUP(B22,IntTax_LookupTable,3,FALSE) ->  | F22: =C22/D22 ->  | H22: <- interest index is at end of month, which is fine, as we assume payments are made in arrears.
B23: =IF(B22=0,0,IF(B22=$D$11,0,B22+1)) -> 0 | C23: 0 | D23: =VLOOKUP(B23,IntTax_LookupTable,2,FALSE) -> 1 | E23: 1 | F23: =C23/D23 -> 0
B24: 0 | C24: 0 | D24: 1 | E24: 1 | F24: 0
B25: 0 | C25: 0 | D25: 1 | E25: 1 | F25: 0
B26: 0 | C26: 0 | D26: 1 | E26: 1 | F26: 0
B27: 0 | C27: 0 | D27: 1 | E27: 1 | F27: 0
B28: 0 | C28: 0 | D28: 1 | E28: 1 | F28: 0
B29: =IF(B28=0,0,IF(B28=$D$11,0,B28+1)) -> 0 | C29: 0 | D29: 1 | E29: 1 | F29: 0
B30: 0 | C30: 0 | D30: 1 | E30: 1 | F30: 0
B31: 0 | C31: 0 | D31: 1 | E31: 1 | F31: 0
B32: 0 | C32: 0 | D32: 1 | E32: 1 | F32: 0
B33: 0 | C33: 0 | D33: 1 | E33: 1 | F33: 0
B34: 0 | C34: 0 | D34: 1 | E34: 1 | F34: 0
B35: 0 | C35: 0 | D35: 1 | E35: 1 | F35: 0
B36: 0 | C36: 0 | D36: 1 | E36: 1 | F36: 0
B37: 0 | C37: 0 | D37: 1 | E37: 1 | F37: 0
B38: 0 | C38: 0 | D38: 1 | E38: 1 | F38: 0
B39: 0 | C39: 0 | D39: 1 | E39: 1 | F39: 0
B40: 0 | C40: 0 | D40: 1 | E40: 1 | F40: 0
B41: 0 | C41: 0 | D41: 1 | E41: 1 | F41: 0
B42: 0 | C42: 0 | D42: 1 | E42: 1 | F42: 0
B43: 0 | C43: 0 | D43: 1 | E43: 1 | F43: 0
B44: 0 | C44: 0 | D44: 1 | E44: 1 | F44: 0
B45: 0 | C45: 0 | D45: 1 | E45: 1 | F45: 0
B46: 0 | C46: 0 | D46: 1 | E46: 1 | F46: 0
B47: 0 | C47: 0 | D47: 1 | E47: 1 | F47: 0
B48: 0 | C48: 0 | D48: 1 | E48: 1 | F48: 0
B49: 0 | C49: 0 | D49: 1 | E49: 1 | F49: 0
B50: 0 | C50: 0 | D50: 1 | E50: 1 | F50: 0
B51: 0 | C51: 0 | D51: 1 | E51: 1 | F51: 0
B52: 0 | C52: 0 | D52: 1 | E52: 1 | F52: 0
B53: 0 | C53: 0 | D53: 1 | E53: 1 | F53: 0
B54: 0 | C54: 0 | D54: 1 | E54: 1 | F54: 0
B55: 0 | C55: 0 | D55: 1 | E55: 1 | F55: 0
B56: 0 | C56: 0 | D56: 1 | E56: 1 | F56: 0
B57: 0 | C57: 0 | D57: 1 | E57: 1 | F57: 0
B58: 0 | C58: 0 | D58: 1 | E58: 1 | F58: 0
B59: 0 | C59: 0 | D59: 1 | E59: 1 | F59: 0
B60: 0 | C60: 0 | D60: 1 | E60: 1 | F60: 0
B61: 0 | C61: 0 | D61: 1 | E61: 1 | F61: 0
B62: 0 | C62: 0 | D62: 1 | E62: 1 | F62: 0
B63: 0 | C63: 0 | D63: 1 | E63: 1 | F63: 0
B64: 0 | C64: 0 | D64: 1 | E64: 1 | F64: 0
B65: 0 | C65: 0 | D65: 1 | E65: 1 | F65: 0
B66: 0 | C66: 0 | D66: 1 | E66: 1 | F66: 0
B67: 0 | C67: 0 | D67: 1 | E67: 1 | F67: 0
B68: 0 | C68: 0 | D68: 1 | E68: 1 | F68: 0
B69: 0 | C69: 0 | D69: 1 | E69: 1 | F69: 0
B70: 0 | C70: 0 | D70: 1 | E70: 1 | F70: 0
B71: 0 | C71: 0 | D71: 1 | E71: 1 | F71: 0
B72: 0 | C72: 0 | D72: 1 | E72: 1 | F72: 0
B73: 0 | C73: 0 | D73: 1 | E73: 1 | F73: 0
B74: 0 | C74: 0 | D74: 1 | E74: 1 | F74: 0
B75: 0 | C75: 0 | D75: 1 | E75: 1 | F75: 0
B76: 0 | C76: 0 | D76: 1 | E76: 1 | F76: 0
B77: 0 | C77: 0 | D77: 1 | E77: 1 | F77: 0
B78: 0 | C78: 0 | D78: 1 | E78: 1 | F78: 0
B79: 0 | C79: 0 | D79: 1 | E79: 1 | F79: 0
B80: 0 | C80: 0 | D80: 1 | E80: 1 | F80: 0
B81: 0 | C81: 0 | D81: 1 | E81: 1 | F81: 0
B82: 0 | C82: 0 | D82: 1 | E82: 1 | F82: 0
B83: 0 | C83: 0 | D83: 1 | E83: 1 | F83: 0
B84: 0 | C84: 0 | D84: 1 | E84: 1 | F84: 0
B85: 0 | C85: 0 | D85: 1 | E85: 1 | F85: 0
B86: 0 | C86: =IF(ISERROR(VLOOKUP(B86,Mod1_RDSEarnContTable,7,FALSE)),0,VLOOKUP(B86,Mod1_RDSEarnContTable,7,FALSE)) -> 0 | D86: =VLOOKUP(B86,IntTax_LookupTable,2,FALSE) -> 1 | E86: =VLOOKUP(B86,IntTax_LookupTable,3,FALSE) -> 1 | F86: 0
B87: 0 | C87: 0 | D87: 1 | E87: 1 | F87: =C87/D87 -> 0
B88: 0 | C88: 0 | D88: 1 | E88: 1 | F88: 0
B89: 0 | C89: 0 | D89: 1 | E89: 1 | F89: 0
B90: 0 | C90: 0 | D90: 1 | E90: 1 | F90: 0
B91: 0 | C91: 0 | D91: 1 | E91: 1 | F91: 0
B92: 0 | C92: 0 | D92: 1 | E92: 1 | F92: 0
B93: =IF(B92=0,0,IF(B92=$D$11,0,B92+1)) -> 0 | C93: 0 | D93: 1 | E93: 1 | F93: 0
B94: 0 | C94: 0 | D94: 1 | E94: 1 | F94: 0
B95: 0 | C95: 0 | D95: 1 | E95: 1 | F95: 0
B96: 0 | C96: 0 | D96: 1 | E96: 1 | F96: 0
B97: 0 | C97: 0 | D97: 1 | E97: 1 | F97: 0
B98: 0 | C98: 0 | D98: 1 | E98: 1 | F98: 0
B99: 0 | C99: 0 | D99: 1 | E99: 1 | F99: 0
B100: 0 | C100: 0 | D100: 1 | E100: 1 | F100: 0
B101: 0 | C101: 0 | D101: 1 | E101: 1 | F101: 0
B102: 0 | C102: 0 | D102: 1 | E102: 1 | F102: 0
B103: 0 | C103: 0 | D103: 1 | E103: 1 | F103: 0
B104: 0 | C104: 0 | D104: 1 | E104: 1 | F104: 0
B105: 0 | C105: 0 | D105: 1 | E105: 1 | F105: 0
B106: 0 | C106: 0 | D106: 1 | E106: 1 | F106: 0
B107: 0 | C107: 0 | D107: 1 | E107: 1 | F107: 0
B108: 0 | C108: 0 | D108: 1 | E108: 1 | F108: 0
B109: 0 | C109: 0 | D109: 1 | E109: 1 | F109: 0
B110: 0 | C110: 0 | D110: 1 | E110: 1 | F110: 0
B111: 0 | C111: 0 | D111: 1 | E111: 1 | F111: 0
B112: 0 | C112: 0 | D112: 1 | E112: 1 | F112: 0
B113: 0 | C113: 0 | D113: 1 | E113: 1 | F113: 0
B114: 0 | C114: 0 | D114: 1 | E114: 1 | F114: 0
B115: 0 | C115: 0 | D115: 1 | E115: 1 | F115: 0
B116: 0 | C116: 0 | D116: 1 | E116: 1 | F116: 0
B117: 0 | C117: 0 | D117: 1 | E117: 1 | F117: 0
B118: 0 | C118: 0 | D118: 1 | E118: 1 | F118: 0
B119: 0 | C119: 0 | D119: 1 | E119: 1 | F119: 0
B120: 0 | C120: 0 | D120: 1 | E120: 1 | F120: 0
B121: 0 | C121: 0 | D121: 1 | E121: 1 | F121: 0
B122: 0 | C122: 0 | D122: 1 | E122: 1 | F122: 0
B123: 0 | C123: 0 | D123: 1 | E123: 1 | F123: 0
B124: 0 | C124: 0 | D124: 1 | E124: 1 | F124: 0
B125: 0 | C125: 0 | D125: 1 | E125: 1 | F125: 0
B126: 0 | C126: 0 | D126: 1 | E126: 1 | F126: 0
B127: 0 | C127: 0 | D127: 1 | E127: 1 | F127: 0
B128: 0 | C128: 0 | D128: 1 | E128: 1 | F128: 0
B129: 0 | C129: 0 | D129: 1 | E129: 1 | F129: 0
B130: 0 | C130: 0 | D130: 1 | E130: 1 | F130: 0
B131: 0 | C131: 0 | D131: 1 | E131: 1 | F131: 0
B132: 0 | C132: 0 | D132: 1 | E132: 1 | F132: 0
B133: 0 | C133: 0 | D133: 1 | E133: 1 | F133: 0
B134: 0 | C134: 0 | D134: 1 | E134: 1 | F134: 0
B135: 0 | C135: 0 | D135: 1 | E135: 1 | F135: 0
B136: 0 | C136: 0 | D136: 1 | E136: 1 | F136: 0
B137: 0 | C137: 0 | D137: 1 | E137: 1 | F137: 0
B138: 0 | C138: 0 | D138: 1 | E138: 1 | F138: 0
B139: 0 | C139: 0 | D139: 1 | E139: 1 | F139: 0
B140: 0 | C140: 0 | D140: 1 | E140: 1 | F140: 0
B141: 0 | C141: 0 | D141: 1 | E141: 1 | F141: 0
B142: 0 | C142: 0 | D142: 1 | E142: 1 | F142: 0
B143: 0 | C143: 0 | D143: 1 | E143: 1 | F143: 0
B144: 0 | C144: 0 | D144: 1 | E144: 1 | F144: 0
B145: 0 | C145: 0 | D145: 1 | E145: 1 | F145: 0
B146: 0 | C146: 0 | D146: 1 | E146: 1 | F146: 0
B147: 0 | C147: 0 | D147: 1 | E147: 1 | F147: 0
B148: 0 | C148: 0 | D148: 1 | E148: 1 | F148: 0
B149: 0 | C149: 0 | D149: 1 | E149: 1 | F149: 0
B150: 0 | C150: =IF(ISERROR(VLOOKUP(B150,Mod1_RDSEarnContTable,7,FALSE)),0,VLOOKUP(B150,Mod1_RDSEarnContTable,7,FALSE)) -> 0 | D150: =VLOOKUP(B150,IntTax_LookupTable,2,FALSE) -> 1 | E150: =VLOOKUP(B150,IntTax_LookupTable,3,FALSE) -> 1 | F150: 0
B151: 0 | C151: 0 | D151: 1 | E151: 1 | F151: =C151/D151 -> 0
B152: 0 | C152: 0 | D152: 1 | E152: 1 | F152: 0
B153: 0 | C153: 0 | D153: 1 | E153: 1 | F153: 0
B154: 0 | C154: 0 | D154: 1 | E154: 1 | F154: 0
B155: 0 | C155: 0 | D155: 1 | E155: 1 | F155: 0
B156: 0 | C156: 0 | D156: 1 | E156: 1 | F156: 0
B157: =IF(B156=0,0,IF(B156=$D$11,0,B156+1)) -> 0 | C157: 0 | D157: 1 | E157: 1 | F157: 0
B158: 0 | C158: 0 | D158: 1 | E158: 1 | F158: 0
B159: 0 | C159: 0 | D159: 1 | E159: 1 | F159: 0
B160: 0 | C160: 0 | D160: 1 | E160: 1 | F160: 0
B161: 0 | C161: 0 | D161: 1 | E161: 1 | F161: 0
B162: 0 | C162: 0 | D162: 1 | E162: 1 | F162: 0
B163: 0 | C163: 0 | D163: 1 | E163: 1 | F163: 0
B164: 0 | C164: 0 | D164: 1 | E164: 1 | F164: 0
B165: 0 | C165: 0 | D165: 1 | E165: 1 | F165: 0
B166: 0 | C166: 0 | D166: 1 | E166: 1 | F166: 0
B167: 0 | C167: 0 | D167: 1 | E167: 1 | F167: 0
B168: 0 | C168: 0 | D168: 1 | E168: 1 | F168: 0
B169: 0 | C169: 0 | D169: 1 | E169: 1 | F169: 0
B170: 0 | C170: 0 | D170: 1 | E170: 1 | F170: 0
B171: 0 | C171: 0 | D171: 1 | E171: 1 | F171: 0
B172: 0 | C172: 0 | D172: 1 | E172: 1 | F172: 0
B173: 0 | C173: 0 | D173: 1 | E173: 1 | F173: 0
B174: 0 | C174: 0 | D174: 1 | E174: 1 | F174: 0
B175: 0 | C175: 0 | D175: 1 | E175: 1 | F175: 0
B176: 0 | C176: 0 | D176: 1 | E176: 1 | F176: 0
B177: 0 | C177: 0 | D177: 1 | E177: 1 | F177: 0
B178: 0 | C178: 0 | D178: 1 | E178: 1 | F178: 0
B179: 0 | C179: 0 | D179: 1 | E179: 1 | F179: 0
B180: 0 | C180: 0 | D180: 1 | E180: 1 | F180: 0
B181: 0 | C181: 0 | D181: 1 | E181: 1 | F181: 0
B182: 0 | C182: 0 | D182: 1 | E182: 1 | F182: 0
B183: 0 | C183: 0 | D183: 1 | E183: 1 | F183: 0
B184: 0 | C184: 0 | D184: 1 | E184: 1 | F184: 0
B185: 0 | C185: 0 | D185: 1 | E185: 1 | F185: 0
B186: 0 | C186: 0 | D186: 1 | E186: 1 | F186: 0
B187: 0 | C187: 0 | D187: 1 | E187: 1 | F187: 0
B188: 0 | C188: 0 | D188: 1 | E188: 1 | F188: 0
B189: 0 | C189: 0 | D189: 1 | E189: 1 | F189: 0
B190: 0 | C190: 0 | D190: 1 | E190: 1 | F190: 0
B191: 0 | C191: 0 | D191: 1 | E191: 1 | F191: 0
B192: 0 | C192: 0 | D192: 1 | E192: 1 | F192: 0
B193: 0 | C193: 0 | D193: 1 | E193: 1 | F193: 0
B194: 0 | C194: 0 | D194: 1 | E194: 1 | F194: 0
B195: 0 | C195: 0 | D195: 1 | E195: 1 | F195: 0
B196: 0 | C196: 0 | D196: 1 | E196: 1 | F196: 0
B197: 0 | C197: 0 | D197: 1 | E197: 1 | F197: 0
B198: 0 | C198: 0 | D198: 1 | E198: 1 | F198: 0
B199: 0 | C199: =IF(ISERROR(VLOOKUP(B199,Mod1_RDSEarnContTable,7,FALSE)),0,VLOOKUP(B199,Mod1_RDSEarnContTable,7,FALSE)) -> 0 | D199: 1 | E199: 1 | F199: 0
B200: =IF(B199=0,0,IF(B199=$D$11,0,B199+1)) -> 0 | C200: 0 | D200: 1 | E200: 1 | F200: 0
B201: 0 | C201: 0 | D201: 1 | E201: 1 | F201: 0
B202: 0 | C202: 0 | D202: 1 | E202: 1 | F202: 0
B203: 0 | C203: 0 | D203: 1 | E203: 1 | F203: 0
B204: 0 | C204: 0 | D204: 1 | E204: 1 | F204: 0
... 212 more rows

Sheet Mod(1A) - MSP per conts calc (hidden)
A1: Government Actuary's Department
A2: =IF(title="> Enter workbook title here","Enter workbook title in Cover sheet",title) -> Preston Model for RDS settlement
A3: Module 1A- Value of periodic contributions required to reinstate RDS service during Mandatory special period
A4: =CELL("filename",A1) -> C:\Users\lroberts\AppData\Local\Microsoft\Windows\Temporary Internet Files\Content.Outlook\TFL3ASN3\[Retained Firefighters Pension Settlement Calculator Sep 2015 v1_0.xlsm]Mod(1A) - MSP per conts calc
A5: Active and Deferred members may elect to pay their outstanding contributions monthly, over 10 years. | I5: Only available for Active and Deferred members
A8: Date of Calculation | B8: =Gen_CalcDate -> 00:00:00 | C8: =YEAR(B8)&MONTH(B8) -> 19001
A10: Re-instatement period for payment of contributions (in years) | B10: 10 | H10: Required inputs
A11: Re-instatement period for payment of contributions (in months) | B11: =Mod1A_RDSMSPPerContPeriod*12 -> 120 | H11: Duration over which periodic contributions are to be spread
A14: Column to Look up in Factor Table | B14: =IF(Mod1A_RDSMSPPerContPeriod<=5,34,IF(Mod1A_RDSMSPPerContPeriod<=15,35,36)) -> 35
A15: Monthly Interest Rate | B15: =VLOOKUP(C8,IntTax_Table1,B14,FALSE) -> 
A16: v | B16: =1/(1+B15) ->  | H16: Outputs
A17: Annuity | B17: =(1-(B16^B11))/B15 ->  | H17: Date when first contribution payment is made
H18: Date when last contribution payment is to be made
A20: Assuming no tax relief
A21: Lump sum contribution | B21: =Mod1A_RDSMSPContsDueLS -> 
A22: Monthly contribution due | B22: =ROUND(B21/B17,2) ->  | C22: =B21/B17 -> 

Sheet Mod(1A) - MSP remaining LS calc (hidden)
A1: Government Actuary's Department
A2: =IF(title="> Enter workbook title here","Enter workbook title in Cover sheet",title) -> Preston Model for RDS settlement
A3: Module 1 - calculating the lump sum value of the mandatory special period periodic contributions that are yet to be paid to reinstate RDS service
A4: =CELL("filename",A1) -> C:\Users\lroberts\AppData\Local\Microsoft\Windows\Temporary Internet Files\Content.Outlook\TFL3ASN3\[Retained Firefighters Pension Settlement Calculator Sep 2015 v1_0.xlsm]Mod(1A) - MSP remaining LS calc
A5: The remaining LS payable by Active and Deferred members who do not complete 10 years of periodic contributions. | I5: Only available for Active and Deferred members
A7: Date of original calculation | B7: =Mod1A_RDSSetLSOrigCalcDate -> 00:00:00 | C7: =YEAR(B7)&MONTH(B7) -> 19001
A8: Date of first payment | B8: =Mod1A_RDSSetLSPerContStartDate -> 00:00:00 | C8: =YEAR(B8)&MONTH(B8) -> 19001
A9: Date of last payment | B9: =Mod1A_RDSSetLSPerContEndDate -> 00:00:00 | C9: =YEAR(B9)&MONTH(B9) -> 19001
A10: Term of repayments made | B10: =(B9-B8)/365.25 -> 0 | D10: <-Not used from Oct 2014 update onwards
A11: Years | B11: =ROUNDDOWN(B10,0) -> 0 | D11: <-Not used from Oct 2014 update onwards
A12: Months | B12: =ROUNDDOWN((B10-B11)*12,0) -> 0 | D12: <-Not used from Oct 2014 update onwards
A13: No. of months repaid | B13: =Mod1A_RDSSetLSInstalments -> 0
A14: No. of months outstanding | B14: =(Mod1A_RDSMSPPerContPeriod*12)-B13 -> 120
A16: Column to Look up in Factor Table | B16: 35 | C16: Hard coded as we need to look up column 35 in all cases | H16: ü
A17: Monthly Interest Rate | B17: =VLOOKUP(C7,IntTax_Table1,B16,FALSE) -> 
A18: v | B18: =1/(1+B17) -> 
A19: Annuity | B19: =(1-(B18^B14))/B17 -> 
A22: Outstanding contributions (assuming no tax relief)
A23: Lump sum contribution | B23: =B19*Mod1A_RDSSetLSPerContAmt -> 

Sheet Mod(2) - earnings & conts (hidden)
A1: Government Actuary's Department | W1: Take care if working on 'Contribution rate' column. The formulae used in column J changes annually from 4/2012
A2: =IF(title="> Enter workbook title here","Enter workbook title in Cover sheet",title) -> Preston Model for RDS settlement | R2: Split month calculation
A3: Module 2- breakdown of monthly earnings and contributions in the standard scheme (NFPS) paid by members
A4: =CELL("filename",A1) -> C:\Users\lroberts\AppData\Local\Microsoft\Windows\Temporary Internet Files\Content.Outlook\TFL3ASN3\[Retained Firefighters Pension Settlement Calculator Sep 2015 v1_0.xlsm]Mod(2) - earnings & conts | R4: Paying 2015 Contribution | S4: =Gen_2015SchContsFlag -> 0
R5: Month of transfer | S5: =MONTH(Gen_DoT2015Sch) -> 1
G6: Standard 06 Service being converted | R6: Day of transfer | S6: =DAY(Gen_DoT2015Sch) -> 0
F7: Service in period: | G7: =SUMPRODUCT(G15:G131,U15:U131)/12 -> 0 | R7: Days in month | S7: =VLOOKUP(S5,$X$30:$Y$41, 2, 0)*VLOOKUP(S5,$C$123:$H$131, 6, 0) -> 
F8: Years | G8: =ROUNDDOWN(G7,0) -> 0 | R8: NFPS proportion and rate | S8: =(S6-1)/S7 ->  | T8: =VLOOKUP($S$5, $C$123:$L$131, 9, 0) -> 
F9: Months | G9: =(G7-G8)*12 -> 0 | R9: 2015 Proportion and rate | S9: =1-S8 ->  | T9: =VLOOKUP($S$5, $C$123:$L$131, 10, 0) ->  | X9: Qualifying days in pension year
G10: =G8&IF(G8=1," year & "," years & ")&G9&IF(G9=1," month"," months") -> 0 years & 0 months | R10: Weighted Rate | S10: =(S8*T8)+(S9*T9) ->  | X10: 2000 - 01 | Y10: 2001 - 02 | Z10: 2002 - 03 | AA10: 2003 - 04 | AB10: 2004 - 05 | AC10: 2005 - 06 | AD10: 2006 - 07 | AE10: 2007 - 08 | AF10: 2008 - 09 | AG10: 2009 - 10 | AH10: 2010 - 11 | AI10: 2011 - 12 | AJ10: 2012 - 13 | AK10: 2013 - 14 | AL10: 2014 - 15 | AM10: 2015 - 16
R11: Average contribution rate year 2015/16 | S11: =SUMPRODUCT(H123:H131,N123:N131)/SUM(H123:H131) ->  | X11: =SUMIF($F$15:$F$131,X10,$H$15:$H$131) -> 0 | Y11: =SUMIF($F$15:$F$131,Y10,$H$15:$H$131) -> 0 | Z11: 0 | AA11: 0 | AB11: 0 | AC11: 0 | AD11: 25 | AE11: 0 | AF11: 0 | AG11: 0 | AH11: 0 | AI11: 0 | AJ11: 0 | AK11: 0 | AL11: 0 | AM11: 0
E13: 1 | F13: 2 | G13: 3 | H13: 4 | I13: 5 | J13: 6 | K13: 7 | L13: 8 | M13: 9 | N13: 10 | O13: 11 | P13: 12 | Q13: 13 | R13: 14 | S13: 15 | T13: 16
B14: Year | C14: Month | D14: Total no. of days in month | E14: Month No | F14: Tax/Pension year | G14: FLAG - date within NFPS membership period | H14: Percentage of month covered | I14: Actual monthly salary | J14: Reference pay | K14: NFPS (standard scheme) Contribution rate | L14: 2015 Contribution Rate | M14: Rate to use | N14: Rate | O14: Estimated monthly contribution paid (based on pay data) | P14: Actual monthly contribution paid | Q14: Contribution value to use in calcs (depending on option selected) | R14: RDS (special scheme) contribution rate | S14: RDS (special scheme) contributions required | T14: Difference required to be made up | U14: Part time proportion | V14: Final salary? | X14: Qualifying months in pension year
B15: 2006 | C15: 4 | D15: 30 | E15: ='Interest and Tax'!D91 -> 361 | F15: 2006 - 07 | G15: =IF(AND(Mod2_NFPSStartDate<=DATE(B15,C15+1,1)-1,Mod2_NFPSEndDate>=DATE(B15,C15,1)),1,0) -> 0 | H15: =IF(AND(YEAR(Mod2_NFPSStartDate)=B15,MONTH(Mod2_NFPSStartDate)=C15),(D15+1)-DAY(Mod2_NFPSStartDate),IF(AND(YEAR(Mod2_NFPSEndDate)=B15,MONTH(Mod2_NFPSEndDate)=C15),DAY(Mod2_NFPSEndDate)*G15,G15*D15)) -> 25 | I15: =G15*IF(ISERROR(VLOOKUP(F15,Mod2_NFPSPayContDetails,3,FALSE)/HLOOKUP(F15,Mod2_NFPSQualfMonths,2,FALSE)),0,VLOOKUP(F15,Mod2_NFPSPayContDetails,3,FALSE)/HLOOKUP(F15,Mod2_NFPSQualfMonths,2,FALSE)) -> 0 | J15: =VLOOKUP(F15,Mod2_NFPSPayContDetails,4,FALSE) -> 0 | K15: =Gen_NFPSFixedContRate -> 0.085 | L15: 0 | M15: NFPS | N15: =K15 -> 0.085 | O15: =I15*N15 -> 0 | P15: =G15*IF(ISERROR(VLOOKUP(F15,Mod2_NFPSPayContDetails,2,FALSE)/HLOOKUP(F15,Mod2_NFPSQualfMonths,2,FALSE)),0,VLOOKUP(F15,Mod2_NFPSPayContDetails,2,FALSE)/HLOOKUP(F15,Mod2_NFPSQualfMonths,2,FALSE)) -> 0 | Q15: =IF(Mod2_NFPSContDataType="Contributions",P15,IF(Mod2_NFPSContDataType="Pay data",O15,0)) -> 0 | R15: =Gen_RDSFixedContRate -> 0.11 | S15: =Q15*R15/N15 -> 0 | T15: =S15-Q15 -> 0 | U15: =IF(ISERROR(G15*I15*12/J15),0,G15*I15*12/J15) -> 0 | V15: =IF(AND(G16=0,G15=1),1,0) -> 0 | X15: 2000 - 01 | Y15: 2001 - 02 | Z15: 2002 - 03 | AA15: 2003 - 04 | AB15: 2004 - 05 | AC15: 2005 - 06 | AD15: 2006 - 07 | AE15: 2007 - 08 | AF15: 2008 - 09 | AG15: 2009 - 10 | AH15: 2010 - 11 | AI15: 2011 - 12 | AJ15: 2012 - 13 | AK15: 2013 - 14 | AL15: 2014 - 15 | AM15: 2015 - 16
B16: 2006 | C16: 5 | D16: 31 | E16: ='Interest and Tax'!D92 -> 362 | F16: 2006 - 07 | G16: 0 | H16: =IF(AND(YEAR(Mod2_NFPSStartDate)=B16,MONTH(Mod2_NFPSStartDate)=C16),(D16+1)-DAY(Mod2_NFPSStartDate),IF(AND(YEAR(Mod2_NFPSEndDate)=B16,MONTH(Mod2_NFPSEndDate)=C16),DAY(Mod2_NFPSEndDate)*G16,G16*D16)) -> 0 | I16: 0 | J16: 0 | K16: 0.085 | L16: 0 | M16: NFPS | N16: =K16 -> 0.085 | O16: 0 | P16: 0 | Q16: 0 | R16: 0.11 | S16: 0 | T16: =S16-Q16 -> 0 | U16: 0 | V16: 0 | X16: =SUMIF($F$15:$F$131,X15,$G$15:$G$131) -> 0 | Y16: =SUMIF($F$15:$F$131,Y15,$G$15:$G$131) -> 0 | Z16: 0 | AA16: 0 | AB16: 0 | AC16: 0 | AD16: 0 | AE16: 0 | AF16: 0 | AG16: 0 | AH16: 0 | AI16: 0 | AJ16: 0 | AK16: 0 | AL16: 0 | AM16: 0
B17: 2006 | C17: 6 | D17: 30 | E17: ='Interest and Tax'!D93 -> 363 | F17: 2006 - 07 | G17: 0 | H17: 0 | I17: 0 | J17: 0 | K17: 0.085 | L17: 0 | M17: NFPS | N17: =K17 -> 0.085 | O17: 0 | P17: 0 | Q17: 0 | R17: 0.11 | S17: 0 | T17: 0 | U17: 0 | V17: 0
B18: 2006 | C18: 7 | D18: 31 | E18: ='Interest and Tax'!D94 -> 364 | F18: 2006 - 07 | G18: 0 | H18: 0 | I18: 0 | J18: 0 | K18: 0.085 | L18: 0 | M18: NFPS | N18: 0.085 | O18: 0 | P18: 0 | Q18: 0 | R18: 0.11 | S18: 0 | T18: 0 | U18: 0 | V18: 0 | X18: For pensioner calcs (Scenarios 4 to 6)
B19: 2006 | C19: 8 | D19: 31 | E19: ='Interest and Tax'!D95 -> 365 | F19: 2006 - 07 | G19: 0 | H19: 0 | I19: 0 | J19: 0 | K19: 0.085 | L19: 0 | M19: NFPS | N19: 0.085 | O19: 0 | P19: 0 | Q19: 0 | R19: 0.11 | S19: 0 | T19: 0 | U19: 0 | V19: 0 | X19: Approx pension calc: | AC19: Calcs for members who became deferred
B20: 2006 | C20: 9 | D20: 30 | E20: ='Interest and Tax'!D96 -> 366 | F20: 2006 - 07 | G20: 0 | H20: 0 | I20: 0 | J20: 0 | K20: 0.085 | L20: 0 | M20: NFPS | N20: 0.085 | O20: 0 | P20: 0 | Q20: 0 | R20: 0.11 | S20: 0 | T20: 0 | U20: 0 | V20: 0 | AF20: years | AG20: months
B21: 2006 | C21: 10 | D21: 31 | E21: ='Interest and Tax'!D97 -> 367 | F21: 2006 - 07 | G21: 0 | H21: 0 | I21: 0 | J21: 0 | K21: 0.085 | L21: 0 | M21: NFPS | N21: 0.085 | O21: 0 | P21: 0 | Q21: 0 | R21: 0.11 | S21: 0 | T21: 0 | U21: 0 | V21: 0 | X21: Members age (at calc date) | Y21: =Interface!H37 ->  | AC21: Age on date of leaving NFPS | AF21: =DATEDIF(Gen_DoB,Mod2_NFPSEndDate,"y") -> 0 | AG21: =DATEDIF(Gen_DoB,Mod2_NFPSEndDate,"ym") -> 0
B22: 2006 | C22: 11 | D22: 30 | E22: ='Interest and Tax'!D98 -> 368 | F22: 2006 - 07 | G22: 0 | H22: 0 | I22: 0 | J22: 0 | K22: 0.085 | L22: 0 | M22: NFPS | N22: 0.085 | O22: 0 | P22: 0 | Q22: 0 | R22: 0.11 | S22: 0 | T22: 0 | U22: 0 | V22: 0 | X22: NRA 06 schm | Y22: 60 | AC22: Entered deferred status at ret? | AF22: =IF(AND(Interface!H161="Normal health",AF21<60),"Y","N") -> N | AI22: <- Set to "N" if IH retirement selected in Interface tab
B23: 2006 | C23: 12 | D23: 31 | E23: ='Interest and Tax'!D99 -> 369 | F23: 2006 - 07 | G23: 0 | H23: 0 | I23: 0 | J23: 0 | K23: 0.085 | L23: 0 | M23: NFPS | N23: 0.085 | O23: 0 | P23: 0 | Q23: 0 | R23: 0.11 | S23: 0 | T23: 0 | U23: 0 | V23: 0 | X23: Relevant service | Y23: =G7 -> 0
B24: 2007 | C24: 1 | D24: 31 | E24: ='Interest and Tax'!D100 -> 370 | F24: 2006 - 07 | G24: 0 | H24: 0 | I24: 0 | J24: 0 | K24: 0.085 | L24: 0 | M24: NFPS | N24: 0.085 | O24: 0 | P24: 0 | Q24: 0 | R24: 0.11 | S24: 0 | T24: 0 | U24: 0 | V24: 0 | X24: Final salary | Y24: =SUMPRODUCT(V15:V131,J15:J131) -> 0 | AC24: Age on date of pen commencement | AF24: =DATEDIF(Gen_DoB,Mod4_NFPSDoPC,"y") -> 0 | AG24: =DATEDIF(Gen_DoB,Mod4_NFPSDoPC,"ym") -> 0
B25: 2007 | C25: 2 | D25: 28 | E25: ='Interest and Tax'!D101 -> 371 | F25: 2006 - 07 | G25: 0 | H25: 0 | I25: 0 | J25: 0 | K25: 0.085 | L25: 0 | M25: NFPS | N25: 0.085 | O25: 0 | P25: 0 | Q25: 0 | R25: 0.11 | S25: 0 | T25: 0 | U25: 0 | V25: 0 | X25: Accrual rate | Y25: 60 | AC25: Actuarial reduction factor to apply | AF25: =IF(AF22="Y",VLOOKUP(AF24,'NFPS ER reduction factors'!$A$10:$M$19,AG24+2,FALSE),1) -> 1
B26: 2007 | C26: 3 | D26: 31 | E26: ='Interest and Tax'!D102 -> 372 | F26: 2006 - 07 | G26: 0 | H26: 0 | I26: 0 | J26: 0 | K26: 0.085 | L26: 0 | M26: NFPS | N26: 0.085 | O26: 0 | P26: 0 | Q26: 0 | R26: 0.11 | S26: 0 | T26: 0 | U26: 0 | V26: 0 | X26: Approx expected pension | Y26: =Y24*Y23/Y25 -> 0
B27: 2007 | C27: 4 | D27: 30 | E27: ='Interest and Tax'!D103 -> 373 | F27: 2007 - 08 | G27: 0 | H27: 0 | I27: 0 | J27: 0 | K27: 0.085 | L27: 0 | M27: NFPS | N27: 0.085 | O27: 0 | P27: 0 | Q27: 0 | R27: 0.11 | S27: 0 | T27: 0 | U27: 0 | V27: 0 | X27: Approx exp pen incl ER reduction if applicable | Y27: =IFERROR(Y26*AF25,"") -> 0 | Z27: =IFERROR(Y27/12,"") -> 0
B28: 2007 | C28: 5 | D28: 31 | E28: ='Interest and Tax'!D104 -> 374 | F28: 2007 - 08 | G28: 0 | H28: 0 | I28: 0 | J28: 0 | K28: 0.085 | L28: 0 | M28: NFPS | N28: 0.085 | O28: 0 | P28: 0 | Q28: 0 | R28: 0.11 | S28: 0 | T28: 0 | U28: 0 | V28: 0
B29: 2007 | C29: 6 | D29: 30 | E29: ='Interest and Tax'!D105 -> 375 | F29: 2007 - 08 | G29: 0 | H29: 0 | I29: 0 | J29: 0 | K29: 0.085 | L29: 0 | M29: NFPS | N29: 0.085 | O29: 0 | P29: 0 | Q29: 0 | R29: 0.11 | S29: 0 | T29: 0 | U29: 0 | V29: 0 | X29: Month | Y29: Days
B30: 2007 | C30: 7 | D30: 31 | E30: ='Interest and Tax'!D106 -> 376 | F30: 2007 - 08 | G30: 0 | H30: 0 | I30: 0 | J30: 0 | K30: 0.085 | L30: 0 | M30: NFPS | N30: 0.085 | O30: 0 | P30: 0 | Q30: 0 | R30: 0.11 | S30: 0 | T30: 0 | U30: 0 | V30: 0 | X30: 1 | Y30: 31
B31: 2007 | C31: 8 | D31: 31 | E31: ='Interest and Tax'!D107 -> 377 | F31: 2007 - 08 | G31: 0 | H31: 0 | I31: 0 | J31: 0 | K31: 0.085 | L31: 0 | M31: NFPS | N31: 0.085 | O31: 0 | P31: 0 | Q31: 0 | R31: 0.11 | S31: 0 | T31: 0 | U31: 0 | V31: 0 | X31: 2 | Y31: 28
B32: 2007 | C32: 9 | D32: 30 | E32: ='Interest and Tax'!D108 -> 378 | F32: 2007 - 08 | G32: 0 | H32: 0 | I32: 0 | J32: 0 | K32: 0.085 | L32: 0 | M32: NFPS | N32: 0.085 | O32: 0 | P32: 0 | Q32: 0 | R32: 0.11 | S32: 0 | T32: 0 | U32: 0 | V32: 0 | X32: 3 | Y32: 31
B33: 2007 | C33: 10 | D33: 31 | E33: ='Interest and Tax'!D109 -> 379 | F33: 2007 - 08 | G33: 0 | H33: 0 | I33: 0 | J33: 0 | K33: 0.085 | L33: 0 | M33: NFPS | N33: 0.085 | O33: 0 | P33: 0 | Q33: 0 | R33: 0.11 | S33: 0 | T33: 0 | U33: 0 | V33: 0 | X33: 4 | Y33: 30
B34: 2007 | C34: 11 | D34: 30 | E34: ='Interest and Tax'!D110 -> 380 | F34: 2007 - 08 | G34: 0 | H34: 0 | I34: 0 | J34: 0 | K34: 0.085 | L34: 0 | M34: NFPS | N34: 0.085 | O34: 0 | P34: 0 | Q34: 0 | R34: 0.11 | S34: 0 | T34: 0 | U34: 0 | V34: 0 | X34: 5 | Y34: 31
B35: 2007 | C35: 12 | D35: 31 | E35: ='Interest and Tax'!D111 -> 381 | F35: 2007 - 08 | G35: 0 | H35: 0 | I35: 0 | J35: 0 | K35: 0.085 | L35: 0 | M35: NFPS | N35: 0.085 | O35: 0 | P35: 0 | Q35: 0 | R35: 0.11 | S35: 0 | T35: 0 | U35: 0 | V35: 0 | X35: 6 | Y35: 30
B36: 2008 | C36: 1 | D36: 31 | E36: ='Interest and Tax'!D112 -> 382 | F36: 2007 - 08 | G36: 0 | H36: 0 | I36: 0 | J36: 0 | K36: 0.085 | L36: 0 | M36: NFPS | N36: 0.085 | O36: 0 | P36: 0 | Q36: 0 | R36: 0.11 | S36: 0 | T36: 0 | U36: 0 | V36: 0 | X36: 7 | Y36: 31
B37: 2008 | C37: 2 | D37: 29 | E37: ='Interest and Tax'!D113 -> 383 | F37: 2007 - 08 | G37: 0 | H37: 0 | I37: 0 | J37: 0 | K37: 0.085 | L37: 0 | M37: NFPS | N37: 0.085 | O37: 0 | P37: 0 | Q37: 0 | R37: 0.11 | S37: 0 | T37: 0 | U37: 0 | V37: 0 | X37: 8 | Y37: 31
B38: 2008 | C38: 3 | D38: 31 | E38: ='Interest and Tax'!D114 -> 384 | F38: 2007 - 08 | G38: 0 | H38: 0 | I38: 0 | J38: 0 | K38: 0.085 | L38: 0 | M38: NFPS | N38: 0.085 | O38: 0 | P38: 0 | Q38: 0 | R38: 0.11 | S38: 0 | T38: 0 | U38: 0 | V38: 0 | X38: 9 | Y38: 30
B39: 2008 | C39: 4 | D39: 30 | E39: ='Interest and Tax'!D115 -> 385 | F39: 2008 - 09 | G39: 0 | H39: 0 | I39: 0 | J39: 0 | K39: 0.085 | L39: 0 | M39: NFPS | N39: 0.085 | O39: 0 | P39: 0 | Q39: 0 | R39: 0.11 | S39: 0 | T39: 0 | U39: 0 | V39: 0 | X39: 10 | Y39: 31
B40: 2008 | C40: 5 | D40: 31 | E40: ='Interest and Tax'!D116 -> 386 | F40: 2008 - 09 | G40: 0 | H40: 0 | I40: 0 | J40: 0 | K40: 0.085 | L40: 0 | M40: NFPS | N40: 0.085 | O40: 0 | P40: 0 | Q40: 0 | R40: 0.11 | S40: 0 | T40: 0 | U40: 0 | V40: 0 | X40: 11 | Y40: 30
B41: 2008 | C41: 6 | D41: 30 | E41: ='Interest and Tax'!D117 -> 387 | F41: 2008 - 09 | G41: 0 | H41: 0 | I41: 0 | J41: 0 | K41: 0.085 | L41: 0 | M41: NFPS | N41: 0.085 | O41: 0 | P41: 0 | Q41: 0 | R41: 0.11 | S41: 0 | T41: 0 | U41: 0 | V41: 0 | X41: 12 | Y41: 31
B42: 2008 | C42: 7 | D42: 31 | E42: ='Interest and Tax'!D118 -> 388 | F42: 2008 - 09 | G42: 0 | H42: 0 | I42: 0 | J42: 0 | K42: 0.085 | L42: 0 | M42: NFPS | N42: 0.085 | O42: 0 | P42: 0 | Q42: 0 | R42: 0.11 | S42: 0 | T42: 0 | U42: 0 | V42: 0
B43: 2008 | C43: 8 | D43: 31 | E43: ='Interest and Tax'!D119 -> 389 | F43: 2008 - 09 | G43: 0 | H43: 0 | I43: 0 | J43: 0 | K43: 0.085 | L43: 0 | M43: NFPS | N43: 0.085 | O43: 0 | P43: 0 | Q43: 0 | R43: 0.11 | S43: 0 | T43: 0 | U43: 0 | V43: 0
B44: 2008 | C44: 9 | D44: 30 | E44: ='Interest and Tax'!D120 -> 390 | F44: 2008 - 09 | G44: 0 | H44: 0 | I44: 0 | J44: 0 | K44: 0.085 | L44: 0 | M44: NFPS | N44: 0.085 | O44: 0 | P44: 0 | Q44: 0 | R44: 0.11 | S44: 0 | T44: 0 | U44: 0 | V44: 0
B45: 2008 | C45: 10 | D45: 31 | E45: ='Interest and Tax'!D121 -> 391 | F45: 2008 - 09 | G45: 0 | H45: 0 | I45: 0 | J45: 0 | K45: 0.085 | L45: 0 | M45: NFPS | N45: 0.085 | O45: 0 | P45: 0 | Q45: 0 | R45: 0.11 | S45: 0 | T45: 0 | U45: 0 | V45: 0
B46: 2008 | C46: 11 | D46: 30 | E46: ='Interest and Tax'!D122 -> 392 | F46: 2008 - 09 | G46: 0 | H46: 0 | I46: 0 | J46: 0 | K46: 0.085 | L46: 0 | M46: NFPS | N46: 0.085 | O46: 0 | P46: 0 | Q46: 0 | R46: 0.11 | S46: 0 | T46: 0 | U46: 0 | V46: 0
B47: 2008 | C47: 12 | D47: 31 | E47: ='Interest and Tax'!D123 -> 393 | F47: 2008 - 09 | G47: =IF(AND(Mod2_NFPSStartDate<=DATE(B47,C47+1,1)-1,Mod2_NFPSEndDate>=DATE(B47,C47,1)),1,0) -> 0 | H47: =IF(AND(YEAR(Mod2_NFPSStartDate)=B47,MONTH(Mod2_NFPSStartDate)=C47),(D47+1)-DAY(Mod2_NFPSStartDate),IF(AND(YEAR(Mod2_NFPSEndDate)=B47,MONTH(Mod2_NFPSEndDate)=C47),DAY(Mod2_NFPSEndDate)*G47,G47*D47)) -> 0 | I47: =G47*IF(ISERROR(VLOOKUP(F47,Mod2_NFPSPayContDetails,3,FALSE)/HLOOKUP(F47,Mod2_NFPSQualfMonths,2,FALSE)),0,VLOOKUP(F47,Mod2_NFPSPayContDetails,3,FALSE)/HLOOKUP(F47,Mod2_NFPSQualfMonths,2,FALSE)) -> 0 | J47: =VLOOKUP(F47,Mod2_NFPSPayContDetails,4,FALSE) -> 0 | K47: =Gen_NFPSFixedContRate -> 0.085 | L47: 0 | M47: NFPS | N47: 0.085 | O47: =I47*N47 -> 0 | P47: =G47*IF(ISERROR(VLOOKUP(F47,Mod2_NFPSPayContDetails,2,FALSE)/HLOOKUP(F47,Mod2_NFPSQualfMonths,2,FALSE)),0,VLOOKUP(F47,Mod2_NFPSPayContDetails,2,FALSE)/HLOOKUP(F47,Mod2_NFPSQualfMonths,2,FALSE)) -> 0 | Q47: =IF(Mod2_NFPSContDataType="Contributions",P47,IF(Mod2_NFPSContDataType="Pay data",O47,0)) -> 0 | R47: =Gen_RDSFixedContRate -> 0.11 | S47: =Q47*R47/N47 -> 0 | T47: 0 | U47: =IF(ISERROR(G47*I47*12/J47),0,G47*I47*12/J47) -> 0 | V47: =IF(AND(G48=0,G47=1),1,0) -> 0
B48: 2009 | C48: 1 | D48: 31 | E48: ='Interest and Tax'!D124 -> 394 | F48: 2008 - 09 | G48: 0 | H48: 0 | I48: 0 | J48: 0 | K48: 0.085 | L48: 0 | M48: NFPS | N48: 0.085 | O48: 0 | P48: 0 | Q48: 0 | R48: 0.11 | S48: 0 | T48: 0 | U48: 0 | V48: 0
B49: 2009 | C49: 2 | D49: 28 | E49: ='Interest and Tax'!D125 -> 395 | F49: 2008 - 09 | G49: 0 | H49: 0 | I49: 0 | J49: 0 | K49: 0.085 | L49: 0 | M49: NFPS | N49: 0.085 | O49: 0 | P49: 0 | Q49: 0 | R49: 0.11 | S49: 0 | T49: 0 | U49: 0 | V49: 0
B50: 2009 | C50: 3 | D50: 31 | E50: ='Interest and Tax'!D126 -> 396 | F50: 2008 - 09 | G50: 0 | H50: 0 | I50: 0 | J50: 0 | K50: 0.085 | L50: 0 | M50: NFPS | N50: 0.085 | O50: 0 | P50: 0 | Q50: 0 | R50: 0.11 | S50: 0 | T50: 0 | U50: 0 | V50: 0
B51: 2009 | C51: 4 | D51: 30 | E51: ='Interest and Tax'!D127 -> 397 | F51: 2009 - 10 | G51: 0 | H51: 0 | I51: 0 | J51: 0 | K51: 0.085 | L51: 0 | M51: NFPS | N51: 0.085 | O51: 0 | P51: 0 | Q51: 0 | R51: 0.11 | S51: 0 | T51: 0 | U51: 0 | V51: 0
B52: 2009 | C52: 5 | D52: 31 | E52: ='Interest and Tax'!D128 -> 398 | F52: 2009 - 10 | G52: 0 | H52: 0 | I52: 0 | J52: 0 | K52: 0.085 | L52: 0 | M52: NFPS | N52: 0.085 | O52: 0 | P52: 0 | Q52: 0 | R52: 0.11 | S52: 0 | T52: 0 | U52: 0 | V52: 0
B53: 2009 | C53: 6 | D53: 30 | E53: ='Interest and Tax'!D129 -> 399 | F53: 2009 - 10 | G53: 0 | H53: 0 | I53: 0 | J53: 0 | K53: 0.085 | L53: 0 | M53: NFPS | N53: 0.085 | O53: 0 | P53: 0 | Q53: 0 | R53: 0.11 | S53: 0 | T53: 0 | U53: 0 | V53: 0
B54: 2009 | C54: 7 | D54: 31 | E54: ='Interest and Tax'!D130 -> 400 | F54: 2009 - 10 | G54: 0 | H54: 0 | I54: 0 | J54: 0 | K54: 0.085 | L54: 0 | M54: NFPS | N54: 0.085 | O54: 0 | P54: 0 | Q54: 0 | R54: 0.11 | S54: 0 | T54: 0 | U54: 0 | V54: 0
B55: 2009 | C55: 8 | D55: 31 | E55: ='Interest and Tax'!D131 -> 401 | F55: 2009 - 10 | G55: 0 | H55: 0 | I55: 0 | J55: 0 | K55: 0.085 | L55: 0 | M55: NFPS | N55: 0.085 | O55: 0 | P55: 0 | Q55: 0 | R55: 0.11 | S55: 0 | T55: 0 | U55: 0 | V55: 0
B56: 2009 | C56: 9 | D56: 30 | E56: ='Interest and Tax'!D132 -> 402 | F56: 2009 - 10 | G56: 0 | H56: 0 | I56: 0 | J56: 0 | K56: 0.085 | L56: 0 | M56: NFPS | N56: 0.085 | O56: 0 | P56: 0 | Q56: 0 | R56: 0.11 | S56: 0 | T56: 0 | U56: 0 | V56: 0
B57: 2009 | C57: 10 | D57: 31 | E57: ='Interest and Tax'!D133 -> 403 | F57: 2009 - 10 | G57: 0 | H57: 0 | I57: 0 | J57: 0 | K57: 0.085 | L57: 0 | M57: NFPS | N57: 0.085 | O57: 0 | P57: 0 | Q57: 0 | R57: 0.11 | S57: 0 | T57: 0 | U57: 0 | V57: 0
B58: 2009 | C58: 11 | D58: 30 | E58: ='Interest and Tax'!D134 -> 404 | F58: 2009 - 10 | G58: 0 | H58: 0 | I58: 0 | J58: 0 | K58: 0.085 | L58: 0 | M58: NFPS | N58: 0.085 | O58: 0 | P58: 0 | Q58: 0 | R58: 0.11 | S58: 0 | T58: 0 | U58: 0 | V58: 0
B59: 2009 | C59: 12 | D59: 31 | E59: ='Interest and Tax'!D135 -> 405 | F59: 2009 - 10 | G59: 0 | H59: 0 | I59: 0 | J59: 0 | K59: 0.085 | L59: 0 | M59: NFPS | N59: 0.085 | O59: 0 | P59: 0 | Q59: 0 | R59: 0.11 | S59: 0 | T59: 0 | U59: 0 | V59: 0
B60: 2010 | C60: 1 | D60: 31 | E60: ='Interest and Tax'!D136 -> 406 | F60: 2009 - 10 | G60: 0 | H60: 0 | I60: 0 | J60: 0 | K60: 0.085 | L60: 0 | M60: NFPS | N60: 0.085 | O60: 0 | P60: 0 | Q60: 0 | R60: 0.11 | S60: 0 | T60: 0 | U60: 0 | V60: 0
B61: 2010 | C61: 2 | D61: 28 | E61: ='Interest and Tax'!D137 -> 407 | F61: 2009 - 10 | G61: 0 | H61: 0 | I61: 0 | J61: 0 | K61: 0.085 | L61: 0 | M61: NFPS | N61: 0.085 | O61: 0 | P61: 0 | Q61: 0 | R61: 0.11 | S61: 0 | T61: 0 | U61: 0 | V61: 0
B62: 2010 | C62: 3 | D62: 31 | E62: ='Interest and Tax'!D138 -> 408 | F62: 2009 - 10 | G62: 0 | H62: 0 | I62: 0 | J62: 0 | K62: 0.085 | L62: 0 | M62: NFPS | N62: 0.085 | O62: 0 | P62: 0 | Q62: 0 | R62: 0.11 | S62: 0 | T62: 0 | U62: 0 | V62: 0
B63: 2010 | C63: 4 | D63: 30 | E63: ='Interest and Tax'!D139 -> 409 | F63: 2010 - 11 | G63: 0 | H63: 0 | I63: 0 | J63: 0 | K63: 0.085 | L63: 0 | M63: NFPS | N63: 0.085 | O63: 0 | P63: 0 | Q63: 0 | R63: 0.11 | S63: 0 | T63: 0 | U63: 0 | V63: 0
B64: 2010 | C64: 5 | D64: 31 | E64: ='Interest and Tax'!D140 -> 410 | F64: 2010 - 11 | G64: 0 | H64: 0 | I64: 0 | J64: 0 | K64: 0.085 | L64: 0 | M64: NFPS | N64: 0.085 | O64: 0 | P64: 0 | Q64: 0 | R64: 0.11 | S64: 0 | T64: 0 | U64: 0 | V64: 0
B65: 2010 | C65: 6 | D65: 30 | E65: ='Interest and Tax'!D141 -> 411 | F65: 2010 - 11 | G65: 0 | H65: 0 | I65: 0 | J65: 0 | K65: 0.085 | L65: 0 | M65: NFPS | N65: 0.085 | O65: 0 | P65: 0 | Q65: 0 | R65: 0.11 | S65: 0 | T65: 0 | U65: 0 | V65: 0
B66: 2010 | C66: 7 | D66: 31 | E66: ='Interest and Tax'!D142 -> 412 | F66: 2010 - 11 | G66: 0 | H66: 0 | I66: 0 | J66: 0 | K66: 0.085 | L66: 0 | M66: NFPS | N66: 0.085 | O66: 0 | P66: 0 | Q66: 0 | R66: 0.11 | S66: 0 | T66: 0 | U66: 0 | V66: 0
B67: 2010 | C67: 8 | D67: 31 | E67: ='Interest and Tax'!D143 -> 413 | F67: 2010 - 11 | G67: 0 | H67: 0 | I67: 0 | J67: 0 | K67: 0.085 | L67: 0 | M67: NFPS | N67: 0.085 | O67: 0 | P67: 0 | Q67: 0 | R67: 0.11 | S67: 0 | T67: 0 | U67: 0 | V67: 0
B68: 2010 | C68: 9 | D68: 30 | E68: ='Interest and Tax'!D144 -> 414 | F68: 2010 - 11 | G68: 0 | H68: 0 | I68: 0 | J68: 0 | K68: 0.085 | L68: 0 | M68: NFPS | N68: 0.085 | O68: 0 | P68: 0 | Q68: 0 | R68: 0.11 | S68: 0 | T68: 0 | U68: 0 | V68: 0
B69: 2010 | C69: 10 | D69: 31 | E69: ='Interest and Tax'!D145 -> 415 | F69: 2010 - 11 | G69: 0 | H69: 0 | I69: 0 | J69: 0 | K69: 0.085 | L69: 0 | M69: NFPS | N69: 0.085 | O69: 0 | P69: 0 | Q69: 0 | R69: 0.11 | S69: 0 | T69: 0 | U69: 0 | V69: 0
B70: 2010 | C70: 11 | D70: 30 | E70: ='Interest and Tax'!D146 -> 416 | F70: 2010 - 11 | G70: 0 | H70: 0 | I70: 0 | J70: 0 | K70: 0.085 | L70: 0 | M70: NFPS | N70: 0.085 | O70: 0 | P70: 0 | Q70: 0 | R70: 0.11 | S70: 0 | T70: 0 | U70: 0 | V70: 0
B71: 2010 | C71: 12 | D71: 31 | E71: ='Interest and Tax'!D147 -> 417 | F71: 2010 - 11 | G71: 0 | H71: 0 | I71: 0 | J71: 0 | K71: 0.085 | L71: 0 | M71: NFPS | N71: 0.085 | O71: 0 | P71: 0 | Q71: 0 | R71: 0.11 | S71: 0 | T71: 0 | U71: 0 | V71: 0
B72: 2011 | C72: 1 | D72: 31 | E72: ='Interest and Tax'!D148 -> 418 | F72: 2010 - 11 | G72: 0 | H72: 0 | I72: 0 | J72: 0 | K72: 0.085 | L72: 0 | M72: NFPS | N72: 0.085 | O72: 0 | P72: 0 | Q72: 0 | R72: 0.11 | S72: 0 | T72: 0 | U72: 0 | V72: 0
B73: 2011 | C73: 2 | D73: 28 | E73: ='Interest and Tax'!D149 -> 419 | F73: 2010 - 11 | G73: 0 | H73: 0 | I73: 0 | J73: 0 | K73: 0.085 | L73: 0 | M73: NFPS | N73: 0.085 | O73: 0 | P73: 0 | Q73: 0 | R73: 0.11 | S73: 0 | T73: 0 | U73: 0 | V73: 0
B74: 2011 | C74: 3 | D74: 31 | E74: ='Interest and Tax'!D150 -> 420 | F74: 2010 - 11 | G74: 0 | H74: 0 | I74: 0 | J74: 0 | K74: 0.085 | L74: 0 | M74: NFPS | N74: 0.085 | O74: 0 | P74: 0 | Q74: 0 | R74: 0.11 | S74: 0 | T74: 0 | U74: 0 | V74: 0
B75: 2011 | C75: 4 | D75: 30 | E75: ='Interest and Tax'!D151 -> 421 | F75: 2011 - 12 | G75: 0 | H75: 0 | I75: 0 | J75: 0 | K75: 0.085 | L75: 0 | M75: NFPS | N75: 0.085 | O75: 0 | P75: 0 | Q75: 0 | R75: 0.11 | S75: 0 | T75: 0 | U75: 0 | V75: 0
B76: 2011 | C76: 5 | D76: 31 | E76: ='Interest and Tax'!D152 -> 422 | F76: 2011 - 12 | G76: 0 | H76: 0 | I76: 0 | J76: 0 | K76: 0.085 | L76: 0 | M76: NFPS | N76: 0.085 | O76: 0 | P76: 0 | Q76: 0 | R76: 0.11 | S76: 0 | T76: 0 | U76: 0 | V76: 0
B77: 2011 | C77: 6 | D77: 30 | E77: ='Interest and Tax'!D153 -> 423 | F77: 2011 - 12 | G77: 0 | H77: 0 | I77: 0 | J77: 0 | K77: 0.085 | L77: 0 | M77: NFPS | N77: 0.085 | O77: 0 | P77: 0 | Q77: 0 | R77: 0.11 | S77: 0 | T77: 0 | U77: 0 | V77: 0
B78: 2011 | C78: 7 | D78: 31 | E78: ='Interest and Tax'!D154 -> 424 | F78: 2011 - 12 | G78: 0 | H78: 0 | I78: 0 | J78: 0 | K78: 0.085 | L78: 0 | M78: NFPS | N78: 0.085 | O78: 0 | P78: 0 | Q78: 0 | R78: 0.11 | S78: 0 | T78: 0 | U78: 0 | V78: 0
B79: 2011 | C79: 8 | D79: 31 | E79: ='Interest and Tax'!D155 -> 425 | F79: 2011 - 12 | G79: =IF(AND(Mod2_NFPSStartDate<=DATE(B79,C79+1,1)-1,Mod2_NFPSEndDate>=DATE(B79,C79,1)),1,0) -> 0 | H79: =IF(AND(YEAR(Mod2_NFPSStartDate)=B79,MONTH(Mod2_NFPSStartDate)=C79),(D79+1)-DAY(Mod2_NFPSStartDate),IF(AND(YEAR(Mod2_NFPSEndDate)=B79,MONTH(Mod2_NFPSEndDate)=C79),DAY(Mod2_NFPSEndDate)*G79,G79*D79)) -> 0 | I79: =G79*IF(ISERROR(VLOOKUP(F79,Mod2_NFPSPayContDetails,3,FALSE)/HLOOKUP(F79,Mod2_NFPSQualfMonths,2,FALSE)),0,VLOOKUP(F79,Mod2_NFPSPayContDetails,3,FALSE)/HLOOKUP(F79,Mod2_NFPSQualfMonths,2,FALSE)) -> 0 | J79: =VLOOKUP(F79,Mod2_NFPSPayContDetails,4,FALSE) -> 0 | K79: =Gen_NFPSFixedContRate -> 0.085 | L79: 0 | M79: NFPS | N79: 0.085 | O79: =I79*N79 -> 0 | P79: =G79*IF(ISERROR(VLOOKUP(F79,Mod2_NFPSPayContDetails,2,FALSE)/HLOOKUP(F79,Mod2_NFPSQualfMonths,2,FALSE)),0,VLOOKUP(F79,Mod2_NFPSPayContDetails,2,FALSE)/HLOOKUP(F79,Mod2_NFPSQualfMonths,2,FALSE)) -> 0 | Q79: =IF(Mod2_NFPSContDataType="Contributions",P79,IF(Mod2_NFPSContDataType="Pay data",O79,0)) -> 0 | R79: =Gen_RDSFixedContRate -> 0.11 | S79: =Q79*R79/N79 -> 0 | T79: 0 | U79: =IF(ISERROR(G79*I79*12/J79),0,G79*I79*12/J79) -> 0 | V79: =IF(AND(G80=0,G79=1),1,0) -> 0
B80: 2011 | C80: 9 | D80: 30 | E80: ='Interest and Tax'!D156 -> 426 | F80: 2011 - 12 | G80: 0 | H80: 0 | I80: 0 | J80: 0 | K80: 0.085 | L80: 0 | M80: NFPS | N80: 0.085 | O80: 0 | P80: 0 | Q80: 0 | R80: 0.11 | S80: 0 | T80: =S80-Q80 -> 0 | U80: 0 | V80: 0
B81: 2011 | C81: 10 | D81: 31 | E81: ='Interest and Tax'!D157 -> 427 | F81: 2011 - 12 | G81: 0 | H81: 0 | I81: 0 | J81: 0 | K81: 0.085 | L81: 0 | M81: NFPS | N81: =K81 -> 0.085 | O81: 0 | P81: 0 | Q81: 0 | R81: 0.11 | S81: 0 | T81: 0 | U81: 0 | V81: 0
B82: 2011 | C82: 11 | D82: 30 | E82: ='Interest and Tax'!D158 -> 428 | F82: 2011 - 12 | G82: 0 | H82: 0 | I82: 0 | J82: 0 | K82: 0.085 | L82: 0 | M82: NFPS | N82: 0.085 | O82: 0 | P82: 0 | Q82: 0 | R82: 0.11 | S82: 0 | T82: 0 | U82: 0 | V82: 0
B83: 2011 | C83: 12 | D83: 31 | E83: ='Interest and Tax'!D159 -> 429 | F83: 2011 - 12 | G83: 0 | H83: 0 | I83: 0 | J83: 0 | K83: 0.085 | L83: 0 | M83: NFPS | N83: 0.085 | O83: 0 | P83: 0 | Q83: 0 | R83: 0.11 | S83: 0 | T83: 0 | U83: 0 | V83: 0
B84: 2012 | C84: 1 | D84: 31 | E84: ='Interest and Tax'!D160 -> 430 | F84: 2011 - 12 | G84: 0 | H84: 0 | I84: 0 | J84: 0 | K84: 0.085 | L84: 0 | M84: NFPS | N84: 0.085 | O84: 0 | P84: 0 | Q84: 0 | R84: 0.11 | S84: 0 | T84: 0 | U84: 0 | V84: 0
B85: 2012 | C85: 2 | D85: 29 | E85: ='Interest and Tax'!D161 -> 431 | F85: 2011 - 12 | G85: 0 | H85: 0 | I85: 0 | J85: 0 | K85: 0.085 | L85: 0 | M85: NFPS | N85: 0.085 | O85: 0 | P85: 0 | Q85: 0 | R85: 0.11 | S85: 0 | T85: 0 | U85: 0 | V85: 0
B86: 2012 | C86: 3 | D86: 31 | E86: ='Interest and Tax'!D162 -> 432 | F86: 2011 - 12 | G86: 0 | H86: 0 | I86: 0 | J86: 0 | K86: 0.085 | L86: 0 | M86: NFPS | N86: 0.085 | O86: 0 | P86: 0 | Q86: 0 | R86: 0.11 | S86: 0 | T86: 0 | U86: 0 | V86: 0
B87: 2012 | C87: 4 | D87: 30 | E87: ='Interest and Tax'!D163 -> 433 | F87: 2012 - 13 | G87: 0 | H87: 0 | I87: 0 | J87: 0 | K87: =IF(J87<='NFPS ee cont rates'!$B$16,'NFPS ee cont rates'!$C$16,IF(J87<='NFPS ee cont rates'!$B$20,'NFPS ee cont rates'!$C$20,IF(J87<='NFPS ee cont rates'!$B$22,'NFPS ee cont rates'!$C$22,IF(J87<='NFPS ee cont rates'!$B$24,'NFPS ee cont rates'!$C$24,IF(J87<='NFPS ee cont rates'!$B$26,'NFPS ee cont rates'!$C$26,IF(J87<='NFPS ee cont rates'!$B$28,'NFPS ee cont rates'!$C$28,IF(J87<='NFPS ee cont rates'!$B$30,'NFPS ee cont rates'!$C$30,'NFPS ee cont rates'!$C$32))))))) -> 0.085 | L87: 0 | M87: NFPS | N87: 0.085 | O87: 0 | P87: 0 | Q87: 0 | R87: =IF(J87<='RDS ee cont rates'!$B$17,'RDS ee cont rates'!$C$17,IF(J87<='RDS ee cont rates'!$B$21,'RDS ee cont rates'!$C$21,IF(J87<='RDS ee cont rates'!$B$23,'RDS ee cont rates'!$C$23,IF(J87<='RDS ee cont rates'!$B$25,'RDS ee cont rates'!$C$25,IF(J87<='RDS ee cont rates'!$B$27,'RDS ee cont rates'!$C$27,IF(J87<='RDS ee cont rates'!$B$29,'RDS ee cont rates'!$C$29,IF(J87<='RDS ee cont rates'!$B$31,'RDS ee cont rates'!$C$31,'RDS ee cont rates'!$C$32))))))) -> 0.11 | S87: 0 | T87: 0 | U87: 0 | V87: 0 | W87: Note change in formulae used from this point on for NFPS and RDS cont rate columns
B88: 2012 | C88: 5 | D88: 31 | E88: ='Interest and Tax'!D164 -> 434 | F88: 2012 - 13 | G88: 0 | H88: 0 | I88: 0 | J88: 0 | K88: =IF(J88<='NFPS ee cont rates'!$B$16,'NFPS ee cont rates'!$C$16,IF(J88<='NFPS ee cont rates'!$B$20,'NFPS ee cont rates'!$C$20,IF(J88<='NFPS ee cont rates'!$B$22,'NFPS ee cont rates'!$C$22,IF(J88<='NFPS ee cont rates'!$B$24,'NFPS ee cont rates'!$C$24,IF(J88<='NFPS ee cont rates'!$B$26,'NFPS ee cont rates'!$C$26,IF(J88<='NFPS ee cont rates'!$B$28,'NFPS ee cont rates'!$C$28,IF(J88<='NFPS ee cont rates'!$B$30,'NFPS ee cont rates'!$C$30,'NFPS ee cont rates'!$C$32))))))) -> 0.085 | L88: 0 | M88: NFPS | N88: 0.085 | O88: 0 | P88: 0 | Q88: 0 | R88: =IF(J88<='RDS ee cont rates'!$B$17,'RDS ee cont rates'!$C$17,IF(J88<='RDS ee cont rates'!$B$21,'RDS ee cont rates'!$C$21,IF(J88<='RDS ee cont rates'!$B$23,'RDS ee cont rates'!$C$23,IF(J88<='RDS ee cont rates'!$B$25,'RDS ee cont rates'!$C$25,IF(J88<='RDS ee cont rates'!$B$27,'RDS ee cont rates'!$C$27,IF(J88<='RDS ee cont rates'!$B$29,'RDS ee cont rates'!$C$29,IF(J88<='RDS ee cont rates'!$B$31,'RDS ee cont rates'!$C$31,'RDS ee cont rates'!$C$32))))))) -> 0.11 | S88: 0 | T88: 0 | U88: 0 | V88: 0
B89: 2012 | C89: 6 | D89: 30 | E89: ='Interest and Tax'!D165 -> 435 | F89: 2012 - 13 | G89: 0 | H89: 0 | I89: 0 | J89: 0 | K89: =IF(J89<='NFPS ee cont rates'!$B$16,'NFPS ee cont rates'!$C$16,IF(J89<='NFPS ee cont rates'!$B$20,'NFPS ee cont rates'!$C$20,IF(J89<='NFPS ee cont rates'!$B$22,'NFPS ee cont rates'!$C$22,IF(J89<='NFPS ee cont rates'!$B$24,'NFPS ee cont rates'!$C$24,IF(J89<='NFPS ee cont rates'!$B$26,'NFPS ee cont rates'!$C$26,IF(J89<='NFPS ee cont rates'!$B$28,'NFPS ee cont rates'!$C$28,IF(J89<='NFPS ee cont rates'!$B$30,'NFPS ee cont rates'!$C$30,'NFPS ee cont rates'!$C$32))))))) -> 0.085 | L89: 0 | M89: NFPS | N89: 0.085 | O89: 0 | P89: 0 | Q89: 0 | R89: =IF(J89<='RDS ee cont rates'!$B$17,'RDS ee cont rates'!$C$17,IF(J89<='RDS ee cont rates'!$B$21,'RDS ee cont rates'!$C$21,IF(J89<='RDS ee cont rates'!$B$23,'RDS ee cont rates'!$C$23,IF(J89<='RDS ee cont rates'!$B$25,'RDS ee cont rates'!$C$25,IF(J89<='RDS ee cont rates'!$B$27,'RDS ee cont rates'!$C$27,IF(J89<='RDS ee cont rates'!$B$29,'RDS ee cont rates'!$C$29,IF(J89<='RDS ee cont rates'!$B$31,'RDS ee cont rates'!$C$31,'RDS ee cont rates'!$C$32))))))) -> 0.11 | S89: 0 | T89: 0 | U89: 0 | V89: 0
B90: 2012 | C90: 7 | D90: 31 | E90: ='Interest and Tax'!D166 -> 436 | F90: 2012 - 13 | G90: 0 | H90: 0 | I90: 0 | J90: 0 | K90: =IF(J90<='NFPS ee cont rates'!$B$16,'NFPS ee cont rates'!$C$16,IF(J90<='NFPS ee cont rates'!$B$20,'NFPS ee cont rates'!$C$20,IF(J90<='NFPS ee cont rates'!$B$22,'NFPS ee cont rates'!$C$22,IF(J90<='NFPS ee cont rates'!$B$24,'NFPS ee cont rates'!$C$24,IF(J90<='NFPS ee cont rates'!$B$26,'NFPS ee cont rates'!$C$26,IF(J90<='NFPS ee cont rates'!$B$28,'NFPS ee cont rates'!$C$28,IF(J90<='NFPS ee cont rates'!$B$30,'NFPS ee cont rates'!$C$30,'NFPS ee cont rates'!$C$32))))))) -> 0.085 | L90: 0 | M90: NFPS | N90: 0.085 | O90: 0 | P90: 0 | Q90: 0 | R90: =IF(J90<='RDS ee cont rates'!$B$17,'RDS ee cont rates'!$C$17,IF(J90<='RDS ee cont rates'!$B$21,'RDS ee cont rates'!$C$21,IF(J90<='RDS ee cont rates'!$B$23,'RDS ee cont rates'!$C$23,IF(J90<='RDS ee cont rates'!$B$25,'RDS ee cont rates'!$C$25,IF(J90<='RDS ee cont rates'!$B$27,'RDS ee cont rates'!$C$27,IF(J90<='RDS ee cont rates'!$B$29,'RDS ee cont rates'!$C$29,IF(J90<='RDS ee cont rates'!$B$31,'RDS ee cont rates'!$C$31,'RDS ee cont rates'!$C$32))))))) -> 0.11 | S90: 0 | T90: 0 | U90: 0 | V90: 0
B91: 2012 | C91: 8 | D91: 31 | E91: ='Interest and Tax'!D167 -> 437 | F91: 2012 - 13 | G91: 0 | H91: 0 | I91: 0 | J91: 0 | K91: =IF(J91<='NFPS ee cont rates'!$B$16,'NFPS ee cont rates'!$C$16,IF(J91<='NFPS ee cont rates'!$B$20,'NFPS ee cont rates'!$C$20,IF(J91<='NFPS ee cont rates'!$B$22,'NFPS ee cont rates'!$C$22,IF(J91<='NFPS ee cont rates'!$B$24,'NFPS ee cont rates'!$C$24,IF(J91<='NFPS ee cont rates'!$B$26,'NFPS ee cont rates'!$C$26,IF(J91<='NFPS ee cont rates'!$B$28,'NFPS ee cont rates'!$C$28,IF(J91<='NFPS ee cont rates'!$B$30,'NFPS ee cont rates'!$C$30,'NFPS ee cont rates'!$C$32))))))) -> 0.085 | L91: 0 | M91: NFPS | N91: 0.085 | O91: 0 | P91: 0 | Q91: 0 | R91: =IF(J91<='RDS ee cont rates'!$B$17,'RDS ee cont rates'!$C$17,IF(J91<='RDS ee cont rates'!$B$21,'RDS ee cont rates'!$C$21,IF(J91<='RDS ee cont rates'!$B$23,'RDS ee cont rates'!$C$23,IF(J91<='RDS ee cont rates'!$B$25,'RDS ee cont rates'!$C$25,IF(J91<='RDS ee cont rates'!$B$27,'RDS ee cont rates'!$C$27,IF(J91<='RDS ee cont rates'!$B$29,'RDS ee cont rates'!$C$29,IF(J91<='RDS ee cont rates'!$B$31,'RDS ee cont rates'!$C$31,'RDS ee cont rates'!$C$32))))))) -> 0.11 | S91: 0 | T91: 0 | U91: 0 | V91: 0
B92: 2012 | C92: 9 | D92: 30 | E92: ='Interest and Tax'!D168 -> 438 | F92: 2012 - 13 | G92: 0 | H92: 0 | I92: 0 | J92: 0 | K92: =IF(J92<='NFPS ee cont rates'!$B$16,'NFPS ee cont rates'!$C$16,IF(J92<='NFPS ee cont rates'!$B$20,'NFPS ee cont rates'!$C$20,IF(J92<='NFPS ee cont rates'!$B$22,'NFPS ee cont rates'!$C$22,IF(J92<='NFPS ee cont rates'!$B$24,'NFPS ee cont rates'!$C$24,IF(J92<='NFPS ee cont rates'!$B$26,'NFPS ee cont rates'!$C$26,IF(J92<='NFPS ee cont rates'!$B$28,'NFPS ee cont rates'!$C$28,IF(J92<='NFPS ee cont rates'!$B$30,'NFPS ee cont rates'!$C$30,'NFPS ee cont rates'!$C$32))))))) -> 0.085 | L92: 0 | M92: NFPS | N92: 0.085 | O92: 0 | P92: 0 | Q92: 0 | R92: =IF(J92<='RDS ee cont rates'!$B$17,'RDS ee cont rates'!$C$17,IF(J92<='RDS ee cont rates'!$B$21,'RDS ee cont rates'!$C$21,IF(J92<='RDS ee cont rates'!$B$23,'RDS ee cont rates'!$C$23,IF(J92<='RDS ee cont rates'!$B$25,'RDS ee cont rates'!$C$25,IF(J92<='RDS ee cont rates'!$B$27,'RDS ee cont rates'!$C$27,IF(J92<='RDS ee cont rates'!$B$29,'RDS ee cont rates'!$C$29,IF(J92<='RDS ee cont rates'!$B$31,'RDS ee cont rates'!$C$31,'RDS ee cont rates'!$C$32))))))) -> 0.11 | S92: 0 | T92: 0 | U92: 0 | V92: 0
B93: 2012 | C93: 10 | D93: 31 | E93: ='Interest and Tax'!D169 -> 439 | F93: 2012 - 13 | G93: 0 | H93: 0 | I93: 0 | J93: 0 | K93: =IF(J93<='NFPS ee cont rates'!$B$16,'NFPS ee cont rates'!$C$16,IF(J93<='NFPS ee cont rates'!$B$20,'NFPS ee cont rates'!$C$20,IF(J93<='NFPS ee cont rates'!$B$22,'NFPS ee cont rates'!$C$22,IF(J93<='NFPS ee cont rates'!$B$24,'NFPS ee cont rates'!$C$24,IF(J93<='NFPS ee cont rates'!$B$26,'NFPS ee cont rates'!$C$26,IF(J93<='NFPS ee cont rates'!$B$28,'NFPS ee cont rates'!$C$28,IF(J93<='NFPS ee cont rates'!$B$30,'NFPS ee cont rates'!$C$30,'NFPS ee cont rates'!$C$32))))))) -> 0.085 | L93: 0 | M93: NFPS | N93: 0.085 | O93: 0 | P93: 0 | Q93: 0 | R93: =IF(J93<='RDS ee cont rates'!$B$17,'RDS ee cont rates'!$C$17,IF(J93<='RDS ee cont rates'!$B$21,'RDS ee cont rates'!$C$21,IF(J93<='RDS ee cont rates'!$B$23,'RDS ee cont rates'!$C$23,IF(J93<='RDS ee cont rates'!$B$25,'RDS ee cont rates'!$C$25,IF(J93<='RDS ee cont rates'!$B$27,'RDS ee cont rates'!$C$27,IF(J93<='RDS ee cont rates'!$B$29,'RDS ee cont rates'!$C$29,IF(J93<='RDS ee cont rates'!$B$31,'RDS ee cont rates'!$C$31,'RDS ee cont rates'!$C$32))))))) -> 0.11 | S93: 0 | T93: 0 | U93: 0 | V93: 0
B94: 2012 | C94: 11 | D94: 30 | E94: ='Interest and Tax'!D170 -> 440 | F94: 2012 - 13 | G94: 0 | H94: 0 | I94: 0 | J94: 0 | K94: =IF(J94<='NFPS ee cont rates'!$B$16,'NFPS ee cont rates'!$C$16,IF(J94<='NFPS ee cont rates'!$B$20,'NFPS ee cont rates'!$C$20,IF(J94<='NFPS ee cont rates'!$B$22,'NFPS ee cont rates'!$C$22,IF(J94<='NFPS ee cont rates'!$B$24,'NFPS ee cont rates'!$C$24,IF(J94<='NFPS ee cont rates'!$B$26,'NFPS ee cont rates'!$C$26,IF(J94<='NFPS ee cont rates'!$B$28,'NFPS ee cont rates'!$C$28,IF(J94<='NFPS ee cont rates'!$B$30,'NFPS ee cont rates'!$C$30,'NFPS ee cont rates'!$C$32))))))) -> 0.085 | L94: 0 | M94: NFPS | N94: 0.085 | O94: 0 | P94: 0 | Q94: 0 | R94: =IF(J94<='RDS ee cont rates'!$B$17,'RDS ee cont rates'!$C$17,IF(J94<='RDS ee cont rates'!$B$21,'RDS ee cont rates'!$C$21,IF(J94<='RDS ee cont rates'!$B$23,'RDS ee cont rates'!$C$23,IF(J94<='RDS ee cont rates'!$B$25,'RDS ee cont rates'!$C$25,IF(J94<='RDS ee cont rates'!$B$27,'RDS ee cont rates'!$C$27,IF(J94<='RDS ee cont rates'!$B$29,'RDS ee cont rates'!$C$29,IF(J94<='RDS ee cont rates'!$B$31,'RDS ee cont rates'!$C$31,'RDS ee cont rates'!$C$32))))))) -> 0.11 | S94: 0 | T94: 0 | U94: 0 | V94: 0
B95: 2012 | C95: 12 | D95: 31 | E95: ='Interest and Tax'!D171 -> 441 | F95: 2012 - 13 | G95: 0 | H95: 0 | I95: 0 | J95: 0 | K95: =IF(J95<='NFPS ee cont rates'!$B$16,'NFPS ee cont rates'!$C$16,IF(J95<='NFPS ee cont rates'!$B$20,'NFPS ee cont rates'!$C$20,IF(J95<='NFPS ee cont rates'!$B$22,'NFPS ee cont rates'!$C$22,IF(J95<='NFPS ee cont rates'!$B$24,'NFPS ee cont rates'!$C$24,IF(J95<='NFPS ee cont rates'!$B$26,'NFPS ee cont rates'!$C$26,IF(J95<='NFPS ee cont rates'!$B$28,'NFPS ee cont rates'!$C$28,IF(J95<='NFPS ee cont rates'!$B$30,'NFPS ee cont rates'!$C$30,'NFPS ee cont rates'!$C$32))))))) -> 0.085 | L95: 0 | M95: NFPS | N95: 0.085 | O95: 0 | P95: 0 | Q95: 0 | R95: =IF(J95<='RDS ee cont rates'!$B$17,'RDS ee cont rates'!$C$17,IF(J95<='RDS ee cont rates'!$B$21,'RDS ee cont rates'!$C$21,IF(J95<='RDS ee cont rates'!$B$23,'RDS ee cont rates'!$C$23,IF(J95<='RDS ee cont rates'!$B$25,'RDS ee cont rates'!$C$25,IF(J95<='RDS ee cont rates'!$B$27,'RDS ee cont rates'!$C$27,IF(J95<='RDS ee cont rates'!$B$29,'RDS ee cont rates'!$C$29,IF(J95<='RDS ee cont rates'!$B$31,'RDS ee cont rates'!$C$31,'RDS ee cont rates'!$C$32))))))) -> 0.11 | S95: 0 | T95: 0 | U95: 0 | V95: 0
B96: 2013 | C96: 1 | D96: 31 | E96: ='Interest and Tax'!D172 -> 442 | F96: 2012 - 13 | G96: 0 | H96: 0 | I96: 0 | J96: 0 | K96: =IF(J96<='NFPS ee cont rates'!$B$16,'NFPS ee cont rates'!$C$16,IF(J96<='NFPS ee cont rates'!$B$20,'NFPS ee cont rates'!$C$20,IF(J96<='NFPS ee cont rates'!$B$22,'NFPS ee cont rates'!$C$22,IF(J96<='NFPS ee cont rates'!$B$24,'NFPS ee cont rates'!$C$24,IF(J96<='NFPS ee cont rates'!$B$26,'NFPS ee cont rates'!$C$26,IF(J96<='NFPS ee cont rates'!$B$28,'NFPS ee cont rates'!$C$28,IF(J96<='NFPS ee cont rates'!$B$30,'NFPS ee cont rates'!$C$30,'NFPS ee cont rates'!$C$32))))))) -> 0.085 | L96: 0 | M96: NFPS | N96: 0.085 | O96: 0 | P96: 0 | Q96: 0 | R96: =IF(J96<='RDS ee cont rates'!$B$17,'RDS ee cont rates'!$C$17,IF(J96<='RDS ee cont rates'!$B$21,'RDS ee cont rates'!$C$21,IF(J96<='RDS ee cont rates'!$B$23,'RDS ee cont rates'!$C$23,IF(J96<='RDS ee cont rates'!$B$25,'RDS ee cont rates'!$C$25,IF(J96<='RDS ee cont rates'!$B$27,'RDS ee cont rates'!$C$27,IF(J96<='RDS ee cont rates'!$B$29,'RDS ee cont rates'!$C$29,IF(J96<='RDS ee cont rates'!$B$31,'RDS ee cont rates'!$C$31,'RDS ee cont rates'!$C$32))))))) -> 0.11 | S96: 0 | T96: 0 | U96: 0 | V96: 0
B97: 2013 | C97: 2 | D97: 28 | E97: ='Interest and Tax'!D173 -> 443 | F97: 2012 - 13 | G97: 0 | H97: 0 | I97: 0 | J97: 0 | K97: =IF(J97<='NFPS ee cont rates'!$B$16,'NFPS ee cont rates'!$C$16,IF(J97<='NFPS ee cont rates'!$B$20,'NFPS ee cont rates'!$C$20,IF(J97<='NFPS ee cont rates'!$B$22,'NFPS ee cont rates'!$C$22,IF(J97<='NFPS ee cont rates'!$B$24,'NFPS ee cont rates'!$C$24,IF(J97<='NFPS ee cont rates'!$B$26,'NFPS ee cont rates'!$C$26,IF(J97<='NFPS ee cont rates'!$B$28,'NFPS ee cont rates'!$C$28,IF(J97<='NFPS ee cont rates'!$B$30,'NFPS ee cont rates'!$C$30,'NFPS ee cont rates'!$C$32))))))) -> 0.085 | L97: 0 | M97: NFPS | N97: 0.085 | O97: 0 | P97: 0 | Q97: 0 | R97: =IF(J97<='RDS ee cont rates'!$B$17,'RDS ee cont rates'!$C$17,IF(J97<='RDS ee cont rates'!$B$21,'RDS ee cont rates'!$C$21,IF(J97<='RDS ee cont rates'!$B$23,'RDS ee cont rates'!$C$23,IF(J97<='RDS ee cont rates'!$B$25,'RDS ee cont rates'!$C$25,IF(J97<='RDS ee cont rates'!$B$27,'RDS ee cont rates'!$C$27,IF(J97<='RDS ee cont rates'!$B$29,'RDS ee cont rates'!$C$29,IF(J97<='RDS ee cont rates'!$B$31,'RDS ee cont rates'!$C$31,'RDS ee cont rates'!$C$32))))))) -> 0.11 | S97: 0 | T97: 0 | U97: 0 | V97: 0
B98: 2013 | C98: 3 | D98: 31 | E98: ='Interest and Tax'!D174 -> 444 | F98: 2012 - 13 | G98: 0 | H98: 0 | I98: 0 | J98: 0 | K98: =IF(J98<='NFPS ee cont rates'!$B$16,'NFPS ee cont rates'!$C$16,IF(J98<='NFPS ee cont rates'!$B$20,'NFPS ee cont rates'!$C$20,IF(J98<='NFPS ee cont rates'!$B$22,'NFPS ee cont rates'!$C$22,IF(J98<='NFPS ee cont rates'!$B$24,'NFPS ee cont rates'!$C$24,IF(J98<='NFPS ee cont rates'!$B$26,'NFPS ee cont rates'!$C$26,IF(J98<='NFPS ee cont rates'!$B$28,'NFPS ee cont rates'!$C$28,IF(J98<='NFPS ee cont rates'!$B$30,'NFPS ee cont rates'!$C$30,'NFPS ee cont rates'!$C$32))))))) -> 0.085 | L98: 0 | M98: NFPS | N98: 0.085 | O98: 0 | P98: 0 | Q98: 0 | R98: =IF(J98<='RDS ee cont rates'!$B$17,'RDS ee cont rates'!$C$17,IF(J98<='RDS ee cont rates'!$B$21,'RDS ee cont rates'!$C$21,IF(J98<='RDS ee cont rates'!$B$23,'RDS ee cont rates'!$C$23,IF(J98<='RDS ee cont rates'!$B$25,'RDS ee cont rates'!$C$25,IF(J98<='RDS ee cont rates'!$B$27,'RDS ee cont rates'!$C$27,IF(J98<='RDS ee cont rates'!$B$29,'RDS ee cont rates'!$C$29,IF(J98<='RDS ee cont rates'!$B$31,'RDS ee cont rates'!$C$31,'RDS ee cont rates'!$C$32))))))) -> 0.11 | S98: 0 | T98: 0 | U98: 0 | V98: 0
B99: 2013 | C99: 4 | D99: 30 | E99: ='Interest and Tax'!D175 -> 445 | F99: 2013 - 14 | G99: 0 | H99: 0 | I99: 0 | J99: 0 | K99: =IF(J99<='NFPS ee cont rates'!$B$16,'NFPS ee cont rates'!$D$16,IF(J99<='NFPS ee cont rates'!$B$18,'NFPS ee cont rates'!$D$18,IF(J99<='NFPS ee cont rates'!$B$20,'NFPS ee cont rates'!$D$20,IF(J99<='NFPS ee cont rates'!$B$22,'NFPS ee cont rates'!$D$22,IF(J99<='NFPS ee cont rates'!$B$24,'NFPS ee cont rates'!$D$24,IF(J99<='NFPS ee cont rates'!$B$26,'NFPS ee cont rates'!$D$26,IF(J99<='NFPS ee cont rates'!$B$28,'NFPS ee cont rates'!$D$28,IF(J99<='NFPS ee cont rates'!$B$30,'NFPS ee cont rates'!$D$30,'NFPS ee cont rates'!$D$32)))))))) -> 0.085 | L99: 0 | M99: NFPS | N99: 0.085 | O99: 0 | P99: 0 | Q99: 0 | R99: =IF(J99<='RDS ee cont rates'!$B$17,'RDS ee cont rates'!$D$17,IF(J99<='RDS ee cont rates'!$B$19,'RDS ee cont rates'!$D$19,IF(J99<='RDS ee cont rates'!$B$21,'RDS ee cont rates'!$D$21,IF(J99<='RDS ee cont rates'!$B$23,'RDS ee cont rates'!$D$23,IF(J99<='RDS ee cont rates'!$B$25,'RDS ee cont rates'!$D$25,IF(J99<='RDS ee cont rates'!$B$27,'RDS ee cont rates'!$D$27,IF(J99<='RDS ee cont rates'!$B$29,'RDS ee cont rates'!$D$29,IF(J99<='RDS ee cont rates'!$B$31,'RDS ee cont rates'!$D$31,'RDS ee cont rates'!$D$32)))))))) -> 0.11 | S99: 0 | T99: 0 | U99: 0 | V99: 0 | W99: Note change in formulae used from this point on for NFPS and RDS cont rate columns
B100: 2013 | C100: 5 | D100: 31 | E100: ='Interest and Tax'!D176 -> 446 | F100: 2013 - 14 | G100: 0 | H100: 0 | I100: 0 | J100: 0 | K100: =IF(J100<='NFPS ee cont rates'!$B$16,'NFPS ee cont rates'!$D$16,IF(J100<='NFPS ee cont rates'!$B$18,'NFPS ee cont rates'!$D$18,IF(J100<='NFPS ee cont rates'!$B$20,'NFPS ee cont rates'!$D$20,IF(J100<='NFPS ee cont rates'!$B$22,'NFPS ee cont rates'!$D$22,IF(J100<='NFPS ee cont rates'!$B$24,'NFPS ee cont rates'!$D$24,IF(J100<='NFPS ee cont rates'!$B$26,'NFPS ee cont rates'!$D$26,IF(J100<='NFPS ee cont rates'!$B$28,'NFPS ee cont rates'!$D$28,IF(J100<='NFPS ee cont rates'!$B$30,'NFPS ee cont rates'!$D$30,'NFPS ee cont rates'!$D$32)))))))) -> 0.085 | L100: 0 | M100: NFPS | N100: 0.085 | O100: 0 | P100: 0 | Q100: 0 | R100: =IF(J100<='RDS ee cont rates'!$B$17,'RDS ee cont rates'!$D$17,IF(J100<='RDS ee cont rates'!$B$19,'RDS ee cont rates'!$D$19,IF(J100<='RDS ee cont rates'!$B$21,'RDS ee cont rates'!$D$21,IF(J100<='RDS ee cont rates'!$B$23,'RDS ee cont rates'!$D$23,IF(J100<='RDS ee cont rates'!$B$25,'RDS ee cont rates'!$D$25,IF(J100<='RDS ee cont rates'!$B$27,'RDS ee cont rates'!$D$27,IF(J100<='RDS ee cont rates'!$B$29,'RDS ee cont rates'!$D$29,IF(J100<='RDS ee cont rates'!$B$31,'RDS ee cont rates'!$D$31,'RDS ee cont rates'!$D$32)))))))) -> 0.11 | S100: 0 | T100: 0 | U100: 0 | V100: 0
B101: 2013 | C101: 6 | D101: 30 | E101: ='Interest and Tax'!D177 -> 447 | F101: 2013 - 14 | G101: 0 | H101: 0 | I101: 0 | J101: 0 | K101: =IF(J101<='NFPS ee cont rates'!$B$16,'NFPS ee cont rates'!$D$16,IF(J101<='NFPS ee cont rates'!$B$18,'NFPS ee cont rates'!$D$18,IF(J101<='NFPS ee cont rates'!$B$20,'NFPS ee cont rates'!$D$20,IF(J101<='NFPS ee cont rates'!$B$22,'NFPS ee cont rates'!$D$22,IF(J101<='NFPS ee cont rates'!$B$24,'NFPS ee cont rates'!$D$24,IF(J101<='NFPS ee cont rates'!$B$26,'NFPS ee cont rates'!$D$26,IF(J101<='NFPS ee cont rates'!$B$28,'NFPS ee cont rates'!$D$28,IF(J101<='NFPS ee cont rates'!$B$30,'NFPS ee cont rates'!$D$30,'NFPS ee cont rates'!$D$32)))))))) -> 0.085 | L101: 0 | M101: NFPS | N101: 0.085 | O101: 0 | P101: 0 | Q101: 0 | R101: =IF(J101<='RDS ee cont rates'!$B$17,'RDS ee cont rates'!$D$17,IF(J101<='RDS ee cont rates'!$B$19,'RDS ee cont rates'!$D$19,IF(J101<='RDS ee cont rates'!$B$21,'RDS ee cont rates'!$D$21,IF(J101<='RDS ee cont rates'!$B$23,'RDS ee cont rates'!$D$23,IF(J101<='RDS ee cont rates'!$B$25,'RDS ee cont rates'!$D$25,IF(J101<='RDS ee cont rates'!$B$27,'RDS ee cont rates'!$D$27,IF(J101<='RDS ee cont rates'!$B$29,'RDS ee cont rates'!$D$29,IF(J101<='RDS ee cont rates'!$B$31,'RDS ee cont rates'!$D$31,'RDS ee cont rates'!$D$32)))))))) -> 0.11 | S101: 0 | T101: 0 | U101: 0 | V101: 0
B102: 2013 | C102: 7 | D102: 31 | E102: ='Interest and Tax'!D178 -> 448 | F102: 2013 - 14 | G102: 0 | H102: 0 | I102: 0 | J102: 0 | K102: =IF(J102<='NFPS ee cont rates'!$B$16,'NFPS ee cont rates'!$D$16,IF(J102<='NFPS ee cont rates'!$B$18,'NFPS ee cont rates'!$D$18,IF(J102<='NFPS ee cont rates'!$B$20,'NFPS ee cont rates'!$D$20,IF(J102<='NFPS ee cont rates'!$B$22,'NFPS ee cont rates'!$D$22,IF(J102<='NFPS ee cont rates'!$B$24,'NFPS ee cont rates'!$D$24,IF(J102<='NFPS ee cont rates'!$B$26,'NFPS ee cont rates'!$D$26,IF(J102<='NFPS ee cont rates'!$B$28,'NFPS ee cont rates'!$D$28,IF(J102<='NFPS ee cont rates'!$B$30,'NFPS ee cont rates'!$D$30,'NFPS ee cont rates'!$D$32)))))))) -> 0.085 | L102: 0 | M102: NFPS | N102: 0.085 | O102: 0 | P102: 0 | Q102: 0 | R102: =IF(J102<='RDS ee cont rates'!$B$17,'RDS ee cont rates'!$D$17,IF(J102<='RDS ee cont rates'!$B$19,'RDS ee cont rates'!$D$19,IF(J102<='RDS ee cont rates'!$B$21,'RDS ee cont rates'!$D$21,IF(J102<='RDS ee cont rates'!$B$23,'RDS ee cont rates'!$D$23,IF(J102<='RDS ee cont rates'!$B$25,'RDS ee cont rates'!$D$25,IF(J102<='RDS ee cont rates'!$B$27,'RDS ee cont rates'!$D$27,IF(J102<='RDS ee cont rates'!$B$29,'RDS ee cont rates'!$D$29,IF(J102<='RDS ee cont rates'!$B$31,'RDS ee cont rates'!$D$31,'RDS ee cont rates'!$D$32)))))))) -> 0.11 | S102: 0 | T102: 0 | U102: 0 | V102: 0
B103: 2013 | C103: 8 | D103: 31 | E103: ='Interest and Tax'!D179 -> 449 | F103: 2013 - 14 | G103: 0 | H103: 0 | I103: 0 | J103: 0 | K103: =IF(J103<='NFPS ee cont rates'!$B$16,'NFPS ee cont rates'!$D$16,IF(J103<='NFPS ee cont rates'!$B$18,'NFPS ee cont rates'!$D$18,IF(J103<='NFPS ee cont rates'!$B$20,'NFPS ee cont rates'!$D$20,IF(J103<='NFPS ee cont rates'!$B$22,'NFPS ee cont rates'!$D$22,IF(J103<='NFPS ee cont rates'!$B$24,'NFPS ee cont rates'!$D$24,IF(J103<='NFPS ee cont rates'!$B$26,'NFPS ee cont rates'!$D$26,IF(J103<='NFPS ee cont rates'!$B$28,'NFPS ee cont rates'!$D$28,IF(J103<='NFPS ee cont rates'!$B$30,'NFPS ee cont rates'!$D$30,'NFPS ee cont rates'!$D$32)))))))) -> 0.085 | L103: 0 | M103: NFPS | N103: 0.085 | O103: 0 | P103: 0 | Q103: 0 | R103: =IF(J103<='RDS ee cont rates'!$B$17,'RDS ee cont rates'!$D$17,IF(J103<='RDS ee cont rates'!$B$19,'RDS ee cont rates'!$D$19,IF(J103<='RDS ee cont rates'!$B$21,'RDS ee cont rates'!$D$21,IF(J103<='RDS ee cont rates'!$B$23,'RDS ee cont rates'!$D$23,IF(J103<='RDS ee cont rates'!$B$25,'RDS ee cont rates'!$D$25,IF(J103<='RDS ee cont rates'!$B$27,'RDS ee cont rates'!$D$27,IF(J103<='RDS ee cont rates'!$B$29,'RDS ee cont rates'!$D$29,IF(J103<='RDS ee cont rates'!$B$31,'RDS ee cont rates'!$D$31,'RDS ee cont rates'!$D$32)))))))) -> 0.11 | S103: 0 | T103: 0 | U103: 0 | V103: 0
B104: 2013 | C104: 9 | D104: 30 | E104: ='Interest and Tax'!D180 -> 450 | F104: 2013 - 14 | G104: 0 | H104: 0 | I104: 0 | J104: 0 | K104: =IF(J104<='NFPS ee cont rates'!$B$16,'NFPS ee cont rates'!$D$16,IF(J104<='NFPS ee cont rates'!$B$18,'NFPS ee cont rates'!$D$18,IF(J104<='NFPS ee cont rates'!$B$20,'NFPS ee cont rates'!$D$20,IF(J104<='NFPS ee cont rates'!$B$22,'NFPS ee cont rates'!$D$22,IF(J104<='NFPS ee cont rates'!$B$24,'NFPS ee cont rates'!$D$24,IF(J104<='NFPS ee cont rates'!$B$26,'NFPS ee cont rates'!$D$26,IF(J104<='NFPS ee cont rates'!$B$28,'NFPS ee cont rates'!$D$28,IF(J104<='NFPS ee cont rates'!$B$30,'NFPS ee cont rates'!$D$30,'NFPS ee cont rates'!$D$32)))))))) -> 0.085 | L104: 0 | M104: NFPS | N104: 0.085 | O104: 0 | P104: 0 | Q104: 0 | R104: =IF(J104<='RDS ee cont rates'!$B$17,'RDS ee cont rates'!$D$17,IF(J104<='RDS ee cont rates'!$B$19,'RDS ee cont rates'!$D$19,IF(J104<='RDS ee cont rates'!$B$21,'RDS ee cont rates'!$D$21,IF(J104<='RDS ee cont rates'!$B$23,'RDS ee cont rates'!$D$23,IF(J104<='RDS ee cont rates'!$B$25,'RDS ee cont rates'!$D$25,IF(J104<='RDS ee cont rates'!$B$27,'RDS ee cont rates'!$D$27,IF(J104<='RDS ee cont rates'!$B$29,'RDS ee cont rates'!$D$29,IF(J104<='RDS ee cont rates'!$B$31,'RDS ee cont rates'!$D$31,'RDS ee cont rates'!$D$32)))))))) -> 0.11 | S104: 0 | T104: 0 | U104: 0 | V104: 0
B105: 2013 | C105: 10 | D105: 31 | E105: ='Interest and Tax'!D181 -> 451 | F105: 2013 - 14 | G105: 0 | H105: 0 | I105: 0 | J105: 0 | K105: =IF(J105<='NFPS ee cont rates'!$B$16,'NFPS ee cont rates'!$D$16,IF(J105<='NFPS ee cont rates'!$B$18,'NFPS ee cont rates'!$D$18,IF(J105<='NFPS ee cont rates'!$B$20,'NFPS ee cont rates'!$D$20,IF(J105<='NFPS ee cont rates'!$B$22,'NFPS ee cont rates'!$D$22,IF(J105<='NFPS ee cont rates'!$B$24,'NFPS ee cont rates'!$D$24,IF(J105<='NFPS ee cont rates'!$B$26,'NFPS ee cont rates'!$D$26,IF(J105<='NFPS ee cont rates'!$B$28,'NFPS ee cont rates'!$D$28,IF(J105<='NFPS ee cont rates'!$B$30,'NFPS ee cont rates'!$D$30,'NFPS ee cont rates'!$D$32)))))))) -> 0.085 | L105: 0 | M105: NFPS | N105: 0.085 | O105: 0 | P105: 0 | Q105: 0 | R105: =IF(J105<='RDS ee cont rates'!$B$17,'RDS ee cont rates'!$D$17,IF(J105<='RDS ee cont rates'!$B$19,'RDS ee cont rates'!$D$19,IF(J105<='RDS ee cont rates'!$B$21,'RDS ee cont rates'!$D$21,IF(J105<='RDS ee cont rates'!$B$23,'RDS ee cont rates'!$D$23,IF(J105<='RDS ee cont rates'!$B$25,'RDS ee cont rates'!$D$25,IF(J105<='RDS ee cont rates'!$B$27,'RDS ee cont rates'!$D$27,IF(J105<='RDS ee cont rates'!$B$29,'RDS ee cont rates'!$D$29,IF(J105<='RDS ee cont rates'!$B$31,'RDS ee cont rates'!$D$31,'RDS ee cont rates'!$D$32)))))))) -> 0.11 | S105: 0 | T105: 0 | U105: 0 | V105: 0
B106: 2013 | C106: 11 | D106: 30 | E106: ='Interest and Tax'!D182 -> 452 | F106: 2013 - 14 | G106: 0 | H106: 0 | I106: 0 | J106: 0 | K106: =IF(J106<='NFPS ee cont rates'!$B$16,'NFPS ee cont rates'!$D$16,IF(J106<='NFPS ee cont rates'!$B$18,'NFPS ee cont rates'!$D$18,IF(J106<='NFPS ee cont rates'!$B$20,'NFPS ee cont rates'!$D$20,IF(J106<='NFPS ee cont rates'!$B$22,'NFPS ee cont rates'!$D$22,IF(J106<='NFPS ee cont rates'!$B$24,'NFPS ee cont rates'!$D$24,IF(J106<='NFPS ee cont rates'!$B$26,'NFPS ee cont rates'!$D$26,IF(J106<='NFPS ee cont rates'!$B$28,'NFPS ee cont rates'!$D$28,IF(J106<='NFPS ee cont rates'!$B$30,'NFPS ee cont rates'!$D$30,'NFPS ee cont rates'!$D$32)))))))) -> 0.085 | L106: 0 | M106: NFPS | N106: 0.085 | O106: 0 | P106: 0 | Q106: 0 | R106: =IF(J106<='RDS ee cont rates'!$B$17,'RDS ee cont rates'!$D$17,IF(J106<='RDS ee cont rates'!$B$19,'RDS ee cont rates'!$D$19,IF(J106<='RDS ee cont rates'!$B$21,'RDS ee cont rates'!$D$21,IF(J106<='RDS ee cont rates'!$B$23,'RDS ee cont rates'!$D$23,IF(J106<='RDS ee cont rates'!$B$25,'RDS ee cont rates'!$D$25,IF(J106<='RDS ee cont rates'!$B$27,'RDS ee cont rates'!$D$27,IF(J106<='RDS ee cont rates'!$B$29,'RDS ee cont rates'!$D$29,IF(J106<='RDS ee cont rates'!$B$31,'RDS ee cont rates'!$D$31,'RDS ee cont rates'!$D$32)))))))) -> 0.11 | S106: 0 | T106: 0 | U106: 0 | V106: 0
B107: 2013 | C107: 12 | D107: 31 | E107: ='Interest and Tax'!D183 -> 453 | F107: 2013 - 14 | G107: 0 | H107: 0 | I107: 0 | J107: 0 | K107: =IF(J107<='NFPS ee cont rates'!$B$16,'NFPS ee cont rates'!$D$16,IF(J107<='NFPS ee cont rates'!$B$18,'NFPS ee cont rates'!$D$18,IF(J107<='NFPS ee cont rates'!$B$20,'NFPS ee cont rates'!$D$20,IF(J107<='NFPS ee cont rates'!$B$22,'NFPS ee cont rates'!$D$22,IF(J107<='NFPS ee cont rates'!$B$24,'NFPS ee cont rates'!$D$24,IF(J107<='NFPS ee cont rates'!$B$26,'NFPS ee cont rates'!$D$26,IF(J107<='NFPS ee cont rates'!$B$28,'NFPS ee cont rates'!$D$28,IF(J107<='NFPS ee cont rates'!$B$30,'NFPS ee cont rates'!$D$30,'NFPS ee cont rates'!$D$32)))))))) -> 0.085 | L107: 0 | M107: NFPS | N107: 0.085 | O107: 0 | P107: 0 | Q107: 0 | R107: =IF(J107<='RDS ee cont rates'!$B$17,'RDS ee cont rates'!$D$17,IF(J107<='RDS ee cont rates'!$B$19,'RDS ee cont rates'!$D$19,IF(J107<='RDS ee cont rates'!$B$21,'RDS ee cont rates'!$D$21,IF(J107<='RDS ee cont rates'!$B$23,'RDS ee cont rates'!$D$23,IF(J107<='RDS ee cont rates'!$B$25,'RDS ee cont rates'!$D$25,IF(J107<='RDS ee cont rates'!$B$27,'RDS ee cont rates'!$D$27,IF(J107<='RDS ee cont rates'!$B$29,'RDS ee cont rates'!$D$29,IF(J107<='RDS ee cont rates'!$B$31,'RDS ee cont rates'!$D$31,'RDS ee cont rates'!$D$32)))))))) -> 0.11 | S107: 0 | T107: 0 | U107: 0 | V107: 0
B108: 2014 | C108: 1 | D108: 31 | E108: ='Interest and Tax'!D184 -> 454 | F108: 2013 - 14 | G108: 0 | H108: 0 | I108: 0 | J108: 0 | K108: =IF(J108<='NFPS ee cont rates'!$B$16,'NFPS ee cont rates'!$D$16,IF(J108<='NFPS ee cont rates'!$B$18,'NFPS ee cont rates'!$D$18,IF(J108<='NFPS ee cont rates'!$B$20,'NFPS ee cont rates'!$D$20,IF(J108<='NFPS ee cont rates'!$B$22,'NFPS ee cont rates'!$D$22,IF(J108<='NFPS ee cont rates'!$B$24,'NFPS ee cont rates'!$D$24,IF(J108<='NFPS ee cont rates'!$B$26,'NFPS ee cont rates'!$D$26,IF(J108<='NFPS ee cont rates'!$B$28,'NFPS ee cont rates'!$D$28,IF(J108<='NFPS ee cont rates'!$B$30,'NFPS ee cont rates'!$D$30,'NFPS ee cont rates'!$D$32)))))))) -> 0.085 | L108: 0 | M108: NFPS | N108: 0.085 | O108: 0 | P108: 0 | Q108: 0 | R108: =IF(J108<='RDS ee cont rates'!$B$17,'RDS ee cont rates'!$D$17,IF(J108<='RDS ee cont rates'!$B$19,'RDS ee cont rates'!$D$19,IF(J108<='RDS ee cont rates'!$B$21,'RDS ee cont rates'!$D$21,IF(J108<='RDS ee cont rates'!$B$23,'RDS ee cont rates'!$D$23,IF(J108<='RDS ee cont rates'!$B$25,'RDS ee cont rates'!$D$25,IF(J108<='RDS ee cont rates'!$B$27,'RDS ee cont rates'!$D$27,IF(J108<='RDS ee cont rates'!$B$29,'RDS ee cont rates'!$D$29,IF(J108<='RDS ee cont rates'!$B$31,'RDS ee cont rates'!$D$31,'RDS ee cont rates'!$D$32)))))))) -> 0.11 | S108: 0 | T108: 0 | U108: 0 | V108: 0
B109: 2014 | C109: 2 | D109: 28 | E109: ='Interest and Tax'!D185 -> 455 | F109: 2013 - 14 | G109: 0 | H109: 0 | I109: 0 | J109: 0 | K109: =IF(J109<='NFPS ee cont rates'!$B$16,'NFPS ee cont rates'!$D$16,IF(J109<='NFPS ee cont rates'!$B$18,'NFPS ee cont rates'!$D$18,IF(J109<='NFPS ee cont rates'!$B$20,'NFPS ee cont rates'!$D$20,IF(J109<='NFPS ee cont rates'!$B$22,'NFPS ee cont rates'!$D$22,IF(J109<='NFPS ee cont rates'!$B$24,'NFPS ee cont rates'!$D$24,IF(J109<='NFPS ee cont rates'!$B$26,'NFPS ee cont rates'!$D$26,IF(J109<='NFPS ee cont rates'!$B$28,'NFPS ee cont rates'!$D$28,IF(J109<='NFPS ee cont rates'!$B$30,'NFPS ee cont rates'!$D$30,'NFPS ee cont rates'!$D$32)))))))) -> 0.085 | L109: 0 | M109: NFPS | N109: 0.085 | O109: 0 | P109: 0 | Q109: 0 | R109: =IF(J109<='RDS ee cont rates'!$B$17,'RDS ee cont rates'!$D$17,IF(J109<='RDS ee cont rates'!$B$19,'RDS ee cont rates'!$D$19,IF(J109<='RDS ee cont rates'!$B$21,'RDS ee cont rates'!$D$21,IF(J109<='RDS ee cont rates'!$B$23,'RDS ee cont rates'!$D$23,IF(J109<='RDS ee cont rates'!$B$25,'RDS ee cont rates'!$D$25,IF(J109<='RDS ee cont rates'!$B$27,'RDS ee cont rates'!$D$27,IF(J109<='RDS ee cont rates'!$B$29,'RDS ee cont rates'!$D$29,IF(J109<='RDS ee cont rates'!$B$31,'RDS ee cont rates'!$D$31,'RDS ee cont rates'!$D$32)))))))) -> 0.11 | S109: 0 | T109: 0 | U109: 0 | V109: 0
B110: 2014 | C110: 3 | D110: 31 | E110: ='Interest and Tax'!D186 -> 456 | F110: 2013 - 14 | G110: 0 | H110: 0 | I110: 0 | J110: 0 | K110: =IF(J110<='NFPS ee cont rates'!$B$16,'NFPS ee cont rates'!$D$16,IF(J110<='NFPS ee cont rates'!$B$18,'NFPS ee cont rates'!$D$18,IF(J110<='NFPS ee cont rates'!$B$20,'NFPS ee cont rates'!$D$20,IF(J110<='NFPS ee cont rates'!$B$22,'NFPS ee cont rates'!$D$22,IF(J110<='NFPS ee cont rates'!$B$24,'NFPS ee cont rates'!$D$24,IF(J110<='NFPS ee cont rates'!$B$26,'NFPS ee cont rates'!$D$26,IF(J110<='NFPS ee cont rates'!$B$28,'NFPS ee cont rates'!$D$28,IF(J110<='NFPS ee cont rates'!$B$30,'NFPS ee cont rates'!$D$30,'NFPS ee cont rates'!$D$32)))))))) -> 0.085 | L110: 0 | M110: NFPS | N110: 0.085 | O110: 0 | P110: 0 | Q110: 0 | R110: =IF(J110<='RDS ee cont rates'!$B$17,'RDS ee cont rates'!$D$17,IF(J110<='RDS ee cont rates'!$B$19,'RDS ee cont rates'!$D$19,IF(J110<='RDS ee cont rates'!$B$21,'RDS ee cont rates'!$D$21,IF(J110<='RDS ee cont rates'!$B$23,'RDS ee cont rates'!$D$23,IF(J110<='RDS ee cont rates'!$B$25,'RDS ee cont rates'!$D$25,IF(J110<='RDS ee cont rates'!$B$27,'RDS ee cont rates'!$D$27,IF(J110<='RDS ee cont rates'!$B$29,'RDS ee cont rates'!$D$29,IF(J110<='RDS ee cont rates'!$B$31,'RDS ee cont rates'!$D$31,'RDS ee cont rates'!$D$32)))))))) -> 0.11 | S110: 0 | T110: 0 | U110: 0 | V110: 0
B111: 2014 | C111: 4 | D111: 30 | E111: ='Interest and Tax'!D187 -> 457 | F111: 2014 - 15 | G111: =IF(AND(Mod2_NFPSStartDate<=DATE(B111,C111+1,1)-1,Mod2_NFPSEndDate>=DATE(B111,C111,1)),1,0) -> 0 | H111: =IF(AND(YEAR(Mod2_NFPSStartDate)=B111,MONTH(Mod2_NFPSStartDate)=C111),(D111+1)-DAY(Mod2_NFPSStartDate),IF(AND(YEAR(Mod2_NFPSEndDate)=B111,MONTH(Mod2_NFPSEndDate)=C111),DAY(Mod2_NFPSEndDate)*G111,G111*D111))/D111 -> 0 | I111: =G111*IF(ISERROR(VLOOKUP(F111,Mod2_NFPSPayContDetails,3,FALSE)/HLOOKUP(F111,Mod2_NFPSQualfMonths,2,FALSE)),0,VLOOKUP(F111,Mod2_NFPSPayContDetails,3,FALSE)/HLOOKUP(F111,Mod2_NFPSQualfMonths,2,FALSE)) -> 0 | J111: =VLOOKUP(F111,Mod2_NFPSPayContDetails,4,FALSE) -> 0 | K111: =IF(J111<='NFPS ee cont rates'!$B$16,'NFPS ee cont rates'!$E$16,IF(J111<='NFPS ee cont rates'!$B$18,'NFPS ee cont rates'!$E$18,IF(J111<='NFPS ee cont rates'!$B$20,'NFPS ee cont rates'!$E$20,IF(J111<='NFPS ee cont rates'!$B$22,'NFPS ee cont rates'!$E$22,IF(J111<='NFPS ee cont rates'!$B$24,'NFPS ee cont rates'!$E$24,IF(J111<='NFPS ee cont rates'!$B$26,'NFPS ee cont rates'!$E$26,IF(J111<='NFPS ee cont rates'!$B$28,'NFPS ee cont rates'!$E$28,IF(J111<='NFPS ee cont rates'!$B$30,'NFPS ee cont rates'!$E$30,'NFPS ee cont rates'!$E$32)))))))) -> 0.085 | L111: 0 | M111: NFPS | N111: 0.085 | O111: =I111*N111 -> 0 | P111: =G111*IF(ISERROR(VLOOKUP(F111,Mod2_NFPSPayContDetails,2,FALSE)/HLOOKUP(F111,Mod2_NFPSQualfMonths,2,FALSE)),0,VLOOKUP(F111,Mod2_NFPSPayContDetails,2,FALSE)/HLOOKUP(F111,Mod2_NFPSQualfMonths,2,FALSE)) -> 0 | Q111: =IF(Mod2_NFPSContDataType="Contributions",P111,IF(Mod2_NFPSContDataType="Pay data",O111,0)) -> 0 | R111: =IF(J111<='RDS ee cont rates'!$B$17,'RDS ee cont rates'!$E$17,IF(J111<='RDS ee cont rates'!$B$19,'RDS ee cont rates'!$E$19,IF(J111<='RDS ee cont rates'!$B$21,'RDS ee cont rates'!$E$21,IF(J111<='RDS ee cont rates'!$B$23,'RDS ee cont rates'!$E$23,IF(J111<='RDS ee cont rates'!$B$25,'RDS ee cont rates'!$E$25,IF(J111<='RDS ee cont rates'!$B$27,'RDS ee cont rates'!$E$27,IF(J111<='RDS ee cont rates'!$B$29,'RDS ee cont rates'!$E$29,IF(J111<='RDS ee cont rates'!$B$31,'RDS ee cont rates'!$E$31,'RDS ee cont rates'!$E$32)))))))) -> 0.11 | S111: =Q111*R111/N111 -> 0 | T111: 0 | U111: =IF(ISERROR(G111*I111*12/J111),0,G111*I111*12/J111) -> 0 | V111: =IF(AND(G112=0,G111=1),1,0) -> 0 | W111: Note change in formulae used from this point on for NFPS and RDS cont rate columns
B112: 2014 | C112: 5 | D112: 31 | E112: ='Interest and Tax'!D188 -> 458 | F112: 2014 - 15 | G112: 0 | H112: 0 | I112: 0 | J112: 0 | K112: =IF(J112<='NFPS ee cont rates'!$B$16,'NFPS ee cont rates'!$E$16,IF(J112<='NFPS ee cont rates'!$B$18,'NFPS ee cont rates'!$E$18,IF(J112<='NFPS ee cont rates'!$B$20,'NFPS ee cont rates'!$E$20,IF(J112<='NFPS ee cont rates'!$B$22,'NFPS ee cont rates'!$E$22,IF(J112<='NFPS ee cont rates'!$B$24,'NFPS ee cont rates'!$E$24,IF(J112<='NFPS ee cont rates'!$B$26,'NFPS ee cont rates'!$E$26,IF(J112<='NFPS ee cont rates'!$B$28,'NFPS ee cont rates'!$E$28,IF(J112<='NFPS ee cont rates'!$B$30,'NFPS ee cont rates'!$E$30,'NFPS ee cont rates'!$E$32)))))))) -> 0.085 | L112: 0 | M112: NFPS | N112: 0.085 | O112: 0 | P112: 0 | Q112: 0 | R112: =IF(J112<='RDS ee cont rates'!$B$17,'RDS ee cont rates'!$E$17,IF(J112<='RDS ee cont rates'!$B$19,'RDS ee cont rates'!$E$19,IF(J112<='RDS ee cont rates'!$B$21,'RDS ee cont rates'!$E$21,IF(J112<='RDS ee cont rates'!$B$23,'RDS ee cont rates'!$E$23,IF(J112<='RDS ee cont rates'!$B$25,'RDS ee cont rates'!$E$25,IF(J112<='RDS ee cont rates'!$B$27,'RDS ee cont rates'!$E$27,IF(J112<='RDS ee cont rates'!$B$29,'RDS ee cont rates'!$E$29,IF(J112<='RDS ee cont rates'!$B$31,'RDS ee cont rates'!$E$31,'RDS ee cont rates'!$E$32)))))))) -> 0.11 | S112: 0 | T112: 0 | U112: 0 | V112: 0
B113: 2014 | C113: 6 | D113: 30 | E113: ='Interest and Tax'!D189 -> 459 | F113: 2014 - 15 | G113: 0 | H113: 0 | I113: 0 | J113: 0 | K113: =IF(J113<='NFPS ee cont rates'!$B$16,'NFPS ee cont rates'!$E$16,IF(J113<='NFPS ee cont rates'!$B$18,'NFPS ee cont rates'!$E$18,IF(J113<='NFPS ee cont rates'!$B$20,'NFPS ee cont rates'!$E$20,IF(J113<='NFPS ee cont rates'!$B$22,'NFPS ee cont rates'!$E$22,IF(J113<='NFPS ee cont rates'!$B$24,'NFPS ee cont rates'!$E$24,IF(J113<='NFPS ee cont rates'!$B$26,'NFPS ee cont rates'!$E$26,IF(J113<='NFPS ee cont rates'!$B$28,'NFPS ee cont rates'!$E$28,IF(J113<='NFPS ee cont rates'!$B$30,'NFPS ee cont rates'!$E$30,'NFPS ee cont rates'!$E$32)))))))) -> 0.085 | L113: 0 | M113: NFPS | N113: 0.085 | O113: 0 | P113: 0 | Q113: 0 | R113: =IF(J113<='RDS ee cont rates'!$B$17,'RDS ee cont rates'!$E$17,IF(J113<='RDS ee cont rates'!$B$19,'RDS ee cont rates'!$E$19,IF(J113<='RDS ee cont rates'!$B$21,'RDS ee cont rates'!$E$21,IF(J113<='RDS ee cont rates'!$B$23,'RDS ee cont rates'!$E$23,IF(J113<='RDS ee cont rates'!$B$25,'RDS ee cont rates'!$E$25,IF(J113<='RDS ee cont rates'!$B$27,'RDS ee cont rates'!$E$27,IF(J113<='RDS ee cont rates'!$B$29,'RDS ee cont rates'!$E$29,IF(J113<='RDS ee cont rates'!$B$31,'RDS ee cont rates'!$E$31,'RDS ee cont rates'!$E$32)))))))) -> 0.11 | S113: 0 | T113: 0 | U113: 0 | V113: 0
B114: 2014 | C114: 7 | D114: 31 | E114: ='Interest and Tax'!D190 -> 460 | F114: 2014 - 15 | G114: 0 | H114: 0 | I114: 0 | J114: 0 | K114: =IF(J114<='NFPS ee cont rates'!$B$16,'NFPS ee cont rates'!$E$16,IF(J114<='NFPS ee cont rates'!$B$18,'NFPS ee cont rates'!$E$18,IF(J114<='NFPS ee cont rates'!$B$20,'NFPS ee cont rates'!$E$20,IF(J114<='NFPS ee cont rates'!$B$22,'NFPS ee cont rates'!$E$22,IF(J114<='NFPS ee cont rates'!$B$24,'NFPS ee cont rates'!$E$24,IF(J114<='NFPS ee cont rates'!$B$26,'NFPS ee cont rates'!$E$26,IF(J114<='NFPS ee cont rates'!$B$28,'NFPS ee cont rates'!$E$28,IF(J114<='NFPS ee cont rates'!$B$30,'NFPS ee cont rates'!$E$30,'NFPS ee cont rates'!$E$32)))))))) -> 0.085 | L114: 0 | M114: NFPS | N114: 0.085 | O114: 0 | P114: 0 | Q114: 0 | R114: =IF(J114<='RDS ee cont rates'!$B$17,'RDS ee cont rates'!$E$17,IF(J114<='RDS ee cont rates'!$B$19,'RDS ee cont rates'!$E$19,IF(J114<='RDS ee cont rates'!$B$21,'RDS ee cont rates'!$E$21,IF(J114<='RDS ee cont rates'!$B$23,'RDS ee cont rates'!$E$23,IF(J114<='RDS ee cont rates'!$B$25,'RDS ee cont rates'!$E$25,IF(J114<='RDS ee cont rates'!$B$27,'RDS ee cont rates'!$E$27,IF(J114<='RDS ee cont rates'!$B$29,'RDS ee cont rates'!$E$29,IF(J114<='RDS ee cont rates'!$B$31,'RDS ee cont rates'!$E$31,'RDS ee cont rates'!$E$32)))))))) -> 0.11 | S114: 0 | T114: 0 | U114: 0 | V114: 0
B115: 2014 | C115: 8 | D115: 31 | E115: ='Interest and Tax'!D191 -> 461 | F115: 2014 - 15 | G115: 0 | H115: 0 | I115: 0 | J115: 0 | K115: =IF(J115<='NFPS ee cont rates'!$B$16,'NFPS ee cont rates'!$E$16,IF(J115<='NFPS ee cont rates'!$B$18,'NFPS ee cont rates'!$E$18,IF(J115<='NFPS ee cont rates'!$B$20,'NFPS ee cont rates'!$E$20,IF(J115<='NFPS ee cont rates'!$B$22,'NFPS ee cont rates'!$E$22,IF(J115<='NFPS ee cont rates'!$B$24,'NFPS ee cont rates'!$E$24,IF(J115<='NFPS ee cont rates'!$B$26,'NFPS ee cont rates'!$E$26,IF(J115<='NFPS ee cont rates'!$B$28,'NFPS ee cont rates'!$E$28,IF(J115<='NFPS ee cont rates'!$B$30,'NFPS ee cont rates'!$E$30,'NFPS ee cont rates'!$E$32)))))))) -> 0.085 | L115: 0 | M115: NFPS | N115: 0.085 | O115: 0 | P115: 0 | Q115: 0 | R115: =IF(J115<='RDS ee cont rates'!$B$17,'RDS ee cont rates'!$E$17,IF(J115<='RDS ee cont rates'!$B$19,'RDS ee cont rates'!$E$19,IF(J115<='RDS ee cont rates'!$B$21,'RDS ee cont rates'!$E$21,IF(J115<='RDS ee cont rates'!$B$23,'RDS ee cont rates'!$E$23,IF(J115<='RDS ee cont rates'!$B$25,'RDS ee cont rates'!$E$25,IF(J115<='RDS ee cont rates'!$B$27,'RDS ee cont rates'!$E$27,IF(J115<='RDS ee cont rates'!$B$29,'RDS ee cont rates'!$E$29,IF(J115<='RDS ee cont rates'!$B$31,'RDS ee cont rates'!$E$31,'RDS ee cont rates'!$E$32)))))))) -> 0.11 | S115: 0 | T115: 0 | U115: 0 | V115: 0
B116: 2014 | C116: 9 | D116: 30 | E116: ='Interest and Tax'!D192 -> 462 | F116: 2014 - 15 | G116: 0 | H116: 0 | I116: 0 | J116: 0 | K116: =IF(J116<='NFPS ee cont rates'!$B$16,'NFPS ee cont rates'!$E$16,IF(J116<='NFPS ee cont rates'!$B$18,'NFPS ee cont rates'!$E$18,IF(J116<='NFPS ee cont rates'!$B$20,'NFPS ee cont rates'!$E$20,IF(J116<='NFPS ee cont rates'!$B$22,'NFPS ee cont rates'!$E$22,IF(J116<='NFPS ee cont rates'!$B$24,'NFPS ee cont rates'!$E$24,IF(J116<='NFPS ee cont rates'!$B$26,'NFPS ee cont rates'!$E$26,IF(J116<='NFPS ee cont rates'!$B$28,'NFPS ee cont rates'!$E$28,IF(J116<='NFPS ee cont rates'!$B$30,'NFPS ee cont rates'!$E$30,'NFPS ee cont rates'!$E$32)))))))) -> 0.085 | L116: 0 | M116: NFPS | N116: 0.085 | O116: 0 | P116: 0 | Q116: 0 | R116: =IF(J116<='RDS ee cont rates'!$B$17,'RDS ee cont rates'!$E$17,IF(J116<='RDS ee cont rates'!$B$19,'RDS ee cont rates'!$E$19,IF(J116<='RDS ee cont rates'!$B$21,'RDS ee cont rates'!$E$21,IF(J116<='RDS ee cont rates'!$B$23,'RDS ee cont rates'!$E$23,IF(J116<='RDS ee cont rates'!$B$25,'RDS ee cont rates'!$E$25,IF(J116<='RDS ee cont rates'!$B$27,'RDS ee cont rates'!$E$27,IF(J116<='RDS ee cont rates'!$B$29,'RDS ee cont rates'!$E$29,IF(J116<='RDS ee cont rates'!$B$31,'RDS ee cont rates'!$E$31,'RDS ee cont rates'!$E$32)))))))) -> 0.11 | S116: 0 | T116: 0 | U116: 0 | V116: 0
B117: 2014 | C117: 10 | D117: 31 | E117: ='Interest and Tax'!D193 -> 463 | F117: 2014 - 15 | G117: 0 | H117: 0 | I117: 0 | J117: 0 | K117: =IF(J117<='NFPS ee cont rates'!$B$16,'NFPS ee cont rates'!$E$16,IF(J117<='NFPS ee cont rates'!$B$18,'NFPS ee cont rates'!$E$18,IF(J117<='NFPS ee cont rates'!$B$20,'NFPS ee cont rates'!$E$20,IF(J117<='NFPS ee cont rates'!$B$22,'NFPS ee cont rates'!$E$22,IF(J117<='NFPS ee cont rates'!$B$24,'NFPS ee cont rates'!$E$24,IF(J117<='NFPS ee cont rates'!$B$26,'NFPS ee cont rates'!$E$26,IF(J117<='NFPS ee cont rates'!$B$28,'NFPS ee cont rates'!$E$28,IF(J117<='NFPS ee cont rates'!$B$30,'NFPS ee cont rates'!$E$30,'NFPS ee cont rates'!$E$32)))))))) -> 0.085 | L117: 0 | M117: NFPS | N117: 0.085 | O117: 0 | P117: 0 | Q117: 0 | R117: =IF(J117<='RDS ee cont rates'!$B$17,'RDS ee cont rates'!$E$17,IF(J117<='RDS ee cont rates'!$B$19,'RDS ee cont rates'!$E$19,IF(J117<='RDS ee cont rates'!$B$21,'RDS ee cont rates'!$E$21,IF(J117<='RDS ee cont rates'!$B$23,'RDS ee cont rates'!$E$23,IF(J117<='RDS ee cont rates'!$B$25,'RDS ee cont rates'!$E$25,IF(J117<='RDS ee cont rates'!$B$27,'RDS ee cont rates'!$E$27,IF(J117<='RDS ee cont rates'!$B$29,'RDS ee cont rates'!$E$29,IF(J117<='RDS ee cont rates'!$B$31,'RDS ee cont rates'!$E$31,'RDS ee cont rates'!$E$32)))))))) -> 0.11 | S117: 0 | T117: 0 | U117: 0 | V117: 0
B118: 2014 | C118: 11 | D118: 30 | E118: ='Interest and Tax'!D194 -> 464 | F118: 2014 - 15 | G118: 0 | H118: 0 | I118: 0 | J118: 0 | K118: =IF(J118<='NFPS ee cont rates'!$B$16,'NFPS ee cont rates'!$E$16,IF(J118<='NFPS ee cont rates'!$B$18,'NFPS ee cont rates'!$E$18,IF(J118<='NFPS ee cont rates'!$B$20,'NFPS ee cont rates'!$E$20,IF(J118<='NFPS ee cont rates'!$B$22,'NFPS ee cont rates'!$E$22,IF(J118<='NFPS ee cont rates'!$B$24,'NFPS ee cont rates'!$E$24,IF(J118<='NFPS ee cont rates'!$B$26,'NFPS ee cont rates'!$E$26,IF(J118<='NFPS ee cont rates'!$B$28,'NFPS ee cont rates'!$E$28,IF(J118<='NFPS ee cont rates'!$B$30,'NFPS ee cont rates'!$E$30,'NFPS ee cont rates'!$E$32)))))))) -> 0.085 | L118: 0 | M118: NFPS | N118: 0.085 | O118: 0 | P118: 0 | Q118: 0 | R118: =IF(J118<='RDS ee cont rates'!$B$17,'RDS ee cont rates'!$E$17,IF(J118<='RDS ee cont rates'!$B$19,'RDS ee cont rates'!$E$19,IF(J118<='RDS ee cont rates'!$B$21,'RDS ee cont rates'!$E$21,IF(J118<='RDS ee cont rates'!$B$23,'RDS ee cont rates'!$E$23,IF(J118<='RDS ee cont rates'!$B$25,'RDS ee cont rates'!$E$25,IF(J118<='RDS ee cont rates'!$B$27,'RDS ee cont rates'!$E$27,IF(J118<='RDS ee cont rates'!$B$29,'RDS ee cont rates'!$E$29,IF(J118<='RDS ee cont rates'!$B$31,'RDS ee cont rates'!$E$31,'RDS ee cont rates'!$E$32)))))))) -> 0.11 | S118: 0 | T118: 0 | U118: 0 | V118: 0
B119: 2014 | C119: 12 | D119: 31 | E119: ='Interest and Tax'!D195 -> 465 | F119: 2014 - 15 | G119: 0 | H119: 0 | I119: 0 | J119: 0 | K119: =IF(J119<='NFPS ee cont rates'!$B$16,'NFPS ee cont rates'!$E$16,IF(J119<='NFPS ee cont rates'!$B$18,'NFPS ee cont rates'!$E$18,IF(J119<='NFPS ee cont rates'!$B$20,'NFPS ee cont rates'!$E$20,IF(J119<='NFPS ee cont rates'!$B$22,'NFPS ee cont rates'!$E$22,IF(J119<='NFPS ee cont rates'!$B$24,'NFPS ee cont rates'!$E$24,IF(J119<='NFPS ee cont rates'!$B$26,'NFPS ee cont rates'!$E$26,IF(J119<='NFPS ee cont rates'!$B$28,'NFPS ee cont rates'!$E$28,IF(J119<='NFPS ee cont rates'!$B$30,'NFPS ee cont rates'!$E$30,'NFPS ee cont rates'!$E$32)))))))) -> 0.085 | L119: 0 | M119: NFPS | N119: 0.085 | O119: 0 | P119: 0 | Q119: 0 | R119: =IF(J119<='RDS ee cont rates'!$B$17,'RDS ee cont rates'!$E$17,IF(J119<='RDS ee cont rates'!$B$19,'RDS ee cont rates'!$E$19,IF(J119<='RDS ee cont rates'!$B$21,'RDS ee cont rates'!$E$21,IF(J119<='RDS ee cont rates'!$B$23,'RDS ee cont rates'!$E$23,IF(J119<='RDS ee cont rates'!$B$25,'RDS ee cont rates'!$E$25,IF(J119<='RDS ee cont rates'!$B$27,'RDS ee cont rates'!$E$27,IF(J119<='RDS ee cont rates'!$B$29,'RDS ee cont rates'!$E$29,IF(J119<='RDS ee cont rates'!$B$31,'RDS ee cont rates'!$E$31,'RDS ee cont rates'!$E$32)))))))) -> 0.11 | S119: 0 | T119: 0 | U119: 0 | V119: 0
B120: 2015 | C120: 1 | D120: 31 | E120: ='Interest and Tax'!D196 -> 466 | F120: 2014 - 15 | G120: 0 | H120: 0 | I120: 0 | J120: 0 | K120: =IF(J120<='NFPS ee cont rates'!$B$16,'NFPS ee cont rates'!$E$16,IF(J120<='NFPS ee cont rates'!$B$18,'NFPS ee cont rates'!$E$18,IF(J120<='NFPS ee cont rates'!$B$20,'NFPS ee cont rates'!$E$20,IF(J120<='NFPS ee cont rates'!$B$22,'NFPS ee cont rates'!$E$22,IF(J120<='NFPS ee cont rates'!$B$24,'NFPS ee cont rates'!$E$24,IF(J120<='NFPS ee cont rates'!$B$26,'NFPS ee cont rates'!$E$26,IF(J120<='NFPS ee cont rates'!$B$28,'NFPS ee cont rates'!$E$28,IF(J120<='NFPS ee cont rates'!$B$30,'NFPS ee cont rates'!$E$30,'NFPS ee cont rates'!$E$32)))))))) -> 0.085 | L120: 0 | M120: NFPS | N120: 0.085 | O120: 0 | P120: 0 | Q120: 0 | R120: =IF(J120<='RDS ee cont rates'!$B$17,'RDS ee cont rates'!$E$17,IF(J120<='RDS ee cont rates'!$B$19,'RDS ee cont rates'!$E$19,IF(J120<='RDS ee cont rates'!$B$21,'RDS ee cont rates'!$E$21,IF(J120<='RDS ee cont rates'!$B$23,'RDS ee cont rates'!$E$23,IF(J120<='RDS ee cont rates'!$B$25,'RDS ee cont rates'!$E$25,IF(J120<='RDS ee cont rates'!$B$27,'RDS ee cont rates'!$E$27,IF(J120<='RDS ee cont rates'!$B$29,'RDS ee cont rates'!$E$29,IF(J120<='RDS ee cont rates'!$B$31,'RDS ee cont rates'!$E$31,'RDS ee cont rates'!$E$32)))))))) -> 0.11 | S120: 0 | T120: 0 | U120: 0 | V120: 0
B121: 2015 | C121: 2 | D121: 28 | E121: ='Interest and Tax'!D197 -> 467 | F121: 2014 - 15 | G121: 0 | H121: 0 | I121: 0 | J121: 0 | K121: =IF(J121<='NFPS ee cont rates'!$B$16,'NFPS ee cont rates'!$E$16,IF(J121<='NFPS ee cont rates'!$B$18,'NFPS ee cont rates'!$E$18,IF(J121<='NFPS ee cont rates'!$B$20,'NFPS ee cont rates'!$E$20,IF(J121<='NFPS ee cont rates'!$B$22,'NFPS ee cont rates'!$E$22,IF(J121<='NFPS ee cont rates'!$B$24,'NFPS ee cont rates'!$E$24,IF(J121<='NFPS ee cont rates'!$B$26,'NFPS ee cont rates'!$E$26,IF(J121<='NFPS ee cont rates'!$B$28,'NFPS ee cont rates'!$E$28,IF(J121<='NFPS ee cont rates'!$B$30,'NFPS ee cont rates'!$E$30,'NFPS ee cont rates'!$E$32)))))))) -> 0.085 | L121: 0 | M121: NFPS | N121: 0.085 | O121: 0 | P121: 0 | Q121: 0 | R121: =IF(J121<='RDS ee cont rates'!$B$17,'RDS ee cont rates'!$E$17,IF(J121<='RDS ee cont rates'!$B$19,'RDS ee cont rates'!$E$19,IF(J121<='RDS ee cont rates'!$B$21,'RDS ee cont rates'!$E$21,IF(J121<='RDS ee cont rates'!$B$23,'RDS ee cont rates'!$E$23,IF(J121<='RDS ee cont rates'!$B$25,'RDS ee cont rates'!$E$25,IF(J121<='RDS ee cont rates'!$B$27,'RDS ee cont rates'!$E$27,IF(J121<='RDS ee cont rates'!$B$29,'RDS ee cont rates'!$E$29,IF(J121<='RDS ee cont rates'!$B$31,'RDS ee cont rates'!$E$31,'RDS ee cont rates'!$E$32)))))))) -> 0.11 | S121: 0 | T121: 0 | U121: 0 | V121: 0
B122: 2015 | C122: 3 | D122: 31 | E122: ='Interest and Tax'!D198 -> 468 | F122: 2014 - 15 | G122: 0 | H122: 0 | I122: 0 | J122: 0 | K122: =IF(J122<='NFPS ee cont rates'!$B$16,'NFPS ee cont rates'!$E$16,IF(J122<='NFPS ee cont rates'!$B$18,'NFPS ee cont rates'!$E$18,IF(J122<='NFPS ee cont rates'!$B$20,'NFPS ee cont rates'!$E$20,IF(J122<='NFPS ee cont rates'!$B$22,'NFPS ee cont rates'!$E$22,IF(J122<='NFPS ee cont rates'!$B$24,'NFPS ee cont rates'!$E$24,IF(J122<='NFPS ee cont rates'!$B$26,'NFPS ee cont rates'!$E$26,IF(J122<='NFPS ee cont rates'!$B$28,'NFPS ee cont rates'!$E$28,IF(J122<='NFPS ee cont rates'!$B$30,'NFPS ee cont rates'!$E$30,'NFPS ee cont rates'!$E$32)))))))) -> 0.085 | L122: 0 | M122: NFPS | N122: 0.085 | O122: 0 | P122: 0 | Q122: 0 | R122: =IF(J122<='RDS ee cont rates'!$B$17,'RDS ee cont rates'!$E$17,IF(J122<='RDS ee cont rates'!$B$19,'RDS ee cont rates'!$E$19,IF(J122<='RDS ee cont rates'!$B$21,'RDS ee cont rates'!$E$21,IF(J122<='RDS ee cont rates'!$B$23,'RDS ee cont rates'!$E$23,IF(J122<='RDS ee cont rates'!$B$25,'RDS ee cont rates'!$E$25,IF(J122<='RDS ee cont rates'!$B$27,'RDS ee cont rates'!$E$27,IF(J122<='RDS ee cont rates'!$B$29,'RDS ee cont rates'!$E$29,IF(J122<='RDS ee cont rates'!$B$31,'RDS ee cont rates'!$E$31,'RDS ee cont rates'!$E$32)))))))) -> 0.11 | S122: 0 | T122: 0 | U122: 0 | V122: 0
B123: 2015 | C123: 4 | D123: 30 | E123: ='Interest and Tax'!D199 -> 469 | F123: 2015 - 16 | G123: =IF(AND(Mod2_NFPSStartDate<=DATE(B123,C123+1,1)-1,Mod2_NFPSEndDate>=DATE(B123,C123,1)),1,0) -> 0 | H123: 0 | I123: =G123*IF(ISERROR(VLOOKUP(F123,Mod2_NFPSPayContDetails,3,FALSE)*H123/HLOOKUP(F123,Mod2_NFPSQualfPercMonths,2,FALSE)),0,VLOOKUP(F123,Mod2_NFPSPayContDetails,3,FALSE)*H123/HLOOKUP(F123,Mod2_NFPSQualfPercMonths,2,FALSE)) -> 0 | J123: 0 | K123: =IF(J123<='NFPS ee cont rates'!$B$17,'NFPS ee cont rates'!$F$17,IF(J123<='NFPS ee cont rates'!$B$19,'NFPS ee cont rates'!$F$19,IF(J123<='NFPS ee cont rates'!$B$21,'NFPS ee cont rates'!$F$21,IF(J123<='NFPS ee cont rates'!$B$23,'NFPS ee cont rates'!$F$23,IF(J123<='NFPS ee cont rates'!$B$25,'NFPS ee cont rates'!$F$25,IF(J123<='NFPS ee cont rates'!$B$27,'NFPS ee cont rates'!$F$27,IF(J123<='NFPS ee cont rates'!$B$29,'NFPS ee cont rates'!$F$29,IF(J123<='NFPS ee cont rates'!$B$31,'NFPS ee cont rates'!$F$31,'NFPS ee cont rates'!$F$32)))))))) -> 0.085 | L123: =IF(J123<='2015 Sch ee cont rates'!$B$14,'2015 Sch ee cont rates'!$C$14,IF(J123<='2015 Sch ee cont rates'!$B$15,'2015 Sch ee cont rates'!$C$15,IF(J123<='2015 Sch ee cont rates'!$B$16,'2015 Sch ee cont rates'!$C$16,'2015 Sch ee cont rates'!$C$17))) -> 0.1 | M123: =IF($S$4="NO","NFPS",IF(C123=$S$5,"COMBINED",IF(C123<$S$5,"NFPS","2015"))) -> 2015 | N123: =IF($M123="NFPS",K123,IF($M123="COMBINED",$S$10,L123)) -> 0.1 | O123: 0 | P123: =G123*(N123/Mod2_Yr1516_AvgContRate)*IF(ISERROR(VLOOKUP(F123,Mod2_NFPSPayContDetails,2,FALSE)*(H123/HLOOKUP(F123,Mod2_NFPSQualfPercMonths,2,FALSE))),0,VLOOKUP(F123,Mod2_NFPSPayContDetails,2,FALSE)*(H123/HLOOKUP(F123,Mod2_NFPSQualfPercMonths,2,FALSE))) ->  | Q123: 0 | R123: =IF(J123<='RDS ee cont rates'!$B$18,'RDS ee cont rates'!$F$18,IF(J123<='RDS ee cont rates'!$B$20,'RDS ee cont rates'!$F$20,IF(J123<='RDS ee cont rates'!$B$22,'RDS ee cont rates'!$F$22,IF(J123<='RDS ee cont rates'!$B$24,'RDS ee cont rates'!$F$24,IF(J123<='RDS ee cont rates'!$B$26,'RDS ee cont rates'!$F$26,IF(J123<='RDS ee cont rates'!$B$28,'RDS ee cont rates'!$F$28,IF(J123<='RDS ee cont rates'!$B$30,'RDS ee cont rates'!$F$30,IF(J123<'RDS ee cont rates'!$B$32,'RDS ee cont rates'!$F$32,'RDS ee cont rates'!$F$33)))))))) -> 0.11 | S123: 0 | T123: =S123-Q123 -> 0 | U123: 0 | V123: 0 | W123: Note change in formulae used from this point on for NFPS and RDS cont rate columns
B124: 2015 | C124: 5 | D124: 31 | E124: ='Interest and Tax'!D200 -> 470 | F124: 2015 - 16 | G124: =IF(AND(Mod2_NFPSStartDate<=DATE(B124,C124+1,1)-1,Mod2_NFPSEndDate>=DATE(B124,C124,1)),1,0) -> 0 | H124: =IF(AND(YEAR(Mod2_NFPSStartDate)=B124,MONTH(Mod2_NFPSStartDate)=C124),(D124+1)-DAY(Mod2_NFPSStartDate),IF(AND(YEAR(Mod2_NFPSEndDate)=B124,MONTH(Mod2_NFPSEndDate)=C124),DAY(Mod2_NFPSEndDate)*G124,G124*D124))/D124 -> 0 | I124: =G124*IF(ISERROR(VLOOKUP(F124,Mod2_NFPSPayContDetails,3,FALSE)*H124/HLOOKUP(F124,Mod2_NFPSQualfPercMonths,2,FALSE)),0,VLOOKUP(F124,Mod2_NFPSPayContDetails,3,FALSE)*H124/HLOOKUP(F124,Mod2_NFPSQualfPercMonths,2,FALSE)) -> 0 | J124: 0 | K124: =IF(J124<='NFPS ee cont rates'!$B$17,'NFPS ee cont rates'!$F$17,IF(J124<='NFPS ee cont rates'!$B$19,'NFPS ee cont rates'!$F$19,IF(J124<='NFPS ee cont rates'!$B$21,'NFPS ee cont rates'!$F$21,IF(J124<='NFPS ee cont rates'!$B$23,'NFPS ee cont rates'!$F$23,IF(J124<='NFPS ee cont rates'!$B$25,'NFPS ee cont rates'!$F$25,IF(J124<='NFPS ee cont rates'!$B$27,'NFPS ee cont rates'!$F$27,IF(J124<='NFPS ee cont rates'!$B$29,'NFPS ee cont rates'!$F$29,IF(J124<='NFPS ee cont rates'!$B$31,'NFPS ee cont rates'!$F$31,'NFPS ee cont rates'!$F$32)))))))) -> 0.085 | L124: =IF(J124<='2015 Sch ee cont rates'!$B$14,'2015 Sch ee cont rates'!$C$14,IF(J124<='2015 Sch ee cont rates'!$B$15,'2015 Sch ee cont rates'!$C$15,IF(J124<='2015 Sch ee cont rates'!$B$16,'2015 Sch ee cont rates'!$C$16,'2015 Sch ee cont rates'!$C$17))) -> 0.1 | M124: 2015 | N124: 0.1 | O124: 0 | P124: =G124*(N124/Mod2_Yr1516_AvgContRate)*IF(ISERROR(VLOOKUP(F124,Mod2_NFPSPayContDetails,2,FALSE)*(H124/HLOOKUP(F124,Mod2_NFPSQualfPercMonths,2,FALSE))),0,VLOOKUP(F124,Mod2_NFPSPayContDetails,2,FALSE)*(H124/HLOOKUP(F124,Mod2_NFPSQualfPercMonths,2,FALSE))) ->  | Q124: 0 | R124: =IF(J124<='RDS ee cont rates'!$B$18,'RDS ee cont rates'!$F$18,IF(J124<='RDS ee cont rates'!$B$20,'RDS ee cont rates'!$F$20,IF(J124<='RDS ee cont rates'!$B$22,'RDS ee cont rates'!$F$22,IF(J124<='RDS ee cont rates'!$B$24,'RDS ee cont rates'!$F$24,IF(J124<='RDS ee cont rates'!$B$26,'RDS ee cont rates'!$F$26,IF(J124<='RDS ee cont rates'!$B$28,'RDS ee cont rates'!$F$28,IF(J124<='RDS ee cont rates'!$B$30,'RDS ee cont rates'!$F$30,IF(J124<'RDS ee cont rates'!$B$32,'RDS ee cont rates'!$F$32,'RDS ee cont rates'!$F$33)))))))) -> 0.11 | S124: 0 | T124: =S124-Q124 -> 0 | U124: 0 | V124: 0 | W124: Note: Actual salary for 2015/16 split between months based on no. of days served
B125: 2015 | C125: 6 | D125: 30 | E125: ='Interest and Tax'!D201 -> 471 | F125: 2015 - 16 | G125: 0 | H125: 0 | I125: 0 | J125: 0 | K125: =IF(J125<='NFPS ee cont rates'!$B$17,'NFPS ee cont rates'!$F$17,IF(J125<='NFPS ee cont rates'!$B$19,'NFPS ee cont rates'!$F$19,IF(J125<='NFPS ee cont rates'!$B$21,'NFPS ee cont rates'!$F$21,IF(J125<='NFPS ee cont rates'!$B$23,'NFPS ee cont rates'!$F$23,IF(J125<='NFPS ee cont rates'!$B$25,'NFPS ee cont rates'!$F$25,IF(J125<='NFPS ee cont rates'!$B$27,'NFPS ee cont rates'!$F$27,IF(J125<='NFPS ee cont rates'!$B$29,'NFPS ee cont rates'!$F$29,IF(J125<='NFPS ee cont rates'!$B$31,'NFPS ee cont rates'!$F$31,'NFPS ee cont rates'!$F$32)))))))) -> 0.085 | L125: =IF(J125<='2015 Sch ee cont rates'!$B$14,'2015 Sch ee cont rates'!$C$14,IF(J125<='2015 Sch ee cont rates'!$B$15,'2015 Sch ee cont rates'!$C$15,IF(J125<='2015 Sch ee cont rates'!$B$16,'2015 Sch ee cont rates'!$C$16,'2015 Sch ee cont rates'!$C$17))) -> 0.1 | M125: 2015 | N125: 0.1 | O125: 0 | Q125: 0 | R125: =IF(J125<='RDS ee cont rates'!$B$18,'RDS ee cont rates'!$F$18,IF(J125<='RDS ee cont rates'!$B$20,'RDS ee cont rates'!$F$20,IF(J125<='RDS ee cont rates'!$B$22,'RDS ee cont rates'!$F$22,IF(J125<='RDS ee cont rates'!$B$24,'RDS ee cont rates'!$F$24,IF(J125<='RDS ee cont rates'!$B$26,'RDS ee cont rates'!$F$26,IF(J125<='RDS ee cont rates'!$B$28,'RDS ee cont rates'!$F$28,IF(J125<='RDS ee cont rates'!$B$30,'RDS ee cont rates'!$F$30,IF(J125<'RDS ee cont rates'!$B$32,'RDS ee cont rates'!$F$32,'RDS ee cont rates'!$F$33)))))))) -> 0.11 | S125: 0 | T125: 0 | U125: 0 | V125: 0 | W125: Note: Actual monthyl conts for 2015/16 formulae is different from previous years
B126: 2015 | C126: 7 | D126: 31 | E126: ='Interest and Tax'!D202 -> 472 | F126: 2015 - 16 | G126: 0 | H126: 0 | I126: 0 | J126: 0 | K126: =IF(J126<='NFPS ee cont rates'!$B$17,'NFPS ee cont rates'!$F$17,IF(J126<='NFPS ee cont rates'!$B$19,'NFPS ee cont rates'!$F$19,IF(J126<='NFPS ee cont rates'!$B$21,'NFPS ee cont rates'!$F$21,IF(J126<='NFPS ee cont rates'!$B$23,'NFPS ee cont rates'!$F$23,IF(J126<='NFPS ee cont rates'!$B$25,'NFPS ee cont rates'!$F$25,IF(J126<='NFPS ee cont rates'!$B$27,'NFPS ee cont rates'!$F$27,IF(J126<='NFPS ee cont rates'!$B$29,'NFPS ee cont rates'!$F$29,IF(J126<='NFPS ee cont rates'!$B$31,'NFPS ee cont rates'!$F$31,'NFPS ee cont rates'!$F$32)))))))) -> 0.085 | L126: =IF(J126<='2015 Sch ee cont rates'!$B$14,'2015 Sch ee cont rates'!$C$14,IF(J126<='2015 Sch ee cont rates'!$B$15,'2015 Sch ee cont rates'!$C$15,IF(J126<='2015 Sch ee cont rates'!$B$16,'2015 Sch ee cont rates'!$C$16,'2015 Sch ee cont rates'!$C$17))) -> 0.1 | M126: 2015 | N126: 0.1 | O126: 0 | Q126: 0 | R126: =IF(J126<='RDS ee cont rates'!$B$18,'RDS ee cont rates'!$F$18,IF(J126<='RDS ee cont rates'!$B$20,'RDS ee cont rates'!$F$20,IF(J126<='RDS ee cont rates'!$B$22,'RDS ee cont rates'!$F$22,IF(J126<='RDS ee cont rates'!$B$24,'RDS ee cont rates'!$F$24,IF(J126<='RDS ee cont rates'!$B$26,'RDS ee cont rates'!$F$26,IF(J126<='RDS ee cont rates'!$B$28,'RDS ee cont rates'!$F$28,IF(J126<='RDS ee cont rates'!$B$30,'RDS ee cont rates'!$F$30,IF(J126<'RDS ee cont rates'!$B$32,'RDS ee cont rates'!$F$32,'RDS ee cont rates'!$F$33)))))))) -> 0.11 | S126: 0 | T126: 0 | U126: 0 | V126: 0
B127: 2015 | C127: 8 | D127: 31 | E127: ='Interest and Tax'!D203 -> 473 | F127: 2015 - 16 | G127: 0 | H127: 0 | I127: 0 | J127: 0 | K127: =IF(J127<='NFPS ee cont rates'!$B$17,'NFPS ee cont rates'!$F$17,IF(J127<='NFPS ee cont rates'!$B$19,'NFPS ee cont rates'!$F$19,IF(J127<='NFPS ee cont rates'!$B$21,'NFPS ee cont rates'!$F$21,IF(J127<='NFPS ee cont rates'!$B$23,'NFPS ee cont rates'!$F$23,IF(J127<='NFPS ee cont rates'!$B$25,'NFPS ee cont rates'!$F$25,IF(J127<='NFPS ee cont rates'!$B$27,'NFPS ee cont rates'!$F$27,IF(J127<='NFPS ee cont rates'!$B$29,'NFPS ee cont rates'!$F$29,IF(J127<='NFPS ee cont rates'!$B$31,'NFPS ee cont rates'!$F$31,'NFPS ee cont rates'!$F$32)))))))) -> 0.085 | L127: =IF(J127<='2015 Sch ee cont rates'!$B$14,'2015 Sch ee cont rates'!$C$14,IF(J127<='2015 Sch ee cont rates'!$B$15,'2015 Sch ee cont rates'!$C$15,IF(J127<='2015 Sch ee cont rates'!$B$16,'2015 Sch ee cont rates'!$C$16,'2015 Sch ee cont rates'!$C$17))) -> 0.1 | M127: 2015 | N127: 0.1 | O127: 0 | Q127: 0 | R127: =IF(J127<='RDS ee cont rates'!$B$18,'RDS ee cont rates'!$F$18,IF(J127<='RDS ee cont rates'!$B$20,'RDS ee cont rates'!$F$20,IF(J127<='RDS ee cont rates'!$B$22,'RDS ee cont rates'!$F$22,IF(J127<='RDS ee cont rates'!$B$24,'RDS ee cont rates'!$F$24,IF(J127<='RDS ee cont rates'!$B$26,'RDS ee cont rates'!$F$26,IF(J127<='RDS ee cont rates'!$B$28,'RDS ee cont rates'!$F$28,IF(J127<='RDS ee cont rates'!$B$30,'RDS ee cont rates'!$F$30,IF(J127<'RDS ee cont rates'!$B$32,'RDS ee cont rates'!$F$32,'RDS ee cont rates'!$F$33)))))))) -> 0.11 | S127: 0 | T127: 0 | U127: 0 | V127: 0
B128: 2015 | C128: 9 | D128: 30 | E128: ='Interest and Tax'!D204 -> 474 | F128: 2015 - 16 | G128: 0 | H128: 0 | I128: 0 | J128: 0 | K128: =IF(J128<='NFPS ee cont rates'!$B$17,'NFPS ee cont rates'!$F$17,IF(J128<='NFPS ee cont rates'!$B$19,'NFPS ee cont rates'!$F$19,IF(J128<='NFPS ee cont rates'!$B$21,'NFPS ee cont rates'!$F$21,IF(J128<='NFPS ee cont rates'!$B$23,'NFPS ee cont rates'!$F$23,IF(J128<='NFPS ee cont rates'!$B$25,'NFPS ee cont rates'!$F$25,IF(J128<='NFPS ee cont rates'!$B$27,'NFPS ee cont rates'!$F$27,IF(J128<='NFPS ee cont rates'!$B$29,'NFPS ee cont rates'!$F$29,IF(J128<='NFPS ee cont rates'!$B$31,'NFPS ee cont rates'!$F$31,'NFPS ee cont rates'!$F$32)))))))) -> 0.085 | L128: =IF(J128<='2015 Sch ee cont rates'!$B$14,'2015 Sch ee cont rates'!$C$14,IF(J128<='2015 Sch ee cont rates'!$B$15,'2015 Sch ee cont rates'!$C$15,IF(J128<='2015 Sch ee cont rates'!$B$16,'2015 Sch ee cont rates'!$C$16,'2015 Sch ee cont rates'!$C$17))) -> 0.1 | M128: 2015 | N128: 0.1 | O128: 0 | Q128: 0 | R128: =IF(J128<='RDS ee cont rates'!$B$18,'RDS ee cont rates'!$F$18,IF(J128<='RDS ee cont rates'!$B$20,'RDS ee cont rates'!$F$20,IF(J128<='RDS ee cont rates'!$B$22,'RDS ee cont rates'!$F$22,IF(J128<='RDS ee cont rates'!$B$24,'RDS ee cont rates'!$F$24,IF(J128<='RDS ee cont rates'!$B$26,'RDS ee cont rates'!$F$26,IF(J128<='RDS ee cont rates'!$B$28,'RDS ee cont rates'!$F$28,IF(J128<='RDS ee cont rates'!$B$30,'RDS ee cont rates'!$F$30,IF(J128<'RDS ee cont rates'!$B$32,'RDS ee cont rates'!$F$32,'RDS ee cont rates'!$F$33)))))))) -> 0.11 | S128: 0 | T128: 0 | U128: 0 | V128: 0
B129: 2015 | C129: 10 | D129: 31 | E129: ='Interest and Tax'!D205 -> 475 | F129: 2015 - 16 | G129: 0 | H129: 0 | I129: 0 | J129: 0 | K129: =IF(J129<='NFPS ee cont rates'!$B$17,'NFPS ee cont rates'!$F$17,IF(J129<='NFPS ee cont rates'!$B$19,'NFPS ee cont rates'!$F$19,IF(J129<='NFPS ee cont rates'!$B$21,'NFPS ee cont rates'!$F$21,IF(J129<='NFPS ee cont rates'!$B$23,'NFPS ee cont rates'!$F$23,IF(J129<='NFPS ee cont rates'!$B$25,'NFPS ee cont rates'!$F$25,IF(J129<='NFPS ee cont rates'!$B$27,'NFPS ee cont rates'!$F$27,IF(J129<='NFPS ee cont rates'!$B$29,'NFPS ee cont rates'!$F$29,IF(J129<='NFPS ee cont rates'!$B$31,'NFPS ee cont rates'!$F$31,'NFPS ee cont rates'!$F$32)))))))) -> 0.085 | L129: =IF(J129<='2015 Sch ee cont rates'!$B$14,'2015 Sch ee cont rates'!$C$14,IF(J129<='2015 Sch ee cont rates'!$B$15,'2015 Sch ee cont rates'!$C$15,IF(J129<='2015 Sch ee cont rates'!$B$16,'2015 Sch ee cont rates'!$C$16,'2015 Sch ee cont rates'!$C$17))) -> 0.1 | M129: 2015 | N129: 0.1 | O129: 0 | Q129: 0 | R129: =IF(J129<='RDS ee cont rates'!$B$18,'RDS ee cont rates'!$F$18,IF(J129<='RDS ee cont rates'!$B$20,'RDS ee cont rates'!$F$20,IF(J129<='RDS ee cont rates'!$B$22,'RDS ee cont rates'!$F$22,IF(J129<='RDS ee cont rates'!$B$24,'RDS ee cont rates'!$F$24,IF(J129<='RDS ee cont rates'!$B$26,'RDS ee cont rates'!$F$26,IF(J129<='RDS ee cont rates'!$B$28,'RDS ee cont rates'!$F$28,IF(J129<='RDS ee cont rates'!$B$30,'RDS ee cont rates'!$F$30,IF(J129<'RDS ee cont rates'!$B$32,'RDS ee cont rates'!$F$32,'RDS ee cont rates'!$F$33)))))))) -> 0.11 | S129: 0 | T129: 0 | U129: 0 | V129: 0
B130: 2015 | C130: 11 | D130: 30 | E130: ='Interest and Tax'!D206 -> 476 | F130: 2015 - 16 | G130: 0 | H130: 0 | I130: 0 | J130: 0 | K130: =IF(J130<='NFPS ee cont rates'!$B$17,'NFPS ee cont rates'!$F$17,IF(J130<='NFPS ee cont rates'!$B$19,'NFPS ee cont rates'!$F$19,IF(J130<='NFPS ee cont rates'!$B$21,'NFPS ee cont rates'!$F$21,IF(J130<='NFPS ee cont rates'!$B$23,'NFPS ee cont rates'!$F$23,IF(J130<='NFPS ee cont rates'!$B$25,'NFPS ee cont rates'!$F$25,IF(J130<='NFPS ee cont rates'!$B$27,'NFPS ee cont rates'!$F$27,IF(J130<='NFPS ee cont rates'!$B$29,'NFPS ee cont rates'!$F$29,IF(J130<='NFPS ee cont rates'!$B$31,'NFPS ee cont rates'!$F$31,'NFPS ee cont rates'!$F$32)))))))) -> 0.085 | L130: =IF(J130<='2015 Sch ee cont rates'!$B$14,'2015 Sch ee cont rates'!$C$14,IF(J130<='2015 Sch ee cont rates'!$B$15,'2015 Sch ee cont rates'!$C$15,IF(J130<='2015 Sch ee cont rates'!$B$16,'2015 Sch ee cont rates'!$C$16,'2015 Sch ee cont rates'!$C$17))) -> 0.1 | M130: 2015 | N130: 0.1 | O130: 0 | Q130: 0 | R130: =IF(J130<='RDS ee cont rates'!$B$18,'RDS ee cont rates'!$F$18,IF(J130<='RDS ee cont rates'!$B$20,'RDS ee cont rates'!$F$20,IF(J130<='RDS ee cont rates'!$B$22,'RDS ee cont rates'!$F$22,IF(J130<='RDS ee cont rates'!$B$24,'RDS ee cont rates'!$F$24,IF(J130<='RDS ee cont rates'!$B$26,'RDS ee cont rates'!$F$26,IF(J130<='RDS ee cont rates'!$B$28,'RDS ee cont rates'!$F$28,IF(J130<='RDS ee cont rates'!$B$30,'RDS ee cont rates'!$F$30,IF(J130<'RDS ee cont rates'!$B$32,'RDS ee cont rates'!$F$32,'RDS ee cont rates'!$F$33)))))))) -> 0.11 | S130: 0 | T130: 0 | U130: 0 | V130: 0
B131: 2015 | C131: 12 | D131: 31 | E131: ='Interest and Tax'!D207 -> 477 | F131: 2015 - 16 | G131: 0 | H131: 0 | I131: 0 | J131: 0 | K131: =IF(J131<='NFPS ee cont rates'!$B$17,'NFPS ee cont rates'!$F$17,IF(J131<='NFPS ee cont rates'!$B$19,'NFPS ee cont rates'!$F$19,IF(J131<='NFPS ee cont rates'!$B$21,'NFPS ee cont rates'!$F$21,IF(J131<='NFPS ee cont rates'!$B$23,'NFPS ee cont rates'!$F$23,IF(J131<='NFPS ee cont rates'!$B$25,'NFPS ee cont rates'!$F$25,IF(J131<='NFPS ee cont rates'!$B$27,'NFPS ee cont rates'!$F$27,IF(J131<='NFPS ee cont rates'!$B$29,'NFPS ee cont rates'!$F$29,IF(J131<='NFPS ee cont rates'!$B$31,'NFPS ee cont rates'!$F$31,'NFPS ee cont rates'!$F$32)))))))) -> 0.085 | L131: =IF(J131<='2015 Sch ee cont rates'!$B$14,'2015 Sch ee cont rates'!$C$14,IF(J131<='2015 Sch ee cont rates'!$B$15,'2015 Sch ee cont rates'!$C$15,IF(J131<='2015 Sch ee cont rates'!$B$16,'2015 Sch ee cont rates'!$C$16,'2015 Sch ee cont rates'!$C$17))) -> 0.1 | M131: 2015 | N131: 0.1 | O131: 0 | Q131: 0 | R131: =IF(J131<='RDS ee cont rates'!$B$18,'RDS ee cont rates'!$F$18,IF(J131<='RDS ee cont rates'!$B$20,'RDS ee cont rates'!$F$20,IF(J131<='RDS ee cont rates'!$B$22,'RDS ee cont rates'!$F$22,IF(J131<='RDS ee cont rates'!$B$24,'RDS ee cont rates'!$F$24,IF(J131<='RDS ee cont rates'!$B$26,'RDS ee cont rates'!$F$26,IF(J131<='RDS ee cont rates'!$B$28,'RDS ee cont rates'!$F$28,IF(J131<='RDS ee cont rates'!$B$30,'RDS ee cont rates'!$F$30,IF(J131<'RDS ee cont rates'!$B$32,'RDS ee cont rates'!$F$32,'RDS ee cont rates'!$F$33)))))))) -> 0.11 | S131: 0 | T131: 0 | U131: 0 | V131: 0
S135: 192.29

Sheet Mod(2) - LS conts calc (hidden)
A1: Government Actuary's Department
A2: =IF(title="> Enter workbook title here","Enter workbook title in Cover sheet",title) -> Preston Model for RDS settlement
A3: Module 2 - lump sum value as at calc date of NFPS contributions paid by member
A4: =CELL("filename",A1) -> C:\Users\lroberts\AppData\Local\Microsoft\Windows\Temporary Internet Files\Content.Outlook\TFL3ASN3\[Retained Firefighters Pension Settlement Calculator Sep 2015 v1_0.xlsm]Mod(2) - LS conts calc
A5: This sheet calculates the lump sum value of any NFPS (standard scheme) contributions already paid by the member
A6: Adapted from | B6: O:\A3 clients\Fire Pension Scheme\Retained Firefighters\Factors\Preston model\TPS model\Preston_TPS_June 2013 (unprotected).xls
A7: Calculations set up assuming contribution payments made in arrears.
B9: Month | C9: Year | D9: Month number | E9: Tax Rate
A10: First month of membership in NFPS | B10: =MONTH(Mod2_NFPSStartDate) -> 4 | C10: =YEAR(Mod2_NFPSStartDate) -> 2006 | D10: =(C10-1976)*12+B10-3 -> 361 | E10: =VLOOKUP(D10,IntTax_LookupTable,3) -> 0.78
A11: Last month of membership in NFPS | B11: =MONTH(Mod2_NFPSEndDate) -> 1 | C11: =YEAR(Mod2_NFPSEndDate) -> 1900 | D11: =(C11-1976)*12+B11-3 -> -914 | E11: =VLOOKUP(D11,IntTax_LookupTable,3) -> 
A12: Month at contribution calc date | B12: =MONTH(Gen_CalcDate) -> 1 | C12: =YEAR(Gen_CalcDate) -> 1900 | D12: =(C12-1976)*12+B12-3 -> -914 | E12: =VLOOKUP(D12,IntTax_LookupTable,3) ->  | H12: =VLOOKUP(D12,IntTax_LookupTable,2,FALSE) ->  | I12: Interest Index at payment date
A14: Contribution data to be used | B14: =Mod2_NFPSContDataType -> 0
H15: The interest index in the 'Interest and Tax' tab shows the value of the index on the last day of that particular month.
B17: Total contributions paid | H17: =F21*H12 ->  | J17: Assume that no tax relief available to member at payment date
B18: Tot conts excl interest: | H18: =SUM(C22:C416) -> 0 | J18: See e-mail from AM (DCLG) to SL/Fire on 05/11/2013 at 09:06
B19: Interest | H19: =Mod2_NFPSContsPaidLS-H18 ->  | J19: \\Gad-a3\a3data\A3 clients\Fire Pension Scheme\Retained Firefighters\Factors\Preston model\Reference documents\RDS Preston Model - Tax Relief RecdFromDCLG 05112013.msg
B20: Month | C20: Additional contributions to be paid | D20: Interest Index | E20: Tax Rate
C21: ='Mod(2) - earnings & conts'!T13 -> 16 | F21: =SUM(F22:F416) -> 
B22: =D10 -> 361 | C22: =IF(ISERROR(VLOOKUP(B22,Mod2_NFPSEarnContTable,$C$21,FALSE)),0,VLOOKUP(B22,Mod2_NFPSEarnContTable,$C$21,FALSE)) -> 0 | D22: =VLOOKUP(B22,IntTax_LookupTable,2,FALSE) -> 6716 | E22: =VLOOKUP(B22,IntTax_LookupTable,3,FALSE) -> 0.78 | F22: =C22/D22 -> 0 | H22: <- interest index is at end of month, which is fine, as we assume payments are made in arrears.
B23: =IF(B22=0,0,IF(B22=$D$11,0,B22+1)) -> 362 | C23: 0 | D23: 6733 | E23: 0.78 | F23: =C23/D23 -> 0
B24: =IF(B23=0,0,IF(B23=$D$11,0,B23+1)) -> 363 | C24: 0 | D24: 6751 | E24: 0.78 | F24: 0
B25: 364 | C25: 0 | D25: 6769 | E25: 0.78 | F25: 0
B26: 365 | C26: 0 | D26: 6787 | E26: 0.78 | F26: 0
B27: 366 | C27: 0 | D27: 6804 | E27: 0.78 | F27: 0
B28: 367 | C28: 0 | D28: 6823 | E28: 0.78 | F28: 0
B29: 368 | C29: 0 | D29: 6840 | E29: 0.78 | F29: 0
B30: 369 | C30: 0 | D30: 6859 | E30: 0.78 | F30: 0
B31: 370 | C31: 0 | D31: 6877 | E31: 0.78 | F31: 0
B32: 371 | C32: 0 | D32: 6895 | E32: 0.78 | F32: 0
B33: 372 | C33: 0 | D33: 6915 | E33: 0.78 | F33: 0
B34: 373 | C34: 0 | D34: 6935 | E34: 0.78 | F34: 0
B35: 374 | C35: 0 | D35: 6955 | E35: 0.78 | F35: 0
B36: 375 | C36: 0 | D36: 6975 | E36: 0.78 | F36: 0
B37: 376 | C37: 0 | D37: 6998 | E37: 0.78 | F37: 0
B38: 377 | C38: 0 | D38: 7020 | E38: 0.78 | F38: 0
B39: 378 | C39: 0 | D39: 7042 | E39: 0.78 | F39: 0
B40: 379 | C40: 0 | D40: 7065 | E40: 0.78 | F40: 0
B41: 380 | C41: 0 | D41: 7085 | E41: 0.78 | F41: 0
B42: 381 | C42: 0 | D42: 7103 | E42: 0.78 | F42: 0
B43: 382 | C43: 0 | D43: 7122 | E43: 0.78 | F43: 0
B44: 383 | C44: 0 | D44: 7139 | E44: 0.78 | F44: 0
B45: 384 | C45: 0 | D45: 7157 | E45: 0.78 | F45: 0
B46: 385 | C46: 0 | D46: 7172 | E46: 0.8 | F46: 0
B47: 386 | C47: 0 | D47: 7189 | E47: 0.8 | F47: 0
B48: 387 | C48: 0 | D48: 7206 | E48: 0.8 | F48: 0
B49: 388 | C49: 0 | D49: 7227 | E49: 0.8 | F49: 0
B50: 389 | C50: 0 | D50: 7248 | E50: 0.8 | F50: 0
B51: 390 | C51: 0 | D51: 7268 | E51: 0.8 | F51: 0
B52: 391 | C52: 0 | D52: 7286 | E52: 0.8 | F52: 0
B53: 392 | C53: 0 | D53: 7304 | E53: 0.8 | F53: 0
B54: 393 | C54: 0 | D54: 7322 | E54: 0.8 | F54: 0
B55: 394 | C55: 0 | D55: 7340 | E55: 0.8 | F55: 0
B56: 395 | C56: 0 | D56: 7353 | E56: 0.8 | F56: 0
B57: 396 | C57: 0 | D57: 7365 | E57: 0.8 | F57: 0
B58: 397 | C58: 0 | D58: 7376 | E58: 0.8 | F58: 0
B59: 398 | C59: 0 | D59: 7388 | E59: 0.8 | F59: 0
B60: 399 | C60: 0 | D60: 7399 | E60: 0.8 | F60: 0
B61: 400 | C61: 0 | D61: 7411 | E61: 0.8 | F61: 0
B62: 401 | C62: 0 | D62: 7423 | E62: 0.8 | F62: 0
B63: 402 | C63: 0 | D63: 7437 | E63: 0.8 | F63: 0
B64: 403 | C64: 0 | D64: 7451 | E64: 0.8 | F64: 0
B65: 404 | C65: 0 | D65: 7464 | E65: 0.8 | F65: 0
B66: 405 | C66: 0 | D66: 7478 | E66: 0.8 | F66: 0
B67: 406 | C67: 0 | D67: 7493 | E67: 0.8 | F67: 0
B68: 407 | C68: 0 | D68: 7505 | E68: 0.8 | F68: 0
B69: 408 | C69: 0 | D69: 7520 | E69: 0.8 | F69: 0
B70: 409 | C70: 0 | D70: 7533 | E70: 0.8 | F70: 0
B71: 410 | C71: 0 | D71: 7548 | E71: 0.8 | F71: 0
B72: 411 | C72: 0 | D72: 7561 | E72: 0.8 | F72: 0
B73: 412 | C73: 0 | D73: 7576 | E73: 0.8 | F73: 0
B74: 413 | C74: 0 | D74: 7590 | E74: 0.8 | F74: 0
B75: 414 | C75: 0 | D75: 7604 | E75: 0.8 | F75: 0
B76: 415 | C76: 0 | D76: 7618 | E76: 0.8 | F76: 0
B77: 416 | C77: 0 | D77: 7632 | E77: 0.8 | F77: 0
B78: 417 | C78: 0 | D78: 7647 | E78: 0.8 | F78: 0
B79: 418 | C79: 0 | D79: 7661 | E79: 0.8 | F79: 0
B80: 419 | C80: 0 | D80: 7674 | E80: 0.8 | F80: 0
B81: 420 | C81: 0 | D81: 7689 | E81: 0.8 | F81: 0
B82: 421 | C82: 0 | D82: 7703 | E82: 0.8 | F82: 0
B83: 422 | C83: 0 | D83: 7717 | E83: 0.8 | F83: 0
B84: 423 | C84: 0 | D84: 7731 | E84: 0.8 | F84: 0
B85: 424 | C85: 0 | D85: 7746 | E85: 0.8 | F85: 0
B86: 425 | C86: =IF(ISERROR(VLOOKUP(B86,Mod2_NFPSEarnContTable,$C$21,FALSE)),0,VLOOKUP(B86,Mod2_NFPSEarnContTable,$C$21,FALSE)) -> 0 | D86: =VLOOKUP(B86,IntTax_LookupTable,2,FALSE) -> 7761 | E86: =VLOOKUP(B86,IntTax_LookupTable,3,FALSE) -> 0.8 | F86: 0
B87: 426 | C87: 0 | D87: 7775 | E87: 0.8 | F87: =C87/D87 -> 0
B88: =IF(B87=0,0,IF(B87=$D$11,0,B87+1)) -> 427 | C88: 0 | D88: 7790 | E88: 0.8 | F88: 0
B89: 428 | C89: 0 | D89: 7804 | E89: 0.8 | F89: 0
B90: 429 | C90: 0 | D90: 7819 | E90: 0.8 | F90: 0
B91: 430 | C91: 0 | D91: 7833 | E91: 0.8 | F91: 0
B92: 431 | C92: 0 | D92: 7847 | E92: 0.8 | F92: 0
B93: 432 | C93: 0 | D93: 7862 | E93: 0.8 | F93: 0
B94: 433 | C94: 0 | D94: 7876 | E94: 0.8 | F94: 0
B95: 434 | C95: 0 | D95: 7891 | E95: 0.8 | F95: 0
B96: 435 | C96: 0 | D96: 7906 | E96: 0.8 | F96: 0
B97: 436 | C97: 0 | D97: 7921 | E97: 0.8 | F97: 0
B98: 437 | C98: 0 | D98: 7936 | E98: 0.8 | F98: 0
B99: 438 | C99: 0 | D99: 7950 | E99: 0.8 | F99: 0
B100: 439 | C100: 0 | D100: 7965 | E100: 0.8 | F100: 0
B101: 440 | C101: 0 | D101: 7980 | E101: 0.8 | F101: 0
B102: 441 | C102: 0 | D102: 7995 | E102: 0.8 | F102: 0
B103: 442 | C103: 0 | D103: 8010 | E103: 0.8 | F103: 0
B104: 443 | C104: 0 | D104: 8022 | E104: 0.8 | F104: 0
B105: 444 | C105: 0 | D105: 8032 | E105: 0.8 | F105: =C105/D105 -> 0
B106: 445 | C106: 0 | D106: 8044 | E106: 0.8 | F106: 0
B107: 446 | C107: 0 | D107: 8056 | E107: 0.8 | F107: 0
B108: 447 | C108: 0 | D108: 8067 | E108: 0.8 | F108: 0
B109: 448 | C109: 0 | D109: 8078 | E109: 0.8 | F109: 0
B110: 449 | C110: 0 | D110: 8089 | E110: 0.8 | F110: 0
B111: 450 | C111: 0 | D111: 8099 | E111: 0.8 | F111: 0
B112: 451 | C112: 0 | D112: 8110 | E112: 0.8 | F112: 0
B113: 452 | C113: 0 | D113: 8121 | E113: 0.8 | F113: 0
B114: 453 | C114: 0 | D114: 8132 | E114: 0.8 | F114: 0
B115: 454 | C115: 0 | D115: 8143 | E115: 0.8 | F115: 0
B116: 455 | C116: 0 | D116: 8153 | E116: 0.8 | F116: 0
B117: 456 | C117: 0 | D117: 8164 | E117: 0.8 | F117: 0
B118: 457 | C118: 0 | D118: 8174 | E118: 0.8 | F118: 0
B119: 458 | C119: 0 | D119: 8185 | E119: 0.8 | F119: 0
B120: 459 | C120: 0 | D120: 8196 | E120: 0.8 | F120: 0
B121: 460 | C121: 0 | D121: 8207 | E121: 0.8 | F121: 0
B122: 461 | C122: 0 | D122: 8218 | E122: 0.8 | F122: 0
B123: 462 | C123: 0 | D123: 8229 | E123: 0.8 | F123: 0
B124: 463 | C124: 0 | D124: 8240 | E124: 0.8 | F124: 0
B125: 464 | C125: 0 | D125: 8251 | E125: 0.8 | F125: 0
B126: 465 | C126: 0 | D126: 8262 | E126: 0.8 | F126: 0
B127: 466 | C127: 0 | D127: 8273 | E127: 0.8 | F127: 0
B128: 467 | C128: 0 | D128: 8283 | E128: 0.8 | F128: 0
B129: 468 | C129: 0 | D129: 8294 | E129: 0.8 | F129: 0
B130: 469 | C130: 0 | D130: 8305 | E130: 0.8 | F130: 0
B131: 470 | C131: 0 | D131: 8316 | E131: 0.8 | F131: 0
B132: 471 | C132: 0 | D132: 8327 | E132: 0.8 | F132: 0
B133: 472 | C133: 0 | D133: 8338 | E133: 0.8 | F133: 0
B134: 473 | C134: 0 | D134: 8350 | E134: 0.8 | F134: 0
B135: 474 | C135: 0 | D135: 8361 | E135: 0.8 | F135: 0
B136: 475 | C136: 0 | D136: 8372 | E136: 0.8 | F136: 0
B137: 476 | C137: 0 | D137: 8384 | E137: 0.8 | F137: 0
B138: 477 | C138: 0 | D138: 8395 | E138: 0.8 | F138: 0
B139: 478 | C139: 0 | D139: 8406 | E139: 0.8 | F139: 0
B140: 479 | C140: 0 | D140: 8418 | E140: 0.8 | F140: 0
B141: 480 | C141: 0 | D141: 8429 | E141: 0.8 | F141: 0
B142: 481 | C142: 0
B143: 482 | C143: 0
B144: 483 | C144: 0
B145: 484 | C145: 0
B146: 485 | C146: 0
B147: 486 | C147: 0
B148: 487 | C148: 0
B149: 488 | C149: 0
B150: 489 | C150: =IF(ISERROR(VLOOKUP(B150,Mod2_NFPSEarnContTable,$C$21,FALSE)),0,VLOOKUP(B150,Mod2_NFPSEarnContTable,$C$21,FALSE)) -> 0 | D150: =VLOOKUP(B150,IntTax_LookupTable,2,FALSE) ->  | E150: =VLOOKUP(B150,IntTax_LookupTable,3,FALSE) -> 
B151: 490 | C151: 0 | F151: =C151/D151 -> 
B152: =IF(B151=0,0,IF(B151=$D$11,0,B151+1)) -> 491 | C152: 0
B153: 492 | C153: 0
B154: 493 | C154: 0
B155: 494 | C155: 0
B156: 495 | C156: 0
B157: 496 | C157: 0
B158: 497 | C158: 0
B159: 498 | C159: 0
B160: 499 | C160: 0
B161: 500 | C161: 0
B162: 501 | C162: 0
B163: 502 | C163: 0
B164: 503 | C164: 0
B165: 504 | C165: 0
B166: 505 | C166: 0
B167: 506 | C167: 0
B168: 507 | C168: 0
B169: 508 | C169: 0
B170: 509 | C170: 0
B171: 510 | C171: 0
B172: 511 | C172: 0
B173: 512 | C173: 0
B174: 513 | C174: 0
B175: 514 | C175: 0
B176: 515 | C176: 0
B177: 516 | C177: 0
B178: 517 | C178: 0
B179: 518 | C179: 0
B180: 519 | C180: 0
B181: 520 | C181: 0
B182: 521 | C182: 0
B183: 522 | C183: 0
B184: 523 | C184: 0
B185: 524 | C185: 0
B186: 525 | C186: 0
B187: 526 | C187: 0
B188: 527 | C188: 0
B189: 528 | C189: 0
B190: 529 | C190: 0
B191: 530 | C191: 0
B192: 531 | C192: 0
B193: 532 | C193: 0
B194: 533 | C194: 0
B195: 534 | C195: 0
B196: 535 | C196: 0
B197: 536 | C197: 0
B198: 537 | C198: 0
B199: 538 | C199: 0
B200: 539 | C200: 0
B201: 540 | C201: 0
B202: 541 | C202: 0
B203: 542 | C203: 0
... 213 more rows

Sheet Mod(2) - per conts calc (hidden)
A1: Government Actuary's Department
A2: =IF(title="> Enter workbook title here","Enter workbook title in Cover sheet",title) -> Preston Model for RDS settlement
A3: Module 2 - Periodic value of NFPS conts. (paid) to be set off against any special scheme periodic contributions to be paid
A4: =CELL("filename",A1) -> C:\Users\lroberts\AppData\Local\Microsoft\Windows\Temporary Internet Files\Content.Outlook\TFL3ASN3\[Retained Firefighters Pension Settlement Calculator Sep 2015 v1_0.xlsm]Mod(2) - per conts calc
A5: Active and Deferred members may elect to pay their outstanding contributions monthly, over 10 years.
A6: The NFPS contributions already paid in by these members need to be set off against the periodic contribtuions they need to make into the modified scheme
A8: Date of Calculation | B8: =Gen_CalcDate -> 00:00:00 | C8: =YEAR(B8)&MONTH(B8) -> 19001
A10: Re-instatement period for payment of contributions (in years) | B10: 10
A11: Re-instatement period for payment of contributions (in months) | B11: =Mod2_NFPSPerContPeriod*12 -> 120
A14: Column to Look up in Factor Table | B14: =IF(Mod2_NFPSPerContPeriod<=5,34,IF(Mod2_NFPSPerContPeriod<=15,35,36)) -> 35
A15: Monthly Interest Rate | B15: =VLOOKUP(C8,IntTax_Table1,B14,FALSE) -> 
A16: v | B16: =1/(1+B15) -> 
A17: Annuity | B17: =(1-(B16^B11))/B15 -> 
A20: Assuming no tax relief
A21: Lump sum contribution due | B21: =Mod2_NFPSContsPaidLS -> 
A22: Monthly contributions to be paid | B22: =ROUND(B21/B17,2) ->  | C22: =B21/B17 -> 

Sheet Mod(3) - pen payments (hidden)
A1: Government Actuary's Department
A2: =IF(title="> Enter workbook title here","Enter workbook title in Cover sheet",title) -> Preston Model for RDS settlement
A3: Module 3 - breakdown of monthly pension payments that should have been paid for special scheme (RDS) members
A4: =CELL("filename",A1) -> C:\Users\lroberts\AppData\Local\Microsoft\Windows\Temporary Internet Files\Content.Outlook\TFL3ASN3\[Retained Firefighters Pension Settlement Calculator Sep 2015 v1_0.xlsm]Mod(3) - pen payments
A5: Calcs. work on a daily basis unlike modules 1 & 2 which worked on monthly basis | G5: =Gen_CalcDate -> 00:00:00
G6: Removed 1 and added col D in second IF()
E7: 1 | F7: 2 | G7: 3 | H7: 4 | I7: 5 | J7: 6 | K7: 7 | L7: 8 | M7: 9 | N7: 10 | O7: 11
B8: Year | C8: Month | D8: Total no. of days in month | E8: Actual month number | F8: Tax/Pension year | G8: FLAG - pension payment between DoPC and Calc_date | H8: No. of days covered by pension payment | I8: Monthly pension (paid in arrears) | J8: PI flag/counter | K8: Applicable PI multiplier | L8: Effective PI mulitplier (compounded) | M8: Monthly pen including PI (if applicable) | N8: Commuted LS | O8: Total pension due in month | Q8: Check on consistence of pension pre-post commutation and commutation amount:
B9: 2000 | C9: 4 | D9: 30 | E9: ='Interest and Tax'!D19 -> 289 | F9: 2000/01 | G9: =IF(AND(B9=YEAR(Mod3_RDSDoPC),C9=MONTH(Mod3_RDSDoPC)),1,0)*IF(DATE(B9,C9,D9)<=Gen_CalcDate,1,0) -> 0 | H9: =IF(AND(YEAR(Mod3_RDSDoPC)=B9,MONTH(Mod3_RDSDoPC)=C9),(D9+1)-DAY(Mod3_RDSDoPC),G9*D9) -> 0 | I9: =G9*(H9/D9)*(Mod3_RDSPostComPen/12) -> 0 | J9: =0 -> 0 | K9: =(1+IF(J9<=1,0%,IF(J9=2,IF(Cat_prior_Retirement="Special Firefighter Member",VLOOKUP(Mod3_RDSDoPC,PI_Orders,3,TRUE),VLOOKUP(F9,PenIncTable,3,FALSE)),IF(J9>2,VLOOKUP(F9,PenIncTable,3,FALSE))))) -> 1 | L9: 1 | M9: =I9*L9 -> 0 | N9: 0 | O9: =M9+N9 -> 0
B10: 2000 | C10: 5 | D10: 31 | E10: ='Interest and Tax'!D20 -> 290 | F10: 2000/01 | G10: =IF(AND(B10=YEAR(Mod3_RDSDoPC),C10=MONTH(Mod3_RDSDoPC)),1,G9)*IF(DATE(B10,C10,D10)<=Gen_CalcDate,1,0) -> 0 | H10: 0 | I10: 0 | J10: =G10*IF(OR(F9<>F10,G9<>G10),J9+G10,J9) -> 0 | K10: 1 | L10: =IF(J9<>J10,K10*L9,L9) -> 1 | M10: 0 | N10: =IF(AND(G10=1,G10<>G9),Mod3_RDSCommLS,0) -> 0 | O10: =M10+N10 -> 0 | Q10: DoB | T10: =Gen_DoB -> 00:00:00
B11: 2000 | C11: 6 | D11: 30 | E11: ='Interest and Tax'!D21 -> 291 | F11: 2000/01 | G11: 0 | H11: 0 | I11: 0 | J11: 0 | K11: 1 | L11: 1 | M11: 0 | N11: 0 | O11: 0
B12: 2000 | C12: 7 | D12: 31 | E12: ='Interest and Tax'!D22 -> 292 | F12: 2000/01 | G12: 0 | H12: 0 | I12: 0 | J12: 0 | K12: 1 | L12: 1 | M12: 0 | N12: 0 | O12: 0 | Q12: Age at ret | T12: =Mod3_RDSDoPC -> 00:00:00
B13: 2000 | C13: 8 | D13: 31 | E13: ='Interest and Tax'!D23 -> 293 | F13: 2000/01 | G13: 0 | H13: 0 | I13: 0 | J13: 0 | K13: 1 | L13: 1 | M13: 0 | N13: 0 | O13: 0
B14: 2000 | C14: 9 | D14: 30 | E14: ='Interest and Tax'!D24 -> 294 | F14: 2000/01 | G14: 0 | H14: 0 | I14: 0 | J14: 0 | K14: 1 | L14: 1 | M14: 0 | N14: 0 | O14: 0 | Q14: Age at retirement | T14: =Interface!H141 -> 0
B15: 2000 | C15: 10 | D15: 31 | E15: ='Interest and Tax'!D25 -> 295 | F15: 2000/01 | G15: 0 | H15: 0 | I15: 0 | J15: 0 | K15: 1 | L15: 1 | M15: 0 | N15: 0 | O15: 0
B16: 2000 | C16: 11 | D16: 30 | E16: ='Interest and Tax'!D26 -> 296 | F16: 2000/01 | G16: 0 | H16: 0 | I16: 0 | J16: 0 | K16: 1 | L16: 1 | M16: 0 | N16: 0 | O16: 0 | Q16: Initial pre-commutation pension (per annum) | T16: =Mod3_RDSPreComPen -> 0
B17: 2000 | C17: 12 | D17: 31 | E17: ='Interest and Tax'!D27 -> 297 | F17: 2000/01 | G17: 0 | H17: 0 | I17: 0 | J17: 0 | K17: 1 | L17: 1 | M17: 0 | N17: 0 | O17: 0
B18: 2001 | C18: 1 | D18: 31 | E18: ='Interest and Tax'!D28 -> 298 | F18: 2000/01 | G18: 0 | H18: 0 | I18: 0 | J18: 0 | K18: 1 | L18: 1 | M18: 0 | N18: 0 | O18: 0 | Q18: Commuted lump sum (Part 3, Rule 9(2A)) | T18: =Mod3_RDSCommLS -> 0
B19: 2001 | C19: 2 | D19: 28 | E19: ='Interest and Tax'!D29 -> 299 | F19: 2000/01 | G19: 0 | H19: 0 | I19: 0 | J19: 0 | K19: 1 | L19: 1 | M19: 0 | N19: 0 | O19: 0
B20: 2001 | C20: 3 | D20: 31 | E20: ='Interest and Tax'!D30 -> 300 | F20: 2000/01 | G20: 0 | H20: 0 | I20: 0 | J20: 0 | K20: 1 | L20: 1 | M20: 0 | N20: 0 | O20: 0 | Q20: Initial post-commutation pension (per annum) | T20: =Mod3_RDSPostComPen -> 0
B21: 2001 | C21: 4 | D21: 30 | E21: ='Interest and Tax'!D31 -> 301 | F21: 2001/02 | G21: 0 | H21: 0 | I21: 0 | J21: 0 | K21: 1 | L21: 1 | M21: 0 | N21: 0 | O21: 0
B22: 2001 | C22: 5 | D22: 31 | E22: ='Interest and Tax'!D32 -> 302 | F22: 2001/02 | G22: 0 | H22: 0 | I22: 0 | J22: 0 | K22: 1 | L22: 1 | M22: 0 | N22: 0 | O22: 0 | Q22: Age | T22: =(T12-T10)/365.25 -> 0
B23: 2001 | C23: 6 | D23: 30 | E23: ='Interest and Tax'!D33 -> 303 | F23: 2001/02 | G23: 0 | H23: 0 | I23: 0 | J23: 0 | K23: 1 | L23: 1 | M23: 0 | N23: 0 | O23: 0 | Q23: Age years | T23: =DATEDIF(T10,T12,"y") -> 0
B24: 2001 | C24: 7 | D24: 31 | E24: ='Interest and Tax'!D34 -> 304 | F24: 2001/02 | G24: 0 | H24: 0 | I24: 0 | J24: 0 | K24: 1 | L24: 1 | M24: 0 | N24: 0 | O24: 0 | Q24: Age months | T24: =DATEDIF(T10,T12,"ym") -> 0
B25: 2001 | C25: 8 | D25: 31 | E25: ='Interest and Tax'!D35 -> 305 | F25: 2001/02 | G25: 0 | H25: 0 | I25: 0 | J25: 0 | K25: 1 | L25: 1 | M25: 0 | N25: 0 | O25: 0
B26: 2001 | C26: 9 | D26: 30 | E26: ='Interest and Tax'!D36 -> 306 | F26: 2001/02 | G26: 0 | H26: 0 | I26: 0 | J26: 0 | K26: 1 | L26: 1 | M26: 0 | N26: 0 | O26: 0 | Q26: Commutation factor: | T26: =IF(T23<50,'Comm factors'!B5,INDEX('Comm factors'!$B$6:$M$20,T23-49,T24+1)) -> 23.4
B27: 2001 | C27: 10 | D27: 31 | E27: ='Interest and Tax'!D37 -> 307 | F27: 2001/02 | G27: 0 | H27: 0 | I27: 0 | J27: 0 | K27: 1 | L27: 1 | M27: 0 | N27: 0 | O27: 0
B28: 2001 | C28: 11 | D28: 30 | E28: ='Interest and Tax'!D38 -> 308 | F28: 2001/02 | G28: 0 | H28: 0 | I28: 0 | J28: 0 | K28: 1 | L28: 1 | M28: 0 | N28: 0 | O28: 0 | Q28: Pension foregone | T28: =T18/T26 -> 0
B29: 2001 | C29: 12 | D29: 31 | E29: ='Interest and Tax'!D39 -> 309 | F29: 2001/02 | G29: 0 | H29: 0 | I29: 0 | J29: 0 | K29: 1 | L29: 1 | M29: 0 | N29: 0 | O29: 0
B30: 2002 | C30: 1 | D30: 31 | E30: ='Interest and Tax'!D40 -> 310 | F30: 2001/02 | G30: 0 | H30: 0 | I30: 0 | J30: 0 | K30: 1 | L30: 1 | M30: 0 | N30: 0 | O30: 0 | Q30: Expected post-comm pension | T30: =T16-T28 -> 0
B31: 2002 | C31: 2 | D31: 28 | E31: ='Interest and Tax'!D41 -> 311 | F31: 2001/02 | G31: 0 | H31: 0 | I31: 0 | J31: 0 | K31: 1 | L31: 1 | M31: 0 | N31: 0 | O31: 0
B32: 2002 | C32: 3 | D32: 31 | E32: ='Interest and Tax'!D42 -> 312 | F32: 2001/02 | G32: 0 | H32: 0 | I32: 0 | J32: 0 | K32: 1 | L32: 1 | M32: 0 | N32: 0 | O32: 0 | Q32: How out? | T32: =T20/T30-1 -> 
B33: 2002 | C33: 4 | D33: 30 | E33: ='Interest and Tax'!D43 -> 313 | F33: 2002/03 | G33: 0 | H33: 0 | I33: 0 | J33: 0 | K33: 1 | L33: 1 | M33: 0 | N33: 0 | O33: 0
B34: 2002 | C34: 5 | D34: 31 | E34: ='Interest and Tax'!D44 -> 314 | F34: 2002/03 | G34: 0 | H34: 0 | I34: 0 | J34: 0 | K34: 1 | L34: 1 | M34: 0 | N34: 0 | O34: 0
B35: 2002 | C35: 6 | D35: 30 | E35: ='Interest and Tax'!D45 -> 315 | F35: 2002/03 | G35: 0 | H35: 0 | I35: 0 | J35: 0 | K35: 1 | L35: 1 | M35: 0 | N35: 0 | O35: 0
B36: 2002 | C36: 7 | D36: 31 | E36: ='Interest and Tax'!D46 -> 316 | F36: 2002/03 | G36: 0 | H36: 0 | I36: 0 | J36: 0 | K36: 1 | L36: 1 | M36: 0 | N36: 0 | O36: 0
B37: 2002 | C37: 8 | D37: 31 | E37: ='Interest and Tax'!D47 -> 317 | F37: 2002/03 | G37: 0 | H37: 0 | I37: 0 | J37: 0 | K37: 1 | L37: 1 | M37: 0 | N37: 0 | O37: 0
B38: 2002 | C38: 9 | D38: 30 | E38: ='Interest and Tax'!D48 -> 318 | F38: 2002/03 | G38: 0 | H38: 0 | I38: 0 | J38: 0 | K38: 1 | L38: 1 | M38: 0 | N38: 0 | O38: 0
B39: 2002 | C39: 10 | D39: 31 | E39: ='Interest and Tax'!D49 -> 319 | F39: 2002/03 | G39: 0 | H39: 0 | I39: 0 | J39: 0 | K39: 1 | L39: 1 | M39: 0 | N39: 0 | O39: 0
B40: 2002 | C40: 11 | D40: 30 | E40: ='Interest and Tax'!D50 -> 320 | F40: 2002/03 | G40: 0 | H40: 0 | I40: 0 | J40: 0 | K40: 1 | L40: 1 | M40: 0 | N40: 0 | O40: 0
B41: 2002 | C41: 12 | D41: 31 | E41: ='Interest and Tax'!D51 -> 321 | F41: 2002/03 | G41: 0 | H41: =IF(AND(YEAR(Mod3_RDSDoPC)=B41,MONTH(Mod3_RDSDoPC)=C41),(D41+1)-DAY(Mod3_RDSDoPC),G41*D41) -> 0 | I41: =G41*(H41/D41)*(Mod3_RDSPostComPen/12) -> 0 | J41: 0 | K41: =(1+IF(J41<=1,0%,IF(J41=2,IF(Cat_prior_Retirement="Special Firefighter Member",VLOOKUP(Mod3_RDSDoPC,PI_Orders,3,TRUE),VLOOKUP(F41,PenIncTable,3,FALSE)),IF(J41>2,VLOOKUP(F41,PenIncTable,3,FALSE))))) -> 1 | L41: 1 | M41: =I41*L41 -> 0 | N41: 0 | O41: 0
B42: 2003 | C42: 1 | D42: 31 | E42: ='Interest and Tax'!D52 -> 322 | F42: 2002/03 | G42: =IF(AND(B42=YEAR(Mod3_RDSDoPC),C42=MONTH(Mod3_RDSDoPC)),1,G41)*IF(DATE(B42,C42,D42)<=Gen_CalcDate,1,0) -> 0 | H42: 0 | I42: 0 | J42: 0 | K42: 1 | L42: =IF(J41<>J42,K42*L41,L41) -> 1 | M42: 0 | N42: =IF(AND(G42=1,G42<>G41),Mod3_RDSCommLS,0) -> 0 | O42: 0
B43: 2003 | C43: 2 | D43: 28 | E43: ='Interest and Tax'!D53 -> 323 | F43: 2002/03 | G43: 0 | H43: 0 | I43: 0 | J43: 0 | K43: 1 | L43: 1 | M43: 0 | N43: 0 | O43: 0
B44: 2003 | C44: 3 | D44: 31 | E44: ='Interest and Tax'!D54 -> 324 | F44: 2002/03 | G44: 0 | H44: 0 | I44: 0 | J44: 0 | K44: 1 | L44: 1 | M44: 0 | N44: 0 | O44: 0
B45: 2003 | C45: 4 | D45: 30 | E45: ='Interest and Tax'!D55 -> 325 | F45: 2003/04 | G45: 0 | H45: 0 | I45: 0 | J45: 0 | K45: 1 | L45: 1 | M45: 0 | N45: 0 | O45: 0
B46: 2003 | C46: 5 | D46: 31 | E46: ='Interest and Tax'!D56 -> 326 | F46: 2003/04 | G46: 0 | H46: 0 | I46: 0 | J46: 0 | K46: 1 | L46: 1 | M46: 0 | N46: 0 | O46: 0
B47: 2003 | C47: 6 | D47: 30 | E47: ='Interest and Tax'!D57 -> 327 | F47: 2003/04 | G47: 0 | H47: 0 | I47: 0 | J47: 0 | K47: 1 | L47: 1 | M47: 0 | N47: 0 | O47: 0
B48: 2003 | C48: 7 | D48: 31 | E48: ='Interest and Tax'!D58 -> 328 | F48: 2003/04 | G48: 0 | H48: 0 | I48: 0 | J48: 0 | K48: 1 | L48: 1 | M48: 0 | N48: 0 | O48: 0
B49: 2003 | C49: 8 | D49: 31 | E49: ='Interest and Tax'!D59 -> 329 | F49: 2003/04 | G49: 0 | H49: 0 | I49: 0 | J49: 0 | K49: 1 | L49: 1 | M49: 0 | N49: 0 | O49: 0
B50: 2003 | C50: 9 | D50: 30 | E50: ='Interest and Tax'!D60 -> 330 | F50: 2003/04 | G50: 0 | H50: 0 | I50: 0 | J50: 0 | K50: 1 | L50: 1 | M50: 0 | N50: 0 | O50: 0
B51: 2003 | C51: 10 | D51: 31 | E51: ='Interest and Tax'!D61 -> 331 | F51: 2003/04 | G51: 0 | H51: 0 | I51: 0 | J51: 0 | K51: 1 | L51: 1 | M51: 0 | N51: 0 | O51: 0
B52: 2003 | C52: 11 | D52: 30 | E52: ='Interest and Tax'!D62 -> 332 | F52: 2003/04 | G52: 0 | H52: 0 | I52: 0 | J52: 0 | K52: 1 | L52: 1 | M52: 0 | N52: 0 | O52: 0
B53: 2003 | C53: 12 | D53: 31 | E53: ='Interest and Tax'!D63 -> 333 | F53: 2003/04 | G53: 0 | H53: 0 | I53: 0 | J53: 0 | K53: 1 | L53: 1 | M53: 0 | N53: 0 | O53: 0
B54: 2004 | C54: 1 | D54: 31 | E54: ='Interest and Tax'!D64 -> 334 | F54: 2003/04 | G54: 0 | H54: 0 | I54: 0 | J54: 0 | K54: 1 | L54: 1 | M54: 0 | N54: 0 | O54: 0
B55: 2004 | C55: 2 | D55: 29 | E55: ='Interest and Tax'!D65 -> 335 | F55: 2003/04 | G55: 0 | H55: 0 | I55: 0 | J55: 0 | K55: 1 | L55: 1 | M55: 0 | N55: 0 | O55: 0
B56: 2004 | C56: 3 | D56: 31 | E56: ='Interest and Tax'!D66 -> 336 | F56: 2003/04 | G56: 0 | H56: 0 | I56: 0 | J56: 0 | K56: 1 | L56: 1 | M56: 0 | N56: 0 | O56: 0
B57: 2004 | C57: 4 | D57: 30 | E57: ='Interest and Tax'!D67 -> 337 | F57: 2004/05 | G57: 0 | H57: 0 | I57: 0 | J57: 0 | K57: 1 | L57: 1 | M57: 0 | N57: 0 | O57: 0
B58: 2004 | C58: 5 | D58: 31 | E58: ='Interest and Tax'!D68 -> 338 | F58: 2004/05 | G58: 0 | H58: 0 | I58: 0 | J58: 0 | K58: 1 | L58: 1 | M58: 0 | N58: 0 | O58: 0
B59: 2004 | C59: 6 | D59: 30 | E59: ='Interest and Tax'!D69 -> 339 | F59: 2004/05 | G59: 0 | H59: 0 | I59: 0 | J59: 0 | K59: 1 | L59: 1 | M59: 0 | N59: 0 | O59: 0
B60: 2004 | C60: 7 | D60: 31 | E60: ='Interest and Tax'!D70 -> 340 | F60: 2004/05 | G60: 0 | H60: 0 | I60: 0 | J60: 0 | K60: 1 | L60: 1 | M60: 0 | N60: 0 | O60: 0
B61: 2004 | C61: 8 | D61: 31 | E61: ='Interest and Tax'!D71 -> 341 | F61: 2004/05 | G61: 0 | H61: 0 | I61: 0 | J61: 0 | K61: 1 | L61: 1 | M61: 0 | N61: 0 | O61: 0
B62: 2004 | C62: 9 | D62: 30 | E62: ='Interest and Tax'!D72 -> 342 | F62: 2004/05 | G62: 0 | H62: 0 | I62: 0 | J62: 0 | K62: 1 | L62: 1 | M62: 0 | N62: 0 | O62: 0
B63: 2004 | C63: 10 | D63: 31 | E63: ='Interest and Tax'!D73 -> 343 | F63: 2004/05 | G63: 0 | H63: 0 | I63: 0 | J63: 0 | K63: 1 | L63: 1 | M63: 0 | N63: 0 | O63: 0
B64: 2004 | C64: 11 | D64: 30 | E64: ='Interest and Tax'!D74 -> 344 | F64: 2004/05 | G64: 0 | H64: 0 | I64: 0 | J64: 0 | K64: 1 | L64: 1 | M64: 0 | N64: 0 | O64: 0
B65: 2004 | C65: 12 | D65: 31 | E65: ='Interest and Tax'!D75 -> 345 | F65: 2004/05 | G65: 0 | H65: 0 | I65: 0 | J65: 0 | K65: 1 | L65: 1 | M65: 0 | N65: 0 | O65: 0
B66: 2005 | C66: 1 | D66: 31 | E66: ='Interest and Tax'!D76 -> 346 | F66: 2004/05 | G66: 0 | H66: 0 | I66: 0 | J66: 0 | K66: 1 | L66: 1 | M66: 0 | N66: 0 | O66: 0
B67: 2005 | C67: 2 | D67: 28 | E67: ='Interest and Tax'!D77 -> 347 | F67: 2004/05 | G67: 0 | H67: 0 | I67: 0 | J67: 0 | K67: 1 | L67: 1 | M67: 0 | N67: 0 | O67: 0
B68: 2005 | C68: 3 | D68: 31 | E68: ='Interest and Tax'!D78 -> 348 | F68: 2004/05 | G68: 0 | H68: 0 | I68: 0 | J68: 0 | K68: 1 | L68: 1 | M68: 0 | N68: 0 | O68: 0
B69: 2005 | C69: 4 | D69: 30 | E69: ='Interest and Tax'!D79 -> 349 | F69: 2005/06 | G69: 0 | H69: 0 | I69: 0 | J69: 0 | K69: 1 | L69: 1 | M69: 0 | N69: 0 | O69: 0
B70: 2005 | C70: 5 | D70: 31 | E70: ='Interest and Tax'!D80 -> 350 | F70: 2005/06 | G70: 0 | H70: 0 | I70: 0 | J70: 0 | K70: 1 | L70: 1 | M70: 0 | N70: 0 | O70: 0
B71: 2005 | C71: 6 | D71: 30 | E71: ='Interest and Tax'!D81 -> 351 | F71: 2005/06 | G71: 0 | H71: 0 | I71: 0 | J71: 0 | K71: 1 | L71: 1 | M71: 0 | N71: 0 | O71: 0
B72: 2005 | C72: 7 | D72: 31 | E72: ='Interest and Tax'!D82 -> 352 | F72: 2005/06 | G72: 0 | H72: 0 | I72: 0 | J72: 0 | K72: 1 | L72: 1 | M72: 0 | N72: 0 | O72: 0
B73: 2005 | C73: 8 | D73: 31 | E73: ='Interest and Tax'!D83 -> 353 | F73: 2005/06 | G73: 0 | H73: =IF(AND(YEAR(Mod3_RDSDoPC)=B73,MONTH(Mod3_RDSDoPC)=C73),(D73+1)-DAY(Mod3_RDSDoPC),G73*D73) -> 0 | I73: =G73*(H73/D73)*(Mod3_RDSPostComPen/12) -> 0 | J73: 0 | K73: =(1+IF(J73<=1,0%,IF(J73=2,IF(Cat_prior_Retirement="Special Firefighter Member",VLOOKUP(Mod3_RDSDoPC,PI_Orders,3,TRUE),VLOOKUP(F73,PenIncTable,3,FALSE)),IF(J73>2,VLOOKUP(F73,PenIncTable,3,FALSE))))) -> 1 | L73: 1 | M73: =I73*L73 -> 0 | N73: 0 | O73: 0
B74: 2005 | C74: 9 | D74: 30 | E74: ='Interest and Tax'!D84 -> 354 | F74: 2005/06 | G74: =IF(AND(B74=YEAR(Mod3_RDSDoPC),C74=MONTH(Mod3_RDSDoPC)),1,G73)*IF(DATE(B74,C74,D74)<=Gen_CalcDate,1,0) -> 0 | H74: 0 | I74: 0 | J74: =G74*IF(OR(F73<>F74,G73<>G74),J73+G74,J73) -> 0 | K74: 1 | L74: =IF(J73<>J74,K74*L73,L73) -> 1 | M74: 0 | N74: =IF(AND(G74=1,G74<>G73),Mod3_RDSCommLS,0) -> 0 | O74: =M74+N74 -> 0
B75: 2005 | C75: 10 | D75: 31 | E75: ='Interest and Tax'!D85 -> 355 | F75: 2005/06 | G75: 0 | H75: 0 | I75: 0 | J75: 0 | K75: 1 | L75: 1 | M75: 0 | N75: 0 | O75: 0
B76: 2005 | C76: 11 | D76: 30 | E76: ='Interest and Tax'!D86 -> 356 | F76: 2005/06 | G76: 0 | H76: 0 | I76: 0 | J76: 0 | K76: 1 | L76: 1 | M76: 0 | N76: 0 | O76: 0
B77: 2005 | C77: 12 | D77: 31 | E77: ='Interest and Tax'!D87 -> 357 | F77: 2005/06 | G77: 0 | H77: 0 | I77: 0 | J77: 0 | K77: 1 | L77: 1 | M77: 0 | N77: 0 | O77: 0
B78: 2006 | C78: 1 | D78: 31 | E78: ='Interest and Tax'!D88 -> 358 | F78: 2005/06 | G78: 0 | H78: 0 | I78: 0 | J78: 0 | K78: 1 | L78: 1 | M78: 0 | N78: 0 | O78: 0
B79: 2006 | C79: 2 | D79: 28 | E79: ='Interest and Tax'!D89 -> 359 | F79: 2005/06 | G79: 0 | H79: 0 | I79: 0 | J79: 0 | K79: 1 | L79: 1 | M79: 0 | N79: 0 | O79: 0
B80: 2006 | C80: 3 | D80: 31 | E80: ='Interest and Tax'!D90 -> 360 | F80: 2005/06 | G80: 0 | H80: 0 | I80: 0 | J80: 0 | K80: 1 | L80: 1 | M80: 0 | N80: 0 | O80: 0
B81: 2006 | C81: 4 | D81: 30 | E81: ='Interest and Tax'!D91 -> 361 | F81: 2006/07 | G81: 0 | H81: 0 | I81: 0 | J81: 0 | K81: 1 | L81: 1 | M81: 0 | N81: 0 | O81: 0
B82: 2006 | C82: 5 | D82: 31 | E82: ='Interest and Tax'!D92 -> 362 | F82: 2006/07 | G82: 0 | H82: 0 | I82: 0 | J82: 0 | K82: 1 | L82: 1 | M82: 0 | N82: 0 | O82: 0
B83: 2006 | C83: 6 | D83: 30 | E83: ='Interest and Tax'!D93 -> 363 | F83: 2006/07 | G83: 0 | H83: 0 | I83: 0 | J83: 0 | K83: 1 | L83: 1 | M83: 0 | N83: 0 | O83: 0
B84: 2006 | C84: 7 | D84: 31 | E84: ='Interest and Tax'!D94 -> 364 | F84: 2006/07 | G84: 0 | H84: 0 | I84: 0 | J84: 0 | K84: 1 | L84: 1 | M84: 0 | N84: 0 | O84: 0
B85: 2006 | C85: 8 | D85: 31 | E85: ='Interest and Tax'!D95 -> 365 | F85: 2006/07 | G85: 0 | H85: 0 | I85: 0 | J85: 0 | K85: 1 | L85: 1 | M85: 0 | N85: 0 | O85: 0
B86: 2006 | C86: 9 | D86: 30 | E86: ='Interest and Tax'!D96 -> 366 | F86: 2006/07 | G86: 0 | H86: 0 | I86: 0 | J86: 0 | K86: 1 | L86: 1 | M86: 0 | N86: 0 | O86: 0
B87: 2006 | C87: 10 | D87: 31 | E87: ='Interest and Tax'!D97 -> 367 | F87: 2006/07 | G87: 0 | H87: 0 | I87: 0 | J87: 0 | K87: 1 | L87: 1 | M87: 0 | N87: 0 | O87: 0
B88: 2006 | C88: 11 | D88: 30 | E88: ='Interest and Tax'!D98 -> 368 | F88: 2006/07 | G88: 0 | H88: 0 | I88: 0 | J88: 0 | K88: 1 | L88: 1 | M88: 0 | N88: 0 | O88: 0
B89: 2006 | C89: 12 | D89: 31 | E89: ='Interest and Tax'!D99 -> 369 | F89: 2006/07 | G89: 0 | H89: 0 | I89: 0 | J89: 0 | K89: 1 | L89: 1 | M89: 0 | N89: 0 | O89: 0
B90: 2007 | C90: 1 | D90: 31 | E90: ='Interest and Tax'!D100 -> 370 | F90: 2006/07 | G90: 0 | H90: 0 | I90: 0 | J90: 0 | K90: 1 | L90: 1 | M90: 0 | N90: 0 | O90: 0
B91: 2007 | C91: 2 | D91: 28 | E91: ='Interest and Tax'!D101 -> 371 | F91: 2006/07 | G91: 0 | H91: 0 | I91: 0 | J91: 0 | K91: 1 | L91: 1 | M91: 0 | N91: 0 | O91: 0
B92: 2007 | C92: 3 | D92: 31 | E92: ='Interest and Tax'!D102 -> 372 | F92: 2006/07 | G92: 0 | H92: 0 | I92: 0 | J92: 0 | K92: 1 | L92: 1 | M92: 0 | N92: 0 | O92: 0
B93: 2007 | C93: 4 | D93: 30 | E93: ='Interest and Tax'!D103 -> 373 | F93: 2007/08 | G93: 0 | H93: 0 | I93: 0 | J93: 0 | K93: 1 | L93: 1 | M93: 0 | N93: 0 | O93: 0
B94: 2007 | C94: 5 | D94: 31 | E94: ='Interest and Tax'!D104 -> 374 | F94: 2007/08 | G94: 0 | H94: 0 | I94: 0 | J94: 0 | K94: 1 | L94: 1 | M94: 0 | N94: 0 | O94: 0
B95: 2007 | C95: 6 | D95: 30 | E95: ='Interest and Tax'!D105 -> 375 | F95: 2007/08 | G95: 0 | H95: 0 | I95: 0 | J95: 0 | K95: 1 | L95: 1 | M95: 0 | N95: 0 | O95: 0
B96: 2007 | C96: 7 | D96: 31 | E96: ='Interest and Tax'!D106 -> 376 | F96: 2007/08 | G96: 0 | H96: 0 | I96: 0 | J96: 0 | K96: 1 | L96: 1 | M96: 0 | N96: 0 | O96: 0
B97: 2007 | C97: 8 | D97: 31 | E97: ='Interest and Tax'!D107 -> 377 | F97: 2007/08 | G97: 0 | H97: 0 | I97: 0 | J97: 0 | K97: 1 | L97: 1 | M97: 0 | N97: 0 | O97: 0
B98: 2007 | C98: 9 | D98: 30 | E98: ='Interest and Tax'!D108 -> 378 | F98: 2007/08 | G98: 0 | H98: 0 | I98: 0 | J98: 0 | K98: 1 | L98: 1 | M98: 0 | N98: 0 | O98: 0
B99: 2007 | C99: 10 | D99: 31 | E99: ='Interest and Tax'!D109 -> 379 | F99: 2007/08 | G99: 0 | H99: 0 | I99: 0 | J99: 0 | K99: 1 | L99: 1 | M99: 0 | N99: 0 | O99: 0
B100: 2007 | C100: 11 | D100: 30 | E100: ='Interest and Tax'!D110 -> 380 | F100: 2007/08 | G100: 0 | H100: 0 | I100: 0 | J100: 0 | K100: 1 | L100: 1 | M100: 0 | N100: 0 | O100: 0
B101: 2007 | C101: 12 | D101: 31 | E101: ='Interest and Tax'!D111 -> 381 | F101: 2007/08 | G101: 0 | H101: 0 | I101: 0 | J101: 0 | K101: 1 | L101: 1 | M101: 0 | N101: 0 | O101: 0
B102: 2008 | C102: 1 | D102: 31 | E102: ='Interest and Tax'!D112 -> 382 | F102: 2007/08 | G102: 0 | H102: 0 | I102: 0 | J102: 0 | K102: 1 | L102: 1 | M102: 0 | N102: 0 | O102: 0
B103: 2008 | C103: 2 | D103: 29 | E103: ='Interest and Tax'!D113 -> 383 | F103: 2007/08 | G103: 0 | H103: 0 | I103: 0 | J103: 0 | K103: 1 | L103: 1 | M103: 0 | N103: 0 | O103: 0
B104: 2008 | C104: 3 | D104: 31 | E104: ='Interest and Tax'!D114 -> 384 | F104: 2007/08 | G104: 0 | H104: 0 | I104: 0 | J104: 0 | K104: 1 | L104: 1 | M104: 0 | N104: 0 | O104: 0
B105: 2008 | C105: 4 | D105: 30 | E105: ='Interest and Tax'!D115 -> 385 | F105: 2008/09 | G105: 0 | H105: =IF(AND(YEAR(Mod3_RDSDoPC)=B105,MONTH(Mod3_RDSDoPC)=C105),(D105+1)-DAY(Mod3_RDSDoPC),G105*D105) -> 0 | I105: =G105*(H105/D105)*(Mod3_RDSPostComPen/12) -> 0 | J105: 0 | K105: =(1+IF(J105<=1,0%,IF(J105=2,IF(Cat_prior_Retirement="Special Firefighter Member",VLOOKUP(Mod3_RDSDoPC,PI_Orders,3,TRUE),VLOOKUP(F105,PenIncTable,3,FALSE)),IF(J105>2,VLOOKUP(F105,PenIncTable,3,FALSE))))) -> 1 | L105: 1 | M105: =I105*L105 -> 0 | N105: 0 | O105: 0
B106: 2008 | C106: 5 | D106: 31 | E106: ='Interest and Tax'!D116 -> 386 | F106: 2008/09 | G106: 0 | H106: 0 | I106: 0 | J106: 0 | K106: 1 | L106: =IF(J105<>J106,K106*L105,L105) -> 1 | M106: 0 | N106: =IF(AND(G106=1,G106<>G105),Mod3_RDSCommLS,0) -> 0 | O106: 0
B107: 2008 | C107: 6 | D107: 30 | E107: ='Interest and Tax'!D117 -> 387 | F107: 2008/09 | G107: 0 | H107: 0 | I107: 0 | J107: 0 | K107: 1 | L107: 1 | M107: 0 | N107: 0 | O107: 0
B108: 2008 | C108: 7 | D108: 31 | E108: ='Interest and Tax'!D118 -> 388 | F108: 2008/09 | G108: 0 | H108: 0 | I108: 0 | J108: 0 | K108: 1 | L108: 1 | M108: 0 | N108: 0 | O108: 0
B109: 2008 | C109: 8 | D109: 31 | E109: ='Interest and Tax'!D119 -> 389 | F109: 2008/09 | G109: 0 | H109: 0 | I109: 0 | J109: 0 | K109: 1 | L109: 1 | M109: 0 | N109: 0 | O109: 0
B110: 2008 | C110: 9 | D110: 30 | E110: ='Interest and Tax'!D120 -> 390 | F110: 2008/09 | G110: 0 | H110: 0 | I110: 0 | J110: 0 | K110: 1 | L110: 1 | M110: 0 | N110: 0 | O110: 0
B111: 2008 | C111: 10 | D111: 31 | E111: ='Interest and Tax'!D121 -> 391 | F111: 2008/09 | G111: 0 | H111: 0 | I111: 0 | J111: 0 | K111: 1 | L111: 1 | M111: 0 | N111: 0 | O111: 0
B112: 2008 | C112: 11 | D112: 30 | E112: ='Interest and Tax'!D122 -> 392 | F112: 2008/09 | G112: 0 | H112: 0 | I112: 0 | J112: 0 | K112: 1 | L112: 1 | M112: 0 | N112: 0 | O112: 0
B113: 2008 | C113: 12 | D113: 31 | E113: ='Interest and Tax'!D123 -> 393 | F113: 2008/09 | G113: 0 | H113: 0 | I113: 0 | J113: 0 | K113: 1 | L113: 1 | M113: 0 | N113: 0 | O113: 0
B114: 2009 | C114: 1 | D114: 31 | E114: ='Interest and Tax'!D124 -> 394 | F114: 2008/09 | G114: 0 | H114: 0 | I114: 0 | J114: 0 | K114: 1 | L114: 1 | M114: 0 | N114: 0 | O114: 0
B115: 2009 | C115: 2 | D115: 28 | E115: ='Interest and Tax'!D125 -> 395 | F115: 2008/09 | G115: 0 | H115: 0 | I115: 0 | J115: 0 | K115: 1 | L115: 1 | M115: 0 | N115: 0 | O115: 0
B116: 2009 | C116: 3 | D116: 31 | E116: ='Interest and Tax'!D126 -> 396 | F116: 2008/09 | G116: 0 | H116: 0 | I116: 0 | J116: 0 | K116: 1 | L116: 1 | M116: 0 | N116: 0 | O116: 0
B117: 2009 | C117: 4 | D117: 30 | E117: ='Interest and Tax'!D127 -> 397 | F117: 2009/10 | G117: 0 | H117: 0 | I117: 0 | J117: 0 | K117: 1 | L117: 1 | M117: 0 | N117: 0 | O117: 0
B118: 2009 | C118: 5 | D118: 31 | E118: ='Interest and Tax'!D128 -> 398 | F118: 2009/10 | G118: 0 | H118: 0 | I118: 0 | J118: 0 | K118: 1 | L118: 1 | M118: 0 | N118: 0 | O118: 0
B119: 2009 | C119: 6 | D119: 30 | E119: ='Interest and Tax'!D129 -> 399 | F119: 2009/10 | G119: 0 | H119: 0 | I119: 0 | J119: 0 | K119: 1 | L119: 1 | M119: 0 | N119: 0 | O119: 0
B120: 2009 | C120: 7 | D120: 31 | E120: ='Interest and Tax'!D130 -> 400 | F120: 2009/10 | G120: 0 | H120: 0 | I120: 0 | J120: 0 | K120: 1 | L120: 1 | M120: 0 | N120: 0 | O120: 0
B121: 2009 | C121: 8 | D121: 31 | E121: ='Interest and Tax'!D131 -> 401 | F121: 2009/10 | G121: 0 | H121: 0 | I121: 0 | J121: 0 | K121: 1 | L121: 1 | M121: 0 | N121: 0 | O121: 0
B122: 2009 | C122: 9 | D122: 30 | E122: ='Interest and Tax'!D132 -> 402 | F122: 2009/10 | G122: 0 | H122: 0 | I122: 0 | J122: 0 | K122: 1 | L122: 1 | M122: 0 | N122: 0 | O122: 0
B123: 2009 | C123: 10 | D123: 31 | E123: ='Interest and Tax'!D133 -> 403 | F123: 2009/10 | G123: 0 | H123: 0 | I123: 0 | J123: 0 | K123: 1 | L123: 1 | M123: 0 | N123: 0 | O123: 0
B124: 2009 | C124: 11 | D124: 30 | E124: ='Interest and Tax'!D134 -> 404 | F124: 2009/10 | G124: 0 | H124: 0 | I124: 0 | J124: 0 | K124: 1 | L124: 1 | M124: 0 | N124: 0 | O124: 0
B125: 2009 | C125: 12 | D125: 31 | E125: ='Interest and Tax'!D135 -> 405 | F125: 2009/10 | G125: 0 | H125: 0 | I125: 0 | J125: 0 | K125: 1 | L125: 1 | M125: 0 | N125: 0 | O125: 0
B126: 2010 | C126: 1 | D126: 31 | E126: ='Interest and Tax'!D136 -> 406 | F126: 2009/10 | G126: 0 | H126: 0 | I126: 0 | J126: 0 | K126: 1 | L126: 1 | M126: 0 | N126: 0 | O126: 0
B127: 2010 | C127: 2 | D127: 28 | E127: ='Interest and Tax'!D137 -> 407 | F127: 2009/10 | G127: 0 | H127: 0 | I127: 0 | J127: 0 | K127: 1 | L127: 1 | M127: 0 | N127: 0 | O127: 0
B128: 2010 | C128: 3 | D128: 31 | E128: ='Interest and Tax'!D138 -> 408 | F128: 2009/10 | G128: 0 | H128: 0 | I128: 0 | J128: 0 | K128: 1 | L128: 1 | M128: 0 | N128: 0 | O128: 0
B129: 2010 | C129: 4 | D129: 30 | E129: ='Interest and Tax'!D139 -> 409 | F129: 2010/11 | G129: 0 | H129: 0 | I129: 0 | J129: 0 | K129: 1 | L129: 1 | M129: 0 | N129: 0 | O129: 0
B130: 2010 | C130: 5 | D130: 31 | E130: ='Interest and Tax'!D140 -> 410 | F130: 2010/11 | G130: 0 | H130: 0 | I130: 0 | J130: =G130*IF(OR(F129<>F130,G129<>G130),J129+G130,J129) -> 0 | K130: 1 | L130: 1 | M130: 0 | N130: 0 | O130: 0
B131: 2010 | C131: 6 | D131: 30 | E131: ='Interest and Tax'!D141 -> 411 | F131: 2010/11 | G131: 0 | H131: 0 | I131: 0 | J131: 0 | K131: 1 | L131: 1 | M131: 0 | N131: 0 | O131: 0
B132: 2010 | C132: 7 | D132: 31 | E132: ='Interest and Tax'!D142 -> 412 | F132: 2010/11 | G132: 0 | H132: 0 | I132: 0 | J132: 0 | K132: 1 | L132: 1 | M132: 0 | N132: 0 | O132: 0
B133: 2010 | C133: 8 | D133: 31 | E133: ='Interest and Tax'!D143 -> 413 | F133: 2010/11 | G133: 0 | H133: 0 | I133: 0 | J133: 0 | K133: 1 | L133: 1 | M133: 0 | N133: 0 | O133: 0
B134: 2010 | C134: 9 | D134: 30 | E134: ='Interest and Tax'!D144 -> 414 | F134: 2010/11 | G134: 0 | H134: 0 | I134: 0 | J134: 0 | K134: 1 | L134: 1 | M134: 0 | N134: 0 | O134: 0
B135: 2010 | C135: 10 | D135: 31 | E135: ='Interest and Tax'!D145 -> 415 | F135: 2010/11 | G135: 0 | H135: 0 | I135: 0 | J135: 0 | K135: 1 | L135: 1 | M135: 0 | N135: 0 | O135: 0
B136: 2010 | C136: 11 | D136: 30 | E136: ='Interest and Tax'!D146 -> 416 | F136: 2010/11 | G136: 0 | H136: 0 | I136: 0 | J136: 0 | K136: 1 | L136: 1 | M136: 0 | N136: 0 | O136: 0
B137: 2010 | C137: 12 | D137: 31 | E137: ='Interest and Tax'!D147 -> 417 | F137: 2010/11 | G137: 0 | H137: =IF(AND(YEAR(Mod3_RDSDoPC)=B137,MONTH(Mod3_RDSDoPC)=C137),(D137+1)-DAY(Mod3_RDSDoPC),G137*D137) -> 0 | I137: =G137*(H137/D137)*(Mod3_RDSPostComPen/12) -> 0 | J137: 0 | K137: =(1+IF(J137<=1,0%,IF(J137=2,IF(Cat_prior_Retirement="Special Firefighter Member",VLOOKUP(Mod3_RDSDoPC,PI_Orders,3,TRUE),VLOOKUP(F137,PenIncTable,3,FALSE)),IF(J137>2,VLOOKUP(F137,PenIncTable,3,FALSE))))) -> 1 | L137: 1 | M137: =I137*L137 -> 0 | N137: 0 | O137: 0
B138: 2011 | C138: 1 | D138: 31 | E138: ='Interest and Tax'!D148 -> 418 | F138: 2010/11 | G138: =IF(AND(B138=YEAR(Mod3_RDSDoPC),C138=MONTH(Mod3_RDSDoPC)),1,G137)*IF(DATE(B138,C138,D138)<=Gen_CalcDate,1,0) -> 0 | H138: 0 | I138: 0 | J138: 0 | K138: 1 | L138: =IF(J137<>J138,K138*L137,L137) -> 1 | M138: 0 | N138: =IF(AND(G138=1,G138<>G137),Mod3_RDSCommLS,0) -> 0 | O138: =M138+N138 -> 0
B139: 2011 | C139: 2 | D139: 28 | E139: ='Interest and Tax'!D149 -> 419 | F139: 2010/11 | G139: 0 | H139: 0 | I139: 0 | J139: 0 | K139: 1 | L139: 1 | M139: 0 | N139: 0 | O139: 0
B140: 2011 | C140: 3 | D140: 31 | E140: ='Interest and Tax'!D150 -> 420 | F140: 2010/11 | G140: 0 | H140: 0 | I140: 0 | J140: 0 | K140: 1 | L140: 1 | M140: 0 | N140: 0 | O140: 0
B141: 2011 | C141: 4 | D141: 30 | E141: ='Interest and Tax'!D151 -> 421 | F141: 2011/12 | G141: 0 | H141: 0 | I141: 0 | J141: =G141*IF(OR(F140<>F141,G140<>G141),J140+G141,J140) -> 0 | K141: 1 | L141: 1 | M141: 0 | N141: 0 | O141: 0
B142: 2011 | C142: 5 | D142: 31 | E142: ='Interest and Tax'!D152 -> 422 | F142: 2011/12 | G142: 0 | H142: 0 | I142: 0 | J142: =G142*IF(OR(F141<>F142,G141<>G142),J141+G142,J141) -> 0 | K142: 1 | L142: 1 | M142: 0 | N142: 0 | O142: 0
B143: 2011 | C143: 6 | D143: 30 | E143: ='Interest and Tax'!D153 -> 423 | F143: 2011/12 | G143: 0 | H143: 0 | I143: 0 | J143: 0 | K143: 1 | L143: 1 | M143: 0 | N143: 0 | O143: 0
B144: 2011 | C144: 7 | D144: 31 | E144: ='Interest and Tax'!D154 -> 424 | F144: 2011/12 | G144: 0 | H144: 0 | I144: 0 | J144: 0 | K144: 1 | L144: 1 | M144: 0 | N144: 0 | O144: 0
B145: 2011 | C145: 8 | D145: 31 | E145: ='Interest and Tax'!D155 -> 425 | F145: 2011/12 | G145: 0 | H145: 0 | I145: 0 | J145: 0 | K145: 1 | L145: 1 | M145: 0 | N145: 0 | O145: 0
B146: 2011 | C146: 9 | D146: 30 | E146: ='Interest and Tax'!D156 -> 426 | F146: 2011/12 | G146: 0 | H146: 0 | I146: 0 | J146: 0 | K146: 1 | L146: 1 | M146: 0 | N146: 0 | O146: 0
B147: 2011 | C147: 10 | D147: 31 | E147: ='Interest and Tax'!D157 -> 427 | F147: 2011/12 | G147: 0 | H147: 0 | I147: 0 | J147: 0 | K147: 1 | L147: 1 | M147: 0 | N147: 0 | O147: 0
B148: 2011 | C148: 11 | D148: 30 | E148: ='Interest and Tax'!D158 -> 428 | F148: 2011/12 | G148: 0 | H148: 0 | I148: 0 | J148: 0 | K148: 1 | L148: 1 | M148: 0 | N148: 0 | O148: 0
B149: 2011 | C149: 12 | D149: 31 | E149: ='Interest and Tax'!D159 -> 429 | F149: 2011/12 | G149: 0 | H149: 0 | I149: 0 | J149: 0 | K149: 1 | L149: 1 | M149: 0 | N149: 0 | O149: 0
B150: 2012 | C150: 1 | D150: 31 | E150: ='Interest and Tax'!D160 -> 430 | F150: 2011/12 | G150: 0 | H150: 0 | I150: 0 | J150: 0 | K150: 1 | L150: 1 | M150: 0 | N150: 0 | O150: 0
B151: 2012 | C151: 2 | D151: 29 | E151: ='Interest and Tax'!D161 -> 431 | F151: 2011/12 | G151: 0 | H151: 0 | I151: 0 | J151: 0 | K151: 1 | L151: 1 | M151: 0 | N151: 0 | O151: 0
B152: 2012 | C152: 3 | D152: 31 | E152: ='Interest and Tax'!D162 -> 432 | F152: 2011/12 | G152: 0 | H152: 0 | I152: 0 | J152: 0 | K152: 1 | L152: 1 | M152: 0 | N152: 0 | O152: 0
B153: 2012 | C153: 4 | D153: 30 | E153: ='Interest and Tax'!D163 -> 433 | F153: 2012/13 | G153: 0 | H153: 0 | I153: 0 | J153: 0 | K153: 1 | L153: 1 | M153: 0 | N153: 0 | O153: 0
B154: 2012 | C154: 5 | D154: 31 | E154: ='Interest and Tax'!D164 -> 434 | F154: 2012/13 | G154: 0 | H154: 0 | I154: 0 | J154: 0 | K154: 1 | L154: 1 | M154: 0 | N154: 0 | O154: 0
B155: 2012 | C155: 6 | D155: 30 | E155: ='Interest and Tax'!D165 -> 435 | F155: 2012/13 | G155: 0 | H155: 0 | I155: 0 | J155: 0 | K155: 1 | L155: 1 | M155: 0 | N155: 0 | O155: 0
B156: 2012 | C156: 7 | D156: 31 | E156: ='Interest and Tax'!D166 -> 436 | F156: 2012/13 | G156: 0 | H156: 0 | I156: 0 | J156: 0 | K156: 1 | L156: 1 | M156: 0 | N156: 0 | O156: 0
B157: 2012 | C157: 8 | D157: 31 | E157: ='Interest and Tax'!D167 -> 437 | F157: 2012/13 | G157: 0 | H157: 0 | I157: 0 | J157: 0 | K157: 1 | L157: 1 | M157: 0 | N157: 0 | O157: 0
B158: 2012 | C158: 9 | D158: 30 | E158: ='Interest and Tax'!D168 -> 438 | F158: 2012/13 | G158: 0 | H158: 0 | I158: 0 | J158: 0 | K158: 1 | L158: 1 | M158: 0 | N158: 0 | O158: 0
B159: 2012 | C159: 10 | D159: 31 | E159: ='Interest and Tax'!D169 -> 439 | F159: 2012/13 | G159: 0 | H159: 0 | I159: 0 | J159: 0 | K159: 1 | L159: 1 | M159: 0 | N159: 0 | O159: 0
B160: 2012 | C160: 11 | D160: 30 | E160: ='Interest and Tax'!D170 -> 440 | F160: 2012/13 | G160: 0 | H160: 0 | I160: 0 | J160: 0 | K160: 1 | L160: 1 | M160: 0 | N160: 0 | O160: 0
B161: 2012 | C161: 12 | D161: 31 | E161: ='Interest and Tax'!D171 -> 441 | F161: 2012/13 | G161: 0 | H161: 0 | I161: 0 | J161: 0 | K161: 1 | L161: 1 | M161: 0 | N161: 0 | O161: 0
B162: 2013 | C162: 1 | D162: 31 | E162: ='Interest and Tax'!D172 -> 442 | F162: 2012/13 | G162: 0 | H162: 0 | I162: 0 | J162: 0 | K162: 1 | L162: 1 | M162: 0 | N162: 0 | O162: 0
B163: 2013 | C163: 2 | D163: 28 | E163: ='Interest and Tax'!D173 -> 443 | F163: 2012/13 | G163: 0 | H163: 0 | I163: 0 | J163: 0 | K163: 1 | L163: 1 | M163: 0 | N163: 0 | O163: 0
B164: 2013 | C164: 3 | D164: 31 | E164: ='Interest and Tax'!D174 -> 444 | F164: 2012/13 | G164: 0 | H164: 0 | I164: 0 | J164: 0 | K164: 1 | L164: 1 | M164: 0 | N164: 0 | O164: 0
B165: 2013 | C165: 4 | D165: 30 | E165: ='Interest and Tax'!D175 -> 445 | F165: 2013/14 | G165: 0 | H165: 0 | I165: 0 | J165: 0 | K165: 1 | L165: 1 | M165: 0 | N165: 0 | O165: 0
B166: 2013 | C166: 5 | D166: 31 | E166: ='Interest and Tax'!D176 -> 446 | F166: 2013/14 | G166: 0 | H166: 0 | I166: 0 | J166: 0 | K166: 1 | L166: 1 | M166: 0 | N166: 0 | O166: 0
B167: 2013 | C167: 6 | D167: 30 | E167: ='Interest and Tax'!D177 -> 447 | F167: 2013/14 | G167: 0 | H167: 0 | I167: 0 | J167: 0 | K167: 1 | L167: 1 | M167: 0 | N167: 0 | O167: 0
B168: 2013 | C168: 7 | D168: 31 | E168: ='Interest and Tax'!D178 -> 448 | F168: 2013/14 | G168: 0 | H168: 0 | I168: 0 | J168: 0 | K168: 1 | L168: 1 | M168: 0 | N168: 0 | O168: 0
B169: 2013 | C169: 8 | D169: 31 | E169: ='Interest and Tax'!D179 -> 449 | F169: 2013/14 | G169: 0 | H169: =IF(AND(YEAR(Mod3_RDSDoPC)=B169,MONTH(Mod3_RDSDoPC)=C169),(D169+1)-DAY(Mod3_RDSDoPC),G169*D169) -> 0 | I169: =G169*(H169/D169)*(Mod3_RDSPostComPen/12) -> 0 | J169: 0 | K169: =(1+IF(J169<=1,0%,IF(J169=2,IF(Cat_prior_Retirement="Special Firefighter Member",VLOOKUP(Mod3_RDSDoPC,PI_Orders,3,TRUE),VLOOKUP(F169,PenIncTable,3,FALSE)),IF(J169>2,VLOOKUP(F169,PenIncTable,3,FALSE))))) -> 1 | L169: 1 | M169: =I169*L169 -> 0 | N169: 0 | O169: 0
B170: 2013 | C170: 9 | D170: 30 | E170: ='Interest and Tax'!D180 -> 450 | F170: 2013/14 | G170: 0 | H170: 0 | I170: 0 | J170: =G170*IF(OR(F169<>F170,G169<>G170),J169+G170,J169) -> 0 | K170: 1 | L170: =IF(J169<>J170,K170*L169,L169) -> 1 | M170: 0 | N170: =IF(AND(G170=1,G170<>G169),Mod3_RDSCommLS,0) -> 0 | O170: 0
B171: 2013 | C171: 10 | D171: 31 | E171: ='Interest and Tax'!D181 -> 451 | F171: 2013/14 | G171: 0 | H171: 0 | I171: 0 | J171: =G171*IF(OR(F170<>F171,G170<>G171),J170+G171,J170) -> 0 | K171: 1 | L171: 1 | M171: 0 | N171: 0 | O171: 0
B172: 2013 | C172: 11 | D172: 30 | E172: ='Interest and Tax'!D182 -> 452 | F172: 2013/14 | G172: 0 | H172: 0 | I172: 0 | J172: 0 | K172: 1 | L172: 1 | M172: 0 | N172: 0 | O172: 0
B173: 2013 | C173: 12 | D173: 31 | E173: ='Interest and Tax'!D183 -> 453 | F173: 2013/14 | G173: 0 | H173: 0 | I173: 0 | J173: 0 | K173: 1 | L173: 1 | M173: 0 | N173: 0 | O173: 0
B174: 2014 | C174: 1 | D174: 31 | E174: ='Interest and Tax'!D184 -> 454 | F174: 2013/14 | G174: 0 | H174: 0 | I174: 0 | J174: 0 | K174: 1 | L174: 1 | M174: 0 | N174: 0 | O174: 0
B175: 2014 | C175: 2 | D175: 28 | E175: ='Interest and Tax'!D185 -> 455 | F175: 2013/14 | G175: 0 | H175: 0 | I175: 0 | J175: 0 | K175: 1 | L175: 1 | M175: 0 | N175: 0 | O175: 0
B176: 2014 | C176: 3 | D176: 31 | E176: ='Interest and Tax'!D186 -> 456 | F176: 2013/14 | G176: 0 | H176: 0 | I176: 0 | J176: 0 | K176: 1 | L176: 1 | M176: 0 | N176: 0 | O176: 0
B177: 2014 | C177: 4 | D177: 30 | E177: ='Interest and Tax'!D187 -> 457 | F177: 2014/15 | G177: 0 | H177: 0 | I177: 0 | J177: 0 | K177: 1 | L177: 1 | M177: 0 | N177: 0 | O177: 0
B178: 2014 | C178: 5 | D178: 31 | E178: ='Interest and Tax'!D188 -> 458 | F178: 2014/15 | G178: 0 | H178: 0 | I178: 0 | J178: 0 | K178: 1 | L178: 1 | M178: 0 | N178: 0 | O178: 0
B179: 2014 | C179: 6 | D179: 30 | E179: ='Interest and Tax'!D189 -> 459 | F179: 2014/15 | G179: 0 | H179: 0 | I179: 0 | J179: 0 | K179: 1 | L179: 1 | M179: 0 | N179: 0 | O179: 0
B180: 2014 | C180: 7 | D180: 31 | E180: ='Interest and Tax'!D190 -> 460 | F180: 2014/15 | G180: 0 | H180: 0 | I180: 0 | J180: 0 | K180: 1 | L180: 1 | M180: 0 | N180: 0 | O180: 0
B181: 2014 | C181: 8 | D181: 31 | E181: ='Interest and Tax'!D191 -> 461 | F181: 2014/15 | G181: 0 | H181: 0 | I181: 0 | J181: 0 | K181: 1 | L181: 1 | M181: 0 | N181: 0 | O181: 0
B182: 2014 | C182: 9 | D182: 30 | E182: ='Interest and Tax'!D192 -> 462 | F182: 2014/15 | G182: 0 | H182: 0 | I182: 0 | J182: =G182*IF(OR(F181<>F182,G181<>G182),J181+G182,J181) -> 0 | K182: 1 | L182: 1 | M182: 0 | N182: 0 | O182: 0
B183: 2014 | C183: 10 | D183: 31 | E183: ='Interest and Tax'!D193 -> 463 | F183: 2014/15 | G183: 0 | H183: 0 | I183: 0 | J183: =G183*IF(OR(F182<>F183,G182<>G183),J182+G183,J182) -> 0 | K183: 1 | L183: 1 | M183: 0 | N183: 0 | O183: 0
B184: 2014 | C184: 11 | D184: 30 | E184: ='Interest and Tax'!D194 -> 464 | F184: 2014/15 | G184: 0 | H184: 0 | I184: 0 | J184: 0 | K184: 1 | L184: 1 | M184: 0 | N184: 0 | O184: 0
B185: 2014 | C185: 12 | D185: 31 | E185: ='Interest and Tax'!D195 -> 465 | F185: 2014/15 | G185: 0 | H185: 0 | I185: 0 | J185: 0 | K185: 1 | L185: 1 | M185: 0 | N185: 0 | O185: 0
B186: 2015 | C186: 1 | D186: 31 | E186: ='Interest and Tax'!D196 -> 466 | F186: 2014/15 | G186: 0 | H186: 0 | I186: 0 | J186: 0 | K186: 1 | L186: 1 | M186: 0 | N186: 0 | O186: 0
B187: 2015 | C187: 2 | D187: 28 | E187: ='Interest and Tax'!D197 -> 467 | F187: 2014/15 | G187: 0 | H187: 0 | I187: 0 | J187: 0 | K187: 1 | L187: 1 | M187: 0 | N187: 0 | O187: 0
B188: 2015 | C188: 3 | D188: 31 | E188: ='Interest and Tax'!D198 -> 468 | F188: 2014/15 | G188: 0 | H188: 0 | I188: 0 | J188: 0 | K188: 1 | L188: 1 | M188: 0 | N188: 0 | O188: 0
B189: 2015 | C189: 4 | D189: 30 | E189: ='Interest and Tax'!D199 -> 469 | F189: 2015/16 | G189: =IF(AND(B189=YEAR(Mod3_RDSDoPC),C189=MONTH(Mod3_RDSDoPC)),1,G188)*IF(DATE(B189,C189,D189)<=Gen_CalcDate,1,0) -> 0 | H189: =IF(AND(YEAR(Mod3_RDSDoPC)=B189,MONTH(Mod3_RDSDoPC)=C189),(D189+1)-DAY(Mod3_RDSDoPC),G189*D189) -> 0 | I189: =G189*(H189/D189)*(Mod3_RDSPostComPen/12) -> 0 | J189: =G189*IF(OR(F188<>F189,G188<>G189),J188+G189,J188) -> 0 | K189: =(1+IF(J189<=1,0%,IF(J189=2,IF(Cat_prior_Retirement="Special Firefighter Member",VLOOKUP(Mod3_RDSDoPC,PI_Orders,3,TRUE),VLOOKUP(F189,PenIncTable,3,FALSE)),IF(J189>2,VLOOKUP(F189,PenIncTable,3,FALSE))))) -> 1 | L189: =IF(J188<>J189,K189*L188,L188) -> 1 | M189: =I189*L189 -> 0 | N189: =IF(AND(G189=1,G189<>G188),Mod3_RDSCommLS,0) -> 0 | O189: =M189+N189 -> 0
B190: 2015 | C190: 5 | D190: 31 | E190: ='Interest and Tax'!D200 -> 470 | F190: 2015/16 | G190: =IF(AND(B190=YEAR(Mod3_RDSDoPC),C190=MONTH(Mod3_RDSDoPC)),1,G189)*IF(DATE(B190,C190,D190)<=Gen_CalcDate,1,0) -> 0 | H190: =IF(AND(YEAR(Mod3_RDSDoPC)=B190,MONTH(Mod3_RDSDoPC)=C190),(D190+1)-DAY(Mod3_RDSDoPC),G190*D190) -> 0 | I190: =G190*(H190/D190)*(Mod3_RDSPostComPen/12) -> 0 | J190: =G190*IF(OR(F189<>F190,G189<>G190),J189+G190,J189) -> 0 | K190: =(1+IF(J190<=1,0%,IF(J190=2,IF(Cat_prior_Retirement="Special Firefighter Member",VLOOKUP(Mod3_RDSDoPC,PI_Orders,3,TRUE),VLOOKUP(F190,PenIncTable,3,FALSE)),IF(J190>2,VLOOKUP(F190,PenIncTable,3,FALSE))))) -> 1 | L190: =IF(J189<>J190,K190*L189,L189) -> 1 | M190: =I190*L190 -> 0 | N190: =IF(AND(G190=1,G190<>G189),Mod3_RDSCommLS,0) -> 0 | O190: =M190+N190 -> 0
B191: 2015 | C191: 6 | D191: 30 | E191: ='Interest and Tax'!D201 -> 471 | F191: 2015/16 | G191: 0 | H191: 0 | I191: 0 | J191: 0 | K191: 1 | L191: 1 | M191: 0 | N191: 0 | O191: 0
B192: 2015 | C192: 7 | D192: 31 | E192: ='Interest and Tax'!D202 -> 472 | F192: 2015/16 | G192: =IF(AND(B192=YEAR(Mod3_RDSDoPC),C192=MONTH(Mod3_RDSDoPC)),1,G191)*IF(DATE(B192,C192,D192)<=Gen_CalcDate,1,0) -> 0 | H192: =IF(AND(YEAR(Mod3_RDSDoPC)=B192,MONTH(Mod3_RDSDoPC)=C192),(D192+1)-DAY(Mod3_RDSDoPC),G192*D192) -> 0 | I192: =G192*(H192/D192)*(Mod3_RDSPostComPen/12) -> 0 | J192: =G192*IF(OR(F191<>F192,G191<>G192),J191+G192,J191) -> 0 | K192: =(1+IF(J192<=1,0%,IF(J192=2,IF(Cat_prior_Retirement="Special Firefighter Member",VLOOKUP(Mod3_RDSDoPC,PI_Orders,3,TRUE),VLOOKUP(F192,PenIncTable,3,FALSE)),IF(J192>2,VLOOKUP(F192,PenIncTable,3,FALSE))))) -> 1 | L192: =IF(J191<>J192,K192*L191,L191) -> 1 | M192: =I192*L192 -> 0 | N192: =IF(AND(G192=1,G192<>G191),Mod3_RDSCommLS,0) -> 0 | O192: =M192+N192 -> 0
B193: 2015 | C193: 8 | D193: 31 | E193: ='Interest and Tax'!D203 -> 473 | F193: 2015/16 | G193: 0 | H193: 0 | I193: 0 | J193: 0 | K193: 1 | L193: 1 | M193: 0 | N193: 0 | O193: 0
B194: 2015 | C194: 9 | D194: 30 | E194: ='Interest and Tax'!D204 -> 474 | F194: 2015/16 | G194: 0 | H194: 0 | I194: 0 | J194: 0 | K194: 1 | L194: 1 | M194: 0 | N194: 0 | O194: 0
B195: 2015 | C195: 10 | D195: 31 | E195: ='Interest and Tax'!D205 -> 475 | F195: 2015/16 | G195: 0 | H195: 0 | I195: 0 | J195: 0 | K195: 1 | L195: 1 | M195: 0 | N195: 0 | O195: 0
B196: 2015 | C196: 11 | D196: 30 | E196: ='Interest and Tax'!D206 -> 476 | F196: 2015/16 | G196: 0 | H196: 0 | I196: 0 | J196: 0 | K196: 1 | L196: 1 | M196: 0 | N196: 0 | O196: 0
B197: 2015 | C197: 12 | D197: 31 | E197: ='Interest and Tax'!D207 -> 477 | F197: 2015/16 | G197: 0 | H197: 0 | I197: 0 | J197: 0 | K197: 1 | L197: 1 | M197: 0 | N197: 0 | O197: 0

Sheet Mod(3) - pension LS calc (hidden)
A1: Government Actuary's Department
A2: =IF(title="> Enter workbook title here","Enter workbook title in Cover sheet",title) -> Preston Model for RDS settlement
A3: Module 3 - lumps sum value as at calc date of special scheme (RDS) pension to be paid to member
A4: =CELL("filename",A1) -> C:\Users\lroberts\AppData\Local\Microsoft\Windows\Temporary Internet Files\Content.Outlook\TFL3ASN3\[Retained Firefighters Pension Settlement Calculator Sep 2015 v1_0.xlsm]Mod(3) - pension LS calc
A5: This sheet calculates the PV of pension lump sum to be paid to special pensioner
A6: Adapted from the 'Mod(1) - LS conts calc' tab. Tax rate has been ignored in the calculations.
A7: The formula used in cells B23:B416 has been updated, because the pension to be paid is calculated on a daily basis. I.e. the pension is not calculated as at the first day of the month, as was the case for the RDS and NFPS conts. calcs.
A8: We also assume that pension payments are paid in arrears. This is reflected in the Interest Index value - i.e. looking up the index from the next month.
B9: Month | C9: Year | D9: Month number
A10: Start of pension calc | B10: =MONTH(Mod3_RDSDoPC) -> 1 | C10: =YEAR(Mod3_RDSDoPC) -> 1900 | D10: =(C10-1976)*12+B10-3 -> -914
A11: End of pension calc | B11: =MONTH(Gen_CalcDate) -> 1 | C11: =YEAR(Gen_CalcDate) -> 1900 | D11: =(C11-1976)*12+B11-3 -> -914
A12: Month at pension calc date | B12: =MONTH(Gen_CalcDate) -> 1 | C12: =YEAR(Gen_CalcDate) -> 1900 | D12: =(C12-1976)*12+B12-3 -> -914 | G12: =VLOOKUP(D12,IntTax_LookupTable,2,FALSE) ->  | H12: Interest Index at payment date
A14: Flag if calculation dates is on last date of month
B17: Lump sum pension payment to be paid to spc pen member | G17: =E21*G12 ->  | J17: Assume that no tax relief available to member at payment date
B18: Tot conts excl interest: | G18: =SUM(C22:C416) -> 0 | J18: See e-mail from AM (DCLG) to SL/Fire on 05/11/2013 at 09:06
B19: Interest | G19: =G17-G18 -> 
B20: Month | C20: Pension to be paid | D20: Interest Index
E21: =SUM(E22:E420) -> 
B22: =D10 -> -914 | C22: =IF(ISERROR(VLOOKUP(B22,'Mod(3) - pen payments'!$E$9:$O$197,11,FALSE)),0,VLOOKUP(B22,'Mod(3) - pen payments'!$E$9:$O$197,11,FALSE)) -> 0 | D22: =VLOOKUP(B22,IntTax_LookupTable,2,FALSE) ->  | E22: =C22/D22 ->  | G22: <- interest index is at end of month, which is fine, as we assume payments are made in arrears.
B23: =IF(B22=0,0,IF(B22=$D$11,0,B22+1)) -> 0 | C23: =IF(ISERROR(VLOOKUP(B23,'Mod(3) - pen payments'!$E$9:$O$197,11,FALSE)),0,VLOOKUP(B23,'Mod(3) - pen payments'!$E$9:$O$197,11,FALSE)) -> 0 | D23: =VLOOKUP(B23,IntTax_LookupTable,2,FALSE) -> 1 | E23: =C23/D23 -> 0 | G23: also note that the last month that gets included in the table may not have a pension value as we assume payments in arrears
B24: 0 | C24: =IF(ISERROR(VLOOKUP(B24,'Mod(3) - pen payments'!$E$9:$O$197,11,FALSE)),0,VLOOKUP(B24,'Mod(3) - pen payments'!$E$9:$O$197,11,FALSE)) -> 0 | D24: 1 | E24: 0
B25: 0 | C25: =IF(ISERROR(VLOOKUP(B25,'Mod(3) - pen payments'!$E$9:$O$197,11,FALSE)),0,VLOOKUP(B25,'Mod(3) - pen payments'!$E$9:$O$197,11,FALSE)) -> 0 | D25: 1 | E25: 0
B26: 0 | C26: =IF(ISERROR(VLOOKUP(B26,'Mod(3) - pen payments'!$E$9:$O$197,11,FALSE)),0,VLOOKUP(B26,'Mod(3) - pen payments'!$E$9:$O$197,11,FALSE)) -> 0 | D26: 1 | E26: 0
B27: 0 | C27: =IF(ISERROR(VLOOKUP(B27,'Mod(3) - pen payments'!$E$9:$O$197,11,FALSE)),0,VLOOKUP(B27,'Mod(3) - pen payments'!$E$9:$O$197,11,FALSE)) -> 0 | D27: 1 | E27: 0
B28: 0 | C28: =IF(ISERROR(VLOOKUP(B28,'Mod(3) - pen payments'!$E$9:$O$197,11,FALSE)),0,VLOOKUP(B28,'Mod(3) - pen payments'!$E$9:$O$197,11,FALSE)) -> 0 | D28: 1 | E28: 0
B29: 0 | C29: =IF(ISERROR(VLOOKUP(B29,'Mod(3) - pen payments'!$E$9:$O$197,11,FALSE)),0,VLOOKUP(B29,'Mod(3) - pen payments'!$E$9:$O$197,11,FALSE)) -> 0 | D29: 1 | E29: 0
B30: 0 | C30: =IF(ISERROR(VLOOKUP(B30,'Mod(3) - pen payments'!$E$9:$O$197,11,FALSE)),0,VLOOKUP(B30,'Mod(3) - pen payments'!$E$9:$O$197,11,FALSE)) -> 0 | D30: 1 | E30: 0
B31: 0 | C31: =IF(ISERROR(VLOOKUP(B31,'Mod(3) - pen payments'!$E$9:$O$197,11,FALSE)),0,VLOOKUP(B31,'Mod(3) - pen payments'!$E$9:$O$197,11,FALSE)) -> 0 | D31: 1 | E31: 0
B32: 0 | C32: =IF(ISERROR(VLOOKUP(B32,'Mod(3) - pen payments'!$E$9:$O$197,11,FALSE)),0,VLOOKUP(B32,'Mod(3) - pen payments'!$E$9:$O$197,11,FALSE)) -> 0 | D32: 1 | E32: 0
B33: 0 | C33: =IF(ISERROR(VLOOKUP(B33,'Mod(3) - pen payments'!$E$9:$O$197,11,FALSE)),0,VLOOKUP(B33,'Mod(3) - pen payments'!$E$9:$O$197,11,FALSE)) -> 0 | D33: 1 | E33: 0 | H33: =1/12 -> 0.08333333333
B34: 0 | C34: =IF(ISERROR(VLOOKUP(B34,'Mod(3) - pen payments'!$E$9:$O$197,11,FALSE)),0,VLOOKUP(B34,'Mod(3) - pen payments'!$E$9:$O$197,11,FALSE)) -> 0 | D34: 1 | E34: 0
B35: 0 | C35: =IF(ISERROR(VLOOKUP(B35,'Mod(3) - pen payments'!$E$9:$O$197,11,FALSE)),0,VLOOKUP(B35,'Mod(3) - pen payments'!$E$9:$O$197,11,FALSE)) -> 0 | D35: 1 | E35: 0
B36: 0 | C36: =IF(ISERROR(VLOOKUP(B36,'Mod(3) - pen payments'!$E$9:$O$197,11,FALSE)),0,VLOOKUP(B36,'Mod(3) - pen payments'!$E$9:$O$197,11,FALSE)) -> 0 | D36: 1 | E36: 0
B37: 0 | C37: =IF(ISERROR(VLOOKUP(B37,'Mod(3) - pen payments'!$E$9:$O$197,11,FALSE)),0,VLOOKUP(B37,'Mod(3) - pen payments'!$E$9:$O$197,11,FALSE)) -> 0 | D37: 1 | E37: 0
B38: 0 | C38: =IF(ISERROR(VLOOKUP(B38,'Mod(3) - pen payments'!$E$9:$O$197,11,FALSE)),0,VLOOKUP(B38,'Mod(3) - pen payments'!$E$9:$O$197,11,FALSE)) -> 0 | D38: 1 | E38: 0
B39: 0 | C39: =IF(ISERROR(VLOOKUP(B39,'Mod(3) - pen payments'!$E$9:$O$197,11,FALSE)),0,VLOOKUP(B39,'Mod(3) - pen payments'!$E$9:$O$197,11,FALSE)) -> 0 | D39: 1 | E39: 0
B40: 0 | C40: =IF(ISERROR(VLOOKUP(B40,'Mod(3) - pen payments'!$E$9:$O$197,11,FALSE)),0,VLOOKUP(B40,'Mod(3) - pen payments'!$E$9:$O$197,11,FALSE)) -> 0 | D40: 1 | E40: 0
B41: 0 | C41: =IF(ISERROR(VLOOKUP(B41,'Mod(3) - pen payments'!$E$9:$O$197,11,FALSE)),0,VLOOKUP(B41,'Mod(3) - pen payments'!$E$9:$O$197,11,FALSE)) -> 0 | D41: 1 | E41: 0
B42: 0 | C42: =IF(ISERROR(VLOOKUP(B42,'Mod(3) - pen payments'!$E$9:$O$197,11,FALSE)),0,VLOOKUP(B42,'Mod(3) - pen payments'!$E$9:$O$197,11,FALSE)) -> 0 | D42: 1 | E42: 0
